Workbook

Sheet Eingabe Email
A1: Emailadresse eingeben: | B1: =strcode(A2) -> 5999
A2: stxxyyyy@stud.h-da.de | B2: =prnd(B1) -> 272087
B3: =prnd(B2) -> 1103626
B4: =prnd(B3) -> 619092
B5: 1040706
B6: 1030009
B7: 826773
B8: 866190
B9: 795932
B10: 583982
B11: 939709
B12: 562575
B13: 529831
B14: 1048726
B15: 531871
B16: 283517
B17: 199219
B18: 207856
B19: 1171061
B20: 91416
B21: 556628
B22: 271406
B23: 925204
B24: 661332
B25: 410385
B26: 946410
B27: 1018548
B28: 423369
B29: 449151
B30: 705590
B31: 308780
B32: 319680
B33: 576102
B34: 174838
B35: 318479
B36: 261440
B37: 913490
B38: 191642
B39: 822060
B40: 931073
B41: 899321
B42: 378431
B43: 372596
B44: 143515
B45: 1209676
B46: 1110723
B47: 1178817
B48: 823799
B49: 87002
B50: 699849
B51: 104327
B52: 40243
B53: 146192
B54: 611361
B55: 314873
B56: 616357
B57: 324136
B58: 443885
B59: 625587
B60: 143018
B61: 1079462
B62: 786569
B63: 730254
B64: 272303
B65: 1160218
B66: 1149617
B67: 971533
B68: =prnd(B67) -> 1102329
B69: 279278
B70: 388290
B71: 356276
B72: 1066431
B73: 1271514
B74: 416322
B75: 1202215
B76: 455630
B77: 1103399
B78: 559618
B79: 1054786
B80: 819902
B81: 365677
B82: 930115
B83: 648325
B84: 901618
B85: 980245
B86: 785495
B87: 448866
B88: 630920
B89: 240575
B90: 645616
B91: 191860
B92: 879176
B93: 299197
B94: 408312
B95: 403284
B96: 385637
B97: 960879
B98: 910359
B99: 671009
B100: 346381
B101: 1073319
B102: 476792
B103: 149398
B104: 151644
B105: 740096
B106: 251529
B107: 916186
B108: 897994
B109: 30757
B110: 260238
B111: 598566
B112: 861650
B113: 906141
B114: 865582
B115: 636636
B116: 438478
B117: 508642
B118: 695964
B119: 386146
B120: 1094237
B121: 758552
B122: 1187934
B123: 613075
B124: 763941
B125: 474
B126: 124226
B127: 55025
B128: 120009
B129: 249860
B130: 478908
B131: 703790
B132: =prnd(B131) -> 1136869
B133: 230935
B134: 719314
B135: 5401
B136: 115411
B137: 344873
B138: 678223
B139: 936760
B140: 1089626
B141: 850159
B142: 494877
B143: 988601
B144: 375389
B145: 875281
B146: 578396
B147: 775866
B148: 525446
B149: 1199545
B150: 1055779
B151: 1080068
B152: 945341
B153: 738470
B154: 1125206
B155: 1074296
B156: 732766
B157: 930447
B158: 735309
B159: 297024
B160: 1138675
B161: 704107
B162: 1219923
B163: 1196059
B164: 142447
B165: 929860
B166: 581515
B167: 293355
B168: 177397
B169: 988937
B170: 463421
B171: 545263
B172: 1192843
B173: 599544
B174: 1117886
B175: 456145
B176: 1238329
B177: 819675
B178: 306203
B179: 944195
B180: 438218
B181: 440522
B182: 1044170
B183: 637888
B184: 766502
B185: 671456
B186: 463495
B187: 564651
B188: 1073743
B189: 587880
B190: 661296
B191: 400953
B192: 1074604
B193: 813462
B194: 1277775
B195: 757015
B196: =prnd(B195) -> 785240
B197: 382056
B198: 22657
B199: 737416
B200: 849058
... 9800 more rows

Sheet H1
A1: Column_1-T | B1: education | C1: income | D1: women | E1: prestige | F1: census | G1: type
A2: ='H1 Originaldaten'!A2 -> gov.administrators | B2: =ROUND(MAX(_xlfn.NORM.INV(('Eingabe Email'!$B134+1)/MAX('Eingabe Email'!$B:$B),'H1 Originaldaten'!B2,7),2),1) -> 14.1 | C2: =ROUND(MAX(_xlfn.NORM.INV(('Eingabe Email'!$B134+1)/MAX('Eingabe Email'!$B:$B),'H1 Originaldaten'!C2,400),2),1) -> 12404.8 | D2: =ROUND(MAX(_xlfn.NORM.INV(('Eingabe Email'!$B134+1)/MAX('Eingabe Email'!$B:$B),'H1 Originaldaten'!D2,4),2),1) -> 11.7 | E2: =ROUND(MAX(_xlfn.NORM.INV(('Eingabe Email'!$B134+1)/MAX('Eingabe Email'!$B:$B),'H1 Originaldaten'!E2,4),2),1) -> 69.3 | F2: =ROUND(MAX(_xlfn.NORM.INV(('Eingabe Email'!$B134+1)/MAX('Eingabe Email'!$B:$B),'H1 Originaldaten'!F2,200),2),0) -> 1140 | G2: ='H1 Originaldaten'!G2 -> prof
A3: ='H1 Originaldaten'!A3 -> general.managers | B3: =ROUND(MAX(_xlfn.NORM.INV(('Eingabe Email'!$B135+1)/MAX('Eingabe Email'!$B:$B),'H1 Originaldaten'!B3,7),2),1) -> 2 | C3: =ROUND(MAX(_xlfn.NORM.INV(('Eingabe Email'!$B135+1)/MAX('Eingabe Email'!$B:$B),'H1 Originaldaten'!C3,400),2),1) -> 24823.4 | D3: =ROUND(MAX(_xlfn.NORM.INV(('Eingabe Email'!$B135+1)/MAX('Eingabe Email'!$B:$B),'H1 Originaldaten'!D3,4),2),1) -> 2 | E3: =ROUND(MAX(_xlfn.NORM.INV(('Eingabe Email'!$B135+1)/MAX('Eingabe Email'!$B:$B),'H1 Originaldaten'!E3,4),2),1) -> 58.5 | F3: =ROUND(MAX(_xlfn.NORM.INV(('Eingabe Email'!$B135+1)/MAX('Eingabe Email'!$B:$B),'H1 Originaldaten'!F3,200),2),0) -> 602 | G3: ='H1 Originaldaten'!G3 -> prof
A4: ='H1 Originaldaten'!A4 -> accountants | B4: =ROUND(MAX(_xlfn.NORM.INV(('Eingabe Email'!$B136+1)/MAX('Eingabe Email'!$B:$B),'H1 Originaldaten'!B4,7),2),1) -> 3.3 | C4: =ROUND(MAX(_xlfn.NORM.INV(('Eingabe Email'!$B136+1)/MAX('Eingabe Email'!$B:$B),'H1 Originaldaten'!C4,400),2),1) -> 8731.8 | D4: =ROUND(MAX(_xlfn.NORM.INV(('Eingabe Email'!$B136+1)/MAX('Eingabe Email'!$B:$B),'H1 Originaldaten'!D4,4),2),1) -> 10.3 | E4: =ROUND(MAX(_xlfn.NORM.INV(('Eingabe Email'!$B136+1)/MAX('Eingabe Email'!$B:$B),'H1 Originaldaten'!E4,4),2),1) -> 58 | F4: =ROUND(MAX(_xlfn.NORM.INV(('Eingabe Email'!$B136+1)/MAX('Eingabe Email'!$B:$B),'H1 Originaldaten'!F4,200),2),0) -> 901 | G4: ='H1 Originaldaten'!G4 -> prof
A5: ='H1 Originaldaten'!A5 -> purchasing.officers | B5: =ROUND(MAX(_xlfn.NORM.INV(('Eingabe Email'!$B137+1)/MAX('Eingabe Email'!$B:$B),'H1 Originaldaten'!B5,7),2),1) -> 7 | C5: =ROUND(MAX(_xlfn.NORM.INV(('Eingabe Email'!$B137+1)/MAX('Eingabe Email'!$B:$B),'H1 Originaldaten'!C5,400),2),1) -> 8614.3 | D5: =ROUND(MAX(_xlfn.NORM.INV(('Eingabe Email'!$B137+1)/MAX('Eingabe Email'!$B:$B),'H1 Originaldaten'!D5,4),2),1) -> 6.6 | E5: =ROUND(MAX(_xlfn.NORM.INV(('Eingabe Email'!$B137+1)/MAX('Eingabe Email'!$B:$B),'H1 Originaldaten'!E5,4),2),1) -> 54.3 | F5: =ROUND(MAX(_xlfn.NORM.INV(('Eingabe Email'!$B137+1)/MAX('Eingabe Email'!$B:$B),'H1 Originaldaten'!F5,200),2),0) -> 1050 | G5: ='H1 Originaldaten'!G5 -> prof
A6: ='H1 Originaldaten'!A6 -> chemists | B6: =ROUND(MAX(_xlfn.NORM.INV(('Eingabe Email'!$B138+1)/MAX('Eingabe Email'!$B:$B),'H1 Originaldaten'!B6,7),2),1) -> 15 | C6: =ROUND(MAX(_xlfn.NORM.INV(('Eingabe Email'!$B138+1)/MAX('Eingabe Email'!$B:$B),'H1 Originaldaten'!C6,400),2),1) -> 8425 | D6: =ROUND(MAX(_xlfn.NORM.INV(('Eingabe Email'!$B138+1)/MAX('Eingabe Email'!$B:$B),'H1 Originaldaten'!D6,4),2),1) -> 11.9 | E6: =ROUND(MAX(_xlfn.NORM.INV(('Eingabe Email'!$B138+1)/MAX('Eingabe Email'!$B:$B),'H1 Originaldaten'!E6,4),2),1) -> 73.7 | F6: =ROUND(MAX(_xlfn.NORM.INV(('Eingabe Email'!$B138+1)/MAX('Eingabe Email'!$B:$B),'H1 Originaldaten'!F6,200),2),0) -> 2122 | G6: ='H1 Originaldaten'!G6 -> prof
A7: ='H1 Originaldaten'!A7 -> physicists | B7: =ROUND(MAX(_xlfn.NORM.INV(('Eingabe Email'!$B139+1)/MAX('Eingabe Email'!$B:$B),'H1 Originaldaten'!B7,7),2),1) -> 19.7 | C7: =ROUND(MAX(_xlfn.NORM.INV(('Eingabe Email'!$B139+1)/MAX('Eingabe Email'!$B:$B),'H1 Originaldaten'!C7,400),2),1) -> 11264.2 | D7: =ROUND(MAX(_xlfn.NORM.INV(('Eingabe Email'!$B139+1)/MAX('Eingabe Email'!$B:$B),'H1 Originaldaten'!D7,4),2),1) -> 7.5 | E7: =ROUND(MAX(_xlfn.NORM.INV(('Eingabe Email'!$B139+1)/MAX('Eingabe Email'!$B:$B),'H1 Originaldaten'!E7,4),2),1) -> 79.9 | F7: =ROUND(MAX(_xlfn.NORM.INV(('Eingabe Email'!$B139+1)/MAX('Eingabe Email'!$B:$B),'H1 Originaldaten'!F7,200),2),0) -> 2230 | G7: ='H1 Originaldaten'!G7 -> prof
A8: ='H1 Originaldaten'!A8 -> biologists | B8: =ROUND(MAX(_xlfn.NORM.INV(('Eingabe Email'!$B140+1)/MAX('Eingabe Email'!$B:$B),'H1 Originaldaten'!B8,7),2),1) -> 22 | C8: =ROUND(MAX(_xlfn.NORM.INV(('Eingabe Email'!$B140+1)/MAX('Eingabe Email'!$B:$B),'H1 Originaldaten'!C8,400),2),1) -> 8653.4 | D8: =ROUND(MAX(_xlfn.NORM.INV(('Eingabe Email'!$B140+1)/MAX('Eingabe Email'!$B:$B),'H1 Originaldaten'!D8,4),2),1) -> 29.6 | E8: =ROUND(MAX(_xlfn.NORM.INV(('Eingabe Email'!$B140+1)/MAX('Eingabe Email'!$B:$B),'H1 Originaldaten'!E8,4),2),1) -> 76.6 | F8: =ROUND(MAX(_xlfn.NORM.INV(('Eingabe Email'!$B140+1)/MAX('Eingabe Email'!$B:$B),'H1 Originaldaten'!F8,200),2),0) -> 2331 | G8: ='H1 Originaldaten'!G8 -> prof
A9: ='H1 Originaldaten'!A9 -> architects | B9: =ROUND(MAX(_xlfn.NORM.INV(('Eingabe Email'!$B141+1)/MAX('Eingabe Email'!$B:$B),'H1 Originaldaten'!B9,7),2),1) -> 18.2 | C9: =ROUND(MAX(_xlfn.NORM.INV(('Eingabe Email'!$B141+1)/MAX('Eingabe Email'!$B:$B),'H1 Originaldaten'!C9,400),2),1) -> 14321.7 | D9: =ROUND(MAX(_xlfn.NORM.INV(('Eingabe Email'!$B141+1)/MAX('Eingabe Email'!$B:$B),'H1 Originaldaten'!D9,4),2),1) -> 4.3 | E9: =ROUND(MAX(_xlfn.NORM.INV(('Eingabe Email'!$B141+1)/MAX('Eingabe Email'!$B:$B),'H1 Originaldaten'!E9,4),2),1) -> 79.7 | F9: =ROUND(MAX(_xlfn.NORM.INV(('Eingabe Email'!$B141+1)/MAX('Eingabe Email'!$B:$B),'H1 Originaldaten'!F9,200),2),0) -> 2220 | G9: ='H1 Originaldaten'!G9 -> prof
A10: ='H1 Originaldaten'!A10 -> civil.engineers | B10: =ROUND(MAX(_xlfn.NORM.INV(('Eingabe Email'!$B142+1)/MAX('Eingabe Email'!$B:$B),'H1 Originaldaten'!B10,7),2),1) -> 12.4 | C10: =ROUND(MAX(_xlfn.NORM.INV(('Eingabe Email'!$B142+1)/MAX('Eingabe Email'!$B:$B),'H1 Originaldaten'!C10,400),2),1) -> 11255.7 | D10: =ROUND(MAX(_xlfn.NORM.INV(('Eingabe Email'!$B142+1)/MAX('Eingabe Email'!$B:$B),'H1 Originaldaten'!D10,4),2),1) -> 2 | E10: =ROUND(MAX(_xlfn.NORM.INV(('Eingabe Email'!$B142+1)/MAX('Eingabe Email'!$B:$B),'H1 Originaldaten'!E10,4),2),1) -> 71.9 | F10: =ROUND(MAX(_xlfn.NORM.INV(('Eingabe Email'!$B142+1)/MAX('Eingabe Email'!$B:$B),'H1 Originaldaten'!F10,200),2),0) -> 2082 | G10: ='H1 Originaldaten'!G10 -> prof
A11: ='H1 Originaldaten'!A11 -> mining.engineers | B11: =ROUND(MAX(_xlfn.NORM.INV(('Eingabe Email'!$B143+1)/MAX('Eingabe Email'!$B:$B),'H1 Originaldaten'!B11,7),2),1) -> 19.6 | C11: =ROUND(MAX(_xlfn.NORM.INV(('Eingabe Email'!$B143+1)/MAX('Eingabe Email'!$B:$B),'H1 Originaldaten'!C11,400),2),1) -> 11306.5 | D11: =ROUND(MAX(_xlfn.NORM.INV(('Eingabe Email'!$B143+1)/MAX('Eingabe Email'!$B:$B),'H1 Originaldaten'!D11,4),2),1) -> 3.8 | E11: =ROUND(MAX(_xlfn.NORM.INV(('Eingabe Email'!$B143+1)/MAX('Eingabe Email'!$B:$B),'H1 Originaldaten'!E11,4),2),1) -> 71.6 | F11: =ROUND(MAX(_xlfn.NORM.INV(('Eingabe Email'!$B143+1)/MAX('Eingabe Email'!$B:$B),'H1 Originaldaten'!F11,200),2),0) -> 2295 | G11: ='H1 Originaldaten'!G11 -> prof
A12: ='H1 Originaldaten'!A12 -> surveyors | B12: =ROUND(MAX(_xlfn.NORM.INV(('Eingabe Email'!$B144+1)/MAX('Eingabe Email'!$B:$B),'H1 Originaldaten'!B12,7),2),1) -> 8.5 | C12: =ROUND(MAX(_xlfn.NORM.INV(('Eingabe Email'!$B144+1)/MAX('Eingabe Email'!$B:$B),'H1 Originaldaten'!C12,400),2),1) -> 5679.3 | D12: =ROUND(MAX(_xlfn.NORM.INV(('Eingabe Email'!$B144+1)/MAX('Eingabe Email'!$B:$B),'H1 Originaldaten'!D12,4),2),1) -> 2 | E12: =ROUND(MAX(_xlfn.NORM.INV(('Eingabe Email'!$B144+1)/MAX('Eingabe Email'!$B:$B),'H1 Originaldaten'!E12,4),2),1) -> 59.8 | F12: =ROUND(MAX(_xlfn.NORM.INV(('Eingabe Email'!$B144+1)/MAX('Eingabe Email'!$B:$B),'H1 Originaldaten'!F12,200),2),0) -> 2050 | G12: ='H1 Originaldaten'!G12 -> prof
A13: ='H1 Originaldaten'!A13 -> draughtsmen | B13: =ROUND(MAX(_xlfn.NORM.INV(('Eingabe Email'!$B145+1)/MAX('Eingabe Email'!$B:$B),'H1 Originaldaten'!B13,7),2),1) -> 15.4 | C13: =ROUND(MAX(_xlfn.NORM.INV(('Eingabe Email'!$B145+1)/MAX('Eingabe Email'!$B:$B),'H1 Originaldaten'!C13,400),2),1) -> 7238.9 | D13: =ROUND(MAX(_xlfn.NORM.INV(('Eingabe Email'!$B145+1)/MAX('Eingabe Email'!$B:$B),'H1 Originaldaten'!D13,4),2),1) -> 9.6 | E13: =ROUND(MAX(_xlfn.NORM.INV(('Eingabe Email'!$B145+1)/MAX('Eingabe Email'!$B:$B),'H1 Originaldaten'!E13,4),2),1) -> 61.8 | F13: =ROUND(MAX(_xlfn.NORM.INV(('Eingabe Email'!$B145+1)/MAX('Eingabe Email'!$B:$B),'H1 Originaldaten'!F13,200),2),0) -> 2253 | G13: ='H1 Originaldaten'!G13 -> prof
A14: ='H1 Originaldaten'!A14 -> computer.programers | B14: =ROUND(MAX(_xlfn.NORM.INV(('Eingabe Email'!$B146+1)/MAX('Eingabe Email'!$B:$B),'H1 Originaldaten'!B14,7),2),1) -> 12.9 | C14: =ROUND(MAX(_xlfn.NORM.INV(('Eingabe Email'!$B146+1)/MAX('Eingabe Email'!$B:$B),'H1 Originaldaten'!C14,400),2),1) -> 8369.8 | D14: =ROUND(MAX(_xlfn.NORM.INV(('Eingabe Email'!$B146+1)/MAX('Eingabe Email'!$B:$B),'H1 Originaldaten'!D14,4),2),1) -> 14.8 | E14: =ROUND(MAX(_xlfn.NORM.INV(('Eingabe Email'!$B146+1)/MAX('Eingabe Email'!$B:$B),'H1 Originaldaten'!E14,4),2),1) -> 53.2 | F14: =ROUND(MAX(_xlfn.NORM.INV(('Eingabe Email'!$B146+1)/MAX('Eingabe Email'!$B:$B),'H1 Originaldaten'!F14,200),2),0) -> 2155 | G14: ='H1 Originaldaten'!G14 -> prof
A15: ='H1 Originaldaten'!A15 -> economists | B15: =ROUND(MAX(_xlfn.NORM.INV(('Eingabe Email'!$B147+1)/MAX('Eingabe Email'!$B:$B),'H1 Originaldaten'!B15,7),2),1) -> 16.2 | C15: =ROUND(MAX(_xlfn.NORM.INV(('Eingabe Email'!$B147+1)/MAX('Eingabe Email'!$B:$B),'H1 Originaldaten'!C15,400),2),1) -> 8147.3 | D15: =ROUND(MAX(_xlfn.NORM.INV(('Eingabe Email'!$B147+1)/MAX('Eingabe Email'!$B:$B),'H1 Originaldaten'!D15,4),2),1) -> 58.3 | E15: =ROUND(MAX(_xlfn.NORM.INV(('Eingabe Email'!$B147+1)/MAX('Eingabe Email'!$B:$B),'H1 Originaldaten'!E15,4),2),1) -> 63.2 | F15: =ROUND(MAX(_xlfn.NORM.INV(('Eingabe Email'!$B147+1)/MAX('Eingabe Email'!$B:$B),'H1 Originaldaten'!F15,200),2),0) -> 2360 | G15: ='H1 Originaldaten'!G15 -> prof
A16: ='H1 Originaldaten'!A16 -> psychologists | B16: =ROUND(MAX(_xlfn.NORM.INV(('Eingabe Email'!$B148+1)/MAX('Eingabe Email'!$B:$B),'H1 Originaldaten'!B16,7),2),1) -> 12.7 | C16: =ROUND(MAX(_xlfn.NORM.INV(('Eingabe Email'!$B148+1)/MAX('Eingabe Email'!$B:$B),'H1 Originaldaten'!C16,400),2),1) -> 7308.2 | D16: =ROUND(MAX(_xlfn.NORM.INV(('Eingabe Email'!$B148+1)/MAX('Eingabe Email'!$B:$B),'H1 Originaldaten'!D16,4),2),1) -> 47.3 | E16: =ROUND(MAX(_xlfn.NORM.INV(('Eingabe Email'!$B148+1)/MAX('Eingabe Email'!$B:$B),'H1 Originaldaten'!E16,4),2),1) -> 73.9 | F16: =ROUND(MAX(_xlfn.NORM.INV(('Eingabe Email'!$B148+1)/MAX('Eingabe Email'!$B:$B),'H1 Originaldaten'!F16,200),2),0) -> 2267 | G16: ='H1 Originaldaten'!G16 -> prof
A17: ='H1 Originaldaten'!A17 -> social.workers | B17: =ROUND(MAX(_xlfn.NORM.INV(('Eingabe Email'!$B149+1)/MAX('Eingabe Email'!$B:$B),'H1 Originaldaten'!B17,7),2),1) -> 24.2 | C17: =ROUND(MAX(_xlfn.NORM.INV(('Eingabe Email'!$B149+1)/MAX('Eingabe Email'!$B:$B),'H1 Originaldaten'!C17,400),2),1) -> 6906.5 | D17: =ROUND(MAX(_xlfn.NORM.INV(('Eingabe Email'!$B149+1)/MAX('Eingabe Email'!$B:$B),'H1 Originaldaten'!D17,4),2),1) -> 60.5 | E17: =ROUND(MAX(_xlfn.NORM.INV(('Eingabe Email'!$B149+1)/MAX('Eingabe Email'!$B:$B),'H1 Originaldaten'!E17,4),2),1) -> 60.8 | F17: =ROUND(MAX(_xlfn.NORM.INV(('Eingabe Email'!$B149+1)/MAX('Eingabe Email'!$B:$B),'H1 Originaldaten'!F17,200),2),0) -> 2616 | G17: ='H1 Originaldaten'!G17 -> prof
A18: ='H1 Originaldaten'!A18 -> lawyers | B18: =ROUND(MAX(_xlfn.NORM.INV(('Eingabe Email'!$B150+1)/MAX('Eingabe Email'!$B:$B),'H1 Originaldaten'!B18,7),2),1) -> 22 | C18: =ROUND(MAX(_xlfn.NORM.INV(('Eingabe Email'!$B150+1)/MAX('Eingabe Email'!$B:$B),'H1 Originaldaten'!C18,400),2),1) -> 19617.8 | D18: =ROUND(MAX(_xlfn.NORM.INV(('Eingabe Email'!$B150+1)/MAX('Eingabe Email'!$B:$B),'H1 Originaldaten'!D18,4),2),1) -> 8.7 | E18: =ROUND(MAX(_xlfn.NORM.INV(('Eingabe Email'!$B150+1)/MAX('Eingabe Email'!$B:$B),'H1 Originaldaten'!E18,4),2),1) -> 85.8 | F18: =ROUND(MAX(_xlfn.NORM.INV(('Eingabe Email'!$B150+1)/MAX('Eingabe Email'!$B:$B),'H1 Originaldaten'!F18,200),2),0) -> 2520 | G18: ='H1 Originaldaten'!G18 -> prof
A19: ='H1 Originaldaten'!A19 -> librarians | B19: =ROUND(MAX(_xlfn.NORM.INV(('Eingabe Email'!$B151+1)/MAX('Eingabe Email'!$B:$B),'H1 Originaldaten'!B19,7),2),1) -> 20.9 | C19: =ROUND(MAX(_xlfn.NORM.INV(('Eingabe Email'!$B151+1)/MAX('Eingabe Email'!$B:$B),'H1 Originaldaten'!C19,400),2),1) -> 6495.5 | D19: =ROUND(MAX(_xlfn.NORM.INV(('Eingabe Email'!$B151+1)/MAX('Eingabe Email'!$B:$B),'H1 Originaldaten'!D19,4),2),1) -> 80.9 | E19: =ROUND(MAX(_xlfn.NORM.INV(('Eingabe Email'!$B151+1)/MAX('Eingabe Email'!$B:$B),'H1 Originaldaten'!E19,4),2),1) -> 61.9 | F19: =ROUND(MAX(_xlfn.NORM.INV(('Eingabe Email'!$B151+1)/MAX('Eingabe Email'!$B:$B),'H1 Originaldaten'!F19,200),2),0) -> 2543 | G19: ='H1 Originaldaten'!G19 -> prof
A20: ='H1 Originaldaten'!A20 -> vocational.counsellors | B20: =ROUND(MAX(_xlfn.NORM.INV(('Eingabe Email'!$B152+1)/MAX('Eingabe Email'!$B:$B),'H1 Originaldaten'!B20,7),2),1) -> 19.5 | C20: =ROUND(MAX(_xlfn.NORM.INV(('Eingabe Email'!$B152+1)/MAX('Eingabe Email'!$B:$B),'H1 Originaldaten'!C20,400),2),1) -> 9835.1 | D20: =ROUND(MAX(_xlfn.NORM.INV(('Eingabe Email'!$B152+1)/MAX('Eingabe Email'!$B:$B),'H1 Originaldaten'!D20,4),2),1) -> 37.3 | E20: =ROUND(MAX(_xlfn.NORM.INV(('Eingabe Email'!$B152+1)/MAX('Eingabe Email'!$B:$B),'H1 Originaldaten'!E20,4),2),1) -> 60.7 | F20: =ROUND(MAX(_xlfn.NORM.INV(('Eingabe Email'!$B152+1)/MAX('Eingabe Email'!$B:$B),'H1 Originaldaten'!F20,200),2),0) -> 2512 | G20: ='H1 Originaldaten'!G20 -> prof
A21: ='H1 Originaldaten'!A21 -> ministers | B21: =ROUND(MAX(_xlfn.NORM.INV(('Eingabe Email'!$B153+1)/MAX('Eingabe Email'!$B:$B),'H1 Originaldaten'!B21,7),2),1) -> 15.7 | C21: =ROUND(MAX(_xlfn.NORM.INV(('Eingabe Email'!$B153+1)/MAX('Eingabe Email'!$B:$B),'H1 Originaldaten'!C21,400),2),1) -> 4754.8 | D21: =ROUND(MAX(_xlfn.NORM.INV(('Eingabe Email'!$B153+1)/MAX('Eingabe Email'!$B:$B),'H1 Originaldaten'!D21,4),2),1) -> 4.8 | E21: =ROUND(MAX(_xlfn.NORM.INV(('Eingabe Email'!$B153+1)/MAX('Eingabe Email'!$B:$B),'H1 Originaldaten'!E21,4),2),1) -> 73.5 | F21: =ROUND(MAX(_xlfn.NORM.INV(('Eingabe Email'!$B153+1)/MAX('Eingabe Email'!$B:$B),'H1 Originaldaten'!F21,200),2),0) -> 2545 | G21: ='H1 Originaldaten'!G21 -> prof
A22: ='H1 Originaldaten'!A22 -> university.teachers | B22: =ROUND(MAX(_xlfn.NORM.INV(('Eingabe Email'!$B154+1)/MAX('Eingabe Email'!$B:$B),'H1 Originaldaten'!B22,7),2),1) -> 23.7 | C22: =ROUND(MAX(_xlfn.NORM.INV(('Eingabe Email'!$B154+1)/MAX('Eingabe Email'!$B:$B),'H1 Originaldaten'!C22,400),2),1) -> 12922.9 | D22: =ROUND(MAX(_xlfn.NORM.INV(('Eingabe Email'!$B154+1)/MAX('Eingabe Email'!$B:$B),'H1 Originaldaten'!D22,4),2),1) -> 24 | E22: =ROUND(MAX(_xlfn.NORM.INV(('Eingabe Email'!$B154+1)/MAX('Eingabe Email'!$B:$B),'H1 Originaldaten'!E22,4),2),1) -> 89 | F22: =ROUND(MAX(_xlfn.NORM.INV(('Eingabe Email'!$B154+1)/MAX('Eingabe Email'!$B:$B),'H1 Originaldaten'!F22,200),2),0) -> 2932 | G22: ='H1 Originaldaten'!G22 -> prof
A23: ='H1 Originaldaten'!A23 -> primary.school.teachers | B23: =ROUND(MAX(_xlfn.NORM.INV(('Eingabe Email'!$B155+1)/MAX('Eingabe Email'!$B:$B),'H1 Originaldaten'!B23,7),2),1) -> 20.2 | C23: =ROUND(MAX(_xlfn.NORM.INV(('Eingabe Email'!$B155+1)/MAX('Eingabe Email'!$B:$B),'H1 Originaldaten'!C23,400),2),1) -> 6024.5 | D23: =ROUND(MAX(_xlfn.NORM.INV(('Eingabe Email'!$B155+1)/MAX('Eingabe Email'!$B:$B),'H1 Originaldaten'!D23,4),2),1) -> 87.5 | E23: =ROUND(MAX(_xlfn.NORM.INV(('Eingabe Email'!$B155+1)/MAX('Eingabe Email'!$B:$B),'H1 Originaldaten'!E23,4),2),1) -> 63.4 | F23: =ROUND(MAX(_xlfn.NORM.INV(('Eingabe Email'!$B155+1)/MAX('Eingabe Email'!$B:$B),'H1 Originaldaten'!F23,200),2),0) -> 2919 | G23: ='H1 Originaldaten'!G23 -> prof
A24: ='H1 Originaldaten'!A24 -> secondary.school.teachers | B24: =ROUND(MAX(_xlfn.NORM.INV(('Eingabe Email'!$B156+1)/MAX('Eingabe Email'!$B:$B),'H1 Originaldaten'!B24,7),2),1) -> 16.2 | C24: =ROUND(MAX(_xlfn.NORM.INV(('Eingabe Email'!$B156+1)/MAX('Eingabe Email'!$B:$B),'H1 Originaldaten'!C24,400),2),1) -> 8098.3 | D24: =ROUND(MAX(_xlfn.NORM.INV(('Eingabe Email'!$B156+1)/MAX('Eingabe Email'!$B:$B),'H1 Originaldaten'!D24,4),2),1) -> 47.4 | E24: =ROUND(MAX(_xlfn.NORM.INV(('Eingabe Email'!$B156+1)/MAX('Eingabe Email'!$B:$B),'H1 Originaldaten'!E24,4),2),1) -> 66.7 | F24: =ROUND(MAX(_xlfn.NORM.INV(('Eingabe Email'!$B156+1)/MAX('Eingabe Email'!$B:$B),'H1 Originaldaten'!F24,200),2),0) -> 2765 | G24: ='H1 Originaldaten'!G24 -> prof
A25: ='H1 Originaldaten'!A25 -> physicians | B25: =ROUND(MAX(_xlfn.NORM.INV(('Eingabe Email'!$B157+1)/MAX('Eingabe Email'!$B:$B),'H1 Originaldaten'!B25,7),2),1) -> 20 | C25: =ROUND(MAX(_xlfn.NORM.INV(('Eingabe Email'!$B157+1)/MAX('Eingabe Email'!$B:$B),'H1 Originaldaten'!C25,400),2),1) -> 25536.4 | D25: =ROUND(MAX(_xlfn.NORM.INV(('Eingabe Email'!$B157+1)/MAX('Eingabe Email'!$B:$B),'H1 Originaldaten'!D25,4),2),1) -> 12.8 | E25: =ROUND(MAX(_xlfn.NORM.INV(('Eingabe Email'!$B157+1)/MAX('Eingabe Email'!$B:$B),'H1 Originaldaten'!E25,4),2),1) -> 89.5 | F25: =ROUND(MAX(_xlfn.NORM.INV(('Eingabe Email'!$B157+1)/MAX('Eingabe Email'!$B:$B),'H1 Originaldaten'!F25,200),2),0) -> 3225 | G25: ='H1 Originaldaten'!G25 -> prof
A26: ='H1 Originaldaten'!A26 -> veterinarians | B26: =ROUND(MAX(_xlfn.NORM.INV(('Eingabe Email'!$B158+1)/MAX('Eingabe Email'!$B:$B),'H1 Originaldaten'!B26,7),2),1) -> 17.1 | C26: =ROUND(MAX(_xlfn.NORM.INV(('Eingabe Email'!$B158+1)/MAX('Eingabe Email'!$B:$B),'H1 Originaldaten'!C26,400),2),1) -> 14624.3 | D26: =ROUND(MAX(_xlfn.NORM.INV(('Eingabe Email'!$B158+1)/MAX('Eingabe Email'!$B:$B),'H1 Originaldaten'!D26,4),2),1) -> 5 | E26: =ROUND(MAX(_xlfn.NORM.INV(('Eingabe Email'!$B158+1)/MAX('Eingabe Email'!$B:$B),'H1 Originaldaten'!E26,4),2),1) -> 67.4 | F26: =ROUND(MAX(_xlfn.NORM.INV(('Eingabe Email'!$B158+1)/MAX('Eingabe Email'!$B:$B),'H1 Originaldaten'!F26,200),2),0) -> 3148 | G26: ='H1 Originaldaten'!G26 -> prof
A27: ='H1 Originaldaten'!A27 -> osteopaths.chiropractors | B27: =ROUND(MAX(_xlfn.NORM.INV(('Eingabe Email'!$B159+1)/MAX('Eingabe Email'!$B:$B),'H1 Originaldaten'!B27,7),2),1) -> 9.5 | C27: =ROUND(MAX(_xlfn.NORM.INV(('Eingabe Email'!$B159+1)/MAX('Eingabe Email'!$B:$B),'H1 Originaldaten'!C27,400),2),1) -> 17200.6 | D27: =ROUND(MAX(_xlfn.NORM.INV(('Eingabe Email'!$B159+1)/MAX('Eingabe Email'!$B:$B),'H1 Originaldaten'!D27,4),2),1) -> 3.9 | E27: =ROUND(MAX(_xlfn.NORM.INV(('Eingabe Email'!$B159+1)/MAX('Eingabe Email'!$B:$B),'H1 Originaldaten'!E27,4),2),1) -> 65.4 | F27: =ROUND(MAX(_xlfn.NORM.INV(('Eingabe Email'!$B159+1)/MAX('Eingabe Email'!$B:$B),'H1 Originaldaten'!F27,200),2),0) -> 2968 | G27: ='H1 Originaldaten'!G27 -> prof
A28: ='H1 Originaldaten'!A28 -> nurses | B28: =ROUND(MAX(_xlfn.NORM.INV(('Eingabe Email'!$B160+1)/MAX('Eingabe Email'!$B:$B),'H1 Originaldaten'!B28,7),2),1) -> 20.6 | C28: =ROUND(MAX(_xlfn.NORM.INV(('Eingabe Email'!$B160+1)/MAX('Eingabe Email'!$B:$B),'H1 Originaldaten'!C28,400),2),1) -> 5076.6 | D28: =ROUND(MAX(_xlfn.NORM.INV(('Eingabe Email'!$B160+1)/MAX('Eingabe Email'!$B:$B),'H1 Originaldaten'!D28,4),2),1) -> 100.7 | E28: =ROUND(MAX(_xlfn.NORM.INV(('Eingabe Email'!$B160+1)/MAX('Eingabe Email'!$B:$B),'H1 Originaldaten'!E28,4),2),1) -> 69.3 | F28: =ROUND(MAX(_xlfn.NORM.INV(('Eingabe Email'!$B160+1)/MAX('Eingabe Email'!$B:$B),'H1 Originaldaten'!F28,200),2),0) -> 3362 | G28: ='H1 Originaldaten'!G28 -> prof
A29: ='H1 Originaldaten'!A29 -> nursing.aides | B29: =ROUND(MAX(_xlfn.NORM.INV(('Eingabe Email'!$B161+1)/MAX('Eingabe Email'!$B:$B),'H1 Originaldaten'!B29,7),2),1) -> 10.2 | C29: =ROUND(MAX(_xlfn.NORM.INV(('Eingabe Email'!$B161+1)/MAX('Eingabe Email'!$B:$B),'H1 Originaldaten'!C29,400),2),1) -> 3527 | D29: =ROUND(MAX(_xlfn.NORM.INV(('Eingabe Email'!$B161+1)/MAX('Eingabe Email'!$B:$B),'H1 Originaldaten'!D29,4),2),1) -> 76.6 | E29: =ROUND(MAX(_xlfn.NORM.INV(('Eingabe Email'!$B161+1)/MAX('Eingabe Email'!$B:$B),'H1 Originaldaten'!E29,4),2),1) -> 35.3 | F29: =ROUND(MAX(_xlfn.NORM.INV(('Eingabe Email'!$B161+1)/MAX('Eingabe Email'!$B:$B),'H1 Originaldaten'!F29,200),2),0) -> 3156 | G29: ='H1 Originaldaten'!G29 -> bc
A30: ='H1 Originaldaten'!A30 -> physio.therapsts | B30: =ROUND(MAX(_xlfn.NORM.INV(('Eingabe Email'!$B162+1)/MAX('Eingabe Email'!$B:$B),'H1 Originaldaten'!B30,7),2),1) -> 24.4 | C30: =ROUND(MAX(_xlfn.NORM.INV(('Eingabe Email'!$B162+1)/MAX('Eingabe Email'!$B:$B),'H1 Originaldaten'!C30,400),2),1) -> 5709.9 | D30: =ROUND(MAX(_xlfn.NORM.INV(('Eingabe Email'!$B162+1)/MAX('Eingabe Email'!$B:$B),'H1 Originaldaten'!D30,4),2),1) -> 88.8 | E30: =ROUND(MAX(_xlfn.NORM.INV(('Eingabe Email'!$B162+1)/MAX('Eingabe Email'!$B:$B),'H1 Originaldaten'!E30,4),2),1) -> 78.3 | F30: =ROUND(MAX(_xlfn.NORM.INV(('Eingabe Email'!$B162+1)/MAX('Eingabe Email'!$B:$B),'H1 Originaldaten'!F30,200),2),0) -> 3446 | G30: ='H1 Originaldaten'!G30 -> prof
A31: ='H1 Originaldaten'!A31 -> pharmacists | B31: =ROUND(MAX(_xlfn.NORM.INV(('Eingabe Email'!$B163+1)/MAX('Eingabe Email'!$B:$B),'H1 Originaldaten'!B31,7),2),1) -> 25.1 | C31: =ROUND(MAX(_xlfn.NORM.INV(('Eingabe Email'!$B163+1)/MAX('Eingabe Email'!$B:$B),'H1 Originaldaten'!C31,400),2),1) -> 10995.2 | D31: =ROUND(MAX(_xlfn.NORM.INV(('Eingabe Email'!$B163+1)/MAX('Eingabe Email'!$B:$B),'H1 Originaldaten'!D31,4),2),1) -> 30.3 | E31: =ROUND(MAX(_xlfn.NORM.INV(('Eingabe Email'!$B163+1)/MAX('Eingabe Email'!$B:$B),'H1 Originaldaten'!E31,4),2),1) -> 74.9 | F31: =ROUND(MAX(_xlfn.NORM.INV(('Eingabe Email'!$B163+1)/MAX('Eingabe Email'!$B:$B),'H1 Originaldaten'!F31,200),2),0) -> 3433 | G31: ='H1 Originaldaten'!G31 -> prof
A32: ='H1 Originaldaten'!A32 -> medical.technicians | B32: =ROUND(MAX(_xlfn.NORM.INV(('Eingabe Email'!$B164+1)/MAX('Eingabe Email'!$B:$B),'H1 Originaldaten'!B32,7),2),1) -> 4.2 | C32: =ROUND(MAX(_xlfn.NORM.INV(('Eingabe Email'!$B164+1)/MAX('Eingabe Email'!$B:$B),'H1 Originaldaten'!C32,400),2),1) -> 4688.6 | D32: =ROUND(MAX(_xlfn.NORM.INV(('Eingabe Email'!$B164+1)/MAX('Eingabe Email'!$B:$B),'H1 Originaldaten'!D32,4),2),1) -> 71.1 | E32: =ROUND(MAX(_xlfn.NORM.INV(('Eingabe Email'!$B164+1)/MAX('Eingabe Email'!$B:$B),'H1 Originaldaten'!E32,4),2),1) -> 62.6 | F32: =ROUND(MAX(_xlfn.NORM.INV(('Eingabe Email'!$B164+1)/MAX('Eingabe Email'!$B:$B),'H1 Originaldaten'!F32,200),2),0) -> 2910 | G32: ='H1 Originaldaten'!G32 -> wc
A33: ='H1 Originaldaten'!A33 -> commercial.artists | B33: =ROUND(MAX(_xlfn.NORM.INV(('Eingabe Email'!$B165+1)/MAX('Eingabe Email'!$B:$B),'H1 Originaldaten'!B33,7),2),1) -> 15.1 | C33: =ROUND(MAX(_xlfn.NORM.INV(('Eingabe Email'!$B165+1)/MAX('Eingabe Email'!$B:$B),'H1 Originaldaten'!C33,400),2),1) -> 6424.9 | D33: =ROUND(MAX(_xlfn.NORM.INV(('Eingabe Email'!$B165+1)/MAX('Eingabe Email'!$B:$B),'H1 Originaldaten'!D33,4),2),1) -> 23.3 | E33: =ROUND(MAX(_xlfn.NORM.INV(('Eingabe Email'!$B165+1)/MAX('Eingabe Email'!$B:$B),'H1 Originaldaten'!E33,4),2),1) -> 59.5 | F33: =ROUND(MAX(_xlfn.NORM.INV(('Eingabe Email'!$B165+1)/MAX('Eingabe Email'!$B:$B),'H1 Originaldaten'!F33,200),2),0) -> 3428 | G33: ='H1 Originaldaten'!G33 -> prof
A34: ='H1 Originaldaten'!A34 -> radio.tv.announcers | B34: =ROUND(MAX(_xlfn.NORM.INV(('Eingabe Email'!$B166+1)/MAX('Eingabe Email'!$B:$B),'H1 Originaldaten'!B34,7),2),1) -> 11.8 | C34: =ROUND(MAX(_xlfn.NORM.INV(('Eingabe Email'!$B166+1)/MAX('Eingabe Email'!$B:$B),'H1 Originaldaten'!C34,400),2),1) -> 7509.2 | D34: =ROUND(MAX(_xlfn.NORM.INV(('Eingabe Email'!$B166+1)/MAX('Eingabe Email'!$B:$B),'H1 Originaldaten'!D34,4),2),1) -> 10.6 | E34: =ROUND(MAX(_xlfn.NORM.INV(('Eingabe Email'!$B166+1)/MAX('Eingabe Email'!$B:$B),'H1 Originaldaten'!E34,4),2),1) -> 57.1 | F34: =ROUND(MAX(_xlfn.NORM.INV(('Eingabe Email'!$B166+1)/MAX('Eingabe Email'!$B:$B),'H1 Originaldaten'!F34,200),2),0) -> 3311 | G34: ='H1 Originaldaten'!G34 -> wc
A35: ='H1 Originaldaten'!A35 -> athletes | B35: =ROUND(MAX(_xlfn.NORM.INV(('Eingabe Email'!$B167+1)/MAX('Eingabe Email'!$B:$B),'H1 Originaldaten'!B35,7),2),1) -> 6.2 | C35: =ROUND(MAX(_xlfn.NORM.INV(('Eingabe Email'!$B167+1)/MAX('Eingabe Email'!$B:$B),'H1 Originaldaten'!C35,400),2),1) -> 7904.8 | D35: =ROUND(MAX(_xlfn.NORM.INV(('Eingabe Email'!$B167+1)/MAX('Eingabe Email'!$B:$B),'H1 Originaldaten'!D35,4),2),1) -> 5.1 | E35: =ROUND(MAX(_xlfn.NORM.INV(('Eingabe Email'!$B167+1)/MAX('Eingabe Email'!$B:$B),'H1 Originaldaten'!E35,4),2),1) -> 51.1 | F35: =ROUND(MAX(_xlfn.NORM.INV(('Eingabe Email'!$B167+1)/MAX('Eingabe Email'!$B:$B),'H1 Originaldaten'!F35,200),2),0) -> 3222 | G35: ='H1 Originaldaten'!G35 -> NA
A36: ='H1 Originaldaten'!A36 -> secretaries | B36: =ROUND(MAX(_xlfn.NORM.INV(('Eingabe Email'!$B168+1)/MAX('Eingabe Email'!$B:$B),'H1 Originaldaten'!B36,7),2),1) -> 3.9 | C36: =ROUND(MAX(_xlfn.NORM.INV(('Eingabe Email'!$B168+1)/MAX('Eingabe Email'!$B:$B),'H1 Originaldaten'!C36,400),2),1) -> 3597.6 | D36: =ROUND(MAX(_xlfn.NORM.INV(('Eingabe Email'!$B168+1)/MAX('Eingabe Email'!$B:$B),'H1 Originaldaten'!D36,4),2),1) -> 93.1 | E36: =ROUND(MAX(_xlfn.NORM.INV(('Eingabe Email'!$B168+1)/MAX('Eingabe Email'!$B:$B),'H1 Originaldaten'!E36,4),2),1) -> 41.6 | F36: =ROUND(MAX(_xlfn.NORM.INV(('Eingabe Email'!$B168+1)/MAX('Eingabe Email'!$B:$B),'H1 Originaldaten'!F36,200),2),0) -> 3892 | G36: ='H1 Originaldaten'!G36 -> wc
A37: ='H1 Originaldaten'!A37 -> typists | B37: =ROUND(MAX(_xlfn.NORM.INV(('Eingabe Email'!$B169+1)/MAX('Eingabe Email'!$B:$B),'H1 Originaldaten'!B37,7),2),1) -> 16.5 | C37: =ROUND(MAX(_xlfn.NORM.INV(('Eingabe Email'!$B169+1)/MAX('Eingabe Email'!$B:$B),'H1 Originaldaten'!C37,400),2),1) -> 3431.9 | D37: =ROUND(MAX(_xlfn.NORM.INV(('Eingabe Email'!$B169+1)/MAX('Eingabe Email'!$B:$B),'H1 Originaldaten'!D37,4),2),1) -> 98.8 | E37: =ROUND(MAX(_xlfn.NORM.INV(('Eingabe Email'!$B169+1)/MAX('Eingabe Email'!$B:$B),'H1 Originaldaten'!E37,4),2),1) -> 44.7 | F37: =ROUND(MAX(_xlfn.NORM.INV(('Eingabe Email'!$B169+1)/MAX('Eingabe Email'!$B:$B),'H1 Originaldaten'!F37,200),2),0) -> 4255 | G37: ='H1 Originaldaten'!G37 -> wc
A38: ='H1 Originaldaten'!A38 -> bookkeepers | B38: =ROUND(MAX(_xlfn.NORM.INV(('Eingabe Email'!$B170+1)/MAX('Eingabe Email'!$B:$B),'H1 Originaldaten'!B38,7),2),1) -> 8.7 | C38: =ROUND(MAX(_xlfn.NORM.INV(('Eingabe Email'!$B170+1)/MAX('Eingabe Email'!$B:$B),'H1 Originaldaten'!C38,400),2),1) -> 4201 | D38: =ROUND(MAX(_xlfn.NORM.INV(('Eingabe Email'!$B170+1)/MAX('Eingabe Email'!$B:$B),'H1 Originaldaten'!D38,4),2),1) -> 66.8 | E38: =ROUND(MAX(_xlfn.NORM.INV(('Eingabe Email'!$B170+1)/MAX('Eingabe Email'!$B:$B),'H1 Originaldaten'!E38,4),2),1) -> 47.9 | F38: =ROUND(MAX(_xlfn.NORM.INV(('Eingabe Email'!$B170+1)/MAX('Eingabe Email'!$B:$B),'H1 Originaldaten'!F38,200),2),0) -> 4058 | G38: ='H1 Originaldaten'!G38 -> wc
A39: ='H1 Originaldaten'!A39 -> tellers.cashiers | B39: =ROUND(MAX(_xlfn.NORM.INV(('Eingabe Email'!$B171+1)/MAX('Eingabe Email'!$B:$B),'H1 Originaldaten'!B39,7),2),1) -> 9.2 | C39: =ROUND(MAX(_xlfn.NORM.INV(('Eingabe Email'!$B171+1)/MAX('Eingabe Email'!$B:$B),'H1 Originaldaten'!C39,400),2),1) -> 2366.8 | D39: =ROUND(MAX(_xlfn.NORM.INV(('Eingabe Email'!$B171+1)/MAX('Eingabe Email'!$B:$B),'H1 Originaldaten'!D39,4),2),1) -> 90.9 | E39: =ROUND(MAX(_xlfn.NORM.INV(('Eingabe Email'!$B171+1)/MAX('Eingabe Email'!$B:$B),'H1 Originaldaten'!E39,4),2),1) -> 41.5 | F39: =ROUND(MAX(_xlfn.NORM.INV(('Eingabe Email'!$B171+1)/MAX('Eingabe Email'!$B:$B),'H1 Originaldaten'!F39,200),2),0) -> 4092 | G39: ='H1 Originaldaten'!G39 -> wc
A40: ='H1 Originaldaten'!A40 -> computer.operators | B40: =ROUND(MAX(_xlfn.NORM.INV(('Eingabe Email'!$B172+1)/MAX('Eingabe Email'!$B:$B),'H1 Originaldaten'!B40,7),2),1) -> 21.1 | C40: =ROUND(MAX(_xlfn.NORM.INV(('Eingabe Email'!$B172+1)/MAX('Eingabe Email'!$B:$B),'H1 Originaldaten'!C40,400),2),1) -> 4886.6 | D40: =ROUND(MAX(_xlfn.NORM.INV(('Eingabe Email'!$B172+1)/MAX('Eingabe Email'!$B:$B),'H1 Originaldaten'!D40,4),2),1) -> 81.5 | E40: =ROUND(MAX(_xlfn.NORM.INV(('Eingabe Email'!$B172+1)/MAX('Eingabe Email'!$B:$B),'H1 Originaldaten'!E40,4),2),1) -> 53.3 | F40: =ROUND(MAX(_xlfn.NORM.INV(('Eingabe Email'!$B172+1)/MAX('Eingabe Email'!$B:$B),'H1 Originaldaten'!F40,200),2),0) -> 4421 | G40: ='H1 Originaldaten'!G40 -> wc
A41: ='H1 Originaldaten'!A41 -> shipping.clerks | B41: =ROUND(MAX(_xlfn.NORM.INV(('Eingabe Email'!$B173+1)/MAX('Eingabe Email'!$B:$B),'H1 Originaldaten'!B41,7),2),1) -> 8.5 | C41: =ROUND(MAX(_xlfn.NORM.INV(('Eingabe Email'!$B173+1)/MAX('Eingabe Email'!$B:$B),'H1 Originaldaten'!C41,400),2),1) -> 4722.2 | D41: =ROUND(MAX(_xlfn.NORM.INV(('Eingabe Email'!$B173+1)/MAX('Eingabe Email'!$B:$B),'H1 Originaldaten'!D41,4),2),1) -> 11 | E41: =ROUND(MAX(_xlfn.NORM.INV(('Eingabe Email'!$B173+1)/MAX('Eingabe Email'!$B:$B),'H1 Originaldaten'!E41,4),2),1) -> 30.5 | F41: =ROUND(MAX(_xlfn.NORM.INV(('Eingabe Email'!$B173+1)/MAX('Eingabe Email'!$B:$B),'H1 Originaldaten'!F41,200),2),0) -> 4134 | G41: ='H1 Originaldaten'!G41 -> wc
A42: ='H1 Originaldaten'!A42 -> file.clerks | B42: =ROUND(MAX(_xlfn.NORM.INV(('Eingabe Email'!$B174+1)/MAX('Eingabe Email'!$B:$B),'H1 Originaldaten'!B42,7),2),1) -> 19.7 | C42: =ROUND(MAX(_xlfn.NORM.INV(('Eingabe Email'!$B174+1)/MAX('Eingabe Email'!$B:$B),'H1 Originaldaten'!C42,400),2),1) -> 3448.6 | D42: =ROUND(MAX(_xlfn.NORM.INV(('Eingabe Email'!$B174+1)/MAX('Eingabe Email'!$B:$B),'H1 Originaldaten'!D42,4),2),1) -> 87.5 | E42: =ROUND(MAX(_xlfn.NORM.INV(('Eingabe Email'!$B174+1)/MAX('Eingabe Email'!$B:$B),'H1 Originaldaten'!E42,4),2),1) -> 37 | F42: =ROUND(MAX(_xlfn.NORM.INV(('Eingabe Email'!$B174+1)/MAX('Eingabe Email'!$B:$B),'H1 Originaldaten'!F42,200),2),0) -> 4377 | G42: ='H1 Originaldaten'!G42 -> wc
A43: ='H1 Originaldaten'!A43 -> receptionsts | B43: =ROUND(MAX(_xlfn.NORM.INV(('Eingabe Email'!$B175+1)/MAX('Eingabe Email'!$B:$B),'H1 Originaldaten'!B43,7),2),1) -> 8.4 | C43: =ROUND(MAX(_xlfn.NORM.INV(('Eingabe Email'!$B175+1)/MAX('Eingabe Email'!$B:$B),'H1 Originaldaten'!C43,400),2),1) -> 2748 | D43: =ROUND(MAX(_xlfn.NORM.INV(('Eingabe Email'!$B175+1)/MAX('Eingabe Email'!$B:$B),'H1 Originaldaten'!D43,4),2),1) -> 91.3 | E43: =ROUND(MAX(_xlfn.NORM.INV(('Eingabe Email'!$B175+1)/MAX('Eingabe Email'!$B:$B),'H1 Originaldaten'!E43,4),2),1) -> 37.2 | F43: =ROUND(MAX(_xlfn.NORM.INV(('Eingabe Email'!$B175+1)/MAX('Eingabe Email'!$B:$B),'H1 Originaldaten'!F43,200),2),0) -> 4094 | G43: ='H1 Originaldaten'!G43 -> wc
A44: ='H1 Originaldaten'!A44 -> mail.carriers | B44: =ROUND(MAX(_xlfn.NORM.INV(('Eingabe Email'!$B176+1)/MAX('Eingabe Email'!$B:$B),'H1 Originaldaten'!B44,7),2),1) -> 20.9 | C44: =ROUND(MAX(_xlfn.NORM.INV(('Eingabe Email'!$B176+1)/MAX('Eingabe Email'!$B:$B),'H1 Originaldaten'!C44,400),2),1) -> 6180.7 | D44: =ROUND(MAX(_xlfn.NORM.INV(('Eingabe Email'!$B176+1)/MAX('Eingabe Email'!$B:$B),'H1 Originaldaten'!D44,4),2),1) -> 14.3 | E44: =ROUND(MAX(_xlfn.NORM.INV(('Eingabe Email'!$B176+1)/MAX('Eingabe Email'!$B:$B),'H1 Originaldaten'!E44,4),2),1) -> 42.8 | F44: =ROUND(MAX(_xlfn.NORM.INV(('Eingabe Email'!$B176+1)/MAX('Eingabe Email'!$B:$B),'H1 Originaldaten'!F44,200),2),0) -> 4507 | G44: ='H1 Originaldaten'!G44 -> wc
A45: ='H1 Originaldaten'!A45 -> postal.clerks | B45: =ROUND(MAX(_xlfn.NORM.INV(('Eingabe Email'!$B177+1)/MAX('Eingabe Email'!$B:$B),'H1 Originaldaten'!B45,7),2),1) -> 12.4 | C45: =ROUND(MAX(_xlfn.NORM.INV(('Eingabe Email'!$B177+1)/MAX('Eingabe Email'!$B:$B),'H1 Originaldaten'!C45,400),2),1) -> 3872.6 | D45: =ROUND(MAX(_xlfn.NORM.INV(('Eingabe Email'!$B177+1)/MAX('Eingabe Email'!$B:$B),'H1 Originaldaten'!D45,4),2),1) -> 53.6 | E45: =ROUND(MAX(_xlfn.NORM.INV(('Eingabe Email'!$B177+1)/MAX('Eingabe Email'!$B:$B),'H1 Originaldaten'!E45,4),2),1) -> 38.5 | F45: =ROUND(MAX(_xlfn.NORM.INV(('Eingabe Email'!$B177+1)/MAX('Eingabe Email'!$B:$B),'H1 Originaldaten'!F45,200),2),0) -> 4240 | G45: ='H1 Originaldaten'!G45 -> wc
A46: ='H1 Originaldaten'!A46 -> telephone.operators | B46: =ROUND(MAX(_xlfn.NORM.INV(('Eingabe Email'!$B178+1)/MAX('Eingabe Email'!$B:$B),'H1 Originaldaten'!B46,7),2),1) -> 5.5 | C46: =ROUND(MAX(_xlfn.NORM.INV(('Eingabe Email'!$B178+1)/MAX('Eingabe Email'!$B:$B),'H1 Originaldaten'!C46,400),2),1) -> 2872.8 | D46: =ROUND(MAX(_xlfn.NORM.INV(('Eingabe Email'!$B178+1)/MAX('Eingabe Email'!$B:$B),'H1 Originaldaten'!D46,4),2),1) -> 93.3 | E46: =ROUND(MAX(_xlfn.NORM.INV(('Eingabe Email'!$B178+1)/MAX('Eingabe Email'!$B:$B),'H1 Originaldaten'!E46,4),2),1) -> 35.2 | F46: =ROUND(MAX(_xlfn.NORM.INV(('Eingabe Email'!$B178+1)/MAX('Eingabe Email'!$B:$B),'H1 Originaldaten'!F46,200),2),0) -> 4031 | G46: ='H1 Originaldaten'!G46 -> wc
A47: ='H1 Originaldaten'!A47 -> collectors | B47: =ROUND(MAX(_xlfn.NORM.INV(('Eingabe Email'!$B179+1)/MAX('Eingabe Email'!$B:$B),'H1 Originaldaten'!B47,7),2),1) -> 15.4 | C47: =ROUND(MAX(_xlfn.NORM.INV(('Eingabe Email'!$B179+1)/MAX('Eingabe Email'!$B:$B),'H1 Originaldaten'!C47,400),2),1) -> 4982 | D47: =ROUND(MAX(_xlfn.NORM.INV(('Eingabe Email'!$B179+1)/MAX('Eingabe Email'!$B:$B),'H1 Originaldaten'!D47,4),2),1) -> 49.5 | E47: =ROUND(MAX(_xlfn.NORM.INV(('Eingabe Email'!$B179+1)/MAX('Eingabe Email'!$B:$B),'H1 Originaldaten'!E47,4),2),1) -> 31.8 | F47: =ROUND(MAX(_xlfn.NORM.INV(('Eingabe Email'!$B179+1)/MAX('Eingabe Email'!$B:$B),'H1 Originaldaten'!F47,200),2),0) -> 4312 | G47: ='H1 Originaldaten'!G47 -> wc
A48: ='H1 Originaldaten'!A48 -> claim.adjustors | B48: =ROUND(MAX(_xlfn.NORM.INV(('Eingabe Email'!$B180+1)/MAX('Eingabe Email'!$B:$B),'H1 Originaldaten'!B48,7),2),1) -> 8.2 | C48: =ROUND(MAX(_xlfn.NORM.INV(('Eingabe Email'!$B180+1)/MAX('Eingabe Email'!$B:$B),'H1 Originaldaten'!C48,400),2),1) -> 4884 | D48: =ROUND(MAX(_xlfn.NORM.INV(('Eingabe Email'!$B180+1)/MAX('Eingabe Email'!$B:$B),'H1 Originaldaten'!D48,4),2),1) -> 54.4 | E48: =ROUND(MAX(_xlfn.NORM.INV(('Eingabe Email'!$B180+1)/MAX('Eingabe Email'!$B:$B),'H1 Originaldaten'!E48,4),2),1) -> 49.4 | F48: =ROUND(MAX(_xlfn.NORM.INV(('Eingabe Email'!$B180+1)/MAX('Eingabe Email'!$B:$B),'H1 Originaldaten'!F48,200),2),0) -> 4108 | G48: ='H1 Originaldaten'!G48 -> wc
A49: ='H1 Originaldaten'!A49 -> travel.clerks | B49: =ROUND(MAX(_xlfn.NORM.INV(('Eingabe Email'!$B181+1)/MAX('Eingabe Email'!$B:$B),'H1 Originaldaten'!B49,7),2),1) -> 8.5 | C49: =ROUND(MAX(_xlfn.NORM.INV(('Eingabe Email'!$B181+1)/MAX('Eingabe Email'!$B:$B),'H1 Originaldaten'!C49,400),2),1) -> 6092.9 | D49: =ROUND(MAX(_xlfn.NORM.INV(('Eingabe Email'!$B181+1)/MAX('Eingabe Email'!$B:$B),'H1 Originaldaten'!D49,4),2),1) -> 37.5 | E49: =ROUND(MAX(_xlfn.NORM.INV(('Eingabe Email'!$B181+1)/MAX('Eingabe Email'!$B:$B),'H1 Originaldaten'!E49,4),2),1) -> 34 | F49: =ROUND(MAX(_xlfn.NORM.INV(('Eingabe Email'!$B181+1)/MAX('Eingabe Email'!$B:$B),'H1 Originaldaten'!F49,200),2),0) -> 4110 | G49: ='H1 Originaldaten'!G49 -> wc
A50: ='H1 Originaldaten'!A50 -> office.clerks | B50: =ROUND(MAX(_xlfn.NORM.INV(('Eingabe Email'!$B182+1)/MAX('Eingabe Email'!$B:$B),'H1 Originaldaten'!B50,7),2),1) -> 17 | C50: =ROUND(MAX(_xlfn.NORM.INV(('Eingabe Email'!$B182+1)/MAX('Eingabe Email'!$B:$B),'H1 Originaldaten'!C50,400),2),1) -> 4416.7 | D50: =ROUND(MAX(_xlfn.NORM.INV(('Eingabe Email'!$B182+1)/MAX('Eingabe Email'!$B:$B),'H1 Originaldaten'!D50,4),2),1) -> 66.6 | E50: =ROUND(MAX(_xlfn.NORM.INV(('Eingabe Email'!$B182+1)/MAX('Eingabe Email'!$B:$B),'H1 Originaldaten'!E50,4),2),1) -> 39 | F50: =ROUND(MAX(_xlfn.NORM.INV(('Eingabe Email'!$B182+1)/MAX('Eingabe Email'!$B:$B),'H1 Originaldaten'!F50,200),2),0) -> 4368 | G50: ='H1 Originaldaten'!G50 -> wc
A51: ='H1 Originaldaten'!A51 -> sales.supervisors | B51: =ROUND(MAX(_xlfn.NORM.INV(('Eingabe Email'!$B183+1)/MAX('Eingabe Email'!$B:$B),'H1 Originaldaten'!B51,7),2),1) -> 9.7 | C51: =ROUND(MAX(_xlfn.NORM.INV(('Eingabe Email'!$B183+1)/MAX('Eingabe Email'!$B:$B),'H1 Originaldaten'!C51,400),2),1) -> 7472.9 | D51: =ROUND(MAX(_xlfn.NORM.INV(('Eingabe Email'!$B183+1)/MAX('Eingabe Email'!$B:$B),'H1 Originaldaten'!D51,4),2),1) -> 16.9 | E51: =ROUND(MAX(_xlfn.NORM.INV(('Eingabe Email'!$B183+1)/MAX('Eingabe Email'!$B:$B),'H1 Originaldaten'!E51,4),2),1) -> 41.4 | F51: =ROUND(MAX(_xlfn.NORM.INV(('Eingabe Email'!$B183+1)/MAX('Eingabe Email'!$B:$B),'H1 Originaldaten'!F51,200),2),0) -> 5125 | G51: ='H1 Originaldaten'!G51 -> wc
A52: ='H1 Originaldaten'!A52 -> commercial.travellers | B52: =ROUND(MAX(_xlfn.NORM.INV(('Eingabe Email'!$B184+1)/MAX('Eingabe Email'!$B:$B),'H1 Originaldaten'!B52,7),2),1) -> 12.7 | C52: =ROUND(MAX(_xlfn.NORM.INV(('Eingabe Email'!$B184+1)/MAX('Eingabe Email'!$B:$B),'H1 Originaldaten'!C52,400),2),1) -> 8870.9 | D52: =ROUND(MAX(_xlfn.NORM.INV(('Eingabe Email'!$B184+1)/MAX('Eingabe Email'!$B:$B),'H1 Originaldaten'!D52,4),2),1) -> 4.1 | E52: =ROUND(MAX(_xlfn.NORM.INV(('Eingabe Email'!$B184+1)/MAX('Eingabe Email'!$B:$B),'H1 Originaldaten'!E52,4),2),1) -> 41.1 | F52: =ROUND(MAX(_xlfn.NORM.INV(('Eingabe Email'!$B184+1)/MAX('Eingabe Email'!$B:$B),'H1 Originaldaten'!F52,200),2),0) -> 5178 | G52: ='H1 Originaldaten'!G52 -> wc
A53: ='H1 Originaldaten'!A53 -> sales.clerks | B53: =ROUND(MAX(_xlfn.NORM.INV(('Eingabe Email'!$B185+1)/MAX('Eingabe Email'!$B:$B),'H1 Originaldaten'!B53,7),2),1) -> 10.3 | C53: =ROUND(MAX(_xlfn.NORM.INV(('Eingabe Email'!$B185+1)/MAX('Eingabe Email'!$B:$B),'H1 Originaldaten'!C53,400),2),1) -> 2610.8 | D53: =ROUND(MAX(_xlfn.NORM.INV(('Eingabe Email'!$B185+1)/MAX('Eingabe Email'!$B:$B),'H1 Originaldaten'!D53,4),2),1) -> 68 | E53: =ROUND(MAX(_xlfn.NORM.INV(('Eingabe Email'!$B185+1)/MAX('Eingabe Email'!$B:$B),'H1 Originaldaten'!E53,4),2),1) -> 26.7 | F53: =ROUND(MAX(_xlfn.NORM.INV(('Eingabe Email'!$B185+1)/MAX('Eingabe Email'!$B:$B),'H1 Originaldaten'!F53,200),2),0) -> 5145 | G53: ='H1 Originaldaten'!G53 -> wc
A54: ='H1 Originaldaten'!A54 -> newsboys | B54: =ROUND(MAX(_xlfn.NORM.INV(('Eingabe Email'!$B186+1)/MAX('Eingabe Email'!$B:$B),'H1 Originaldaten'!B54,7),2),1) -> 7 | C54: =ROUND(MAX(_xlfn.NORM.INV(('Eingabe Email'!$B186+1)/MAX('Eingabe Email'!$B:$B),'H1 Originaldaten'!C54,400),2),1) -> 771.1 | D54: =ROUND(MAX(_xlfn.NORM.INV(('Eingabe Email'!$B186+1)/MAX('Eingabe Email'!$B:$B),'H1 Originaldaten'!D54,4),2),1) -> 5.5 | E54: =ROUND(MAX(_xlfn.NORM.INV(('Eingabe Email'!$B186+1)/MAX('Eingabe Email'!$B:$B),'H1 Originaldaten'!E54,4),2),1) -> 13.3 | F54: =ROUND(MAX(_xlfn.NORM.INV(('Eingabe Email'!$B186+1)/MAX('Eingabe Email'!$B:$B),'H1 Originaldaten'!F54,200),2),0) -> 5070 | G54: ='H1 Originaldaten'!G54 -> NA
A55: ='H1 Originaldaten'!A55 -> service.station.attendant | B55: =ROUND(MAX(_xlfn.NORM.INV(('Eingabe Email'!$B187+1)/MAX('Eingabe Email'!$B:$B),'H1 Originaldaten'!B55,7),2),1) -> 8.8 | C55: =ROUND(MAX(_xlfn.NORM.INV(('Eingabe Email'!$B187+1)/MAX('Eingabe Email'!$B:$B),'H1 Originaldaten'!C55,400),2),1) -> 2304.1 | D55: =ROUND(MAX(_xlfn.NORM.INV(('Eingabe Email'!$B187+1)/MAX('Eingabe Email'!$B:$B),'H1 Originaldaten'!D55,4),2),1) -> 3 | E55: =ROUND(MAX(_xlfn.NORM.INV(('Eingabe Email'!$B187+1)/MAX('Eingabe Email'!$B:$B),'H1 Originaldaten'!E55,4),2),1) -> 22.6 | F55: =ROUND(MAX(_xlfn.NORM.INV(('Eingabe Email'!$B187+1)/MAX('Eingabe Email'!$B:$B),'H1 Originaldaten'!F55,200),2),0) -> 5112 | G55: ='H1 Originaldaten'!G55 -> bc
A56: ='H1 Originaldaten'!A56 -> insurance.agents | B56: =ROUND(MAX(_xlfn.NORM.INV(('Eingabe Email'!$B188+1)/MAX('Eingabe Email'!$B:$B),'H1 Originaldaten'!B56,7),2),1) -> 18.2 | C56: =ROUND(MAX(_xlfn.NORM.INV(('Eingabe Email'!$B188+1)/MAX('Eingabe Email'!$B:$B),'H1 Originaldaten'!C56,400),2),1) -> 8506.8 | D56: =ROUND(MAX(_xlfn.NORM.INV(('Eingabe Email'!$B188+1)/MAX('Eingabe Email'!$B:$B),'H1 Originaldaten'!D56,4),2),1) -> 16.8 | E56: =ROUND(MAX(_xlfn.NORM.INV(('Eingabe Email'!$B188+1)/MAX('Eingabe Email'!$B:$B),'H1 Originaldaten'!E56,4),2),1) -> 51.1 | F56: =ROUND(MAX(_xlfn.NORM.INV(('Eingabe Email'!$B188+1)/MAX('Eingabe Email'!$B:$B),'H1 Originaldaten'!F56,200),2),0) -> 5359 | G56: ='H1 Originaldaten'!G56 -> wc
A57: ='H1 Originaldaten'!A57 -> real.estate.salesmen | B57: =ROUND(MAX(_xlfn.NORM.INV(('Eingabe Email'!$B189+1)/MAX('Eingabe Email'!$B:$B),'H1 Originaldaten'!B57,7),2),1) -> 10.3 | C57: =ROUND(MAX(_xlfn.NORM.INV(('Eingabe Email'!$B189+1)/MAX('Eingabe Email'!$B:$B),'H1 Originaldaten'!C57,400),2),1) -> 6944.2 | D57: =ROUND(MAX(_xlfn.NORM.INV(('Eingabe Email'!$B189+1)/MAX('Eingabe Email'!$B:$B),'H1 Originaldaten'!D57,4),2),1) -> 24 | E57: =ROUND(MAX(_xlfn.NORM.INV(('Eingabe Email'!$B189+1)/MAX('Eingabe Email'!$B:$B),'H1 Originaldaten'!E57,4),2),1) -> 46.6 | F57: =ROUND(MAX(_xlfn.NORM.INV(('Eingabe Email'!$B189+1)/MAX('Eingabe Email'!$B:$B),'H1 Originaldaten'!F57,200),2),0) -> 5148 | G57: ='H1 Originaldaten'!G57 -> wc
A58: ='H1 Originaldaten'!A58 -> buyers | B58: =ROUND(MAX(_xlfn.NORM.INV(('Eingabe Email'!$B190+1)/MAX('Eingabe Email'!$B:$B),'H1 Originaldaten'!B58,7),2),1) -> 11.2 | C58: =ROUND(MAX(_xlfn.NORM.INV(('Eingabe Email'!$B190+1)/MAX('Eingabe Email'!$B:$B),'H1 Originaldaten'!C58,400),2),1) -> 7964.9 | D58: =ROUND(MAX(_xlfn.NORM.INV(('Eingabe Email'!$B190+1)/MAX('Eingabe Email'!$B:$B),'H1 Originaldaten'!D58,4),2),1) -> 24 | E58: =ROUND(MAX(_xlfn.NORM.INV(('Eingabe Email'!$B190+1)/MAX('Eingabe Email'!$B:$B),'H1 Originaldaten'!E58,4),2),1) -> 51.2 | F58: =ROUND(MAX(_xlfn.NORM.INV(('Eingabe Email'!$B190+1)/MAX('Eingabe Email'!$B:$B),'H1 Originaldaten'!F58,200),2),0) -> 5195 | G58: ='H1 Originaldaten'!G58 -> wc
A59: ='H1 Originaldaten'!A59 -> firefighters | B59: =ROUND(MAX(_xlfn.NORM.INV(('Eingabe Email'!$B191+1)/MAX('Eingabe Email'!$B:$B),'H1 Originaldaten'!B59,7),2),1) -> 6 | C59: =ROUND(MAX(_xlfn.NORM.INV(('Eingabe Email'!$B191+1)/MAX('Eingabe Email'!$B:$B),'H1 Originaldaten'!C59,400),2),1) -> 8695 | D59: =ROUND(MAX(_xlfn.NORM.INV(('Eingabe Email'!$B191+1)/MAX('Eingabe Email'!$B:$B),'H1 Originaldaten'!D59,4),2),1) -> 2 | E59: =ROUND(MAX(_xlfn.NORM.INV(('Eingabe Email'!$B191+1)/MAX('Eingabe Email'!$B:$B),'H1 Originaldaten'!E59,4),2),1) -> 41.5 | F59: =ROUND(MAX(_xlfn.NORM.INV(('Eingabe Email'!$B191+1)/MAX('Eingabe Email'!$B:$B),'H1 Originaldaten'!F59,200),2),0) -> 6011 | G59: ='H1 Originaldaten'!G59 -> bc
A60: ='H1 Originaldaten'!A60 -> policemen | B60: =ROUND(MAX(_xlfn.NORM.INV(('Eingabe Email'!$B192+1)/MAX('Eingabe Email'!$B:$B),'H1 Originaldaten'!B60,7),2),1) -> 17.5 | C60: =ROUND(MAX(_xlfn.NORM.INV(('Eingabe Email'!$B192+1)/MAX('Eingabe Email'!$B:$B),'H1 Originaldaten'!C60,400),2),1) -> 9267.9 | D60: =ROUND(MAX(_xlfn.NORM.INV(('Eingabe Email'!$B192+1)/MAX('Eingabe Email'!$B:$B),'H1 Originaldaten'!D60,4),2),1) -> 5.4 | E60: =ROUND(MAX(_xlfn.NORM.INV(('Eingabe Email'!$B192+1)/MAX('Eingabe Email'!$B:$B),'H1 Originaldaten'!E60,4),2),1) -> 55.4 | F60: =ROUND(MAX(_xlfn.NORM.INV(('Eingabe Email'!$B192+1)/MAX('Eingabe Email'!$B:$B),'H1 Originaldaten'!F60,200),2),0) -> 6300 | G60: ='H1 Originaldaten'!G60 -> bc
A61: ='H1 Originaldaten'!A61 -> cooks | B61: =ROUND(MAX(_xlfn.NORM.INV(('Eingabe Email'!$B193+1)/MAX('Eingabe Email'!$B:$B),'H1 Originaldaten'!B61,7),2),1) -> 10 | C61: =ROUND(MAX(_xlfn.NORM.INV(('Eingabe Email'!$B193+1)/MAX('Eingabe Email'!$B:$B),'H1 Originaldaten'!C61,400),2),1) -> 3244.5 | D61: =ROUND(MAX(_xlfn.NORM.INV(('Eingabe Email'!$B193+1)/MAX('Eingabe Email'!$B:$B),'H1 Originaldaten'!D61,4),2),1) -> 53.3 | E61: =ROUND(MAX(_xlfn.NORM.INV(('Eingabe Email'!$B193+1)/MAX('Eingabe Email'!$B:$B),'H1 Originaldaten'!E61,4),2),1) -> 31 | F61: =ROUND(MAX(_xlfn.NORM.INV(('Eingabe Email'!$B193+1)/MAX('Eingabe Email'!$B:$B),'H1 Originaldaten'!F61,200),2),0) -> 6185 | G61: ='H1 Originaldaten'!G61 -> bc
A62: ='H1 Originaldaten'!A62 -> bartenders | B62: =ROUND(MAX(_xlfn.NORM.INV(('Eingabe Email'!$B194+1)/MAX('Eingabe Email'!$B:$B),'H1 Originaldaten'!B62,7),2),1) -> 23.4 | C62: =ROUND(MAX(_xlfn.NORM.INV(('Eingabe Email'!$B194+1)/MAX('Eingabe Email'!$B:$B),'H1 Originaldaten'!C62,400),2),1) -> 4780.9 | D62: =ROUND(MAX(_xlfn.NORM.INV(('Eingabe Email'!$B194+1)/MAX('Eingabe Email'!$B:$B),'H1 Originaldaten'!D62,4),2),1) -> 24 | E62: =ROUND(MAX(_xlfn.NORM.INV(('Eingabe Email'!$B194+1)/MAX('Eingabe Email'!$B:$B),'H1 Originaldaten'!E62,4),2),1) -> 28.7 | F62: =ROUND(MAX(_xlfn.NORM.INV(('Eingabe Email'!$B194+1)/MAX('Eingabe Email'!$B:$B),'H1 Originaldaten'!F62,200),2),0) -> 6548 | G62: ='H1 Originaldaten'!G62 -> bc
A63: ='H1 Originaldaten'!A63 -> funeral.directors | B63: =ROUND(MAX(_xlfn.NORM.INV(('Eingabe Email'!$B195+1)/MAX('Eingabe Email'!$B:$B),'H1 Originaldaten'!B63,7),2),1) -> 12 | C63: =ROUND(MAX(_xlfn.NORM.INV(('Eingabe Email'!$B195+1)/MAX('Eingabe Email'!$B:$B),'H1 Originaldaten'!C63,400),2),1) -> 7952.4 | D63: =ROUND(MAX(_xlfn.NORM.INV(('Eingabe Email'!$B195+1)/MAX('Eingabe Email'!$B:$B),'H1 Originaldaten'!D63,4),2),1) -> 6.8 | E63: =ROUND(MAX(_xlfn.NORM.INV(('Eingabe Email'!$B195+1)/MAX('Eingabe Email'!$B:$B),'H1 Originaldaten'!E63,4),2),1) -> 55.7 | F63: =ROUND(MAX(_xlfn.NORM.INV(('Eingabe Email'!$B195+1)/MAX('Eingabe Email'!$B:$B),'H1 Originaldaten'!F63,200),2),0) -> 6183 | G63: ='H1 Originaldaten'!G63 -> bc
A64: ='H1 Originaldaten'!A64 -> babysitters | B64: =ROUND(MAX(_xlfn.NORM.INV(('Eingabe Email'!$B196+1)/MAX('Eingabe Email'!$B:$B),'H1 Originaldaten'!B64,7),2),1) -> 11.3 | C64: =ROUND(MAX(_xlfn.NORM.INV(('Eingabe Email'!$B196+1)/MAX('Eingabe Email'!$B:$B),'H1 Originaldaten'!C64,400),2),1) -> 716.8 | D64: =ROUND(MAX(_xlfn.NORM.INV(('Eingabe Email'!$B196+1)/MAX('Eingabe Email'!$B:$B),'H1 Originaldaten'!D64,4),2),1) -> 97.6 | E64: =ROUND(MAX(_xlfn.NORM.INV(('Eingabe Email'!$B196+1)/MAX('Eingabe Email'!$B:$B),'H1 Originaldaten'!E64,4),2),1) -> 27 | F64: =ROUND(MAX(_xlfn.NORM.INV(('Eingabe Email'!$B196+1)/MAX('Eingabe Email'!$B:$B),'H1 Originaldaten'!F64,200),2),0) -> 6200 | G64: ='H1 Originaldaten'!G64 -> NA
A65: ='H1 Originaldaten'!A65 -> launderers | B65: =ROUND(MAX(_xlfn.NORM.INV(('Eingabe Email'!$B197+1)/MAX('Eingabe Email'!$B:$B),'H1 Originaldaten'!B65,7),2),1) -> 3.5 | C65: =ROUND(MAX(_xlfn.NORM.INV(('Eingabe Email'!$B197+1)/MAX('Eingabe Email'!$B:$B),'H1 Originaldaten'!C65,400),2),1) -> 2783.3 | D65: =ROUND(MAX(_xlfn.NORM.INV(('Eingabe Email'!$B197+1)/MAX('Eingabe Email'!$B:$B),'H1 Originaldaten'!D65,4),2),1) -> 67.1 | E65: =ROUND(MAX(_xlfn.NORM.INV(('Eingabe Email'!$B197+1)/MAX('Eingabe Email'!$B:$B),'H1 Originaldaten'!E65,4),2),1) -> 18.6 | F65: =ROUND(MAX(_xlfn.NORM.INV(('Eingabe Email'!$B197+1)/MAX('Eingabe Email'!$B:$B),'H1 Originaldaten'!F65,200),2),0) -> 6054 | G65: ='H1 Originaldaten'!G65 -> bc
A66: ='H1 Originaldaten'!A66 -> janitors | B66: =ROUND(MAX(_xlfn.NORM.INV(('Eingabe Email'!$B198+1)/MAX('Eingabe Email'!$B:$B),'H1 Originaldaten'!B66,7),2),1) -> 2 | C66: =ROUND(MAX(_xlfn.NORM.INV(('Eingabe Email'!$B198+1)/MAX('Eingabe Email'!$B:$B),'H1 Originaldaten'!C66,400),2),1) -> 2628.1 | D66: =ROUND(MAX(_xlfn.NORM.INV(('Eingabe Email'!$B198+1)/MAX('Eingabe Email'!$B:$B),'H1 Originaldaten'!D66,4),2),1) -> 25.1 | E66: =ROUND(MAX(_xlfn.NORM.INV(('Eingabe Email'!$B198+1)/MAX('Eingabe Email'!$B:$B),'H1 Originaldaten'!E66,4),2),1) -> 8.9 | F66: =ROUND(MAX(_xlfn.NORM.INV(('Eingabe Email'!$B198+1)/MAX('Eingabe Email'!$B:$B),'H1 Originaldaten'!F66,200),2),0) -> 5769 | G66: ='H1 Originaldaten'!G66 -> bc
A67: ='H1 Originaldaten'!A67 -> elevator.operators | B67: =ROUND(MAX(_xlfn.NORM.INV(('Eingabe Email'!$B199+1)/MAX('Eingabe Email'!$B:$B),'H1 Originaldaten'!B67,7),2),1) -> 8.8 | C67: =ROUND(MAX(_xlfn.NORM.INV(('Eingabe Email'!$B199+1)/MAX('Eingabe Email'!$B:$B),'H1 Originaldaten'!C67,400),2),1) -> 3650 | D67: =ROUND(MAX(_xlfn.NORM.INV(('Eingabe Email'!$B199+1)/MAX('Eingabe Email'!$B:$B),'H1 Originaldaten'!D67,4),2),1) -> 30.8 | E67: =ROUND(MAX(_xlfn.NORM.INV(('Eingabe Email'!$B199+1)/MAX('Eingabe Email'!$B:$B),'H1 Originaldaten'!E67,4),2),1) -> 20.8 | F67: =ROUND(MAX(_xlfn.NORM.INV(('Eingabe Email'!$B199+1)/MAX('Eingabe Email'!$B:$B),'H1 Originaldaten'!F67,200),2),0) -> 6227 | G67: ='H1 Originaldaten'!G67 -> bc
A68: ='H1 Originaldaten'!A68 -> farmers | B68: =ROUND(MAX(_xlfn.NORM.INV(('Eingabe Email'!$B200+1)/MAX('Eingabe Email'!$B:$B),'H1 Originaldaten'!B68,7),2),1) -> 9.6 | C68: =ROUND(MAX(_xlfn.NORM.INV(('Eingabe Email'!$B200+1)/MAX('Eingabe Email'!$B:$B),'H1 Originaldaten'!C68,400),2),1) -> 3800.8 | D68: =ROUND(MAX(_xlfn.NORM.INV(('Eingabe Email'!$B200+1)/MAX('Eingabe Email'!$B:$B),'H1 Originaldaten'!D68,4),2),1) -> 5.2 | E68: =ROUND(MAX(_xlfn.NORM.INV(('Eingabe Email'!$B200+1)/MAX('Eingabe Email'!$B:$B),'H1 Originaldaten'!E68,4),2),1) -> 45.7 | F68: =ROUND(MAX(_xlfn.NORM.INV(('Eingabe Email'!$B200+1)/MAX('Eingabe Email'!$B:$B),'H1 Originaldaten'!F68,200),2),0) -> 7191 | G68: ='H1 Originaldaten'!G68 -> NA
A69: ='H1 Originaldaten'!A69 -> farm.workers | B69: =ROUND(MAX(_xlfn.NORM.INV(('Eingabe Email'!$B201+1)/MAX('Eingabe Email'!$B:$B),'H1 Originaldaten'!B69,7),2),1) -> 2 | C69: =ROUND(MAX(_xlfn.NORM.INV(('Eingabe Email'!$B201+1)/MAX('Eingabe Email'!$B:$B),'H1 Originaldaten'!C69,400),2),1) -> 1256.3 | D69: =ROUND(MAX(_xlfn.NORM.INV(('Eingabe Email'!$B201+1)/MAX('Eingabe Email'!$B:$B),'H1 Originaldaten'!D69,4),2),1) -> 23.8 | E69: =ROUND(MAX(_xlfn.NORM.INV(('Eingabe Email'!$B201+1)/MAX('Eingabe Email'!$B:$B),'H1 Originaldaten'!E69,4),2),1) -> 17.5 | F69: =ROUND(MAX(_xlfn.NORM.INV(('Eingabe Email'!$B201+1)/MAX('Eingabe Email'!$B:$B),'H1 Originaldaten'!F69,200),2),0) -> 6982 | G69: ='H1 Originaldaten'!G69 -> bc
A70: ='H1 Originaldaten'!A70 -> rotary.well.drillers | B70: =ROUND(MAX(_xlfn.NORM.INV(('Eingabe Email'!$B202+1)/MAX('Eingabe Email'!$B:$B),'H1 Originaldaten'!B70,7),2),1) -> 10.8 | C70: =ROUND(MAX(_xlfn.NORM.INV(('Eingabe Email'!$B202+1)/MAX('Eingabe Email'!$B:$B),'H1 Originaldaten'!C70,400),2),1) -> 6972.4 | D70: =ROUND(MAX(_xlfn.NORM.INV(('Eingabe Email'!$B202+1)/MAX('Eingabe Email'!$B:$B),'H1 Originaldaten'!D70,4),2),1) -> 2 | E70: =ROUND(MAX(_xlfn.NORM.INV(('Eingabe Email'!$B202+1)/MAX('Eingabe Email'!$B:$B),'H1 Originaldaten'!E70,4),2),1) -> 36.4 | F70: =ROUND(MAX(_xlfn.NORM.INV(('Eingabe Email'!$B202+1)/MAX('Eingabe Email'!$B:$B),'H1 Originaldaten'!F70,200),2),0) -> 7767 | G70: ='H1 Originaldaten'!G70 -> bc
A71: ='H1 Originaldaten'!A71 -> bakers | B71: =ROUND(MAX(_xlfn.NORM.INV(('Eingabe Email'!$B203+1)/MAX('Eingabe Email'!$B:$B),'H1 Originaldaten'!B71,7),2),1) -> 20.1 | C71: =ROUND(MAX(_xlfn.NORM.INV(('Eingabe Email'!$B203+1)/MAX('Eingabe Email'!$B:$B),'H1 Originaldaten'!C71,400),2),1) -> 4913.9 | D71: =ROUND(MAX(_xlfn.NORM.INV(('Eingabe Email'!$B203+1)/MAX('Eingabe Email'!$B:$B),'H1 Originaldaten'!D71,4),2),1) -> 40.4 | E71: =ROUND(MAX(_xlfn.NORM.INV(('Eingabe Email'!$B203+1)/MAX('Eingabe Email'!$B:$B),'H1 Originaldaten'!E71,4),2),1) -> 46 | F71: =ROUND(MAX(_xlfn.NORM.INV(('Eingabe Email'!$B203+1)/MAX('Eingabe Email'!$B:$B),'H1 Originaldaten'!F71,200),2),0) -> 8570 | G71: ='H1 Originaldaten'!G71 -> bc
A72: ='H1 Originaldaten'!A72 -> slaughterers.1 | B72: =ROUND(MAX(_xlfn.NORM.INV(('Eingabe Email'!$B204+1)/MAX('Eingabe Email'!$B:$B),'H1 Originaldaten'!B72,7),2),1) -> 3.5 | C72: =ROUND(MAX(_xlfn.NORM.INV(('Eingabe Email'!$B204+1)/MAX('Eingabe Email'!$B:$B),'H1 Originaldaten'!C72,400),2),1) -> 4899.4 | D72: =ROUND(MAX(_xlfn.NORM.INV(('Eingabe Email'!$B204+1)/MAX('Eingabe Email'!$B:$B),'H1 Originaldaten'!D72,4),2),1) -> 14.9 | E72: =ROUND(MAX(_xlfn.NORM.INV(('Eingabe Email'!$B204+1)/MAX('Eingabe Email'!$B:$B),'H1 Originaldaten'!E72,4),2),1) -> 22.9 | F72: =ROUND(MAX(_xlfn.NORM.INV(('Eingabe Email'!$B204+1)/MAX('Eingabe Email'!$B:$B),'H1 Originaldaten'!F72,200),2),0) -> 8098 | G72: ='H1 Originaldaten'!G72 -> bc
A73: ='H1 Originaldaten'!A73 -> slaughterers.2 | B73: =ROUND(MAX(_xlfn.NORM.INV(('Eingabe Email'!$B205+1)/MAX('Eingabe Email'!$B:$B),'H1 Originaldaten'!B73,7),2),1) -> 2 | C73: =ROUND(MAX(_xlfn.NORM.INV(('Eingabe Email'!$B205+1)/MAX('Eingabe Email'!$B:$B),'H1 Originaldaten'!C73,400),2),1) -> 4334.3 | D73: =ROUND(MAX(_xlfn.NORM.INV(('Eingabe Email'!$B205+1)/MAX('Eingabe Email'!$B:$B),'H1 Originaldaten'!D73,4),2),1) -> 9.3 | E73: =ROUND(MAX(_xlfn.NORM.INV(('Eingabe Email'!$B205+1)/MAX('Eingabe Email'!$B:$B),'H1 Originaldaten'!E73,4),2),1) -> 26.8 | F73: =ROUND(MAX(_xlfn.NORM.INV(('Eingabe Email'!$B205+1)/MAX('Eingabe Email'!$B:$B),'H1 Originaldaten'!F73,200),2),0) -> 7815 | G73: ='H1 Originaldaten'!G73 -> bc
A74: ='H1 Originaldaten'!A74 -> canners | B74: =ROUND(MAX(_xlfn.NORM.INV(('Eingabe Email'!$B206+1)/MAX('Eingabe Email'!$B:$B),'H1 Originaldaten'!B74,7),2),1) -> 20.7 | C74: =ROUND(MAX(_xlfn.NORM.INV(('Eingabe Email'!$B206+1)/MAX('Eingabe Email'!$B:$B),'H1 Originaldaten'!C74,400),2),1) -> 2650.7 | D74: =ROUND(MAX(_xlfn.NORM.INV(('Eingabe Email'!$B206+1)/MAX('Eingabe Email'!$B:$B),'H1 Originaldaten'!D74,4),2),1) -> 79.8 | E74: =ROUND(MAX(_xlfn.NORM.INV(('Eingabe Email'!$B206+1)/MAX('Eingabe Email'!$B:$B),'H1 Originaldaten'!E74,4),2),1) -> 30.8 | F74: =ROUND(MAX(_xlfn.NORM.INV(('Eingabe Email'!$B206+1)/MAX('Eingabe Email'!$B:$B),'H1 Originaldaten'!F74,200),2),0) -> 8601 | G74: ='H1 Originaldaten'!G74 -> bc
A75: ='H1 Originaldaten'!A75 -> textile.weavers | B75: =ROUND(MAX(_xlfn.NORM.INV(('Eingabe Email'!$B207+1)/MAX('Eingabe Email'!$B:$B),'H1 Originaldaten'!B75,7),2),1) -> 6 | C75: =ROUND(MAX(_xlfn.NORM.INV(('Eingabe Email'!$B207+1)/MAX('Eingabe Email'!$B:$B),'H1 Originaldaten'!C75,400),2),1) -> 4404.8 | D75: =ROUND(MAX(_xlfn.NORM.INV(('Eingabe Email'!$B207+1)/MAX('Eingabe Email'!$B:$B),'H1 Originaldaten'!D75,4),2),1) -> 31 | E75: =ROUND(MAX(_xlfn.NORM.INV(('Eingabe Email'!$B207+1)/MAX('Eingabe Email'!$B:$B),'H1 Originaldaten'!E75,4),2),1) -> 32.9 | F75: =ROUND(MAX(_xlfn.NORM.INV(('Eingabe Email'!$B207+1)/MAX('Eingabe Email'!$B:$B),'H1 Originaldaten'!F75,200),2),0) -> 8248 | G75: ='H1 Originaldaten'!G75 -> bc
A76: ='H1 Originaldaten'!A76 -> textile.labourers | B76: =ROUND(MAX(_xlfn.NORM.INV(('Eingabe Email'!$B208+1)/MAX('Eingabe Email'!$B:$B),'H1 Originaldaten'!B76,7),2),1) -> 2 | C76: =ROUND(MAX(_xlfn.NORM.INV(('Eingabe Email'!$B208+1)/MAX('Eingabe Email'!$B:$B),'H1 Originaldaten'!C76,400),2),1) -> 2636.6 | D76: =ROUND(MAX(_xlfn.NORM.INV(('Eingabe Email'!$B208+1)/MAX('Eingabe Email'!$B:$B),'H1 Originaldaten'!D76,4),2),1) -> 31 | E76: =ROUND(MAX(_xlfn.NORM.INV(('Eingabe Email'!$B208+1)/MAX('Eingabe Email'!$B:$B),'H1 Originaldaten'!E76,4),2),1) -> 20.3 | F76: =ROUND(MAX(_xlfn.NORM.INV(('Eingabe Email'!$B208+1)/MAX('Eingabe Email'!$B:$B),'H1 Originaldaten'!F76,200),2),0) -> 7854 | G76: ='H1 Originaldaten'!G76 -> bc
A77: ='H1 Originaldaten'!A77 -> tool.die.makers | B77: =ROUND(MAX(_xlfn.NORM.INV(('Eingabe Email'!$B209+1)/MAX('Eingabe Email'!$B:$B),'H1 Originaldaten'!B77,7),2),1) -> 9.1 | C77: =ROUND(MAX(_xlfn.NORM.INV(('Eingabe Email'!$B209+1)/MAX('Eingabe Email'!$B:$B),'H1 Originaldaten'!C77,400),2),1) -> 7984.3 | D77: =ROUND(MAX(_xlfn.NORM.INV(('Eingabe Email'!$B209+1)/MAX('Eingabe Email'!$B:$B),'H1 Originaldaten'!D77,4),2),1) -> 2 | E77: =ROUND(MAX(_xlfn.NORM.INV(('Eingabe Email'!$B209+1)/MAX('Eingabe Email'!$B:$B),'H1 Originaldaten'!E77,4),2),1) -> 41.9 | F77: =ROUND(MAX(_xlfn.NORM.INV(('Eingabe Email'!$B209+1)/MAX('Eingabe Email'!$B:$B),'H1 Originaldaten'!F77,200),2),0) -> 8282 | G77: ='H1 Originaldaten'!G77 -> bc
A78: ='H1 Originaldaten'!A78 -> machinists | B78: =ROUND(MAX(_xlfn.NORM.INV(('Eingabe Email'!$B210+1)/MAX('Eingabe Email'!$B:$B),'H1 Originaldaten'!B78,7),2),1) -> 12.4 | C78: =ROUND(MAX(_xlfn.NORM.INV(('Eingabe Email'!$B210+1)/MAX('Eingabe Email'!$B:$B),'H1 Originaldaten'!C78,400),2),1) -> 6891.6 | D78: =ROUND(MAX(_xlfn.NORM.INV(('Eingabe Email'!$B210+1)/MAX('Eingabe Email'!$B:$B),'H1 Originaldaten'!D78,4),2),1) -> 6.3 | E78: =ROUND(MAX(_xlfn.NORM.INV(('Eingabe Email'!$B210+1)/MAX('Eingabe Email'!$B:$B),'H1 Originaldaten'!E78,4),2),1) -> 46.3 | F78: =ROUND(MAX(_xlfn.NORM.INV(('Eingabe Email'!$B210+1)/MAX('Eingabe Email'!$B:$B),'H1 Originaldaten'!F78,200),2),0) -> 8416 | G78: ='H1 Originaldaten'!G78 -> bc
A79: ='H1 Originaldaten'!A79 -> sheet.metal.workers | B79: =ROUND(MAX(_xlfn.NORM.INV(('Eingabe Email'!$B211+1)/MAX('Eingabe Email'!$B:$B),'H1 Originaldaten'!B79,7),2),1) -> 7.1 | C79: =ROUND(MAX(_xlfn.NORM.INV(('Eingabe Email'!$B211+1)/MAX('Eingabe Email'!$B:$B),'H1 Originaldaten'!C79,400),2),1) -> 6488.1 | D79: =ROUND(MAX(_xlfn.NORM.INV(('Eingabe Email'!$B211+1)/MAX('Eingabe Email'!$B:$B),'H1 Originaldaten'!D79,4),2),1) -> 2 | E79: =ROUND(MAX(_xlfn.NORM.INV(('Eingabe Email'!$B211+1)/MAX('Eingabe Email'!$B:$B),'H1 Originaldaten'!E79,4),2),1) -> 35.1 | F79: =ROUND(MAX(_xlfn.NORM.INV(('Eingabe Email'!$B211+1)/MAX('Eingabe Email'!$B:$B),'H1 Originaldaten'!F79,200),2),0) -> 8295 | G79: ='H1 Originaldaten'!G79 -> bc
A80: ='H1 Originaldaten'!A80 -> welders | B80: =ROUND(MAX(_xlfn.NORM.INV(('Eingabe Email'!$B212+1)/MAX('Eingabe Email'!$B:$B),'H1 Originaldaten'!B80,7),2),1) -> 2 | C80: =ROUND(MAX(_xlfn.NORM.INV(('Eingabe Email'!$B212+1)/MAX('Eingabe Email'!$B:$B),'H1 Originaldaten'!C80,400),2),1) -> 5456.1 | D80: =ROUND(MAX(_xlfn.NORM.INV(('Eingabe Email'!$B212+1)/MAX('Eingabe Email'!$B:$B),'H1 Originaldaten'!D80,4),2),1) -> 2 | E80: =ROUND(MAX(_xlfn.NORM.INV(('Eingabe Email'!$B212+1)/MAX('Eingabe Email'!$B:$B),'H1 Originaldaten'!E80,4),2),1) -> 31.6 | F80: =ROUND(MAX(_xlfn.NORM.INV(('Eingabe Email'!$B212+1)/MAX('Eingabe Email'!$B:$B),'H1 Originaldaten'!F80,200),2),0) -> 7825 | G80: ='H1 Originaldaten'!G80 -> bc
A81: ='H1 Originaldaten'!A81 -> auto.workers | B81: =ROUND(MAX(_xlfn.NORM.INV(('Eingabe Email'!$B213+1)/MAX('Eingabe Email'!$B:$B),'H1 Originaldaten'!B81,7),2),1) -> 6.7 | C81: =ROUND(MAX(_xlfn.NORM.INV(('Eingabe Email'!$B213+1)/MAX('Eingabe Email'!$B:$B),'H1 Originaldaten'!C81,400),2),1) -> 5711.9 | D81: =ROUND(MAX(_xlfn.NORM.INV(('Eingabe Email'!$B213+1)/MAX('Eingabe Email'!$B:$B),'H1 Originaldaten'!D81,4),2),1) -> 12.6 | E81: =ROUND(MAX(_xlfn.NORM.INV(('Eingabe Email'!$B213+1)/MAX('Eingabe Email'!$B:$B),'H1 Originaldaten'!E81,4),2),1) -> 34.9 | F81: =ROUND(MAX(_xlfn.NORM.INV(('Eingabe Email'!$B213+1)/MAX('Eingabe Email'!$B:$B),'H1 Originaldaten'!F81,200),2),0) -> 8463 | G81: ='H1 Originaldaten'!G81 -> bc
A82: ='H1 Originaldaten'!A82 -> aircraft.workers | B82: =ROUND(MAX(_xlfn.NORM.INV(('Eingabe Email'!$B214+1)/MAX('Eingabe Email'!$B:$B),'H1 Originaldaten'!B82,7),2),1) -> 5.9 | C82: =ROUND(MAX(_xlfn.NORM.INV(('Eingabe Email'!$B214+1)/MAX('Eingabe Email'!$B:$B),'H1 Originaldaten'!C82,400),2),1) -> 6409.1 | D82: =ROUND(MAX(_xlfn.NORM.INV(('Eingabe Email'!$B214+1)/MAX('Eingabe Email'!$B:$B),'H1 Originaldaten'!D82,4),2),1) -> 4.1 | E82: =ROUND(MAX(_xlfn.NORM.INV(('Eingabe Email'!$B214+1)/MAX('Eingabe Email'!$B:$B),'H1 Originaldaten'!E82,4),2),1) -> 42.1 | F82: =ROUND(MAX(_xlfn.NORM.INV(('Eingabe Email'!$B214+1)/MAX('Eingabe Email'!$B:$B),'H1 Originaldaten'!F82,200),2),0) -> 8433 | G82: ='H1 Originaldaten'!G82 -> bc
A83: ='H1 Originaldaten'!A83 -> electronic.workers | B83: =ROUND(MAX(_xlfn.NORM.INV(('Eingabe Email'!$B215+1)/MAX('Eingabe Email'!$B:$B),'H1 Originaldaten'!B83,7),2),1) -> 5.7 | C83: =ROUND(MAX(_xlfn.NORM.INV(('Eingabe Email'!$B215+1)/MAX('Eingabe Email'!$B:$B),'H1 Originaldaten'!C83,400),2),1) -> 3769.8 | D83: =ROUND(MAX(_xlfn.NORM.INV(('Eingabe Email'!$B215+1)/MAX('Eingabe Email'!$B:$B),'H1 Originaldaten'!D83,4),2),1) -> 72.8 | E83: =ROUND(MAX(_xlfn.NORM.INV(('Eingabe Email'!$B215+1)/MAX('Eingabe Email'!$B:$B),'H1 Originaldaten'!E83,4),2),1) -> 49.1 | F83: =ROUND(MAX(_xlfn.NORM.INV(('Eingabe Email'!$B215+1)/MAX('Eingabe Email'!$B:$B),'H1 Originaldaten'!F83,200),2),0) -> 8448 | G83: ='H1 Originaldaten'!G83 -> bc
A84: ='H1 Originaldaten'!A84 -> radio.tv.repairmen | B84: =ROUND(MAX(_xlfn.NORM.INV(('Eingabe Email'!$B216+1)/MAX('Eingabe Email'!$B:$B),'H1 Originaldaten'!B84,7),2),1) -> 7.5 | C84: =ROUND(MAX(_xlfn.NORM.INV(('Eingabe Email'!$B216+1)/MAX('Eingabe Email'!$B:$B),'H1 Originaldaten'!C84,400),2),1) -> 5287.7 | D84: =ROUND(MAX(_xlfn.NORM.INV(('Eingabe Email'!$B216+1)/MAX('Eingabe Email'!$B:$B),'H1 Originaldaten'!D84,4),2),1) -> 2 | E84: =ROUND(MAX(_xlfn.NORM.INV(('Eingabe Email'!$B216+1)/MAX('Eingabe Email'!$B:$B),'H1 Originaldaten'!E84,4),2),1) -> 35.6 | F84: =ROUND(MAX(_xlfn.NORM.INV(('Eingabe Email'!$B216+1)/MAX('Eingabe Email'!$B:$B),'H1 Originaldaten'!F84,200),2),0) -> 8456 | G84: ='H1 Originaldaten'!G84 -> bc
A85: ='H1 Originaldaten'!A85 -> sewing.mach.operators | B85: =ROUND(MAX(_xlfn.NORM.INV(('Eingabe Email'!$B217+1)/MAX('Eingabe Email'!$B:$B),'H1 Originaldaten'!B85,7),2),1) -> 17.7 | C85: =ROUND(MAX(_xlfn.NORM.INV(('Eingabe Email'!$B217+1)/MAX('Eingabe Email'!$B:$B),'H1 Originaldaten'!C85,400),2),1) -> 3492.7 | D85: =ROUND(MAX(_xlfn.NORM.INV(('Eingabe Email'!$B217+1)/MAX('Eingabe Email'!$B:$B),'H1 Originaldaten'!D85,4),2),1) -> 97.1 | E85: =ROUND(MAX(_xlfn.NORM.INV(('Eingabe Email'!$B217+1)/MAX('Eingabe Email'!$B:$B),'H1 Originaldaten'!E85,4),2),1) -> 34.7 | F85: =ROUND(MAX(_xlfn.NORM.INV(('Eingabe Email'!$B217+1)/MAX('Eingabe Email'!$B:$B),'H1 Originaldaten'!F85,200),2),0) -> 8886 | G85: ='H1 Originaldaten'!G85 -> bc
A86: ='H1 Originaldaten'!A86 -> auto.repairmen | B86: =ROUND(MAX(_xlfn.NORM.INV(('Eingabe Email'!$B218+1)/MAX('Eingabe Email'!$B:$B),'H1 Originaldaten'!B86,7),2),1) -> 2 | C86: =ROUND(MAX(_xlfn.NORM.INV(('Eingabe Email'!$B218+1)/MAX('Eingabe Email'!$B:$B),'H1 Originaldaten'!C86,400),2),1) -> 4843.8 | D86: =ROUND(MAX(_xlfn.NORM.INV(('Eingabe Email'!$B218+1)/MAX('Eingabe Email'!$B:$B),'H1 Originaldaten'!D86,4),2),1) -> 2 | E86: =ROUND(MAX(_xlfn.NORM.INV(('Eingabe Email'!$B218+1)/MAX('Eingabe Email'!$B:$B),'H1 Originaldaten'!E86,4),2),1) -> 28.6 | F86: =ROUND(MAX(_xlfn.NORM.INV(('Eingabe Email'!$B218+1)/MAX('Eingabe Email'!$B:$B),'H1 Originaldaten'!F86,200),2),0) -> 8105 | G86: ='H1 Originaldaten'!G86 -> bc
A87: ='H1 Originaldaten'!A87 -> aircraft.repairmen | B87: =ROUND(MAX(_xlfn.NORM.INV(('Eingabe Email'!$B219+1)/MAX('Eingabe Email'!$B:$B),'H1 Originaldaten'!B87,7),2),1) -> 6 | C87: =ROUND(MAX(_xlfn.NORM.INV(('Eingabe Email'!$B219+1)/MAX('Eingabe Email'!$B:$B),'H1 Originaldaten'!C87,400),2),1) -> 7483.4 | D87: =ROUND(MAX(_xlfn.NORM.INV(('Eingabe Email'!$B219+1)/MAX('Eingabe Email'!$B:$B),'H1 Originaldaten'!D87,4),2),1) -> 2 | E87: =ROUND(MAX(_xlfn.NORM.INV(('Eingabe Email'!$B219+1)/MAX('Eingabe Email'!$B:$B),'H1 Originaldaten'!E87,4),2),1) -> 48 | F87: =ROUND(MAX(_xlfn.NORM.INV(('Eingabe Email'!$B219+1)/MAX('Eingabe Email'!$B:$B),'H1 Originaldaten'!F87,200),2),0) -> 8466 | G87: ='H1 Originaldaten'!G87 -> bc
A88: ='H1 Originaldaten'!A88 -> railway.sectionmen | B88: =ROUND(MAX(_xlfn.NORM.INV(('Eingabe Email'!$B220+1)/MAX('Eingabe Email'!$B:$B),'H1 Originaldaten'!B88,7),2),1) -> 6 | C88: =ROUND(MAX(_xlfn.NORM.INV(('Eingabe Email'!$B220+1)/MAX('Eingabe Email'!$B:$B),'H1 Originaldaten'!C88,400),2),1) -> 4654.9 | D88: =ROUND(MAX(_xlfn.NORM.INV(('Eingabe Email'!$B220+1)/MAX('Eingabe Email'!$B:$B),'H1 Originaldaten'!D88,4),2),1) -> 2 | E88: =ROUND(MAX(_xlfn.NORM.INV(('Eingabe Email'!$B220+1)/MAX('Eingabe Email'!$B:$B),'H1 Originaldaten'!E88,4),2),1) -> 26.9 | F88: =ROUND(MAX(_xlfn.NORM.INV(('Eingabe Email'!$B220+1)/MAX('Eingabe Email'!$B:$B),'H1 Originaldaten'!F88,200),2),0) -> 8694 | G88: ='H1 Originaldaten'!G88 -> bc
A89: ='H1 Originaldaten'!A89 -> electrical.linemen | B89: =ROUND(MAX(_xlfn.NORM.INV(('Eingabe Email'!$B221+1)/MAX('Eingabe Email'!$B:$B),'H1 Originaldaten'!B89,7),2),1) -> 4.6 | C89: =ROUND(MAX(_xlfn.NORM.INV(('Eingabe Email'!$B221+1)/MAX('Eingabe Email'!$B:$B),'H1 Originaldaten'!C89,400),2),1) -> 8064.2 | D89: =ROUND(MAX(_xlfn.NORM.INV(('Eingabe Email'!$B221+1)/MAX('Eingabe Email'!$B:$B),'H1 Originaldaten'!D89,4),2),1) -> 2 | E89: =ROUND(MAX(_xlfn.NORM.INV(('Eingabe Email'!$B221+1)/MAX('Eingabe Email'!$B:$B),'H1 Originaldaten'!E89,4),2),1) -> 38.4 | F89: =ROUND(MAX(_xlfn.NORM.INV(('Eingabe Email'!$B221+1)/MAX('Eingabe Email'!$B:$B),'H1 Originaldaten'!F89,200),2),0) -> 8605 | G89: ='H1 Originaldaten'!G89 -> bc
A90: ='H1 Originaldaten'!A90 -> electricians | B90: =ROUND(MAX(_xlfn.NORM.INV(('Eingabe Email'!$B222+1)/MAX('Eingabe Email'!$B:$B),'H1 Originaldaten'!B90,7),2),1) -> 5.9 | C90: =ROUND(MAX(_xlfn.NORM.INV(('Eingabe Email'!$B222+1)/MAX('Eingabe Email'!$B:$B),'H1 Originaldaten'!C90,400),2),1) -> 6914.6 | D90: =ROUND(MAX(_xlfn.NORM.INV(('Eingabe Email'!$B222+1)/MAX('Eingabe Email'!$B:$B),'H1 Originaldaten'!D90,4),2),1) -> 2 | E90: =ROUND(MAX(_xlfn.NORM.INV(('Eingabe Email'!$B222+1)/MAX('Eingabe Email'!$B:$B),'H1 Originaldaten'!E90,4),2),1) -> 47.9 | F90: =ROUND(MAX(_xlfn.NORM.INV(('Eingabe Email'!$B222+1)/MAX('Eingabe Email'!$B:$B),'H1 Originaldaten'!F90,200),2),0) -> 8617 | G90: ='H1 Originaldaten'!G90 -> bc
A91: ='H1 Originaldaten'!A91 -> construction.foremen | B91: =ROUND(MAX(_xlfn.NORM.INV(('Eingabe Email'!$B223+1)/MAX('Eingabe Email'!$B:$B),'H1 Originaldaten'!B91,7),2),1) -> 8.2 | C91: =ROUND(MAX(_xlfn.NORM.INV(('Eingabe Email'!$B223+1)/MAX('Eingabe Email'!$B:$B),'H1 Originaldaten'!C91,400),2),1) -> 8880.4 | D91: =ROUND(MAX(_xlfn.NORM.INV(('Eingabe Email'!$B223+1)/MAX('Eingabe Email'!$B:$B),'H1 Originaldaten'!D91,4),2),1) -> 2 | E91: =ROUND(MAX(_xlfn.NORM.INV(('Eingabe Email'!$B223+1)/MAX('Eingabe Email'!$B:$B),'H1 Originaldaten'!E91,4),2),1) -> 51.1 | F91: =ROUND(MAX(_xlfn.NORM.INV(('Eingabe Email'!$B223+1)/MAX('Eingabe Email'!$B:$B),'H1 Originaldaten'!F91,200),2),0) -> 8780 | G91: ='H1 Originaldaten'!G91 -> bc
A92: ='H1 Originaldaten'!A92 -> carpenters | B92: =ROUND(MAX(_xlfn.NORM.INV(('Eingabe Email'!$B224+1)/MAX('Eingabe Email'!$B:$B),'H1 Originaldaten'!B92,7),2),1) -> 2 | C92: =ROUND(MAX(_xlfn.NORM.INV(('Eingabe Email'!$B224+1)/MAX('Eingabe Email'!$B:$B),'H1 Originaldaten'!C92,400),2),1) -> 4766.8 | D92: =ROUND(MAX(_xlfn.NORM.INV(('Eingabe Email'!$B224+1)/MAX('Eingabe Email'!$B:$B),'H1 Originaldaten'!D92,4),2),1) -> 2 | E92: =ROUND(MAX(_xlfn.NORM.INV(('Eingabe Email'!$B224+1)/MAX('Eingabe Email'!$B:$B),'H1 Originaldaten'!E92,4),2),1) -> 33.6 | F92: =ROUND(MAX(_xlfn.NORM.INV(('Eingabe Email'!$B224+1)/MAX('Eingabe Email'!$B:$B),'H1 Originaldaten'!F92,200),2),0) -> 8515 | G92: ='H1 Originaldaten'!G92 -> bc
A93: ='H1 Originaldaten'!A93 -> masons | B93: =ROUND(MAX(_xlfn.NORM.INV(('Eingabe Email'!$B225+1)/MAX('Eingabe Email'!$B:$B),'H1 Originaldaten'!B93,7),2),1) -> 2 | C93: =ROUND(MAX(_xlfn.NORM.INV(('Eingabe Email'!$B225+1)/MAX('Eingabe Email'!$B:$B),'H1 Originaldaten'!C93,400),2),1) -> 5061.6 | D93: =ROUND(MAX(_xlfn.NORM.INV(('Eingabe Email'!$B225+1)/MAX('Eingabe Email'!$B:$B),'H1 Originaldaten'!D93,4),2),1) -> 2 | E93: =ROUND(MAX(_xlfn.NORM.INV(('Eingabe Email'!$B225+1)/MAX('Eingabe Email'!$B:$B),'H1 Originaldaten'!E93,4),2),1) -> 27.2 | F93: =ROUND(MAX(_xlfn.NORM.INV(('Eingabe Email'!$B225+1)/MAX('Eingabe Email'!$B:$B),'H1 Originaldaten'!F93,200),2),0) -> 8333 | G93: ='H1 Originaldaten'!G93 -> bc
A94: ='H1 Originaldaten'!A94 -> house.painters | B94: =ROUND(MAX(_xlfn.NORM.INV(('Eingabe Email'!$B226+1)/MAX('Eingabe Email'!$B:$B),'H1 Originaldaten'!B94,7),2),1) -> 3.2 | C94: =ROUND(MAX(_xlfn.NORM.INV(('Eingabe Email'!$B226+1)/MAX('Eingabe Email'!$B:$B),'H1 Originaldaten'!C94,400),2),1) -> 4287.8 | D94: =ROUND(MAX(_xlfn.NORM.INV(('Eingabe Email'!$B226+1)/MAX('Eingabe Email'!$B:$B),'H1 Originaldaten'!D94,4),2),1) -> 2 | E94: =ROUND(MAX(_xlfn.NORM.INV(('Eingabe Email'!$B226+1)/MAX('Eingabe Email'!$B:$B),'H1 Originaldaten'!E94,4),2),1) -> 27.3 | F94: =ROUND(MAX(_xlfn.NORM.INV(('Eingabe Email'!$B226+1)/MAX('Eingabe Email'!$B:$B),'H1 Originaldaten'!F94,200),2),0) -> 8654 | G94: ='H1 Originaldaten'!G94 -> bc
A95: ='H1 Originaldaten'!A95 -> plumbers | B95: =ROUND(MAX(_xlfn.NORM.INV(('Eingabe Email'!$B227+1)/MAX('Eingabe Email'!$B:$B),'H1 Originaldaten'!B95,7),2),1) -> 4.6 | C95: =ROUND(MAX(_xlfn.NORM.INV(('Eingabe Email'!$B227+1)/MAX('Eingabe Email'!$B:$B),'H1 Originaldaten'!C95,400),2),1) -> 6716.4 | D95: =ROUND(MAX(_xlfn.NORM.INV(('Eingabe Email'!$B227+1)/MAX('Eingabe Email'!$B:$B),'H1 Originaldaten'!D95,4),2),1) -> 2 | E95: =ROUND(MAX(_xlfn.NORM.INV(('Eingabe Email'!$B227+1)/MAX('Eingabe Email'!$B:$B),'H1 Originaldaten'!E95,4),2),1) -> 40.8 | F95: =ROUND(MAX(_xlfn.NORM.INV(('Eingabe Email'!$B227+1)/MAX('Eingabe Email'!$B:$B),'H1 Originaldaten'!F95,200),2),0) -> 8685 | G95: ='H1 Originaldaten'!G95 -> bc
A96: ='H1 Originaldaten'!A96 -> construction.labourers | B96: =ROUND(MAX(_xlfn.NORM.INV(('Eingabe Email'!$B228+1)/MAX('Eingabe Email'!$B:$B),'H1 Originaldaten'!B96,7),2),1) -> 2 | C96: =ROUND(MAX(_xlfn.NORM.INV(('Eingabe Email'!$B228+1)/MAX('Eingabe Email'!$B:$B),'H1 Originaldaten'!C96,400),2),1) -> 3517.9 | D96: =ROUND(MAX(_xlfn.NORM.INV(('Eingabe Email'!$B228+1)/MAX('Eingabe Email'!$B:$B),'H1 Originaldaten'!D96,4),2),1) -> 2 | E96: =ROUND(MAX(_xlfn.NORM.INV(('Eingabe Email'!$B228+1)/MAX('Eingabe Email'!$B:$B),'H1 Originaldaten'!E96,4),2),1) -> 22.6 | F96: =ROUND(MAX(_xlfn.NORM.INV(('Eingabe Email'!$B228+1)/MAX('Eingabe Email'!$B:$B),'H1 Originaldaten'!F96,200),2),0) -> 8602 | G96: ='H1 Originaldaten'!G96 -> bc
A97: ='H1 Originaldaten'!A97 -> pilots | B97: =ROUND(MAX(_xlfn.NORM.INV(('Eingabe Email'!$B229+1)/MAX('Eingabe Email'!$B:$B),'H1 Originaldaten'!B97,7),2),1) -> 18.8 | C97: =ROUND(MAX(_xlfn.NORM.INV(('Eingabe Email'!$B229+1)/MAX('Eingabe Email'!$B:$B),'H1 Originaldaten'!C97,400),2),1) -> 14405.6 | D97: =ROUND(MAX(_xlfn.NORM.INV(('Eingabe Email'!$B229+1)/MAX('Eingabe Email'!$B:$B),'H1 Originaldaten'!D97,4),2),1) -> 4.3 | E97: =ROUND(MAX(_xlfn.NORM.INV(('Eingabe Email'!$B229+1)/MAX('Eingabe Email'!$B:$B),'H1 Originaldaten'!E97,4),2),1) -> 69.8 | F97: =ROUND(MAX(_xlfn.NORM.INV(('Eingabe Email'!$B229+1)/MAX('Eingabe Email'!$B:$B),'H1 Originaldaten'!F97,200),2),0) -> 9298 | G97: ='H1 Originaldaten'!G97 -> prof
A98: ='H1 Originaldaten'!A98 -> train.engineers | B98: =ROUND(MAX(_xlfn.NORM.INV(('Eingabe Email'!$B230+1)/MAX('Eingabe Email'!$B:$B),'H1 Originaldaten'!B98,7),2),1) -> 2 | C98: =ROUND(MAX(_xlfn.NORM.INV(('Eingabe Email'!$B230+1)/MAX('Eingabe Email'!$B:$B),'H1 Originaldaten'!C98,400),2),1) -> 8260.4 | D98: =ROUND(MAX(_xlfn.NORM.INV(('Eingabe Email'!$B230+1)/MAX('Eingabe Email'!$B:$B),'H1 Originaldaten'!D98,4),2),1) -> 2 | E98: =ROUND(MAX(_xlfn.NORM.INV(('Eingabe Email'!$B230+1)/MAX('Eingabe Email'!$B:$B),'H1 Originaldaten'!E98,4),2),1) -> 43.1 | F98: =ROUND(MAX(_xlfn.NORM.INV(('Eingabe Email'!$B230+1)/MAX('Eingabe Email'!$B:$B),'H1 Originaldaten'!F98,200),2),0) -> 8839 | G98: ='H1 Originaldaten'!G98 -> bc
A99: ='H1 Originaldaten'!A99 -> bus.drivers | B99: =ROUND(MAX(_xlfn.NORM.INV(('Eingabe Email'!$B231+1)/MAX('Eingabe Email'!$B:$B),'H1 Originaldaten'!B99,7),2),1) -> 14.7 | C99: =ROUND(MAX(_xlfn.NORM.INV(('Eingabe Email'!$B231+1)/MAX('Eingabe Email'!$B:$B),'H1 Originaldaten'!C99,400),2),1) -> 5969.3 | D99: =ROUND(MAX(_xlfn.NORM.INV(('Eingabe Email'!$B231+1)/MAX('Eingabe Email'!$B:$B),'H1 Originaldaten'!D99,4),2),1) -> 13.5 | E99: =ROUND(MAX(_xlfn.NORM.INV(('Eingabe Email'!$B231+1)/MAX('Eingabe Email'!$B:$B),'H1 Originaldaten'!E99,4),2),1) -> 40 | F99: =ROUND(MAX(_xlfn.NORM.INV(('Eingabe Email'!$B231+1)/MAX('Eingabe Email'!$B:$B),'H1 Originaldaten'!F99,200),2),0) -> 9375 | G99: ='H1 Originaldaten'!G99 -> bc
A100: ='H1 Originaldaten'!A100 -> taxi.drivers | B100: =ROUND(MAX(_xlfn.NORM.INV(('Eingabe Email'!$B232+1)/MAX('Eingabe Email'!$B:$B),'H1 Originaldaten'!B100,7),2),1) -> 8.6 | C100: =ROUND(MAX(_xlfn.NORM.INV(('Eingabe Email'!$B232+1)/MAX('Eingabe Email'!$B:$B),'H1 Originaldaten'!C100,400),2),1) -> 4261.6 | D100: =ROUND(MAX(_xlfn.NORM.INV(('Eingabe Email'!$B232+1)/MAX('Eingabe Email'!$B:$B),'H1 Originaldaten'!D100,4),2),1) -> 4 | E100: =ROUND(MAX(_xlfn.NORM.INV(('Eingabe Email'!$B232+1)/MAX('Eingabe Email'!$B:$B),'H1 Originaldaten'!E100,4),2),1) -> 25.5 | F100: =ROUND(MAX(_xlfn.NORM.INV(('Eingabe Email'!$B232+1)/MAX('Eingabe Email'!$B:$B),'H1 Originaldaten'!F100,200),2),0) -> 9192 | G100: ='H1 Originaldaten'!G100 -> bc
A101: ='H1 Originaldaten'!A101 -> longshoremen | B101: =ROUND(MAX(_xlfn.NORM.INV(('Eingabe Email'!$B233+1)/MAX('Eingabe Email'!$B:$B),'H1 Originaldaten'!B101,7),2),1) -> 13.9 | C101: =ROUND(MAX(_xlfn.NORM.INV(('Eingabe Email'!$B233+1)/MAX('Eingabe Email'!$B:$B),'H1 Originaldaten'!C101,400),2),1) -> 5069.1 | D101: =ROUND(MAX(_xlfn.NORM.INV(('Eingabe Email'!$B233+1)/MAX('Eingabe Email'!$B:$B),'H1 Originaldaten'!D101,4),2),1) -> 3.2 | E101: =ROUND(MAX(_xlfn.NORM.INV(('Eingabe Email'!$B233+1)/MAX('Eingabe Email'!$B:$B),'H1 Originaldaten'!E101,4),2),1) -> 29.3 | F101: =ROUND(MAX(_xlfn.NORM.INV(('Eingabe Email'!$B233+1)/MAX('Eingabe Email'!$B:$B),'H1 Originaldaten'!F101,200),2),0) -> 9471 | G101: ='H1 Originaldaten'!G101 -> bc
A102: ='H1 Originaldaten'!A102 -> typesetters | B102: =ROUND(MAX(_xlfn.NORM.INV(('Eingabe Email'!$B234+1)/MAX('Eingabe Email'!$B:$B),'H1 Originaldaten'!B102,7),2),1) -> 13.9 | C102: =ROUND(MAX(_xlfn.NORM.INV(('Eingabe Email'!$B234+1)/MAX('Eingabe Email'!$B:$B),'H1 Originaldaten'!C102,400),2),1) -> 6682 | D102: =ROUND(MAX(_xlfn.NORM.INV(('Eingabe Email'!$B234+1)/MAX('Eingabe Email'!$B:$B),'H1 Originaldaten'!D102,4),2),1) -> 15.8 | E102: =ROUND(MAX(_xlfn.NORM.INV(('Eingabe Email'!$B234+1)/MAX('Eingabe Email'!$B:$B),'H1 Originaldaten'!E102,4),2),1) -> 44.4 | F102: =ROUND(MAX(_xlfn.NORM.INV(('Eingabe Email'!$B234+1)/MAX('Eingabe Email'!$B:$B),'H1 Originaldaten'!F102,200),2),0) -> 9621 | G102: ='H1 Originaldaten'!G102 -> bc
A103: ='H1 Originaldaten'!A103 -> bookbinders | B103: =ROUND(MAX(_xlfn.NORM.INV(('Eingabe Email'!$B235+1)/MAX('Eingabe Email'!$B:$B),'H1 Originaldaten'!B103,7),2),1) -> 12.1 | C103: =ROUND(MAX(_xlfn.NORM.INV(('Eingabe Email'!$B235+1)/MAX('Eingabe Email'!$B:$B),'H1 Originaldaten'!C103,400),2),1) -> 3821.7 | D103: =ROUND(MAX(_xlfn.NORM.INV(('Eingabe Email'!$B235+1)/MAX('Eingabe Email'!$B:$B),'H1 Originaldaten'!D103,4),2),1) -> 72.9 | E103: =ROUND(MAX(_xlfn.NORM.INV(('Eingabe Email'!$B235+1)/MAX('Eingabe Email'!$B:$B),'H1 Originaldaten'!E103,4),2),1) -> 37.2 | F103: =ROUND(MAX(_xlfn.NORM.INV(('Eingabe Email'!$B235+1)/MAX('Eingabe Email'!$B:$B),'H1 Originaldaten'!F103,200),2),0) -> 9619 | G103: ='H1 Originaldaten'!G103 -> bc

Sheet H2
A1: ID | B1: mpg | C1: cylinders | D1: displacement | E1: horsepower | F1: weight | G1: acceleration | H1: year | I1: origin | J1: name
A2: 1 | B2: =ROUND(MAX(_xlfn.NORM.INV(('Eingabe Email'!$B134+1)/MAX('Eingabe Email'!$B:$B),'H2 Originaldaten'!B2,7),2),1) -> 18.9 | C2: ='H2 Originaldaten'!C2 -> 8 | D2: =ROUND(MAX(_xlfn.NORM.INV(('Eingabe Email'!$B134+1)/MAX('Eingabe Email'!$B:$B),'H2 Originaldaten'!D2,7),2),1) -> 307.9 | E2: =ROUND(MAX(_xlfn.NORM.INV(('Eingabe Email'!$B134+1)/MAX('Eingabe Email'!$B:$B),'H2 Originaldaten'!E2,7),2),1) -> 130.9 | F2: =ROUND(MAX(_xlfn.NORM.INV(('Eingabe Email'!$B134+1)/MAX('Eingabe Email'!$B:$B),'H2 Originaldaten'!F2,7),2),1) -> 3504.9 | G2: =ROUND(MAX(_xlfn.NORM.INV(('Eingabe Email'!$B134+1)/MAX('Eingabe Email'!$B:$B),'H2 Originaldaten'!G2,7),2),1) -> 12.9 | H2: ='H2 Originaldaten'!H2 -> 70 | I2: ='H2 Originaldaten'!I2 -> 1 | J2: ='H2 Originaldaten'!J2 -> chevrolet chevelle malibu
A3: 2 | B3: =ROUND(MAX(_xlfn.NORM.INV(('Eingabe Email'!$B135+1)/MAX('Eingabe Email'!$B:$B),'H2 Originaldaten'!B3,7),2),1) -> 2 | C3: ='H2 Originaldaten'!C3 -> 8 | D3: =ROUND(MAX(_xlfn.NORM.INV(('Eingabe Email'!$B135+1)/MAX('Eingabe Email'!$B:$B),'H2 Originaldaten'!D3,7),2),1) -> 331.5 | E3: =ROUND(MAX(_xlfn.NORM.INV(('Eingabe Email'!$B135+1)/MAX('Eingabe Email'!$B:$B),'H2 Originaldaten'!E3,7),2),1) -> 146.5 | F3: =ROUND(MAX(_xlfn.NORM.INV(('Eingabe Email'!$B135+1)/MAX('Eingabe Email'!$B:$B),'H2 Originaldaten'!F3,7),2),1) -> 3674.5 | G3: =ROUND(MAX(_xlfn.NORM.INV(('Eingabe Email'!$B135+1)/MAX('Eingabe Email'!$B:$B),'H2 Originaldaten'!G3,7),2),1) -> 2 | H3: ='H2 Originaldaten'!H3 -> 70 | I3: ='H2 Originaldaten'!I3 -> 1 | J3: ='H2 Originaldaten'!J3 -> buick skylark 320
A4: 3 | B4: =ROUND(MAX(_xlfn.NORM.INV(('Eingabe Email'!$B136+1)/MAX('Eingabe Email'!$B:$B),'H2 Originaldaten'!B4,7),2),1) -> 8.6 | C4: ='H2 Originaldaten'!C4 -> 8 | D4: =ROUND(MAX(_xlfn.NORM.INV(('Eingabe Email'!$B136+1)/MAX('Eingabe Email'!$B:$B),'H2 Originaldaten'!D4,7),2),1) -> 308.6 | E4: =ROUND(MAX(_xlfn.NORM.INV(('Eingabe Email'!$B136+1)/MAX('Eingabe Email'!$B:$B),'H2 Originaldaten'!E4,7),2),1) -> 140.6 | F4: =ROUND(MAX(_xlfn.NORM.INV(('Eingabe Email'!$B136+1)/MAX('Eingabe Email'!$B:$B),'H2 Originaldaten'!F4,7),2),1) -> 3426.6 | G4: =ROUND(MAX(_xlfn.NORM.INV(('Eingabe Email'!$B136+1)/MAX('Eingabe Email'!$B:$B),'H2 Originaldaten'!G4,7),2),1) -> 2 | H4: ='H2 Originaldaten'!H4 -> 70 | I4: ='H2 Originaldaten'!I4 -> 1 | J4: ='H2 Originaldaten'!J4 -> plymouth satellite
A5: 4 | B5: =ROUND(MAX(_xlfn.NORM.INV(('Eingabe Email'!$B137+1)/MAX('Eingabe Email'!$B:$B),'H2 Originaldaten'!B5,7),2),1) -> 11.6 | C5: ='H2 Originaldaten'!C5 -> 8 | D5: =ROUND(MAX(_xlfn.NORM.INV(('Eingabe Email'!$B137+1)/MAX('Eingabe Email'!$B:$B),'H2 Originaldaten'!D5,7),2),1) -> 299.6 | E5: =ROUND(MAX(_xlfn.NORM.INV(('Eingabe Email'!$B137+1)/MAX('Eingabe Email'!$B:$B),'H2 Originaldaten'!E5,7),2),1) -> 145.6 | F5: =ROUND(MAX(_xlfn.NORM.INV(('Eingabe Email'!$B137+1)/MAX('Eingabe Email'!$B:$B),'H2 Originaldaten'!F5,7),2),1) -> 3428.6 | G5: =ROUND(MAX(_xlfn.NORM.INV(('Eingabe Email'!$B137+1)/MAX('Eingabe Email'!$B:$B),'H2 Originaldaten'!G5,7),2),1) -> 7.6 | H5: ='H2 Originaldaten'!H5 -> 70 | I5: ='H2 Originaldaten'!I5 -> 1 | J5: ='H2 Originaldaten'!J5 -> amc rebel sst
A6: 5 | B6: =ROUND(MAX(_xlfn.NORM.INV(('Eingabe Email'!$B138+1)/MAX('Eingabe Email'!$B:$B),'H2 Originaldaten'!B6,7),2),1) -> 17.4 | C6: ='H2 Originaldaten'!C6 -> 8 | D6: =ROUND(MAX(_xlfn.NORM.INV(('Eingabe Email'!$B138+1)/MAX('Eingabe Email'!$B:$B),'H2 Originaldaten'!D6,7),2),1) -> 302.4 | E6: =ROUND(MAX(_xlfn.NORM.INV(('Eingabe Email'!$B138+1)/MAX('Eingabe Email'!$B:$B),'H2 Originaldaten'!E6,7),2),1) -> 140.4 | F6: =ROUND(MAX(_xlfn.NORM.INV(('Eingabe Email'!$B138+1)/MAX('Eingabe Email'!$B:$B),'H2 Originaldaten'!F6,7),2),1) -> 3449.4 | G6: =ROUND(MAX(_xlfn.NORM.INV(('Eingabe Email'!$B138+1)/MAX('Eingabe Email'!$B:$B),'H2 Originaldaten'!G6,7),2),1) -> 10.9 | H6: ='H2 Originaldaten'!H6 -> 70 | I6: ='H2 Originaldaten'!I6 -> 1 | J6: ='H2 Originaldaten'!J6 -> ford torino
A7: 6 | B7: =ROUND(MAX(_xlfn.NORM.INV(('Eingabe Email'!$B139+1)/MAX('Eingabe Email'!$B:$B),'H2 Originaldaten'!B7,7),2),1) -> 19.1 | C7: ='H2 Originaldaten'!C7 -> 8 | D7: =ROUND(MAX(_xlfn.NORM.INV(('Eingabe Email'!$B139+1)/MAX('Eingabe Email'!$B:$B),'H2 Originaldaten'!D7,7),2),1) -> 433.1 | E7: =ROUND(MAX(_xlfn.NORM.INV(('Eingabe Email'!$B139+1)/MAX('Eingabe Email'!$B:$B),'H2 Originaldaten'!E7,7),2),1) -> 202.1 | F7: =ROUND(MAX(_xlfn.NORM.INV(('Eingabe Email'!$B139+1)/MAX('Eingabe Email'!$B:$B),'H2 Originaldaten'!F7,7),2),1) -> 4345.1 | G7: =ROUND(MAX(_xlfn.NORM.INV(('Eingabe Email'!$B139+1)/MAX('Eingabe Email'!$B:$B),'H2 Originaldaten'!G7,7),2),1) -> 14.1 | H7: ='H2 Originaldaten'!H7 -> 70 | I7: ='H2 Originaldaten'!I7 -> 1 | J7: ='H2 Originaldaten'!J7 -> ford galaxie 500
A8: 7 | B8: =ROUND(MAX(_xlfn.NORM.INV(('Eingabe Email'!$B140+1)/MAX('Eingabe Email'!$B:$B),'H2 Originaldaten'!B8,7),2),1) -> 20.9 | C8: ='H2 Originaldaten'!C8 -> 8 | D8: =ROUND(MAX(_xlfn.NORM.INV(('Eingabe Email'!$B140+1)/MAX('Eingabe Email'!$B:$B),'H2 Originaldaten'!D8,7),2),1) -> 460.9 | E8: =ROUND(MAX(_xlfn.NORM.INV(('Eingabe Email'!$B140+1)/MAX('Eingabe Email'!$B:$B),'H2 Originaldaten'!E8,7),2),1) -> 226.9 | F8: =ROUND(MAX(_xlfn.NORM.INV(('Eingabe Email'!$B140+1)/MAX('Eingabe Email'!$B:$B),'H2 Originaldaten'!F8,7),2),1) -> 4360.9 | G8: =ROUND(MAX(_xlfn.NORM.INV(('Eingabe Email'!$B140+1)/MAX('Eingabe Email'!$B:$B),'H2 Originaldaten'!G8,7),2),1) -> 15.9 | H8: ='H2 Originaldaten'!H8 -> 70 | I8: ='H2 Originaldaten'!I8 -> 1 | J8: ='H2 Originaldaten'!J8 -> chevrolet impala
A9: 8 | B9: =ROUND(MAX(_xlfn.NORM.INV(('Eingabe Email'!$B141+1)/MAX('Eingabe Email'!$B:$B),'H2 Originaldaten'!B9,7),2),1) -> 16.8 | C9: ='H2 Originaldaten'!C9 -> 8 | D9: =ROUND(MAX(_xlfn.NORM.INV(('Eingabe Email'!$B141+1)/MAX('Eingabe Email'!$B:$B),'H2 Originaldaten'!D9,7),2),1) -> 442.8 | E9: =ROUND(MAX(_xlfn.NORM.INV(('Eingabe Email'!$B141+1)/MAX('Eingabe Email'!$B:$B),'H2 Originaldaten'!E9,7),2),1) -> 217.8 | F9: =ROUND(MAX(_xlfn.NORM.INV(('Eingabe Email'!$B141+1)/MAX('Eingabe Email'!$B:$B),'H2 Originaldaten'!F9,7),2),1) -> 4314.8 | G9: =ROUND(MAX(_xlfn.NORM.INV(('Eingabe Email'!$B141+1)/MAX('Eingabe Email'!$B:$B),'H2 Originaldaten'!G9,7),2),1) -> 11.3 | H9: ='H2 Originaldaten'!H9 -> 70 | I9: ='H2 Originaldaten'!I9 -> 1 | J9: ='H2 Originaldaten'!J9 -> plymouth fury iii
A10: 9 | B10: =ROUND(MAX(_xlfn.NORM.INV(('Eingabe Email'!$B142+1)/MAX('Eingabe Email'!$B:$B),'H2 Originaldaten'!B10,7),2),1) -> 11.9 | C10: ='H2 Originaldaten'!C10 -> 8 | D10: =ROUND(MAX(_xlfn.NORM.INV(('Eingabe Email'!$B142+1)/MAX('Eingabe Email'!$B:$B),'H2 Originaldaten'!D10,7),2),1) -> 452.9 | E10: =ROUND(MAX(_xlfn.NORM.INV(('Eingabe Email'!$B142+1)/MAX('Eingabe Email'!$B:$B),'H2 Originaldaten'!E10,7),2),1) -> 222.9 | F10: =ROUND(MAX(_xlfn.NORM.INV(('Eingabe Email'!$B142+1)/MAX('Eingabe Email'!$B:$B),'H2 Originaldaten'!F10,7),2),1) -> 4422.9 | G10: =ROUND(MAX(_xlfn.NORM.INV(('Eingabe Email'!$B142+1)/MAX('Eingabe Email'!$B:$B),'H2 Originaldaten'!G10,7),2),1) -> 7.9 | H10: ='H2 Originaldaten'!H10 -> 70 | I10: ='H2 Originaldaten'!I10 -> 1 | J10: ='H2 Originaldaten'!J10 -> pontiac catalina
A11: 10 | B11: =ROUND(MAX(_xlfn.NORM.INV(('Eingabe Email'!$B143+1)/MAX('Eingabe Email'!$B:$B),'H2 Originaldaten'!B11,7),2),1) -> 20 | C11: ='H2 Originaldaten'!C11 -> 8 | D11: =ROUND(MAX(_xlfn.NORM.INV(('Eingabe Email'!$B143+1)/MAX('Eingabe Email'!$B:$B),'H2 Originaldaten'!D11,7),2),1) -> 395 | E11: =ROUND(MAX(_xlfn.NORM.INV(('Eingabe Email'!$B143+1)/MAX('Eingabe Email'!$B:$B),'H2 Originaldaten'!E11,7),2),1) -> 195 | F11: =ROUND(MAX(_xlfn.NORM.INV(('Eingabe Email'!$B143+1)/MAX('Eingabe Email'!$B:$B),'H2 Originaldaten'!F11,7),2),1) -> 3855 | G11: =ROUND(MAX(_xlfn.NORM.INV(('Eingabe Email'!$B143+1)/MAX('Eingabe Email'!$B:$B),'H2 Originaldaten'!G11,7),2),1) -> 13.5 | H11: ='H2 Originaldaten'!H11 -> 70 | I11: ='H2 Originaldaten'!I11 -> 1 | J11: ='H2 Originaldaten'!J11 -> amc ambassador dpl
A12: 11 | B12: =ROUND(MAX(_xlfn.NORM.INV(('Eingabe Email'!$B144+1)/MAX('Eingabe Email'!$B:$B),'H2 Originaldaten'!B12,7),2),1) -> 11.1 | C12: ='H2 Originaldaten'!C12 -> 8 | D12: =ROUND(MAX(_xlfn.NORM.INV(('Eingabe Email'!$B144+1)/MAX('Eingabe Email'!$B:$B),'H2 Originaldaten'!D12,7),2),1) -> 379.1 | E12: =ROUND(MAX(_xlfn.NORM.INV(('Eingabe Email'!$B144+1)/MAX('Eingabe Email'!$B:$B),'H2 Originaldaten'!E12,7),2),1) -> 166.1 | F12: =ROUND(MAX(_xlfn.NORM.INV(('Eingabe Email'!$B144+1)/MAX('Eingabe Email'!$B:$B),'H2 Originaldaten'!F12,7),2),1) -> 3559.1 | G12: =ROUND(MAX(_xlfn.NORM.INV(('Eingabe Email'!$B144+1)/MAX('Eingabe Email'!$B:$B),'H2 Originaldaten'!G12,7),2),1) -> 6.1 | H12: ='H2 Originaldaten'!H12 -> 70 | I12: ='H2 Originaldaten'!I12 -> 1 | J12: ='H2 Originaldaten'!J12 -> dodge challenger se
A13: 12 | B13: =ROUND(MAX(_xlfn.NORM.INV(('Eingabe Email'!$B145+1)/MAX('Eingabe Email'!$B:$B),'H2 Originaldaten'!B13,7),2),1) -> 17.1 | C13: ='H2 Originaldaten'!C13 -> 8 | D13: =ROUND(MAX(_xlfn.NORM.INV(('Eingabe Email'!$B145+1)/MAX('Eingabe Email'!$B:$B),'H2 Originaldaten'!D13,7),2),1) -> 343.1 | E13: =ROUND(MAX(_xlfn.NORM.INV(('Eingabe Email'!$B145+1)/MAX('Eingabe Email'!$B:$B),'H2 Originaldaten'!E13,7),2),1) -> 163.1 | F13: =ROUND(MAX(_xlfn.NORM.INV(('Eingabe Email'!$B145+1)/MAX('Eingabe Email'!$B:$B),'H2 Originaldaten'!F13,7),2),1) -> 3612.1 | G13: =ROUND(MAX(_xlfn.NORM.INV(('Eingabe Email'!$B145+1)/MAX('Eingabe Email'!$B:$B),'H2 Originaldaten'!G13,7),2),1) -> 11.1 | H13: ='H2 Originaldaten'!H13 -> 70 | I13: ='H2 Originaldaten'!I13 -> 1 | J13: ='H2 Originaldaten'!J13 -> plymouth 'cuda 340
A14: 13 | B14: =ROUND(MAX(_xlfn.NORM.INV(('Eingabe Email'!$B146+1)/MAX('Eingabe Email'!$B:$B),'H2 Originaldaten'!B14,7),2),1) -> 14 | C14: ='H2 Originaldaten'!C14 -> 8 | D14: =ROUND(MAX(_xlfn.NORM.INV(('Eingabe Email'!$B146+1)/MAX('Eingabe Email'!$B:$B),'H2 Originaldaten'!D14,7),2),1) -> 399 | E14: =ROUND(MAX(_xlfn.NORM.INV(('Eingabe Email'!$B146+1)/MAX('Eingabe Email'!$B:$B),'H2 Originaldaten'!E14,7),2),1) -> 149 | F14: =ROUND(MAX(_xlfn.NORM.INV(('Eingabe Email'!$B146+1)/MAX('Eingabe Email'!$B:$B),'H2 Originaldaten'!F14,7),2),1) -> 3760 | G14: =ROUND(MAX(_xlfn.NORM.INV(('Eingabe Email'!$B146+1)/MAX('Eingabe Email'!$B:$B),'H2 Originaldaten'!G14,7),2),1) -> 8.5 | H14: ='H2 Originaldaten'!H14 -> 70 | I14: ='H2 Originaldaten'!I14 -> 1 | J14: ='H2 Originaldaten'!J14 -> chevrolet monte carlo
A15: 14 | B15: =ROUND(MAX(_xlfn.NORM.INV(('Eingabe Email'!$B147+1)/MAX('Eingabe Email'!$B:$B),'H2 Originaldaten'!B15,7),2),1) -> 15.7 | C15: ='H2 Originaldaten'!C15 -> 8 | D15: =ROUND(MAX(_xlfn.NORM.INV(('Eingabe Email'!$B147+1)/MAX('Eingabe Email'!$B:$B),'H2 Originaldaten'!D15,7),2),1) -> 456.7 | E15: =ROUND(MAX(_xlfn.NORM.INV(('Eingabe Email'!$B147+1)/MAX('Eingabe Email'!$B:$B),'H2 Originaldaten'!E15,7),2),1) -> 226.7 | F15: =ROUND(MAX(_xlfn.NORM.INV(('Eingabe Email'!$B147+1)/MAX('Eingabe Email'!$B:$B),'H2 Originaldaten'!F15,7),2),1) -> 3087.7 | G15: =ROUND(MAX(_xlfn.NORM.INV(('Eingabe Email'!$B147+1)/MAX('Eingabe Email'!$B:$B),'H2 Originaldaten'!G15,7),2),1) -> 11.7 | H15: ='H2 Originaldaten'!H15 -> 70 | I15: ='H2 Originaldaten'!I15 -> 1 | J15: ='H2 Originaldaten'!J15 -> buick estate wagon (sw)
A16: 15 | B16: =ROUND(MAX(_xlfn.NORM.INV(('Eingabe Email'!$B148+1)/MAX('Eingabe Email'!$B:$B),'H2 Originaldaten'!B16,7),2),1) -> 22.3 | C16: ='H2 Originaldaten'!C16 -> 4 | D16: =ROUND(MAX(_xlfn.NORM.INV(('Eingabe Email'!$B148+1)/MAX('Eingabe Email'!$B:$B),'H2 Originaldaten'!D16,7),2),1) -> 111.3 | E16: =ROUND(MAX(_xlfn.NORM.INV(('Eingabe Email'!$B148+1)/MAX('Eingabe Email'!$B:$B),'H2 Originaldaten'!E16,7),2),1) -> 93.3 | F16: =ROUND(MAX(_xlfn.NORM.INV(('Eingabe Email'!$B148+1)/MAX('Eingabe Email'!$B:$B),'H2 Originaldaten'!F16,7),2),1) -> 2370.3 | G16: =ROUND(MAX(_xlfn.NORM.INV(('Eingabe Email'!$B148+1)/MAX('Eingabe Email'!$B:$B),'H2 Originaldaten'!G16,7),2),1) -> 13.3 | H16: ='H2 Originaldaten'!H16 -> 70 | I16: ='H2 Originaldaten'!I16 -> 3 | J16: ='H2 Originaldaten'!J16 -> toyota corona mark ii
A17: 16 | B17: =ROUND(MAX(_xlfn.NORM.INV(('Eingabe Email'!$B149+1)/MAX('Eingabe Email'!$B:$B),'H2 Originaldaten'!B17,7),2),1) -> 32 | C17: ='H2 Originaldaten'!C17 -> 6 | D17: =ROUND(MAX(_xlfn.NORM.INV(('Eingabe Email'!$B149+1)/MAX('Eingabe Email'!$B:$B),'H2 Originaldaten'!D17,7),2),1) -> 208 | E17: =ROUND(MAX(_xlfn.NORM.INV(('Eingabe Email'!$B149+1)/MAX('Eingabe Email'!$B:$B),'H2 Originaldaten'!E17,7),2),1) -> 105 | F17: =ROUND(MAX(_xlfn.NORM.INV(('Eingabe Email'!$B149+1)/MAX('Eingabe Email'!$B:$B),'H2 Originaldaten'!F17,7),2),1) -> 2843 | G17: =ROUND(MAX(_xlfn.NORM.INV(('Eingabe Email'!$B149+1)/MAX('Eingabe Email'!$B:$B),'H2 Originaldaten'!G17,7),2),1) -> 25.5 | H17: ='H2 Originaldaten'!H17 -> 70 | I17: ='H2 Originaldaten'!I17 -> 1 | J17: ='H2 Originaldaten'!J17 -> plymouth duster
A18: 17 | B18: =ROUND(MAX(_xlfn.NORM.INV(('Eingabe Email'!$B150+1)/MAX('Eingabe Email'!$B:$B),'H2 Originaldaten'!B18,7),2),1) -> 24.2 | C18: ='H2 Originaldaten'!C18 -> 6 | D18: =ROUND(MAX(_xlfn.NORM.INV(('Eingabe Email'!$B150+1)/MAX('Eingabe Email'!$B:$B),'H2 Originaldaten'!D18,7),2),1) -> 205.2 | E18: =ROUND(MAX(_xlfn.NORM.INV(('Eingabe Email'!$B150+1)/MAX('Eingabe Email'!$B:$B),'H2 Originaldaten'!E18,7),2),1) -> 103.2 | F18: =ROUND(MAX(_xlfn.NORM.INV(('Eingabe Email'!$B150+1)/MAX('Eingabe Email'!$B:$B),'H2 Originaldaten'!F18,7),2),1) -> 2780.2 | G18: =ROUND(MAX(_xlfn.NORM.INV(('Eingabe Email'!$B150+1)/MAX('Eingabe Email'!$B:$B),'H2 Originaldaten'!G18,7),2),1) -> 21.7 | H18: ='H2 Originaldaten'!H18 -> 70 | I18: ='H2 Originaldaten'!I18 -> 1 | J18: ='H2 Originaldaten'!J18 -> amc hornet
A19: 18 | B19: =ROUND(MAX(_xlfn.NORM.INV(('Eingabe Email'!$B151+1)/MAX('Eingabe Email'!$B:$B),'H2 Originaldaten'!B19,7),2),1) -> 27.7 | C19: ='H2 Originaldaten'!C19 -> 6 | D19: =ROUND(MAX(_xlfn.NORM.INV(('Eingabe Email'!$B151+1)/MAX('Eingabe Email'!$B:$B),'H2 Originaldaten'!D19,7),2),1) -> 206.7 | E19: =ROUND(MAX(_xlfn.NORM.INV(('Eingabe Email'!$B151+1)/MAX('Eingabe Email'!$B:$B),'H2 Originaldaten'!E19,7),2),1) -> 91.7 | F19: =ROUND(MAX(_xlfn.NORM.INV(('Eingabe Email'!$B151+1)/MAX('Eingabe Email'!$B:$B),'H2 Originaldaten'!F19,7),2),1) -> 2593.7 | G19: =ROUND(MAX(_xlfn.NORM.INV(('Eingabe Email'!$B151+1)/MAX('Eingabe Email'!$B:$B),'H2 Originaldaten'!G19,7),2),1) -> 22.7 | H19: ='H2 Originaldaten'!H19 -> 70 | I19: ='H2 Originaldaten'!I19 -> 1 | J19: ='H2 Originaldaten'!J19 -> ford maverick
A20: 19 | B20: =ROUND(MAX(_xlfn.NORM.INV(('Eingabe Email'!$B152+1)/MAX('Eingabe Email'!$B:$B),'H2 Originaldaten'!B20,7),2),1) -> 31.2 | C20: ='H2 Originaldaten'!C20 -> 4 | D20: =ROUND(MAX(_xlfn.NORM.INV(('Eingabe Email'!$B152+1)/MAX('Eingabe Email'!$B:$B),'H2 Originaldaten'!D20,7),2),1) -> 101.2 | E20: =ROUND(MAX(_xlfn.NORM.INV(('Eingabe Email'!$B152+1)/MAX('Eingabe Email'!$B:$B),'H2 Originaldaten'!E20,7),2),1) -> 92.2 | F20: =ROUND(MAX(_xlfn.NORM.INV(('Eingabe Email'!$B152+1)/MAX('Eingabe Email'!$B:$B),'H2 Originaldaten'!F20,7),2),1) -> 2134.2 | G20: =ROUND(MAX(_xlfn.NORM.INV(('Eingabe Email'!$B152+1)/MAX('Eingabe Email'!$B:$B),'H2 Originaldaten'!G20,7),2),1) -> 18.7 | H20: ='H2 Originaldaten'!H20 -> 70 | I20: ='H2 Originaldaten'!I20 -> 3 | J20: ='H2 Originaldaten'!J20 -> datsun pl510
A21: 20 | B21: =ROUND(MAX(_xlfn.NORM.INV(('Eingabe Email'!$B153+1)/MAX('Eingabe Email'!$B:$B),'H2 Originaldaten'!B21,7),2),1) -> 27.2 | C21: ='H2 Originaldaten'!C21 -> 4 | D21: =ROUND(MAX(_xlfn.NORM.INV(('Eingabe Email'!$B153+1)/MAX('Eingabe Email'!$B:$B),'H2 Originaldaten'!D21,7),2),1) -> 98.2 | E21: =ROUND(MAX(_xlfn.NORM.INV(('Eingabe Email'!$B153+1)/MAX('Eingabe Email'!$B:$B),'H2 Originaldaten'!E21,7),2),1) -> 47.2 | F21: =ROUND(MAX(_xlfn.NORM.INV(('Eingabe Email'!$B153+1)/MAX('Eingabe Email'!$B:$B),'H2 Originaldaten'!F21,7),2),1) -> 1836.2 | G21: =ROUND(MAX(_xlfn.NORM.INV(('Eingabe Email'!$B153+1)/MAX('Eingabe Email'!$B:$B),'H2 Originaldaten'!G21,7),2),1) -> 21.7 | H21: ='H2 Originaldaten'!H21 -> 70 | I21: ='H2 Originaldaten'!I21 -> 2 | J21: ='H2 Originaldaten'!J21 -> volkswagen 1131 deluxe sedan
A22: 21 | B22: =ROUND(MAX(_xlfn.NORM.INV(('Eingabe Email'!$B154+1)/MAX('Eingabe Email'!$B:$B),'H2 Originaldaten'!B22,7),2),1) -> 32.8 | C22: ='H2 Originaldaten'!C22 -> 4 | D22: =ROUND(MAX(_xlfn.NORM.INV(('Eingabe Email'!$B154+1)/MAX('Eingabe Email'!$B:$B),'H2 Originaldaten'!D22,7),2),1) -> 117.8 | E22: =ROUND(MAX(_xlfn.NORM.INV(('Eingabe Email'!$B154+1)/MAX('Eingabe Email'!$B:$B),'H2 Originaldaten'!E22,7),2),1) -> 94.8 | F22: =ROUND(MAX(_xlfn.NORM.INV(('Eingabe Email'!$B154+1)/MAX('Eingabe Email'!$B:$B),'H2 Originaldaten'!F22,7),2),1) -> 2679.8 | G22: =ROUND(MAX(_xlfn.NORM.INV(('Eingabe Email'!$B154+1)/MAX('Eingabe Email'!$B:$B),'H2 Originaldaten'!G22,7),2),1) -> 25.3 | H22: ='H2 Originaldaten'!H22 -> 70 | I22: ='H2 Originaldaten'!I22 -> 2 | J22: ='H2 Originaldaten'!J22 -> peugeot 504
A23: 22 | B23: =ROUND(MAX(_xlfn.NORM.INV(('Eingabe Email'!$B155+1)/MAX('Eingabe Email'!$B:$B),'H2 Originaldaten'!B23,7),2),1) -> 30.6 | C23: ='H2 Originaldaten'!C23 -> 4 | D23: =ROUND(MAX(_xlfn.NORM.INV(('Eingabe Email'!$B155+1)/MAX('Eingabe Email'!$B:$B),'H2 Originaldaten'!D23,7),2),1) -> 113.6 | E23: =ROUND(MAX(_xlfn.NORM.INV(('Eingabe Email'!$B155+1)/MAX('Eingabe Email'!$B:$B),'H2 Originaldaten'!E23,7),2),1) -> 96.6 | F23: =ROUND(MAX(_xlfn.NORM.INV(('Eingabe Email'!$B155+1)/MAX('Eingabe Email'!$B:$B),'H2 Originaldaten'!F23,7),2),1) -> 2436.6 | G23: =ROUND(MAX(_xlfn.NORM.INV(('Eingabe Email'!$B155+1)/MAX('Eingabe Email'!$B:$B),'H2 Originaldaten'!G23,7),2),1) -> 21.1 | H23: ='H2 Originaldaten'!H23 -> 70 | I23: ='H2 Originaldaten'!I23 -> 2 | J23: ='H2 Originaldaten'!J23 -> audi 100 ls
A24: 23 | B24: =ROUND(MAX(_xlfn.NORM.INV(('Eingabe Email'!$B156+1)/MAX('Eingabe Email'!$B:$B),'H2 Originaldaten'!B24,7),2),1) -> 26.1 | C24: ='H2 Originaldaten'!C24 -> 4 | D24: =ROUND(MAX(_xlfn.NORM.INV(('Eingabe Email'!$B156+1)/MAX('Eingabe Email'!$B:$B),'H2 Originaldaten'!D24,7),2),1) -> 105.1 | E24: =ROUND(MAX(_xlfn.NORM.INV(('Eingabe Email'!$B156+1)/MAX('Eingabe Email'!$B:$B),'H2 Originaldaten'!E24,7),2),1) -> 96.1 | F24: =ROUND(MAX(_xlfn.NORM.INV(('Eingabe Email'!$B156+1)/MAX('Eingabe Email'!$B:$B),'H2 Originaldaten'!F24,7),2),1) -> 2376.1 | G24: =ROUND(MAX(_xlfn.NORM.INV(('Eingabe Email'!$B156+1)/MAX('Eingabe Email'!$B:$B),'H2 Originaldaten'!G24,7),2),1) -> 18.6 | H24: ='H2 Originaldaten'!H24 -> 70 | I24: ='H2 Originaldaten'!I24 -> 2 | J24: ='H2 Originaldaten'!J24 -> saab 99e
A25: 24 | B25: =ROUND(MAX(_xlfn.NORM.INV(('Eingabe Email'!$B157+1)/MAX('Eingabe Email'!$B:$B),'H2 Originaldaten'!B25,7),2),1) -> 30 | C25: ='H2 Originaldaten'!C25 -> 4 | D25: =ROUND(MAX(_xlfn.NORM.INV(('Eingabe Email'!$B157+1)/MAX('Eingabe Email'!$B:$B),'H2 Originaldaten'!D25,7),2),1) -> 125 | E25: =ROUND(MAX(_xlfn.NORM.INV(('Eingabe Email'!$B157+1)/MAX('Eingabe Email'!$B:$B),'H2 Originaldaten'!E25,7),2),1) -> 117 | F25: =ROUND(MAX(_xlfn.NORM.INV(('Eingabe Email'!$B157+1)/MAX('Eingabe Email'!$B:$B),'H2 Originaldaten'!F25,7),2),1) -> 2238 | G25: =ROUND(MAX(_xlfn.NORM.INV(('Eingabe Email'!$B157+1)/MAX('Eingabe Email'!$B:$B),'H2 Originaldaten'!G25,7),2),1) -> 16.5 | H25: ='H2 Originaldaten'!H25 -> 70 | I25: ='H2 Originaldaten'!I25 -> 2 | J25: ='H2 Originaldaten'!J25 -> bmw 2002
A26: 25 | B26: =ROUND(MAX(_xlfn.NORM.INV(('Eingabe Email'!$B158+1)/MAX('Eingabe Email'!$B:$B),'H2 Originaldaten'!B26,7),2),1) -> 22.2 | C26: ='H2 Originaldaten'!C26 -> 6 | D26: =ROUND(MAX(_xlfn.NORM.INV(('Eingabe Email'!$B158+1)/MAX('Eingabe Email'!$B:$B),'H2 Originaldaten'!D26,7),2),1) -> 200.2 | E26: =ROUND(MAX(_xlfn.NORM.INV(('Eingabe Email'!$B158+1)/MAX('Eingabe Email'!$B:$B),'H2 Originaldaten'!E26,7),2),1) -> 91.2 | F26: =ROUND(MAX(_xlfn.NORM.INV(('Eingabe Email'!$B158+1)/MAX('Eingabe Email'!$B:$B),'H2 Originaldaten'!F26,7),2),1) -> 2649.2 | G26: =ROUND(MAX(_xlfn.NORM.INV(('Eingabe Email'!$B158+1)/MAX('Eingabe Email'!$B:$B),'H2 Originaldaten'!G26,7),2),1) -> 16.2 | H26: ='H2 Originaldaten'!H26 -> 70 | I26: ='H2 Originaldaten'!I26 -> 1 | J26: ='H2 Originaldaten'!J26 -> amc gremlin
A27: 26 | B27: =ROUND(MAX(_xlfn.NORM.INV(('Eingabe Email'!$B159+1)/MAX('Eingabe Email'!$B:$B),'H2 Originaldaten'!B27,7),2),1) -> 4.8 | C27: ='H2 Originaldaten'!C27 -> 8 | D27: =ROUND(MAX(_xlfn.NORM.INV(('Eingabe Email'!$B159+1)/MAX('Eingabe Email'!$B:$B),'H2 Originaldaten'!D27,7),2),1) -> 354.8 | E27: =ROUND(MAX(_xlfn.NORM.INV(('Eingabe Email'!$B159+1)/MAX('Eingabe Email'!$B:$B),'H2 Originaldaten'!E27,7),2),1) -> 209.8 | F27: =ROUND(MAX(_xlfn.NORM.INV(('Eingabe Email'!$B159+1)/MAX('Eingabe Email'!$B:$B),'H2 Originaldaten'!F27,7),2),1) -> 4609.8 | G27: =ROUND(MAX(_xlfn.NORM.INV(('Eingabe Email'!$B159+1)/MAX('Eingabe Email'!$B:$B),'H2 Originaldaten'!G27,7),2),1) -> 8.8 | H27: ='H2 Originaldaten'!H27 -> 70 | I27: ='H2 Originaldaten'!I27 -> 1 | J27: ='H2 Originaldaten'!J27 -> ford f250
A28: 27 | B28: =ROUND(MAX(_xlfn.NORM.INV(('Eingabe Email'!$B160+1)/MAX('Eingabe Email'!$B:$B),'H2 Originaldaten'!B28,7),2),1) -> 18.1 | C28: ='H2 Originaldaten'!C28 -> 8 | D28: =ROUND(MAX(_xlfn.NORM.INV(('Eingabe Email'!$B160+1)/MAX('Eingabe Email'!$B:$B),'H2 Originaldaten'!D28,7),2),1) -> 315.1 | E28: =ROUND(MAX(_xlfn.NORM.INV(('Eingabe Email'!$B160+1)/MAX('Eingabe Email'!$B:$B),'H2 Originaldaten'!E28,7),2),1) -> 208.1 | F28: =ROUND(MAX(_xlfn.NORM.INV(('Eingabe Email'!$B160+1)/MAX('Eingabe Email'!$B:$B),'H2 Originaldaten'!F28,7),2),1) -> 4384.1 | G28: =ROUND(MAX(_xlfn.NORM.INV(('Eingabe Email'!$B160+1)/MAX('Eingabe Email'!$B:$B),'H2 Originaldaten'!G28,7),2),1) -> 23.1 | H28: ='H2 Originaldaten'!H28 -> 70 | I28: ='H2 Originaldaten'!I28 -> 1 | J28: ='H2 Originaldaten'!J28 -> chevy c20
A29: 28 | B29: =ROUND(MAX(_xlfn.NORM.INV(('Eingabe Email'!$B161+1)/MAX('Eingabe Email'!$B:$B),'H2 Originaldaten'!B29,7),2),1) -> 11.7 | C29: ='H2 Originaldaten'!C29 -> 8 | D29: =ROUND(MAX(_xlfn.NORM.INV(('Eingabe Email'!$B161+1)/MAX('Eingabe Email'!$B:$B),'H2 Originaldaten'!D29,7),2),1) -> 318.7 | E29: =ROUND(MAX(_xlfn.NORM.INV(('Eingabe Email'!$B161+1)/MAX('Eingabe Email'!$B:$B),'H2 Originaldaten'!E29,7),2),1) -> 210.7 | F29: =ROUND(MAX(_xlfn.NORM.INV(('Eingabe Email'!$B161+1)/MAX('Eingabe Email'!$B:$B),'H2 Originaldaten'!F29,7),2),1) -> 4382.7 | G29: =ROUND(MAX(_xlfn.NORM.INV(('Eingabe Email'!$B161+1)/MAX('Eingabe Email'!$B:$B),'H2 Originaldaten'!G29,7),2),1) -> 14.2 | H29: ='H2 Originaldaten'!H29 -> 70 | I29: ='H2 Originaldaten'!I29 -> 1 | J29: ='H2 Originaldaten'!J29 -> dodge d200
A30: 29 | B30: =ROUND(MAX(_xlfn.NORM.INV(('Eingabe Email'!$B162+1)/MAX('Eingabe Email'!$B:$B),'H2 Originaldaten'!B30,7),2),1) -> 19.8 | C30: ='H2 Originaldaten'!C30 -> 8 | D30: =ROUND(MAX(_xlfn.NORM.INV(('Eingabe Email'!$B162+1)/MAX('Eingabe Email'!$B:$B),'H2 Originaldaten'!D30,7),2),1) -> 314.8 | E30: =ROUND(MAX(_xlfn.NORM.INV(('Eingabe Email'!$B162+1)/MAX('Eingabe Email'!$B:$B),'H2 Originaldaten'!E30,7),2),1) -> 203.8 | F30: =ROUND(MAX(_xlfn.NORM.INV(('Eingabe Email'!$B162+1)/MAX('Eingabe Email'!$B:$B),'H2 Originaldaten'!F30,7),2),1) -> 4742.8 | G30: =ROUND(MAX(_xlfn.NORM.INV(('Eingabe Email'!$B162+1)/MAX('Eingabe Email'!$B:$B),'H2 Originaldaten'!G30,7),2),1) -> 29.3 | H30: ='H2 Originaldaten'!H30 -> 70 | I30: ='H2 Originaldaten'!I30 -> 1 | J30: ='H2 Originaldaten'!J30 -> hi 1200d
A31: 30 | B31: =ROUND(MAX(_xlfn.NORM.INV(('Eingabe Email'!$B163+1)/MAX('Eingabe Email'!$B:$B),'H2 Originaldaten'!B31,7),2),1) -> 36.9 | C31: ='H2 Originaldaten'!C31 -> 4 | D31: =ROUND(MAX(_xlfn.NORM.INV(('Eingabe Email'!$B163+1)/MAX('Eingabe Email'!$B:$B),'H2 Originaldaten'!D31,7),2),1) -> 106.9 | E31: =ROUND(MAX(_xlfn.NORM.INV(('Eingabe Email'!$B163+1)/MAX('Eingabe Email'!$B:$B),'H2 Originaldaten'!E31,7),2),1) -> 97.9 | F31: =ROUND(MAX(_xlfn.NORM.INV(('Eingabe Email'!$B163+1)/MAX('Eingabe Email'!$B:$B),'H2 Originaldaten'!F31,7),2),1) -> 2139.9 | G31: =ROUND(MAX(_xlfn.NORM.INV(('Eingabe Email'!$B163+1)/MAX('Eingabe Email'!$B:$B),'H2 Originaldaten'!G31,7),2),1) -> 24.4 | H31: ='H2 Originaldaten'!H31 -> 71 | I31: ='H2 Originaldaten'!I31 -> 3 | J31: ='H2 Originaldaten'!J31 -> datsun pl510
A32: 31 | B32: =ROUND(MAX(_xlfn.NORM.INV(('Eingabe Email'!$B164+1)/MAX('Eingabe Email'!$B:$B),'H2 Originaldaten'!B32,7),2),1) -> 19.4 | C32: ='H2 Originaldaten'!C32 -> 4 | D32: =ROUND(MAX(_xlfn.NORM.INV(('Eingabe Email'!$B164+1)/MAX('Eingabe Email'!$B:$B),'H2 Originaldaten'!D32,7),2),1) -> 131.4 | E32: =ROUND(MAX(_xlfn.NORM.INV(('Eingabe Email'!$B164+1)/MAX('Eingabe Email'!$B:$B),'H2 Originaldaten'!E32,7),2),1) -> 81.4 | F32: =ROUND(MAX(_xlfn.NORM.INV(('Eingabe Email'!$B164+1)/MAX('Eingabe Email'!$B:$B),'H2 Originaldaten'!F32,7),2),1) -> 2255.4 | G32: =ROUND(MAX(_xlfn.NORM.INV(('Eingabe Email'!$B164+1)/MAX('Eingabe Email'!$B:$B),'H2 Originaldaten'!G32,7),2),1) -> 6.9 | H32: ='H2 Originaldaten'!H32 -> 71 | I32: ='H2 Originaldaten'!I32 -> 1 | J32: ='H2 Originaldaten'!J32 -> chevrolet vega 2300
A33: 32 | B33: =ROUND(MAX(_xlfn.NORM.INV(('Eingabe Email'!$B165+1)/MAX('Eingabe Email'!$B:$B),'H2 Originaldaten'!B33,7),2),1) -> 29 | C33: ='H2 Originaldaten'!C33 -> 4 | D33: =ROUND(MAX(_xlfn.NORM.INV(('Eingabe Email'!$B165+1)/MAX('Eingabe Email'!$B:$B),'H2 Originaldaten'!D33,7),2),1) -> 117 | E33: =ROUND(MAX(_xlfn.NORM.INV(('Eingabe Email'!$B165+1)/MAX('Eingabe Email'!$B:$B),'H2 Originaldaten'!E33,7),2),1) -> 99 | F33: =ROUND(MAX(_xlfn.NORM.INV(('Eingabe Email'!$B165+1)/MAX('Eingabe Email'!$B:$B),'H2 Originaldaten'!F33,7),2),1) -> 2232 | G33: =ROUND(MAX(_xlfn.NORM.INV(('Eingabe Email'!$B165+1)/MAX('Eingabe Email'!$B:$B),'H2 Originaldaten'!G33,7),2),1) -> 18 | H33: ='H2 Originaldaten'!H33 -> 71 | I33: ='H2 Originaldaten'!I33 -> 3 | J33: ='H2 Originaldaten'!J33 -> toyota corona
A34: 33 | B34: =ROUND(MAX(_xlfn.NORM.INV(('Eingabe Email'!$B166+1)/MAX('Eingabe Email'!$B:$B),'H2 Originaldaten'!B34,7),2),1) -> 18.1 | C34: ='H2 Originaldaten'!C34 -> 6 | D34: =ROUND(MAX(_xlfn.NORM.INV(('Eingabe Email'!$B166+1)/MAX('Eingabe Email'!$B:$B),'H2 Originaldaten'!D34,7),2),1) -> 231.1 | E34: =ROUND(MAX(_xlfn.NORM.INV(('Eingabe Email'!$B166+1)/MAX('Eingabe Email'!$B:$B),'H2 Originaldaten'!E34,7),2),1) -> 99.1 | F34: =ROUND(MAX(_xlfn.NORM.INV(('Eingabe Email'!$B166+1)/MAX('Eingabe Email'!$B:$B),'H2 Originaldaten'!F34,7),2),1) -> 2633.1 | G34: =ROUND(MAX(_xlfn.NORM.INV(('Eingabe Email'!$B166+1)/MAX('Eingabe Email'!$B:$B),'H2 Originaldaten'!G34,7),2),1) -> 12.1 | H34: ='H2 Originaldaten'!H34 -> 71 | I34: ='H2 Originaldaten'!I34 -> 1 | J34: ='H2 Originaldaten'!J34 -> amc gremlin
A35: 34 | B35: =ROUND(MAX(_xlfn.NORM.INV(('Eingabe Email'!$B167+1)/MAX('Eingabe Email'!$B:$B),'H2 Originaldaten'!B35,7),2),1) -> 10.7 | C35: ='H2 Originaldaten'!C35 -> 6 | D35: =ROUND(MAX(_xlfn.NORM.INV(('Eingabe Email'!$B167+1)/MAX('Eingabe Email'!$B:$B),'H2 Originaldaten'!D35,7),2),1) -> 219.7 | E35: =ROUND(MAX(_xlfn.NORM.INV(('Eingabe Email'!$B167+1)/MAX('Eingabe Email'!$B:$B),'H2 Originaldaten'!E35,7),2),1) -> 99.7 | F35: =ROUND(MAX(_xlfn.NORM.INV(('Eingabe Email'!$B167+1)/MAX('Eingabe Email'!$B:$B),'H2 Originaldaten'!F35,7),2),1) -> 3433.7 | G35: =ROUND(MAX(_xlfn.NORM.INV(('Eingabe Email'!$B167+1)/MAX('Eingabe Email'!$B:$B),'H2 Originaldaten'!G35,7),2),1) -> 10.2 | H35: ='H2 Originaldaten'!H35 -> 71 | I35: ='H2 Originaldaten'!I35 -> 1 | J35: ='H2 Originaldaten'!J35 -> plymouth satellite custom
A36: 35 | B36: =ROUND(MAX(_xlfn.NORM.INV(('Eingabe Email'!$B168+1)/MAX('Eingabe Email'!$B:$B),'H2 Originaldaten'!B36,7),2),1) -> 9.3 | C36: ='H2 Originaldaten'!C36 -> 6 | D36: =ROUND(MAX(_xlfn.NORM.INV(('Eingabe Email'!$B168+1)/MAX('Eingabe Email'!$B:$B),'H2 Originaldaten'!D36,7),2),1) -> 242.3 | E36: =ROUND(MAX(_xlfn.NORM.INV(('Eingabe Email'!$B168+1)/MAX('Eingabe Email'!$B:$B),'H2 Originaldaten'!E36,7),2),1) -> 92.3 | F36: =ROUND(MAX(_xlfn.NORM.INV(('Eingabe Email'!$B168+1)/MAX('Eingabe Email'!$B:$B),'H2 Originaldaten'!F36,7),2),1) -> 3321.3 | G36: =ROUND(MAX(_xlfn.NORM.INV(('Eingabe Email'!$B168+1)/MAX('Eingabe Email'!$B:$B),'H2 Originaldaten'!G36,7),2),1) -> 7.8 | H36: ='H2 Originaldaten'!H36 -> 71 | I36: ='H2 Originaldaten'!I36 -> 1 | J36: ='H2 Originaldaten'!J36 -> chevrolet chevelle malibu
A37: 36 | B37: =ROUND(MAX(_xlfn.NORM.INV(('Eingabe Email'!$B169+1)/MAX('Eingabe Email'!$B:$B),'H2 Originaldaten'!B37,7),2),1) -> 24 | C37: ='H2 Originaldaten'!C37 -> 6 | D37: =ROUND(MAX(_xlfn.NORM.INV(('Eingabe Email'!$B169+1)/MAX('Eingabe Email'!$B:$B),'H2 Originaldaten'!D37,7),2),1) -> 255 | E37: =ROUND(MAX(_xlfn.NORM.INV(('Eingabe Email'!$B169+1)/MAX('Eingabe Email'!$B:$B),'H2 Originaldaten'!E37,7),2),1) -> 93 | F37: =ROUND(MAX(_xlfn.NORM.INV(('Eingabe Email'!$B169+1)/MAX('Eingabe Email'!$B:$B),'H2 Originaldaten'!F37,7),2),1) -> 3307 | G37: =ROUND(MAX(_xlfn.NORM.INV(('Eingabe Email'!$B169+1)/MAX('Eingabe Email'!$B:$B),'H2 Originaldaten'!G37,7),2),1) -> 20.5 | H37: ='H2 Originaldaten'!H37 -> 71 | I37: ='H2 Originaldaten'!I37 -> 1 | J37: ='H2 Originaldaten'!J37 -> ford torino 500
A38: 37 | B38: =ROUND(MAX(_xlfn.NORM.INV(('Eingabe Email'!$B170+1)/MAX('Eingabe Email'!$B:$B),'H2 Originaldaten'!B38,7),2),1) -> 15.4 | C38: ='H2 Originaldaten'!C38 -> 6 | D38: =ROUND(MAX(_xlfn.NORM.INV(('Eingabe Email'!$B170+1)/MAX('Eingabe Email'!$B:$B),'H2 Originaldaten'!D38,7),2),1) -> 229.4 | E38: =ROUND(MAX(_xlfn.NORM.INV(('Eingabe Email'!$B170+1)/MAX('Eingabe Email'!$B:$B),'H2 Originaldaten'!E38,7),2),1) -> 97.4 | F38: =ROUND(MAX(_xlfn.NORM.INV(('Eingabe Email'!$B170+1)/MAX('Eingabe Email'!$B:$B),'H2 Originaldaten'!F38,7),2),1) -> 3285.4 | G38: =ROUND(MAX(_xlfn.NORM.INV(('Eingabe Email'!$B170+1)/MAX('Eingabe Email'!$B:$B),'H2 Originaldaten'!G38,7),2),1) -> 12.9 | H38: ='H2 Originaldaten'!H38 -> 71 | I38: ='H2 Originaldaten'!I38 -> 1 | J38: ='H2 Originaldaten'!J38 -> amc matador
A39: 38 | B39: =ROUND(MAX(_xlfn.NORM.INV(('Eingabe Email'!$B171+1)/MAX('Eingabe Email'!$B:$B),'H2 Originaldaten'!B39,7),2),1) -> 12.6 | C39: ='H2 Originaldaten'!C39 -> 8 | D39: =ROUND(MAX(_xlfn.NORM.INV(('Eingabe Email'!$B171+1)/MAX('Eingabe Email'!$B:$B),'H2 Originaldaten'!D39,7),2),1) -> 348.6 | E39: =ROUND(MAX(_xlfn.NORM.INV(('Eingabe Email'!$B171+1)/MAX('Eingabe Email'!$B:$B),'H2 Originaldaten'!E39,7),2),1) -> 163.6 | F39: =ROUND(MAX(_xlfn.NORM.INV(('Eingabe Email'!$B171+1)/MAX('Eingabe Email'!$B:$B),'H2 Originaldaten'!F39,7),2),1) -> 4207.6 | G39: =ROUND(MAX(_xlfn.NORM.INV(('Eingabe Email'!$B171+1)/MAX('Eingabe Email'!$B:$B),'H2 Originaldaten'!G39,7),2),1) -> 10.6 | H39: ='H2 Originaldaten'!H39 -> 71 | I39: ='H2 Originaldaten'!I39 -> 1 | J39: ='H2 Originaldaten'!J39 -> chevrolet impala
A40: 39 | B40: =ROUND(MAX(_xlfn.NORM.INV(('Eingabe Email'!$B172+1)/MAX('Eingabe Email'!$B:$B),'H2 Originaldaten'!B40,7),2),1) -> 23.7 | C40: ='H2 Originaldaten'!C40 -> 8 | D40: =ROUND(MAX(_xlfn.NORM.INV(('Eingabe Email'!$B172+1)/MAX('Eingabe Email'!$B:$B),'H2 Originaldaten'!D40,7),2),1) -> 409.7 | E40: =ROUND(MAX(_xlfn.NORM.INV(('Eingabe Email'!$B172+1)/MAX('Eingabe Email'!$B:$B),'H2 Originaldaten'!E40,7),2),1) -> 184.7 | F40: =ROUND(MAX(_xlfn.NORM.INV(('Eingabe Email'!$B172+1)/MAX('Eingabe Email'!$B:$B),'H2 Originaldaten'!F40,7),2),1) -> 4473.7 | G40: =ROUND(MAX(_xlfn.NORM.INV(('Eingabe Email'!$B172+1)/MAX('Eingabe Email'!$B:$B),'H2 Originaldaten'!G40,7),2),1) -> 21.2 | H40: ='H2 Originaldaten'!H40 -> 71 | I40: ='H2 Originaldaten'!I40 -> 1 | J40: ='H2 Originaldaten'!J40 -> pontiac catalina brougham
A41: 40 | B41: =ROUND(MAX(_xlfn.NORM.INV(('Eingabe Email'!$B173+1)/MAX('Eingabe Email'!$B:$B),'H2 Originaldaten'!B41,7),2),1) -> 13.3 | C41: ='H2 Originaldaten'!C41 -> 8 | D41: =ROUND(MAX(_xlfn.NORM.INV(('Eingabe Email'!$B173+1)/MAX('Eingabe Email'!$B:$B),'H2 Originaldaten'!D41,7),2),1) -> 350.3 | E41: =ROUND(MAX(_xlfn.NORM.INV(('Eingabe Email'!$B173+1)/MAX('Eingabe Email'!$B:$B),'H2 Originaldaten'!E41,7),2),1) -> 152.3 | F41: =ROUND(MAX(_xlfn.NORM.INV(('Eingabe Email'!$B173+1)/MAX('Eingabe Email'!$B:$B),'H2 Originaldaten'!F41,7),2),1) -> 4153.3 | G41: =ROUND(MAX(_xlfn.NORM.INV(('Eingabe Email'!$B173+1)/MAX('Eingabe Email'!$B:$B),'H2 Originaldaten'!G41,7),2),1) -> 12.8 | H41: ='H2 Originaldaten'!H41 -> 71 | I41: ='H2 Originaldaten'!I41 -> 1 | J41: ='H2 Originaldaten'!J41 -> ford galaxie 500
A42: 41 | B42: =ROUND(MAX(_xlfn.NORM.INV(('Eingabe Email'!$B174+1)/MAX('Eingabe Email'!$B:$B),'H2 Originaldaten'!B42,7),2),1) -> 21.6 | C42: ='H2 Originaldaten'!C42 -> 8 | D42: =ROUND(MAX(_xlfn.NORM.INV(('Eingabe Email'!$B174+1)/MAX('Eingabe Email'!$B:$B),'H2 Originaldaten'!D42,7),2),1) -> 325.6 | E42: =ROUND(MAX(_xlfn.NORM.INV(('Eingabe Email'!$B174+1)/MAX('Eingabe Email'!$B:$B),'H2 Originaldaten'!E42,7),2),1) -> 157.6 | F42: =ROUND(MAX(_xlfn.NORM.INV(('Eingabe Email'!$B174+1)/MAX('Eingabe Email'!$B:$B),'H2 Originaldaten'!F42,7),2),1) -> 4103.6 | G42: =ROUND(MAX(_xlfn.NORM.INV(('Eingabe Email'!$B174+1)/MAX('Eingabe Email'!$B:$B),'H2 Originaldaten'!G42,7),2),1) -> 20.6 | H42: ='H2 Originaldaten'!H42 -> 71 | I42: ='H2 Originaldaten'!I42 -> 1 | J42: ='H2 Originaldaten'!J42 -> plymouth fury iii
A43: 42 | B43: =ROUND(MAX(_xlfn.NORM.INV(('Eingabe Email'!$B175+1)/MAX('Eingabe Email'!$B:$B),'H2 Originaldaten'!B43,7),2),1) -> 9.3 | C43: ='H2 Originaldaten'!C43 -> 8 | D43: =ROUND(MAX(_xlfn.NORM.INV(('Eingabe Email'!$B175+1)/MAX('Eingabe Email'!$B:$B),'H2 Originaldaten'!D43,7),2),1) -> 380.3 | E43: =ROUND(MAX(_xlfn.NORM.INV(('Eingabe Email'!$B175+1)/MAX('Eingabe Email'!$B:$B),'H2 Originaldaten'!E43,7),2),1) -> 177.3 | F43: =ROUND(MAX(_xlfn.NORM.INV(('Eingabe Email'!$B175+1)/MAX('Eingabe Email'!$B:$B),'H2 Originaldaten'!F43,7),2),1) -> 4952.3 | G43: =ROUND(MAX(_xlfn.NORM.INV(('Eingabe Email'!$B175+1)/MAX('Eingabe Email'!$B:$B),'H2 Originaldaten'!G43,7),2),1) -> 8.8 | H43: ='H2 Originaldaten'!H43 -> 71 | I43: ='H2 Originaldaten'!I43 -> 1 | J43: ='H2 Originaldaten'!J43 -> dodge monaco (sw)
A44: 43 | B44: =ROUND(MAX(_xlfn.NORM.INV(('Eingabe Email'!$B176+1)/MAX('Eingabe Email'!$B:$B),'H2 Originaldaten'!B44,7),2),1) -> 24.7 | C44: ='H2 Originaldaten'!C44 -> 8 | D44: =ROUND(MAX(_xlfn.NORM.INV(('Eingabe Email'!$B176+1)/MAX('Eingabe Email'!$B:$B),'H2 Originaldaten'!D44,7),2),1) -> 411.7 | E44: =ROUND(MAX(_xlfn.NORM.INV(('Eingabe Email'!$B176+1)/MAX('Eingabe Email'!$B:$B),'H2 Originaldaten'!E44,7),2),1) -> 181.7 | F44: =ROUND(MAX(_xlfn.NORM.INV(('Eingabe Email'!$B176+1)/MAX('Eingabe Email'!$B:$B),'H2 Originaldaten'!F44,7),2),1) -> 4757.7 | G44: =ROUND(MAX(_xlfn.NORM.INV(('Eingabe Email'!$B176+1)/MAX('Eingabe Email'!$B:$B),'H2 Originaldaten'!G44,7),2),1) -> 23.7 | H44: ='H2 Originaldaten'!H44 -> 71 | I44: ='H2 Originaldaten'!I44 -> 1 | J44: ='H2 Originaldaten'!J44 -> ford country squire (sw)
A45: 44 | B45: =ROUND(MAX(_xlfn.NORM.INV(('Eingabe Email'!$B177+1)/MAX('Eingabe Email'!$B:$B),'H2 Originaldaten'!B45,7),2),1) -> 15.3 | C45: ='H2 Originaldaten'!C45 -> 8 | D45: =ROUND(MAX(_xlfn.NORM.INV(('Eingabe Email'!$B177+1)/MAX('Eingabe Email'!$B:$B),'H2 Originaldaten'!D45,7),2),1) -> 402.3 | E45: =ROUND(MAX(_xlfn.NORM.INV(('Eingabe Email'!$B177+1)/MAX('Eingabe Email'!$B:$B),'H2 Originaldaten'!E45,7),2),1) -> 177.3 | F45: =ROUND(MAX(_xlfn.NORM.INV(('Eingabe Email'!$B177+1)/MAX('Eingabe Email'!$B:$B),'H2 Originaldaten'!F45,7),2),1) -> 5142.3 | G45: =ROUND(MAX(_xlfn.NORM.INV(('Eingabe Email'!$B177+1)/MAX('Eingabe Email'!$B:$B),'H2 Originaldaten'!G45,7),2),1) -> 14.3 | H45: ='H2 Originaldaten'!H45 -> 71 | I45: ='H2 Originaldaten'!I45 -> 1 | J45: ='H2 Originaldaten'!J45 -> pontiac safari (sw)
A46: 45 | B46: =ROUND(MAX(_xlfn.NORM.INV(('Eingabe Email'!$B178+1)/MAX('Eingabe Email'!$B:$B),'H2 Originaldaten'!B46,7),2),1) -> 13 | C46: ='H2 Originaldaten'!C46 -> 6 | D46: =ROUND(MAX(_xlfn.NORM.INV(('Eingabe Email'!$B178+1)/MAX('Eingabe Email'!$B:$B),'H2 Originaldaten'!D46,7),2),1) -> 253 | E46: =ROUND(MAX(_xlfn.NORM.INV(('Eingabe Email'!$B178+1)/MAX('Eingabe Email'!$B:$B),'H2 Originaldaten'!E46,7),2),1) -> 105 | F46: =ROUND(MAX(_xlfn.NORM.INV(('Eingabe Email'!$B178+1)/MAX('Eingabe Email'!$B:$B),'H2 Originaldaten'!F46,7),2),1) -> 2957 | G46: =ROUND(MAX(_xlfn.NORM.INV(('Eingabe Email'!$B178+1)/MAX('Eingabe Email'!$B:$B),'H2 Originaldaten'!G46,7),2),1) -> 8.5 | H46: ='H2 Originaldaten'!H46 -> 71 | I46: ='H2 Originaldaten'!I46 -> 1 | J46: ='H2 Originaldaten'!J46 -> amc hornet sportabout (sw)
A47: 46 | B47: =ROUND(MAX(_xlfn.NORM.INV(('Eingabe Email'!$B179+1)/MAX('Eingabe Email'!$B:$B),'H2 Originaldaten'!B47,7),2),1) -> 26.2 | C47: ='H2 Originaldaten'!C47 -> 4 | D47: =ROUND(MAX(_xlfn.NORM.INV(('Eingabe Email'!$B179+1)/MAX('Eingabe Email'!$B:$B),'H2 Originaldaten'!D47,7),2),1) -> 144.2 | E47: =ROUND(MAX(_xlfn.NORM.INV(('Eingabe Email'!$B179+1)/MAX('Eingabe Email'!$B:$B),'H2 Originaldaten'!E47,7),2),1) -> 76.2 | F47: =ROUND(MAX(_xlfn.NORM.INV(('Eingabe Email'!$B179+1)/MAX('Eingabe Email'!$B:$B),'H2 Originaldaten'!F47,7),2),1) -> 2412.2 | G47: =ROUND(MAX(_xlfn.NORM.INV(('Eingabe Email'!$B179+1)/MAX('Eingabe Email'!$B:$B),'H2 Originaldaten'!G47,7),2),1) -> 23.2 | H47: ='H2 Originaldaten'!H47 -> 71 | I47: ='H2 Originaldaten'!I47 -> 1 | J47: ='H2 Originaldaten'!J47 -> chevrolet vega (sw)
A48: 47 | B48: =ROUND(MAX(_xlfn.NORM.INV(('Eingabe Email'!$B180+1)/MAX('Eingabe Email'!$B:$B),'H2 Originaldaten'!B48,7),2),1) -> 16.1 | C48: ='H2 Originaldaten'!C48 -> 6 | D48: =ROUND(MAX(_xlfn.NORM.INV(('Eingabe Email'!$B180+1)/MAX('Eingabe Email'!$B:$B),'H2 Originaldaten'!D48,7),2),1) -> 247.1 | E48: =ROUND(MAX(_xlfn.NORM.INV(('Eingabe Email'!$B180+1)/MAX('Eingabe Email'!$B:$B),'H2 Originaldaten'!E48,7),2),1) -> 97.1 | F48: =ROUND(MAX(_xlfn.NORM.INV(('Eingabe Email'!$B180+1)/MAX('Eingabe Email'!$B:$B),'H2 Originaldaten'!F48,7),2),1) -> 3279.1 | G48: =ROUND(MAX(_xlfn.NORM.INV(('Eingabe Email'!$B180+1)/MAX('Eingabe Email'!$B:$B),'H2 Originaldaten'!G48,7),2),1) -> 12.1 | H48: ='H2 Originaldaten'!H48 -> 71 | I48: ='H2 Originaldaten'!I48 -> 1 | J48: ='H2 Originaldaten'!J48 -> pontiac firebird
A49: 48 | B49: =ROUND(MAX(_xlfn.NORM.INV(('Eingabe Email'!$B181+1)/MAX('Eingabe Email'!$B:$B),'H2 Originaldaten'!B49,7),2),1) -> 15.1 | C49: ='H2 Originaldaten'!C49 -> 6 | D49: =ROUND(MAX(_xlfn.NORM.INV(('Eingabe Email'!$B181+1)/MAX('Eingabe Email'!$B:$B),'H2 Originaldaten'!D49,7),2),1) -> 247.1 | E49: =ROUND(MAX(_xlfn.NORM.INV(('Eingabe Email'!$B181+1)/MAX('Eingabe Email'!$B:$B),'H2 Originaldaten'!E49,7),2),1) -> 85.1 | F49: =ROUND(MAX(_xlfn.NORM.INV(('Eingabe Email'!$B181+1)/MAX('Eingabe Email'!$B:$B),'H2 Originaldaten'!F49,7),2),1) -> 3136.1 | G49: =ROUND(MAX(_xlfn.NORM.INV(('Eingabe Email'!$B181+1)/MAX('Eingabe Email'!$B:$B),'H2 Originaldaten'!G49,7),2),1) -> 11.6 | H49: ='H2 Originaldaten'!H49 -> 71 | I49: ='H2 Originaldaten'!I49 -> 1 | J49: ='H2 Originaldaten'!J49 -> ford mustang
A50: 49 | B50: =ROUND(MAX(_xlfn.NORM.INV(('Eingabe Email'!$B182+1)/MAX('Eingabe Email'!$B:$B),'H2 Originaldaten'!B50,7),2),1) -> 29 | C50: ='H2 Originaldaten'!C50 -> 4 | D50: =ROUND(MAX(_xlfn.NORM.INV(('Eingabe Email'!$B182+1)/MAX('Eingabe Email'!$B:$B),'H2 Originaldaten'!D50,7),2),1) -> 128 | E50: =ROUND(MAX(_xlfn.NORM.INV(('Eingabe Email'!$B182+1)/MAX('Eingabe Email'!$B:$B),'H2 Originaldaten'!E50,7),2),1) -> 92 | F50: =ROUND(MAX(_xlfn.NORM.INV(('Eingabe Email'!$B182+1)/MAX('Eingabe Email'!$B:$B),'H2 Originaldaten'!F50,7),2),1) -> 2226 | G50: =ROUND(MAX(_xlfn.NORM.INV(('Eingabe Email'!$B182+1)/MAX('Eingabe Email'!$B:$B),'H2 Originaldaten'!G50,7),2),1) -> 20 | H50: ='H2 Originaldaten'!H50 -> 71 | I50: ='H2 Originaldaten'!I50 -> 1 | J50: ='H2 Originaldaten'!J50 -> mercury capri 2000
A51: 50 | B51: =ROUND(MAX(_xlfn.NORM.INV(('Eingabe Email'!$B183+1)/MAX('Eingabe Email'!$B:$B),'H2 Originaldaten'!B51,7),2),1) -> 27.8 | C51: ='H2 Originaldaten'!C51 -> 4 | D51: =ROUND(MAX(_xlfn.NORM.INV(('Eingabe Email'!$B183+1)/MAX('Eingabe Email'!$B:$B),'H2 Originaldaten'!D51,7),2),1) -> 115.8 | E51: =ROUND(MAX(_xlfn.NORM.INV(('Eingabe Email'!$B183+1)/MAX('Eingabe Email'!$B:$B),'H2 Originaldaten'!E51,7),2),1) -> 89.8 | F51: =ROUND(MAX(_xlfn.NORM.INV(('Eingabe Email'!$B183+1)/MAX('Eingabe Email'!$B:$B),'H2 Originaldaten'!F51,7),2),1) -> 2122.8 | G51: =ROUND(MAX(_xlfn.NORM.INV(('Eingabe Email'!$B183+1)/MAX('Eingabe Email'!$B:$B),'H2 Originaldaten'!G51,7),2),1) -> 13.8 | H51: ='H2 Originaldaten'!H51 -> 71 | I51: ='H2 Originaldaten'!I51 -> 2 | J51: ='H2 Originaldaten'!J51 -> opel 1900
A52: 51 | B52: =ROUND(MAX(_xlfn.NORM.INV(('Eingabe Email'!$B184+1)/MAX('Eingabe Email'!$B:$B),'H2 Originaldaten'!B52,7),2),1) -> 31.6 | C52: ='H2 Originaldaten'!C52 -> 4 | D52: =ROUND(MAX(_xlfn.NORM.INV(('Eingabe Email'!$B184+1)/MAX('Eingabe Email'!$B:$B),'H2 Originaldaten'!D52,7),2),1) -> 80.6 | E52: =ROUND(MAX(_xlfn.NORM.INV(('Eingabe Email'!$B184+1)/MAX('Eingabe Email'!$B:$B),'H2 Originaldaten'!E52,7),2),1) -> 71.6 | F52: =ROUND(MAX(_xlfn.NORM.INV(('Eingabe Email'!$B184+1)/MAX('Eingabe Email'!$B:$B),'H2 Originaldaten'!F52,7),2),1) -> 2075.6 | G52: =ROUND(MAX(_xlfn.NORM.INV(('Eingabe Email'!$B184+1)/MAX('Eingabe Email'!$B:$B),'H2 Originaldaten'!G52,7),2),1) -> 21.1 | H52: ='H2 Originaldaten'!H52 -> 71 | I52: ='H2 Originaldaten'!I52 -> 2 | J52: ='H2 Originaldaten'!J52 -> peugeot 304
A53: 52 | B53: =ROUND(MAX(_xlfn.NORM.INV(('Eingabe Email'!$B185+1)/MAX('Eingabe Email'!$B:$B),'H2 Originaldaten'!B53,7),2),1) -> 30.3 | C53: ='H2 Originaldaten'!C53 -> 4 | D53: =ROUND(MAX(_xlfn.NORM.INV(('Eingabe Email'!$B185+1)/MAX('Eingabe Email'!$B:$B),'H2 Originaldaten'!D53,7),2),1) -> 88.3 | E53: =ROUND(MAX(_xlfn.NORM.INV(('Eingabe Email'!$B185+1)/MAX('Eingabe Email'!$B:$B),'H2 Originaldaten'!E53,7),2),1) -> 76.3 | F53: =ROUND(MAX(_xlfn.NORM.INV(('Eingabe Email'!$B185+1)/MAX('Eingabe Email'!$B:$B),'H2 Originaldaten'!F53,7),2),1) -> 2065.3 | G53: =ROUND(MAX(_xlfn.NORM.INV(('Eingabe Email'!$B185+1)/MAX('Eingabe Email'!$B:$B),'H2 Originaldaten'!G53,7),2),1) -> 14.8 | H53: ='H2 Originaldaten'!H53 -> 71 | I53: ='H2 Originaldaten'!I53 -> 2 | J53: ='H2 Originaldaten'!J53 -> fiat 124b
A54: 53 | B54: =ROUND(MAX(_xlfn.NORM.INV(('Eingabe Email'!$B186+1)/MAX('Eingabe Email'!$B:$B),'H2 Originaldaten'!B54,7),2),1) -> 28.4 | C54: ='H2 Originaldaten'!C54 -> 4 | D54: =ROUND(MAX(_xlfn.NORM.INV(('Eingabe Email'!$B186+1)/MAX('Eingabe Email'!$B:$B),'H2 Originaldaten'!D54,7),2),1) -> 68.4 | E54: =ROUND(MAX(_xlfn.NORM.INV(('Eingabe Email'!$B186+1)/MAX('Eingabe Email'!$B:$B),'H2 Originaldaten'!E54,7),2),1) -> 62.4 | F54: =ROUND(MAX(_xlfn.NORM.INV(('Eingabe Email'!$B186+1)/MAX('Eingabe Email'!$B:$B),'H2 Originaldaten'!F54,7),2),1) -> 1770.4 | G54: =ROUND(MAX(_xlfn.NORM.INV(('Eingabe Email'!$B186+1)/MAX('Eingabe Email'!$B:$B),'H2 Originaldaten'!G54,7),2),1) -> 16.4 | H54: ='H2 Originaldaten'!H54 -> 71 | I54: ='H2 Originaldaten'!I54 -> 3 | J54: ='H2 Originaldaten'!J54 -> toyota corolla 1200
A55: 54 | B55: =ROUND(MAX(_xlfn.NORM.INV(('Eingabe Email'!$B187+1)/MAX('Eingabe Email'!$B:$B),'H2 Originaldaten'!B55,7),2),1) -> 33.8 | C55: ='H2 Originaldaten'!C55 -> 4 | D55: =ROUND(MAX(_xlfn.NORM.INV(('Eingabe Email'!$B187+1)/MAX('Eingabe Email'!$B:$B),'H2 Originaldaten'!D55,7),2),1) -> 70.8 | E55: =ROUND(MAX(_xlfn.NORM.INV(('Eingabe Email'!$B187+1)/MAX('Eingabe Email'!$B:$B),'H2 Originaldaten'!E55,7),2),1) -> 67.8 | F55: =ROUND(MAX(_xlfn.NORM.INV(('Eingabe Email'!$B187+1)/MAX('Eingabe Email'!$B:$B),'H2 Originaldaten'!F55,7),2),1) -> 1611.8 | G55: =ROUND(MAX(_xlfn.NORM.INV(('Eingabe Email'!$B187+1)/MAX('Eingabe Email'!$B:$B),'H2 Originaldaten'!G55,7),2),1) -> 16.8 | H55: ='H2 Originaldaten'!H55 -> 71 | I55: ='H2 Originaldaten'!I55 -> 3 | J55: ='H2 Originaldaten'!J55 -> datsun 1200
A56: 55 | B56: =ROUND(MAX(_xlfn.NORM.INV(('Eingabe Email'!$B188+1)/MAX('Eingabe Email'!$B:$B),'H2 Originaldaten'!B56,7),2),1) -> 33.6 | C56: ='H2 Originaldaten'!C56 -> 4 | D56: =ROUND(MAX(_xlfn.NORM.INV(('Eingabe Email'!$B188+1)/MAX('Eingabe Email'!$B:$B),'H2 Originaldaten'!D56,7),2),1) -> 103.6 | E56: =ROUND(MAX(_xlfn.NORM.INV(('Eingabe Email'!$B188+1)/MAX('Eingabe Email'!$B:$B),'H2 Originaldaten'!E56,7),2),1) -> 66.6 | F56: =ROUND(MAX(_xlfn.NORM.INV(('Eingabe Email'!$B188+1)/MAX('Eingabe Email'!$B:$B),'H2 Originaldaten'!F56,7),2),1) -> 1840.6 | G56: =ROUND(MAX(_xlfn.NORM.INV(('Eingabe Email'!$B188+1)/MAX('Eingabe Email'!$B:$B),'H2 Originaldaten'!G56,7),2),1) -> 25.6 | H56: ='H2 Originaldaten'!H56 -> 71 | I56: ='H2 Originaldaten'!I56 -> 2 | J56: ='H2 Originaldaten'!J56 -> volkswagen model 111
A57: 56 | B57: =ROUND(MAX(_xlfn.NORM.INV(('Eingabe Email'!$B189+1)/MAX('Eingabe Email'!$B:$B),'H2 Originaldaten'!B57,7),2),1) -> 25.2 | C57: ='H2 Originaldaten'!C57 -> 4 | D57: =ROUND(MAX(_xlfn.NORM.INV(('Eingabe Email'!$B189+1)/MAX('Eingabe Email'!$B:$B),'H2 Originaldaten'!D57,7),2),1) -> 90.2 | E57: =ROUND(MAX(_xlfn.NORM.INV(('Eingabe Email'!$B189+1)/MAX('Eingabe Email'!$B:$B),'H2 Originaldaten'!E57,7),2),1) -> 69.2 | F57: =ROUND(MAX(_xlfn.NORM.INV(('Eingabe Email'!$B189+1)/MAX('Eingabe Email'!$B:$B),'H2 Originaldaten'!F57,7),2),1) -> 1954.2 | G57: =ROUND(MAX(_xlfn.NORM.INV(('Eingabe Email'!$B189+1)/MAX('Eingabe Email'!$B:$B),'H2 Originaldaten'!G57,7),2),1) -> 19.7 | H57: ='H2 Originaldaten'!H57 -> 71 | I57: ='H2 Originaldaten'!I57 -> 1 | J57: ='H2 Originaldaten'!J57 -> plymouth cricket
A58: 57 | B58: =ROUND(MAX(_xlfn.NORM.INV(('Eingabe Email'!$B190+1)/MAX('Eingabe Email'!$B:$B),'H2 Originaldaten'!B58,7),2),1) -> 24.2 | C58: ='H2 Originaldaten'!C58 -> 4 | D58: =ROUND(MAX(_xlfn.NORM.INV(('Eingabe Email'!$B190+1)/MAX('Eingabe Email'!$B:$B),'H2 Originaldaten'!D58,7),2),1) -> 113.2 | E58: =ROUND(MAX(_xlfn.NORM.INV(('Eingabe Email'!$B190+1)/MAX('Eingabe Email'!$B:$B),'H2 Originaldaten'!E58,7),2),1) -> 95.2 | F58: =ROUND(MAX(_xlfn.NORM.INV(('Eingabe Email'!$B190+1)/MAX('Eingabe Email'!$B:$B),'H2 Originaldaten'!F58,7),2),1) -> 2278.2 | G58: =ROUND(MAX(_xlfn.NORM.INV(('Eingabe Email'!$B190+1)/MAX('Eingabe Email'!$B:$B),'H2 Originaldaten'!G58,7),2),1) -> 15.7 | H58: ='H2 Originaldaten'!H58 -> 72 | I58: ='H2 Originaldaten'!I58 -> 3 | J58: ='H2 Originaldaten'!J58 -> toyota corona hardtop
A59: 58 | B59: =ROUND(MAX(_xlfn.NORM.INV(('Eingabe Email'!$B191+1)/MAX('Eingabe Email'!$B:$B),'H2 Originaldaten'!B59,7),2),1) -> 21.5 | C59: ='H2 Originaldaten'!C59 -> 4 | D59: =ROUND(MAX(_xlfn.NORM.INV(('Eingabe Email'!$B191+1)/MAX('Eingabe Email'!$B:$B),'H2 Originaldaten'!D59,7),2),1) -> 94 | E59: =ROUND(MAX(_xlfn.NORM.INV(('Eingabe Email'!$B191+1)/MAX('Eingabe Email'!$B:$B),'H2 Originaldaten'!E59,7),2),1) -> 76.5 | F59: =ROUND(MAX(_xlfn.NORM.INV(('Eingabe Email'!$B191+1)/MAX('Eingabe Email'!$B:$B),'H2 Originaldaten'!F59,7),2),1) -> 2122.5 | G59: =ROUND(MAX(_xlfn.NORM.INV(('Eingabe Email'!$B191+1)/MAX('Eingabe Email'!$B:$B),'H2 Originaldaten'!G59,7),2),1) -> 13.5 | H59: ='H2 Originaldaten'!H59 -> 72 | I59: ='H2 Originaldaten'!I59 -> 1 | J59: ='H2 Originaldaten'!J59 -> dodge colt hardtop
A60: 59 | B60: =ROUND(MAX(_xlfn.NORM.INV(('Eingabe Email'!$B192+1)/MAX('Eingabe Email'!$B:$B),'H2 Originaldaten'!B60,7),2),1) -> 29.6 | C60: ='H2 Originaldaten'!C60 -> 4 | D60: =ROUND(MAX(_xlfn.NORM.INV(('Eingabe Email'!$B192+1)/MAX('Eingabe Email'!$B:$B),'H2 Originaldaten'!D60,7),2),1) -> 103.6 | E60: =ROUND(MAX(_xlfn.NORM.INV(('Eingabe Email'!$B192+1)/MAX('Eingabe Email'!$B:$B),'H2 Originaldaten'!E60,7),2),1) -> 60.6 | F60: =ROUND(MAX(_xlfn.NORM.INV(('Eingabe Email'!$B192+1)/MAX('Eingabe Email'!$B:$B),'H2 Originaldaten'!F60,7),2),1) -> 2260.6 | G60: =ROUND(MAX(_xlfn.NORM.INV(('Eingabe Email'!$B192+1)/MAX('Eingabe Email'!$B:$B),'H2 Originaldaten'!G60,7),2),1) -> 30.1 | H60: ='H2 Originaldaten'!H60 -> 72 | I60: ='H2 Originaldaten'!I60 -> 2 | J60: ='H2 Originaldaten'!J60 -> volkswagen type 3
A61: 60 | B61: =ROUND(MAX(_xlfn.NORM.INV(('Eingabe Email'!$B193+1)/MAX('Eingabe Email'!$B:$B),'H2 Originaldaten'!B61,7),2),1) -> 22.2 | C61: ='H2 Originaldaten'!C61 -> 4 | D61: =ROUND(MAX(_xlfn.NORM.INV(('Eingabe Email'!$B193+1)/MAX('Eingabe Email'!$B:$B),'H2 Originaldaten'!D61,7),2),1) -> 142.2 | E61: =ROUND(MAX(_xlfn.NORM.INV(('Eingabe Email'!$B193+1)/MAX('Eingabe Email'!$B:$B),'H2 Originaldaten'!E61,7),2),1) -> 92.2 | F61: =ROUND(MAX(_xlfn.NORM.INV(('Eingabe Email'!$B193+1)/MAX('Eingabe Email'!$B:$B),'H2 Originaldaten'!F61,7),2),1) -> 2410.2 | G61: =ROUND(MAX(_xlfn.NORM.INV(('Eingabe Email'!$B193+1)/MAX('Eingabe Email'!$B:$B),'H2 Originaldaten'!G61,7),2),1) -> 21.7 | H61: ='H2 Originaldaten'!H61 -> 72 | I61: ='H2 Originaldaten'!I61 -> 1 | J61: ='H2 Originaldaten'!J61 -> chevrolet vega
A62: 61 | B62: =ROUND(MAX(_xlfn.NORM.INV(('Eingabe Email'!$B194+1)/MAX('Eingabe Email'!$B:$B),'H2 Originaldaten'!B62,7),2),1) -> 35.9 | C62: ='H2 Originaldaten'!C62 -> 4 | D62: =ROUND(MAX(_xlfn.NORM.INV(('Eingabe Email'!$B194+1)/MAX('Eingabe Email'!$B:$B),'H2 Originaldaten'!D62,7),2),1) -> 136.9 | E62: =ROUND(MAX(_xlfn.NORM.INV(('Eingabe Email'!$B194+1)/MAX('Eingabe Email'!$B:$B),'H2 Originaldaten'!E62,7),2),1) -> 100.9 | F62: =ROUND(MAX(_xlfn.NORM.INV(('Eingabe Email'!$B194+1)/MAX('Eingabe Email'!$B:$B),'H2 Originaldaten'!F62,7),2),1) -> 2240.9 | G62: =ROUND(MAX(_xlfn.NORM.INV(('Eingabe Email'!$B194+1)/MAX('Eingabe Email'!$B:$B),'H2 Originaldaten'!G62,7),2),1) -> 31.4 | H62: ='H2 Originaldaten'!H62 -> 72 | I62: ='H2 Originaldaten'!I62 -> 1 | J62: ='H2 Originaldaten'!J62 -> ford pinto runabout
A63: 62 | B63: =ROUND(MAX(_xlfn.NORM.INV(('Eingabe Email'!$B195+1)/MAX('Eingabe Email'!$B:$B),'H2 Originaldaten'!B63,7),2),1) -> 14.5 | C63: ='H2 Originaldaten'!C63 -> 8 | D63: =ROUND(MAX(_xlfn.NORM.INV(('Eingabe Email'!$B195+1)/MAX('Eingabe Email'!$B:$B),'H2 Originaldaten'!D63,7),2),1) -> 351.5 | E63: =ROUND(MAX(_xlfn.NORM.INV(('Eingabe Email'!$B195+1)/MAX('Eingabe Email'!$B:$B),'H2 Originaldaten'!E63,7),2),1) -> 166.5 | F63: =ROUND(MAX(_xlfn.NORM.INV(('Eingabe Email'!$B195+1)/MAX('Eingabe Email'!$B:$B),'H2 Originaldaten'!F63,7),2),1) -> 4275.5 | G63: =ROUND(MAX(_xlfn.NORM.INV(('Eingabe Email'!$B195+1)/MAX('Eingabe Email'!$B:$B),'H2 Originaldaten'!G63,7),2),1) -> 13.5 | H63: ='H2 Originaldaten'!H63 -> 72 | I63: ='H2 Originaldaten'!I63 -> 1 | J63: ='H2 Originaldaten'!J63 -> chevrolet impala
A64: 63 | B64: =ROUND(MAX(_xlfn.NORM.INV(('Eingabe Email'!$B196+1)/MAX('Eingabe Email'!$B:$B),'H2 Originaldaten'!B64,7),2),1) -> 15.9 | C64: ='H2 Originaldaten'!C64 -> 8 | D64: =ROUND(MAX(_xlfn.NORM.INV(('Eingabe Email'!$B196+1)/MAX('Eingabe Email'!$B:$B),'H2 Originaldaten'!D64,7),2),1) -> 401.9 | E64: =ROUND(MAX(_xlfn.NORM.INV(('Eingabe Email'!$B196+1)/MAX('Eingabe Email'!$B:$B),'H2 Originaldaten'!E64,7),2),1) -> 176.9 | F64: =ROUND(MAX(_xlfn.NORM.INV(('Eingabe Email'!$B196+1)/MAX('Eingabe Email'!$B:$B),'H2 Originaldaten'!F64,7),2),1) -> 4386.9 | G64: =ROUND(MAX(_xlfn.NORM.INV(('Eingabe Email'!$B196+1)/MAX('Eingabe Email'!$B:$B),'H2 Originaldaten'!G64,7),2),1) -> 13.9 | H64: ='H2 Originaldaten'!H64 -> 72 | I64: ='H2 Originaldaten'!I64 -> 1 | J64: ='H2 Originaldaten'!J64 -> pontiac catalina
A65: 64 | B65: =ROUND(MAX(_xlfn.NORM.INV(('Eingabe Email'!$B197+1)/MAX('Eingabe Email'!$B:$B),'H2 Originaldaten'!B65,7),2),1) -> 11.2 | C65: ='H2 Originaldaten'!C65 -> 8 | D65: =ROUND(MAX(_xlfn.NORM.INV(('Eingabe Email'!$B197+1)/MAX('Eingabe Email'!$B:$B),'H2 Originaldaten'!D65,7),2),1) -> 314.2 | E65: =ROUND(MAX(_xlfn.NORM.INV(('Eingabe Email'!$B197+1)/MAX('Eingabe Email'!$B:$B),'H2 Originaldaten'!E65,7),2),1) -> 146.2 | F65: =ROUND(MAX(_xlfn.NORM.INV(('Eingabe Email'!$B197+1)/MAX('Eingabe Email'!$B:$B),'H2 Originaldaten'!F65,7),2),1) -> 4131.2 | G65: =ROUND(MAX(_xlfn.NORM.INV(('Eingabe Email'!$B197+1)/MAX('Eingabe Email'!$B:$B),'H2 Originaldaten'!G65,7),2),1) -> 9.7 | H65: ='H2 Originaldaten'!H65 -> 72 | I65: ='H2 Originaldaten'!I65 -> 1 | J65: ='H2 Originaldaten'!J65 -> plymouth fury iii
A66: 65 | B66: =ROUND(MAX(_xlfn.NORM.INV(('Eingabe Email'!$B198+1)/MAX('Eingabe Email'!$B:$B),'H2 Originaldaten'!B66,7),2),1) -> 2 | C66: ='H2 Originaldaten'!C66 -> 8 | D66: =ROUND(MAX(_xlfn.NORM.INV(('Eingabe Email'!$B198+1)/MAX('Eingabe Email'!$B:$B),'H2 Originaldaten'!D66,7),2),1) -> 336.2 | E66: =ROUND(MAX(_xlfn.NORM.INV(('Eingabe Email'!$B198+1)/MAX('Eingabe Email'!$B:$B),'H2 Originaldaten'!E66,7),2),1) -> 138.2 | F66: =ROUND(MAX(_xlfn.NORM.INV(('Eingabe Email'!$B198+1)/MAX('Eingabe Email'!$B:$B),'H2 Originaldaten'!F66,7),2),1) -> 4114.2 | G66: =ROUND(MAX(_xlfn.NORM.INV(('Eingabe Email'!$B198+1)/MAX('Eingabe Email'!$B:$B),'H2 Originaldaten'!G66,7),2),1) -> 2 | H66: ='H2 Originaldaten'!H66 -> 72 | I66: ='H2 Originaldaten'!I66 -> 1 | J66: ='H2 Originaldaten'!J66 -> ford galaxie 500
A67: 66 | B67: =ROUND(MAX(_xlfn.NORM.INV(('Eingabe Email'!$B199+1)/MAX('Eingabe Email'!$B:$B),'H2 Originaldaten'!B67,7),2),1) -> 18.2 | C67: ='H2 Originaldaten'!C67 -> 8 | D67: =ROUND(MAX(_xlfn.NORM.INV(('Eingabe Email'!$B199+1)/MAX('Eingabe Email'!$B:$B),'H2 Originaldaten'!D67,7),2),1) -> 305.2 | E67: =ROUND(MAX(_xlfn.NORM.INV(('Eingabe Email'!$B199+1)/MAX('Eingabe Email'!$B:$B),'H2 Originaldaten'!E67,7),2),1) -> 151.2 | F67: =ROUND(MAX(_xlfn.NORM.INV(('Eingabe Email'!$B199+1)/MAX('Eingabe Email'!$B:$B),'H2 Originaldaten'!F67,7),2),1) -> 3673.2 | G67: =ROUND(MAX(_xlfn.NORM.INV(('Eingabe Email'!$B199+1)/MAX('Eingabe Email'!$B:$B),'H2 Originaldaten'!G67,7),2),1) -> 12.7 | H67: ='H2 Originaldaten'!H67 -> 72 | I67: ='H2 Originaldaten'!I67 -> 1 | J67: ='H2 Originaldaten'!J67 -> amc ambassador sst
A68: 67 | B68: =ROUND(MAX(_xlfn.NORM.INV(('Eingabe Email'!$B200+1)/MAX('Eingabe Email'!$B:$B),'H2 Originaldaten'!B68,7),2),1) -> 13.8 | C68: ='H2 Originaldaten'!C68 -> 8 | D68: =ROUND(MAX(_xlfn.NORM.INV(('Eingabe Email'!$B200+1)/MAX('Eingabe Email'!$B:$B),'H2 Originaldaten'!D68,7),2),1) -> 431.8 | E68: =ROUND(MAX(_xlfn.NORM.INV(('Eingabe Email'!$B200+1)/MAX('Eingabe Email'!$B:$B),'H2 Originaldaten'!E68,7),2),1) -> 210.8 | F68: =ROUND(MAX(_xlfn.NORM.INV(('Eingabe Email'!$B200+1)/MAX('Eingabe Email'!$B:$B),'H2 Originaldaten'!F68,7),2),1) -> 4635.8 | G68: =ROUND(MAX(_xlfn.NORM.INV(('Eingabe Email'!$B200+1)/MAX('Eingabe Email'!$B:$B),'H2 Originaldaten'!G68,7),2),1) -> 13.8 | H68: ='H2 Originaldaten'!H68 -> 72 | I68: ='H2 Originaldaten'!I68 -> 1 | J68: ='H2 Originaldaten'!J68 -> mercury marquis
A69: 68 | B69: =ROUND(MAX(_xlfn.NORM.INV(('Eingabe Email'!$B201+1)/MAX('Eingabe Email'!$B:$B),'H2 Originaldaten'!B69,7),2),1) -> 6 | C69: ='H2 Originaldaten'!C69 -> 8 | D69: =ROUND(MAX(_xlfn.NORM.INV(('Eingabe Email'!$B201+1)/MAX('Eingabe Email'!$B:$B),'H2 Originaldaten'!D69,7),2),1) -> 343 | E69: =ROUND(MAX(_xlfn.NORM.INV(('Eingabe Email'!$B201+1)/MAX('Eingabe Email'!$B:$B),'H2 Originaldaten'!E69,7),2),1) -> 148 | F69: =ROUND(MAX(_xlfn.NORM.INV(('Eingabe Email'!$B201+1)/MAX('Eingabe Email'!$B:$B),'H2 Originaldaten'!F69,7),2),1) -> 4495 | G69: =ROUND(MAX(_xlfn.NORM.INV(('Eingabe Email'!$B201+1)/MAX('Eingabe Email'!$B:$B),'H2 Originaldaten'!G69,7),2),1) -> 6.5 | H69: ='H2 Originaldaten'!H69 -> 72 | I69: ='H2 Originaldaten'!I69 -> 1 | J69: ='H2 Originaldaten'!J69 -> buick lesabre custom
A70: 69 | B70: =ROUND(MAX(_xlfn.NORM.INV(('Eingabe Email'!$B202+1)/MAX('Eingabe Email'!$B:$B),'H2 Originaldaten'!B70,7),2),1) -> 14 | C70: ='H2 Originaldaten'!C70 -> 8 | D70: =ROUND(MAX(_xlfn.NORM.INV(('Eingabe Email'!$B202+1)/MAX('Eingabe Email'!$B:$B),'H2 Originaldaten'!D70,7),2),1) -> 352 | E70: =ROUND(MAX(_xlfn.NORM.INV(('Eingabe Email'!$B202+1)/MAX('Eingabe Email'!$B:$B),'H2 Originaldaten'!E70,7),2),1) -> 162 | F70: =ROUND(MAX(_xlfn.NORM.INV(('Eingabe Email'!$B202+1)/MAX('Eingabe Email'!$B:$B),'H2 Originaldaten'!F70,7),2),1) -> 4458 | G70: =ROUND(MAX(_xlfn.NORM.INV(('Eingabe Email'!$B202+1)/MAX('Eingabe Email'!$B:$B),'H2 Originaldaten'!G70,7),2),1) -> 15.5 | H70: ='H2 Originaldaten'!H70 -> 72 | I70: ='H2 Originaldaten'!I70 -> 1 | J70: ='H2 Originaldaten'!J70 -> oldsmobile delta 88 royale
A71: 70 | B71: =ROUND(MAX(_xlfn.NORM.INV(('Eingabe Email'!$B203+1)/MAX('Eingabe Email'!$B:$B),'H2 Originaldaten'!B71,7),2),1) -> 25.5 | C71: ='H2 Originaldaten'!C71 -> 8 | D71: =ROUND(MAX(_xlfn.NORM.INV(('Eingabe Email'!$B203+1)/MAX('Eingabe Email'!$B:$B),'H2 Originaldaten'!D71,7),2),1) -> 412.5 | E71: =ROUND(MAX(_xlfn.NORM.INV(('Eingabe Email'!$B203+1)/MAX('Eingabe Email'!$B:$B),'H2 Originaldaten'!E71,7),2),1) -> 202.5 | F71: =ROUND(MAX(_xlfn.NORM.INV(('Eingabe Email'!$B203+1)/MAX('Eingabe Email'!$B:$B),'H2 Originaldaten'!F71,7),2),1) -> 4434.5 | G71: =ROUND(MAX(_xlfn.NORM.INV(('Eingabe Email'!$B203+1)/MAX('Eingabe Email'!$B:$B),'H2 Originaldaten'!G71,7),2),1) -> 25 | H71: ='H2 Originaldaten'!H71 -> 72 | I71: ='H2 Originaldaten'!I71 -> 1 | J71: ='H2 Originaldaten'!J71 -> chrysler newport royal
A72: 71 | B72: =ROUND(MAX(_xlfn.NORM.INV(('Eingabe Email'!$B204+1)/MAX('Eingabe Email'!$B:$B),'H2 Originaldaten'!B72,7),2),1) -> 14.9 | C72: ='H2 Originaldaten'!C72 -> 3 | D72: =ROUND(MAX(_xlfn.NORM.INV(('Eingabe Email'!$B204+1)/MAX('Eingabe Email'!$B:$B),'H2 Originaldaten'!D72,7),2),1) -> 65.9 | E72: =ROUND(MAX(_xlfn.NORM.INV(('Eingabe Email'!$B204+1)/MAX('Eingabe Email'!$B:$B),'H2 Originaldaten'!E72,7),2),1) -> 92.9 | F72: =ROUND(MAX(_xlfn.NORM.INV(('Eingabe Email'!$B204+1)/MAX('Eingabe Email'!$B:$B),'H2 Originaldaten'!F72,7),2),1) -> 2325.9 | G72: =ROUND(MAX(_xlfn.NORM.INV(('Eingabe Email'!$B204+1)/MAX('Eingabe Email'!$B:$B),'H2 Originaldaten'!G72,7),2),1) -> 9.4 | H72: ='H2 Originaldaten'!H72 -> 72 | I72: ='H2 Originaldaten'!I72 -> 3 | J72: ='H2 Originaldaten'!J72 -> mazda rx2 coupe
A73: 72 | B73: =ROUND(MAX(_xlfn.NORM.INV(('Eingabe Email'!$B205+1)/MAX('Eingabe Email'!$B:$B),'H2 Originaldaten'!B73,7),2),1) -> 2 | C73: ='H2 Originaldaten'!C73 -> 8 | D73: =ROUND(MAX(_xlfn.NORM.INV(('Eingabe Email'!$B205+1)/MAX('Eingabe Email'!$B:$B),'H2 Originaldaten'!D73,7),2),1) -> 290 | E73: =ROUND(MAX(_xlfn.NORM.INV(('Eingabe Email'!$B205+1)/MAX('Eingabe Email'!$B:$B),'H2 Originaldaten'!E73,7),2),1) -> 136 | F73: =ROUND(MAX(_xlfn.NORM.INV(('Eingabe Email'!$B205+1)/MAX('Eingabe Email'!$B:$B),'H2 Originaldaten'!F73,7),2),1) -> 3878 | G73: =ROUND(MAX(_xlfn.NORM.INV(('Eingabe Email'!$B205+1)/MAX('Eingabe Email'!$B:$B),'H2 Originaldaten'!G73,7),2),1) -> 2 | H73: ='H2 Originaldaten'!H73 -> 72 | I73: ='H2 Originaldaten'!I73 -> 1 | J73: ='H2 Originaldaten'!J73 -> amc matador (sw)
A74: 73 | B74: =ROUND(MAX(_xlfn.NORM.INV(('Eingabe Email'!$B206+1)/MAX('Eingabe Email'!$B:$B),'H2 Originaldaten'!B74,7),2),1) -> 26.3 | C74: ='H2 Originaldaten'!C74 -> 8 | D74: =ROUND(MAX(_xlfn.NORM.INV(('Eingabe Email'!$B206+1)/MAX('Eingabe Email'!$B:$B),'H2 Originaldaten'!D74,7),2),1) -> 320.3 | E74: =ROUND(MAX(_xlfn.NORM.INV(('Eingabe Email'!$B206+1)/MAX('Eingabe Email'!$B:$B),'H2 Originaldaten'!E74,7),2),1) -> 143.3 | F74: =ROUND(MAX(_xlfn.NORM.INV(('Eingabe Email'!$B206+1)/MAX('Eingabe Email'!$B:$B),'H2 Originaldaten'!F74,7),2),1) -> 4111.3 | G74: =ROUND(MAX(_xlfn.NORM.INV(('Eingabe Email'!$B206+1)/MAX('Eingabe Email'!$B:$B),'H2 Originaldaten'!G74,7),2),1) -> 27.3 | H74: ='H2 Originaldaten'!H74 -> 72 | I74: ='H2 Originaldaten'!I74 -> 1 | J74: ='H2 Originaldaten'!J74 -> chevrolet chevelle concours (sw)
A75: 74 | B75: =ROUND(MAX(_xlfn.NORM.INV(('Eingabe Email'!$B207+1)/MAX('Eingabe Email'!$B:$B),'H2 Originaldaten'!B75,7),2),1) -> 12.3 | C75: ='H2 Originaldaten'!C75 -> 8 | D75: =ROUND(MAX(_xlfn.NORM.INV(('Eingabe Email'!$B207+1)/MAX('Eingabe Email'!$B:$B),'H2 Originaldaten'!D75,7),2),1) -> 301.3 | E75: =ROUND(MAX(_xlfn.NORM.INV(('Eingabe Email'!$B207+1)/MAX('Eingabe Email'!$B:$B),'H2 Originaldaten'!E75,7),2),1) -> 139.3 | F75: =ROUND(MAX(_xlfn.NORM.INV(('Eingabe Email'!$B207+1)/MAX('Eingabe Email'!$B:$B),'H2 Originaldaten'!F75,7),2),1) -> 4293.3 | G75: =ROUND(MAX(_xlfn.NORM.INV(('Eingabe Email'!$B207+1)/MAX('Eingabe Email'!$B:$B),'H2 Originaldaten'!G75,7),2),1) -> 15.3 | H75: ='H2 Originaldaten'!H75 -> 72 | I75: ='H2 Originaldaten'!I75 -> 1 | J75: ='H2 Originaldaten'!J75 -> ford gran torino (sw)
A76: 75 | B76: =ROUND(MAX(_xlfn.NORM.INV(('Eingabe Email'!$B208+1)/MAX('Eingabe Email'!$B:$B),'H2 Originaldaten'!B76,7),2),1) -> 2 | C76: ='H2 Originaldaten'!C76 -> 8 | D76: =ROUND(MAX(_xlfn.NORM.INV(('Eingabe Email'!$B208+1)/MAX('Eingabe Email'!$B:$B),'H2 Originaldaten'!D76,7),2),1) -> 303.2 | E76: =ROUND(MAX(_xlfn.NORM.INV(('Eingabe Email'!$B208+1)/MAX('Eingabe Email'!$B:$B),'H2 Originaldaten'!E76,7),2),1) -> 135.2 | F76: =ROUND(MAX(_xlfn.NORM.INV(('Eingabe Email'!$B208+1)/MAX('Eingabe Email'!$B:$B),'H2 Originaldaten'!F76,7),2),1) -> 4062.2 | G76: =ROUND(MAX(_xlfn.NORM.INV(('Eingabe Email'!$B208+1)/MAX('Eingabe Email'!$B:$B),'H2 Originaldaten'!G76,7),2),1) -> 2 | H76: ='H2 Originaldaten'!H76 -> 72 | I76: ='H2 Originaldaten'!I76 -> 1 | J76: ='H2 Originaldaten'!J76 -> plymouth satellite custom (sw)
A77: 76 | B77: =ROUND(MAX(_xlfn.NORM.INV(('Eingabe Email'!$B209+1)/MAX('Eingabe Email'!$B:$B),'H2 Originaldaten'!B77,7),2),1) -> 17 | C77: ='H2 Originaldaten'!C77 -> 4 | D77: =ROUND(MAX(_xlfn.NORM.INV(('Eingabe Email'!$B209+1)/MAX('Eingabe Email'!$B:$B),'H2 Originaldaten'!D77,7),2),1) -> 120 | E77: =ROUND(MAX(_xlfn.NORM.INV(('Eingabe Email'!$B209+1)/MAX('Eingabe Email'!$B:$B),'H2 Originaldaten'!E77,7),2),1) -> 111 | F77: =ROUND(MAX(_xlfn.NORM.INV(('Eingabe Email'!$B209+1)/MAX('Eingabe Email'!$B:$B),'H2 Originaldaten'!F77,7),2),1) -> 2932 | G77: =ROUND(MAX(_xlfn.NORM.INV(('Eingabe Email'!$B209+1)/MAX('Eingabe Email'!$B:$B),'H2 Originaldaten'!G77,7),2),1) -> 13.5 | H77: ='H2 Originaldaten'!H77 -> 72 | I77: ='H2 Originaldaten'!I77 -> 2 | J77: ='H2 Originaldaten'!J77 -> volvo 145e (sw)
A78: 77 | B78: =ROUND(MAX(_xlfn.NORM.INV(('Eingabe Email'!$B210+1)/MAX('Eingabe Email'!$B:$B),'H2 Originaldaten'!B78,7),2),1) -> 25.6 | C78: ='H2 Originaldaten'!C78 -> 4 | D78: =ROUND(MAX(_xlfn.NORM.INV(('Eingabe Email'!$B210+1)/MAX('Eingabe Email'!$B:$B),'H2 Originaldaten'!D78,7),2),1) -> 124.6 | E78: =ROUND(MAX(_xlfn.NORM.INV(('Eingabe Email'!$B210+1)/MAX('Eingabe Email'!$B:$B),'H2 Originaldaten'!E78,7),2),1) -> 79.6 | F78: =ROUND(MAX(_xlfn.NORM.INV(('Eingabe Email'!$B210+1)/MAX('Eingabe Email'!$B:$B),'H2 Originaldaten'!F78,7),2),1) -> 2514.6 | G78: =ROUND(MAX(_xlfn.NORM.INV(('Eingabe Email'!$B210+1)/MAX('Eingabe Email'!$B:$B),'H2 Originaldaten'!G78,7),2),1) -> 21.6 | H78: ='H2 Originaldaten'!H78 -> 72 | I78: ='H2 Originaldaten'!I78 -> 2 | J78: ='H2 Originaldaten'!J78 -> volkswagen 411 (sw)
A79: 78 | B79: =ROUND(MAX(_xlfn.NORM.INV(('Eingabe Email'!$B211+1)/MAX('Eingabe Email'!$B:$B),'H2 Originaldaten'!B79,7),2),1) -> 19.7 | C79: ='H2 Originaldaten'!C79 -> 4 | D79: =ROUND(MAX(_xlfn.NORM.INV(('Eingabe Email'!$B211+1)/MAX('Eingabe Email'!$B:$B),'H2 Originaldaten'!D79,7),2),1) -> 118.7 | E79: =ROUND(MAX(_xlfn.NORM.INV(('Eingabe Email'!$B211+1)/MAX('Eingabe Email'!$B:$B),'H2 Originaldaten'!E79,7),2),1) -> 85.7 | F79: =ROUND(MAX(_xlfn.NORM.INV(('Eingabe Email'!$B211+1)/MAX('Eingabe Email'!$B:$B),'H2 Originaldaten'!F79,7),2),1) -> 2977.7 | G79: =ROUND(MAX(_xlfn.NORM.INV(('Eingabe Email'!$B211+1)/MAX('Eingabe Email'!$B:$B),'H2 Originaldaten'!G79,7),2),1) -> 18.2 | H79: ='H2 Originaldaten'!H79 -> 72 | I79: ='H2 Originaldaten'!I79 -> 2 | J79: ='H2 Originaldaten'!J79 -> peugeot 504 (sw)
A80: 79 | B80: =ROUND(MAX(_xlfn.NORM.INV(('Eingabe Email'!$B212+1)/MAX('Eingabe Email'!$B:$B),'H2 Originaldaten'!B80,7),2),1) -> 8.1 | C80: ='H2 Originaldaten'!C80 -> 4 | D80: =ROUND(MAX(_xlfn.NORM.INV(('Eingabe Email'!$B212+1)/MAX('Eingabe Email'!$B:$B),'H2 Originaldaten'!D80,7),2),1) -> 78.1 | E80: =ROUND(MAX(_xlfn.NORM.INV(('Eingabe Email'!$B212+1)/MAX('Eingabe Email'!$B:$B),'H2 Originaldaten'!E80,7),2),1) -> 51.1 | F80: =ROUND(MAX(_xlfn.NORM.INV(('Eingabe Email'!$B212+1)/MAX('Eingabe Email'!$B:$B),'H2 Originaldaten'!F80,7),2),1) -> 2171.1 | G80: =ROUND(MAX(_xlfn.NORM.INV(('Eingabe Email'!$B212+1)/MAX('Eingabe Email'!$B:$B),'H2 Originaldaten'!G80,7),2),1) -> 2 | H80: ='H2 Originaldaten'!H80 -> 72 | I80: ='H2 Originaldaten'!I80 -> 2 | J80: ='H2 Originaldaten'!J80 -> renault 12 (sw)
A81: 80 | B81: =ROUND(MAX(_xlfn.NORM.INV(('Eingabe Email'!$B213+1)/MAX('Eingabe Email'!$B:$B),'H2 Originaldaten'!B81,7),2),1) -> 20.3 | C81: ='H2 Originaldaten'!C81 -> 4 | D81: =ROUND(MAX(_xlfn.NORM.INV(('Eingabe Email'!$B213+1)/MAX('Eingabe Email'!$B:$B),'H2 Originaldaten'!D81,7),2),1) -> 120.3 | E81: =ROUND(MAX(_xlfn.NORM.INV(('Eingabe Email'!$B213+1)/MAX('Eingabe Email'!$B:$B),'H2 Originaldaten'!E81,7),2),1) -> 84.3 | F81: =ROUND(MAX(_xlfn.NORM.INV(('Eingabe Email'!$B213+1)/MAX('Eingabe Email'!$B:$B),'H2 Originaldaten'!F81,7),2),1) -> 2393.3 | G81: =ROUND(MAX(_xlfn.NORM.INV(('Eingabe Email'!$B213+1)/MAX('Eingabe Email'!$B:$B),'H2 Originaldaten'!G81,7),2),1) -> 14.3 | H81: ='H2 Originaldaten'!H81 -> 72 | I81: ='H2 Originaldaten'!I81 -> 1 | J81: ='H2 Originaldaten'!J81 -> ford pinto (sw)
A82: 81 | B82: =ROUND(MAX(_xlfn.NORM.INV(('Eingabe Email'!$B214+1)/MAX('Eingabe Email'!$B:$B),'H2 Originaldaten'!B82,7),2),1) -> 25.1 | C82: ='H2 Originaldaten'!C82 -> 4 | D82: =ROUND(MAX(_xlfn.NORM.INV(('Eingabe Email'!$B214+1)/MAX('Eingabe Email'!$B:$B),'H2 Originaldaten'!D82,7),2),1) -> 94.1 | E82: =ROUND(MAX(_xlfn.NORM.INV(('Eingabe Email'!$B214+1)/MAX('Eingabe Email'!$B:$B),'H2 Originaldaten'!E82,7),2),1) -> 89.1 | F82: =ROUND(MAX(_xlfn.NORM.INV(('Eingabe Email'!$B214+1)/MAX('Eingabe Email'!$B:$B),'H2 Originaldaten'!F82,7),2),1) -> 2285.1 | G82: =ROUND(MAX(_xlfn.NORM.INV(('Eingabe Email'!$B214+1)/MAX('Eingabe Email'!$B:$B),'H2 Originaldaten'!G82,7),2),1) -> 14.1 | H82: ='H2 Originaldaten'!H82 -> 72 | I82: ='H2 Originaldaten'!I82 -> 3 | J82: ='H2 Originaldaten'!J82 -> datsun 510 (sw)
A83: 82 | B83: =ROUND(MAX(_xlfn.NORM.INV(('Eingabe Email'!$B215+1)/MAX('Eingabe Email'!$B:$B),'H2 Originaldaten'!B83,7),2),1) -> 20 | C83: ='H2 Originaldaten'!C83 -> 4 | D83: =ROUND(MAX(_xlfn.NORM.INV(('Eingabe Email'!$B215+1)/MAX('Eingabe Email'!$B:$B),'H2 Originaldaten'!D83,7),2),1) -> 117 | E83: =ROUND(MAX(_xlfn.NORM.INV(('Eingabe Email'!$B215+1)/MAX('Eingabe Email'!$B:$B),'H2 Originaldaten'!E83,7),2),1) -> 94 | F83: =ROUND(MAX(_xlfn.NORM.INV(('Eingabe Email'!$B215+1)/MAX('Eingabe Email'!$B:$B),'H2 Originaldaten'!F83,7),2),1) -> 2503 | G83: =ROUND(MAX(_xlfn.NORM.INV(('Eingabe Email'!$B215+1)/MAX('Eingabe Email'!$B:$B),'H2 Originaldaten'!G83,7),2),1) -> 11.5 | H83: ='H2 Originaldaten'!H83 -> 72 | I83: ='H2 Originaldaten'!I83 -> 3 | J83: ='H2 Originaldaten'!J83 -> toyouta corona mark ii (sw)
A84: 83 | B84: =ROUND(MAX(_xlfn.NORM.INV(('Eingabe Email'!$B216+1)/MAX('Eingabe Email'!$B:$B),'H2 Originaldaten'!B84,7),2),1) -> 25.2 | C84: ='H2 Originaldaten'!C84 -> 4 | D84: =ROUND(MAX(_xlfn.NORM.INV(('Eingabe Email'!$B216+1)/MAX('Eingabe Email'!$B:$B),'H2 Originaldaten'!D84,7),2),1) -> 95.2 | E84: =ROUND(MAX(_xlfn.NORM.INV(('Eingabe Email'!$B216+1)/MAX('Eingabe Email'!$B:$B),'H2 Originaldaten'!E84,7),2),1) -> 77.2 | F84: =ROUND(MAX(_xlfn.NORM.INV(('Eingabe Email'!$B216+1)/MAX('Eingabe Email'!$B:$B),'H2 Originaldaten'!F84,7),2),1) -> 2161.2 | G84: =ROUND(MAX(_xlfn.NORM.INV(('Eingabe Email'!$B216+1)/MAX('Eingabe Email'!$B:$B),'H2 Originaldaten'!G84,7),2),1) -> 12.2 | H84: ='H2 Originaldaten'!H84 -> 72 | I84: ='H2 Originaldaten'!I84 -> 1 | J84: ='H2 Originaldaten'!J84 -> dodge colt (sw)
A85: 84 | B85: =ROUND(MAX(_xlfn.NORM.INV(('Eingabe Email'!$B217+1)/MAX('Eingabe Email'!$B:$B),'H2 Originaldaten'!B85,7),2),1) -> 38.3 | C85: ='H2 Originaldaten'!C85 -> 4 | D85: =ROUND(MAX(_xlfn.NORM.INV(('Eingabe Email'!$B217+1)/MAX('Eingabe Email'!$B:$B),'H2 Originaldaten'!D85,7),2),1) -> 108.3 | E85: =ROUND(MAX(_xlfn.NORM.INV(('Eingabe Email'!$B217+1)/MAX('Eingabe Email'!$B:$B),'H2 Originaldaten'!E85,7),2),1) -> 99.3 | F85: =ROUND(MAX(_xlfn.NORM.INV(('Eingabe Email'!$B217+1)/MAX('Eingabe Email'!$B:$B),'H2 Originaldaten'!F85,7),2),1) -> 2111.3 | G85: =ROUND(MAX(_xlfn.NORM.INV(('Eingabe Email'!$B217+1)/MAX('Eingabe Email'!$B:$B),'H2 Originaldaten'!G85,7),2),1) -> 27.8 | H85: ='H2 Originaldaten'!H85 -> 72 | I85: ='H2 Originaldaten'!I85 -> 3 | J85: ='H2 Originaldaten'!J85 -> toyota corolla 1600 (sw)
A86: 85 | B86: =ROUND(MAX(_xlfn.NORM.INV(('Eingabe Email'!$B218+1)/MAX('Eingabe Email'!$B:$B),'H2 Originaldaten'!B86,7),2),1) -> 2 | C86: ='H2 Originaldaten'!C86 -> 8 | D86: =ROUND(MAX(_xlfn.NORM.INV(('Eingabe Email'!$B218+1)/MAX('Eingabe Email'!$B:$B),'H2 Originaldaten'!D86,7),2),1) -> 333.4 | E86: =ROUND(MAX(_xlfn.NORM.INV(('Eingabe Email'!$B218+1)/MAX('Eingabe Email'!$B:$B),'H2 Originaldaten'!E86,7),2),1) -> 158.4 | F86: =ROUND(MAX(_xlfn.NORM.INV(('Eingabe Email'!$B218+1)/MAX('Eingabe Email'!$B:$B),'H2 Originaldaten'!F86,7),2),1) -> 4083.4 | G86: =ROUND(MAX(_xlfn.NORM.INV(('Eingabe Email'!$B218+1)/MAX('Eingabe Email'!$B:$B),'H2 Originaldaten'!G86,7),2),1) -> 2 | H86: ='H2 Originaldaten'!H86 -> 73 | I86: ='H2 Originaldaten'!I86 -> 1 | J86: ='H2 Originaldaten'!J86 -> buick century 350
A87: 86 | B87: =ROUND(MAX(_xlfn.NORM.INV(('Eingabe Email'!$B219+1)/MAX('Eingabe Email'!$B:$B),'H2 Originaldaten'!B87,7),2),1) -> 9.9 | C87: ='H2 Originaldaten'!C87 -> 8 | D87: =ROUND(MAX(_xlfn.NORM.INV(('Eingabe Email'!$B219+1)/MAX('Eingabe Email'!$B:$B),'H2 Originaldaten'!D87,7),2),1) -> 299.9 | E87: =ROUND(MAX(_xlfn.NORM.INV(('Eingabe Email'!$B219+1)/MAX('Eingabe Email'!$B:$B),'H2 Originaldaten'!E87,7),2),1) -> 145.9 | F87: =ROUND(MAX(_xlfn.NORM.INV(('Eingabe Email'!$B219+1)/MAX('Eingabe Email'!$B:$B),'H2 Originaldaten'!F87,7),2),1) -> 3667.9 | G87: =ROUND(MAX(_xlfn.NORM.INV(('Eingabe Email'!$B219+1)/MAX('Eingabe Email'!$B:$B),'H2 Originaldaten'!G87,7),2),1) -> 7.4 | H87: ='H2 Originaldaten'!H87 -> 73 | I87: ='H2 Originaldaten'!I87 -> 1 | J87: ='H2 Originaldaten'!J87 -> amc matador
A88: 87 | B88: =ROUND(MAX(_xlfn.NORM.INV(('Eingabe Email'!$B220+1)/MAX('Eingabe Email'!$B:$B),'H2 Originaldaten'!B88,7),2),1) -> 12.3 | C88: ='H2 Originaldaten'!C88 -> 8 | D88: =ROUND(MAX(_xlfn.NORM.INV(('Eingabe Email'!$B220+1)/MAX('Eingabe Email'!$B:$B),'H2 Originaldaten'!D88,7),2),1) -> 349.3 | E88: =ROUND(MAX(_xlfn.NORM.INV(('Eingabe Email'!$B220+1)/MAX('Eingabe Email'!$B:$B),'H2 Originaldaten'!E88,7),2),1) -> 144.3 | F88: =ROUND(MAX(_xlfn.NORM.INV(('Eingabe Email'!$B220+1)/MAX('Eingabe Email'!$B:$B),'H2 Originaldaten'!F88,7),2),1) -> 3987.3 | G88: =ROUND(MAX(_xlfn.NORM.INV(('Eingabe Email'!$B220+1)/MAX('Eingabe Email'!$B:$B),'H2 Originaldaten'!G88,7),2),1) -> 12.3 | H88: ='H2 Originaldaten'!H88 -> 73 | I88: ='H2 Originaldaten'!I88 -> 1 | J88: ='H2 Originaldaten'!J88 -> chevrolet malibu
A89: 88 | B89: =ROUND(MAX(_xlfn.NORM.INV(('Eingabe Email'!$B221+1)/MAX('Eingabe Email'!$B:$B),'H2 Originaldaten'!B89,7),2),1) -> 9.6 | C89: ='H2 Originaldaten'!C89 -> 8 | D89: =ROUND(MAX(_xlfn.NORM.INV(('Eingabe Email'!$B221+1)/MAX('Eingabe Email'!$B:$B),'H2 Originaldaten'!D89,7),2),1) -> 297.6 | E89: =ROUND(MAX(_xlfn.NORM.INV(('Eingabe Email'!$B221+1)/MAX('Eingabe Email'!$B:$B),'H2 Originaldaten'!E89,7),2),1) -> 132.6 | F89: =ROUND(MAX(_xlfn.NORM.INV(('Eingabe Email'!$B221+1)/MAX('Eingabe Email'!$B:$B),'H2 Originaldaten'!F89,7),2),1) -> 4037.6 | G89: =ROUND(MAX(_xlfn.NORM.INV(('Eingabe Email'!$B221+1)/MAX('Eingabe Email'!$B:$B),'H2 Originaldaten'!G89,7),2),1) -> 10.1 | H89: ='H2 Originaldaten'!H89 -> 73 | I89: ='H2 Originaldaten'!I89 -> 1 | J89: ='H2 Originaldaten'!J89 -> ford gran torino
A90: 89 | B90: =ROUND(MAX(_xlfn.NORM.INV(('Eingabe Email'!$B222+1)/MAX('Eingabe Email'!$B:$B),'H2 Originaldaten'!B90,7),2),1) -> 10.9 | C90: ='H2 Originaldaten'!C90 -> 8 | D90: =ROUND(MAX(_xlfn.NORM.INV(('Eingabe Email'!$B222+1)/MAX('Eingabe Email'!$B:$B),'H2 Originaldaten'!D90,7),2),1) -> 313.9 | E90: =ROUND(MAX(_xlfn.NORM.INV(('Eingabe Email'!$B222+1)/MAX('Eingabe Email'!$B:$B),'H2 Originaldaten'!E90,7),2),1) -> 145.9 | F90: =ROUND(MAX(_xlfn.NORM.INV(('Eingabe Email'!$B222+1)/MAX('Eingabe Email'!$B:$B),'H2 Originaldaten'!F90,7),2),1) -> 3772.9 | G90: =ROUND(MAX(_xlfn.NORM.INV(('Eingabe Email'!$B222+1)/MAX('Eingabe Email'!$B:$B),'H2 Originaldaten'!G90,7),2),1) -> 8.4 | H90: ='H2 Originaldaten'!H90 -> 73 | I90: ='H2 Originaldaten'!I90 -> 1 | J90: ='H2 Originaldaten'!J90 -> dodge coronet custom
A91: 90 | B91: =ROUND(MAX(_xlfn.NORM.INV(('Eingabe Email'!$B223+1)/MAX('Eingabe Email'!$B:$B),'H2 Originaldaten'!B91,7),2),1) -> 12 | C91: ='H2 Originaldaten'!C91 -> 8 | D91: =ROUND(MAX(_xlfn.NORM.INV(('Eingabe Email'!$B223+1)/MAX('Eingabe Email'!$B:$B),'H2 Originaldaten'!D91,7),2),1) -> 429 | E91: =ROUND(MAX(_xlfn.NORM.INV(('Eingabe Email'!$B223+1)/MAX('Eingabe Email'!$B:$B),'H2 Originaldaten'!E91,7),2),1) -> 198 | F91: =ROUND(MAX(_xlfn.NORM.INV(('Eingabe Email'!$B223+1)/MAX('Eingabe Email'!$B:$B),'H2 Originaldaten'!F91,7),2),1) -> 4952 | G91: =ROUND(MAX(_xlfn.NORM.INV(('Eingabe Email'!$B223+1)/MAX('Eingabe Email'!$B:$B),'H2 Originaldaten'!G91,7),2),1) -> 11.5 | H91: ='H2 Originaldaten'!H91 -> 73 | I91: ='H2 Originaldaten'!I91 -> 1 | J91: ='H2 Originaldaten'!J91 -> mercury marquis brougham
A92: 91 | B92: =ROUND(MAX(_xlfn.NORM.INV(('Eingabe Email'!$B224+1)/MAX('Eingabe Email'!$B:$B),'H2 Originaldaten'!B92,7),2),1) -> 3.7 | C92: ='H2 Originaldaten'!C92 -> 8 | D92: =ROUND(MAX(_xlfn.NORM.INV(('Eingabe Email'!$B224+1)/MAX('Eingabe Email'!$B:$B),'H2 Originaldaten'!D92,7),2),1) -> 390.7 | E92: =ROUND(MAX(_xlfn.NORM.INV(('Eingabe Email'!$B224+1)/MAX('Eingabe Email'!$B:$B),'H2 Originaldaten'!E92,7),2),1) -> 140.7 | F92: =ROUND(MAX(_xlfn.NORM.INV(('Eingabe Email'!$B224+1)/MAX('Eingabe Email'!$B:$B),'H2 Originaldaten'!F92,7),2),1) -> 4454.7 | G92: =ROUND(MAX(_xlfn.NORM.INV(('Eingabe Email'!$B224+1)/MAX('Eingabe Email'!$B:$B),'H2 Originaldaten'!G92,7),2),1) -> 2.7 | H92: ='H2 Originaldaten'!H92 -> 73 | I92: ='H2 Originaldaten'!I92 -> 1 | J92: ='H2 Originaldaten'!J92 -> chevrolet caprice classic
A93: 92 | B93: =ROUND(MAX(_xlfn.NORM.INV(('Eingabe Email'!$B225+1)/MAX('Eingabe Email'!$B:$B),'H2 Originaldaten'!B93,7),2),1) -> 2 | C93: ='H2 Originaldaten'!C93 -> 8 | D93: =ROUND(MAX(_xlfn.NORM.INV(('Eingabe Email'!$B225+1)/MAX('Eingabe Email'!$B:$B),'H2 Originaldaten'!D93,7),2),1) -> 335.3 | E93: =ROUND(MAX(_xlfn.NORM.INV(('Eingabe Email'!$B225+1)/MAX('Eingabe Email'!$B:$B),'H2 Originaldaten'!E93,7),2),1) -> 142.3 | F93: =ROUND(MAX(_xlfn.NORM.INV(('Eingabe Email'!$B225+1)/MAX('Eingabe Email'!$B:$B),'H2 Originaldaten'!F93,7),2),1) -> 4347.3 | G93: =ROUND(MAX(_xlfn.NORM.INV(('Eingabe Email'!$B225+1)/MAX('Eingabe Email'!$B:$B),'H2 Originaldaten'!G93,7),2),1) -> 2 | H93: ='H2 Originaldaten'!H93 -> 73 | I93: ='H2 Originaldaten'!I93 -> 1 | J93: ='H2 Originaldaten'!J93 -> ford ltd
A94: 93 | B94: =ROUND(MAX(_xlfn.NORM.INV(('Eingabe Email'!$B226+1)/MAX('Eingabe Email'!$B:$B),'H2 Originaldaten'!B94,7),2),1) -> 9.4 | C94: ='H2 Originaldaten'!C94 -> 8 | D94: =ROUND(MAX(_xlfn.NORM.INV(('Eingabe Email'!$B226+1)/MAX('Eingabe Email'!$B:$B),'H2 Originaldaten'!D94,7),2),1) -> 313.4 | E94: =ROUND(MAX(_xlfn.NORM.INV(('Eingabe Email'!$B226+1)/MAX('Eingabe Email'!$B:$B),'H2 Originaldaten'!E94,7),2),1) -> 145.4 | F94: =ROUND(MAX(_xlfn.NORM.INV(('Eingabe Email'!$B226+1)/MAX('Eingabe Email'!$B:$B),'H2 Originaldaten'!F94,7),2),1) -> 4232.4 | G94: =ROUND(MAX(_xlfn.NORM.INV(('Eingabe Email'!$B226+1)/MAX('Eingabe Email'!$B:$B),'H2 Originaldaten'!G94,7),2),1) -> 9.9 | H94: ='H2 Originaldaten'!H94 -> 73 | I94: ='H2 Originaldaten'!I94 -> 1 | J94: ='H2 Originaldaten'!J94 -> plymouth fury gran sedan
A95: 94 | B95: =ROUND(MAX(_xlfn.NORM.INV(('Eingabe Email'!$B227+1)/MAX('Eingabe Email'!$B:$B),'H2 Originaldaten'!B95,7),2),1) -> 9.3 | C95: ='H2 Originaldaten'!C95 -> 8 | D95: =ROUND(MAX(_xlfn.NORM.INV(('Eingabe Email'!$B227+1)/MAX('Eingabe Email'!$B:$B),'H2 Originaldaten'!D95,7),2),1) -> 436.3 | E95: =ROUND(MAX(_xlfn.NORM.INV(('Eingabe Email'!$B227+1)/MAX('Eingabe Email'!$B:$B),'H2 Originaldaten'!E95,7),2),1) -> 211.3 | F95: =ROUND(MAX(_xlfn.NORM.INV(('Eingabe Email'!$B227+1)/MAX('Eingabe Email'!$B:$B),'H2 Originaldaten'!F95,7),2),1) -> 4731.3 | G95: =ROUND(MAX(_xlfn.NORM.INV(('Eingabe Email'!$B227+1)/MAX('Eingabe Email'!$B:$B),'H2 Originaldaten'!G95,7),2),1) -> 7.3 | H95: ='H2 Originaldaten'!H95 -> 73 | I95: ='H2 Originaldaten'!I95 -> 1 | J95: ='H2 Originaldaten'!J95 -> chrysler new yorker brougham
A96: 95 | B96: =ROUND(MAX(_xlfn.NORM.INV(('Eingabe Email'!$B228+1)/MAX('Eingabe Email'!$B:$B),'H2 Originaldaten'!B96,7),2),1) -> 5.1 | C96: ='H2 Originaldaten'!C96 -> 8 | D96: =ROUND(MAX(_xlfn.NORM.INV(('Eingabe Email'!$B228+1)/MAX('Eingabe Email'!$B:$B),'H2 Originaldaten'!D96,7),2),1) -> 448.1 | E96: =ROUND(MAX(_xlfn.NORM.INV(('Eingabe Email'!$B228+1)/MAX('Eingabe Email'!$B:$B),'H2 Originaldaten'!E96,7),2),1) -> 218.1 | F96: =ROUND(MAX(_xlfn.NORM.INV(('Eingabe Email'!$B228+1)/MAX('Eingabe Email'!$B:$B),'H2 Originaldaten'!F96,7),2),1) -> 4944.1 | G96: =ROUND(MAX(_xlfn.NORM.INV(('Eingabe Email'!$B228+1)/MAX('Eingabe Email'!$B:$B),'H2 Originaldaten'!G96,7),2),1) -> 4.1 | H96: ='H2 Originaldaten'!H96 -> 73 | I96: ='H2 Originaldaten'!I96 -> 1 | J96: ='H2 Originaldaten'!J96 -> buick electra 225 custom
A97: 96 | B97: =ROUND(MAX(_xlfn.NORM.INV(('Eingabe Email'!$B229+1)/MAX('Eingabe Email'!$B:$B),'H2 Originaldaten'!B97,7),2),1) -> 19.5 | C97: ='H2 Originaldaten'!C97 -> 8 | D97: =ROUND(MAX(_xlfn.NORM.INV(('Eingabe Email'!$B229+1)/MAX('Eingabe Email'!$B:$B),'H2 Originaldaten'!D97,7),2),1) -> 366.5 | E97: =ROUND(MAX(_xlfn.NORM.INV(('Eingabe Email'!$B229+1)/MAX('Eingabe Email'!$B:$B),'H2 Originaldaten'!E97,7),2),1) -> 181.5 | F97: =ROUND(MAX(_xlfn.NORM.INV(('Eingabe Email'!$B229+1)/MAX('Eingabe Email'!$B:$B),'H2 Originaldaten'!F97,7),2),1) -> 3827.5 | G97: =ROUND(MAX(_xlfn.NORM.INV(('Eingabe Email'!$B229+1)/MAX('Eingabe Email'!$B:$B),'H2 Originaldaten'!G97,7),2),1) -> 17.5 | H97: ='H2 Originaldaten'!H97 -> 73 | I97: ='H2 Originaldaten'!I97 -> 1 | J97: ='H2 Originaldaten'!J97 -> amc ambassador brougham
A98: 97 | B98: =ROUND(MAX(_xlfn.NORM.INV(('Eingabe Email'!$B230+1)/MAX('Eingabe Email'!$B:$B),'H2 Originaldaten'!B98,7),2),1) -> 7.8 | C98: ='H2 Originaldaten'!C98 -> 6 | D98: =ROUND(MAX(_xlfn.NORM.INV(('Eingabe Email'!$B230+1)/MAX('Eingabe Email'!$B:$B),'H2 Originaldaten'!D98,7),2),1) -> 214.8 | E98: =ROUND(MAX(_xlfn.NORM.INV(('Eingabe Email'!$B230+1)/MAX('Eingabe Email'!$B:$B),'H2 Originaldaten'!E98,7),2),1) -> 94.8 | F98: =ROUND(MAX(_xlfn.NORM.INV(('Eingabe Email'!$B230+1)/MAX('Eingabe Email'!$B:$B),'H2 Originaldaten'!F98,7),2),1) -> 3110.8 | G98: =ROUND(MAX(_xlfn.NORM.INV(('Eingabe Email'!$B230+1)/MAX('Eingabe Email'!$B:$B),'H2 Originaldaten'!G98,7),2),1) -> 6.3 | H98: ='H2 Originaldaten'!H98 -> 73 | I98: ='H2 Originaldaten'!I98 -> 1 | J98: ='H2 Originaldaten'!J98 -> plymouth valiant
A99: 98 | B99: =ROUND(MAX(_xlfn.NORM.INV(('Eingabe Email'!$B231+1)/MAX('Eingabe Email'!$B:$B),'H2 Originaldaten'!B99,7),2),1) -> 23.1 | C99: ='H2 Originaldaten'!C99 -> 6 | D99: =ROUND(MAX(_xlfn.NORM.INV(('Eingabe Email'!$B231+1)/MAX('Eingabe Email'!$B:$B),'H2 Originaldaten'!D99,7),2),1) -> 257.1 | E99: =ROUND(MAX(_xlfn.NORM.INV(('Eingabe Email'!$B231+1)/MAX('Eingabe Email'!$B:$B),'H2 Originaldaten'!E99,7),2),1) -> 107.1 | F99: =ROUND(MAX(_xlfn.NORM.INV(('Eingabe Email'!$B231+1)/MAX('Eingabe Email'!$B:$B),'H2 Originaldaten'!F99,7),2),1) -> 3285.1 | G99: =ROUND(MAX(_xlfn.NORM.INV(('Eingabe Email'!$B231+1)/MAX('Eingabe Email'!$B:$B),'H2 Originaldaten'!G99,7),2),1) -> 25.1 | H99: ='H2 Originaldaten'!H99 -> 73 | I99: ='H2 Originaldaten'!I99 -> 1 | J99: ='H2 Originaldaten'!J99 -> chevrolet nova custom
A100: 99 | B100: =ROUND(MAX(_xlfn.NORM.INV(('Eingabe Email'!$B232+1)/MAX('Eingabe Email'!$B:$B),'H2 Originaldaten'!B100,7),2),1) -> 18.7 | C100: ='H2 Originaldaten'!C100 -> 6 | D100: =ROUND(MAX(_xlfn.NORM.INV(('Eingabe Email'!$B232+1)/MAX('Eingabe Email'!$B:$B),'H2 Originaldaten'!D100,7),2),1) -> 232.7 | E100: =ROUND(MAX(_xlfn.NORM.INV(('Eingabe Email'!$B232+1)/MAX('Eingabe Email'!$B:$B),'H2 Originaldaten'!E100,7),2),1) -> 100.7 | F100: =ROUND(MAX(_xlfn.NORM.INV(('Eingabe Email'!$B232+1)/MAX('Eingabe Email'!$B:$B),'H2 Originaldaten'!F100,7),2),1) -> 2945.7 | G100: =ROUND(MAX(_xlfn.NORM.INV(('Eingabe Email'!$B232+1)/MAX('Eingabe Email'!$B:$B),'H2 Originaldaten'!G100,7),2),1) -> 16.7 | H100: ='H2 Originaldaten'!H100 -> 73 | I100: ='H2 Originaldaten'!I100 -> 1 | J100: ='H2 Originaldaten'!J100 -> amc hornet
A101: 100 | B101: =ROUND(MAX(_xlfn.NORM.INV(('Eingabe Email'!$B233+1)/MAX('Eingabe Email'!$B:$B),'H2 Originaldaten'!B101,7),2),1) -> 23.5 | C101: ='H2 Originaldaten'!C101 -> 6 | D101: =ROUND(MAX(_xlfn.NORM.INV(('Eingabe Email'!$B233+1)/MAX('Eingabe Email'!$B:$B),'H2 Originaldaten'!D101,7),2),1) -> 255.5 | E101: =ROUND(MAX(_xlfn.NORM.INV(('Eingabe Email'!$B233+1)/MAX('Eingabe Email'!$B:$B),'H2 Originaldaten'!E101,7),2),1) -> 93.5 | F101: =ROUND(MAX(_xlfn.NORM.INV(('Eingabe Email'!$B233+1)/MAX('Eingabe Email'!$B:$B),'H2 Originaldaten'!F101,7),2),1) -> 3026.5 | G101: =ROUND(MAX(_xlfn.NORM.INV(('Eingabe Email'!$B233+1)/MAX('Eingabe Email'!$B:$B),'H2 Originaldaten'!G101,7),2),1) -> 22 | H101: ='H2 Originaldaten'!H101 -> 73 | I101: ='H2 Originaldaten'!I101 -> 1 | J101: ='H2 Originaldaten'!J101 -> ford maverick
A102: 101 | B102: =ROUND(MAX(_xlfn.NORM.INV(('Eingabe Email'!$B234+1)/MAX('Eingabe Email'!$B:$B),'H2 Originaldaten'!B102,7),2),1) -> 26.9 | C102: ='H2 Originaldaten'!C102 -> 6 | D102: =ROUND(MAX(_xlfn.NORM.INV(('Eingabe Email'!$B234+1)/MAX('Eingabe Email'!$B:$B),'H2 Originaldaten'!D102,7),2),1) -> 201.9 | E102: =ROUND(MAX(_xlfn.NORM.INV(('Eingabe Email'!$B234+1)/MAX('Eingabe Email'!$B:$B),'H2 Originaldaten'!E102,7),2),1) -> 98.9 | F102: =ROUND(MAX(_xlfn.NORM.INV(('Eingabe Email'!$B234+1)/MAX('Eingabe Email'!$B:$B),'H2 Originaldaten'!F102,7),2),1) -> 2907.9 | G102: =ROUND(MAX(_xlfn.NORM.INV(('Eingabe Email'!$B234+1)/MAX('Eingabe Email'!$B:$B),'H2 Originaldaten'!G102,7),2),1) -> 19.9 | H102: ='H2 Originaldaten'!H102 -> 73 | I102: ='H2 Originaldaten'!I102 -> 1 | J102: ='H2 Originaldaten'!J102 -> plymouth duster
A103: 102 | B103: =ROUND(MAX(_xlfn.NORM.INV(('Eingabe Email'!$B235+1)/MAX('Eingabe Email'!$B:$B),'H2 Originaldaten'!B103,7),2),1) -> 29.6 | C103: ='H2 Originaldaten'!C103 -> 4 | D103: =ROUND(MAX(_xlfn.NORM.INV(('Eingabe Email'!$B235+1)/MAX('Eingabe Email'!$B:$B),'H2 Originaldaten'!D103,7),2),1) -> 100.6 | E103: =ROUND(MAX(_xlfn.NORM.INV(('Eingabe Email'!$B235+1)/MAX('Eingabe Email'!$B:$B),'H2 Originaldaten'!E103,7),2),1) -> 49.6 | F103: =ROUND(MAX(_xlfn.NORM.INV(('Eingabe Email'!$B235+1)/MAX('Eingabe Email'!$B:$B),'H2 Originaldaten'!F103,7),2),1) -> 1953.6 | G103: =ROUND(MAX(_xlfn.NORM.INV(('Eingabe Email'!$B235+1)/MAX('Eingabe Email'!$B:$B),'H2 Originaldaten'!G103,7),2),1) -> 24.6 | H103: ='H2 Originaldaten'!H103 -> 73 | I103: ='H2 Originaldaten'!I103 -> 2 | J103: ='H2 Originaldaten'!J103 -> volkswagen super beetle
A104: 103 | B104: =ROUND(MAX(_xlfn.NORM.INV(('Eingabe Email'!$B236+1)/MAX('Eingabe Email'!$B:$B),'H2 Originaldaten'!B104,7),2),1) -> 5.2 | C104: ='H2 Originaldaten'!C104 -> 8 | D104: =ROUND(MAX(_xlfn.NORM.INV(('Eingabe Email'!$B236+1)/MAX('Eingabe Email'!$B:$B),'H2 Originaldaten'!D104,7),2),1) -> 394.2 | E104: =ROUND(MAX(_xlfn.NORM.INV(('Eingabe Email'!$B236+1)/MAX('Eingabe Email'!$B:$B),'H2 Originaldaten'!E104,7),2),1) -> 144.2 | F104: =ROUND(MAX(_xlfn.NORM.INV(('Eingabe Email'!$B236+1)/MAX('Eingabe Email'!$B:$B),'H2 Originaldaten'!F104,7),2),1) -> 4991.2 | G104: =ROUND(MAX(_xlfn.NORM.INV(('Eingabe Email'!$B236+1)/MAX('Eingabe Email'!$B:$B),'H2 Originaldaten'!G104,7),2),1) -> 8.2 | H104: ='H2 Originaldaten'!H104 -> 73 | I104: ='H2 Originaldaten'!I104 -> 1 | J104: ='H2 Originaldaten'!J104 -> chevrolet impala
A105: 104 | B105: =ROUND(MAX(_xlfn.NORM.INV(('Eingabe Email'!$B237+1)/MAX('Eingabe Email'!$B:$B),'H2 Originaldaten'!B105,7),2),1) -> 12.7 | C105: ='H2 Originaldaten'!C105 -> 8 | D105: =ROUND(MAX(_xlfn.NORM.INV(('Eingabe Email'!$B237+1)/MAX('Eingabe Email'!$B:$B),'H2 Originaldaten'!D105,7),2),1) -> 400.7 | E105: =ROUND(MAX(_xlfn.NORM.INV(('Eingabe Email'!$B237+1)/MAX('Eingabe Email'!$B:$B),'H2 Originaldaten'!E105,7),2),1) -> 167.7 | F105: =ROUND(MAX(_xlfn.NORM.INV(('Eingabe Email'!$B237+1)/MAX('Eingabe Email'!$B:$B),'H2 Originaldaten'!F105,7),2),1) -> 4906.7 | G105: =ROUND(MAX(_xlfn.NORM.INV(('Eingabe Email'!$B237+1)/MAX('Eingabe Email'!$B:$B),'H2 Originaldaten'!G105,7),2),1) -> 13.2 | H105: ='H2 Originaldaten'!H105 -> 73 | I105: ='H2 Originaldaten'!I105 -> 1 | J105: ='H2 Originaldaten'!J105 -> ford country
A106: 105 | B106: =ROUND(MAX(_xlfn.NORM.INV(('Eingabe Email'!$B238+1)/MAX('Eingabe Email'!$B:$B),'H2 Originaldaten'!B106,7),2),1) -> 25.8 | C106: ='H2 Originaldaten'!C106 -> 8 | D106: =ROUND(MAX(_xlfn.NORM.INV(('Eingabe Email'!$B238+1)/MAX('Eingabe Email'!$B:$B),'H2 Originaldaten'!D106,7),2),1) -> 372.8 | E106: =ROUND(MAX(_xlfn.NORM.INV(('Eingabe Email'!$B238+1)/MAX('Eingabe Email'!$B:$B),'H2 Originaldaten'!E106,7),2),1) -> 182.8 | F106: =ROUND(MAX(_xlfn.NORM.INV(('Eingabe Email'!$B238+1)/MAX('Eingabe Email'!$B:$B),'H2 Originaldaten'!F106,7),2),1) -> 4666.8 | G106: =ROUND(MAX(_xlfn.NORM.INV(('Eingabe Email'!$B238+1)/MAX('Eingabe Email'!$B:$B),'H2 Originaldaten'!G106,7),2),1) -> 25.8 | H106: ='H2 Originaldaten'!H106 -> 73 | I106: ='H2 Originaldaten'!I106 -> 1 | J106: ='H2 Originaldaten'!J106 -> plymouth custom suburb
A107: 106 | B107: =ROUND(MAX(_xlfn.NORM.INV(('Eingabe Email'!$B239+1)/MAX('Eingabe Email'!$B:$B),'H2 Originaldaten'!B107,7),2),1) -> 6.3 | C107: ='H2 Originaldaten'!C107 -> 8 | D107: =ROUND(MAX(_xlfn.NORM.INV(('Eingabe Email'!$B239+1)/MAX('Eingabe Email'!$B:$B),'H2 Originaldaten'!D107,7),2),1) -> 344.3 | E107: =ROUND(MAX(_xlfn.NORM.INV(('Eingabe Email'!$B239+1)/MAX('Eingabe Email'!$B:$B),'H2 Originaldaten'!E107,7),2),1) -> 174.3 | F107: =ROUND(MAX(_xlfn.NORM.INV(('Eingabe Email'!$B239+1)/MAX('Eingabe Email'!$B:$B),'H2 Originaldaten'!F107,7),2),1) -> 4493.3 | G107: =ROUND(MAX(_xlfn.NORM.INV(('Eingabe Email'!$B239+1)/MAX('Eingabe Email'!$B:$B),'H2 Originaldaten'!G107,7),2),1) -> 6.8 | H107: ='H2 Originaldaten'!H107 -> 73 | I107: ='H2 Originaldaten'!I107 -> 1 | J107: ='H2 Originaldaten'!J107 -> oldsmobile vista cruiser
A108: 107 | B108: =ROUND(MAX(_xlfn.NORM.INV(('Eingabe Email'!$B240+1)/MAX('Eingabe Email'!$B:$B),'H2 Originaldaten'!B108,7),2),1) -> 22 | C108: ='H2 Originaldaten'!C108 -> 6 | D108: =ROUND(MAX(_xlfn.NORM.INV(('Eingabe Email'!$B240+1)/MAX('Eingabe Email'!$B:$B),'H2 Originaldaten'!D108,7),2),1) -> 236 | E108: =ROUND(MAX(_xlfn.NORM.INV(('Eingabe Email'!$B240+1)/MAX('Eingabe Email'!$B:$B),'H2 Originaldaten'!E108,7),2),1) -> 104 | F108: =ROUND(MAX(_xlfn.NORM.INV(('Eingabe Email'!$B240+1)/MAX('Eingabe Email'!$B:$B),'H2 Originaldaten'!F108,7),2),1) -> 2793 | G108: =ROUND(MAX(_xlfn.NORM.INV(('Eingabe Email'!$B240+1)/MAX('Eingabe Email'!$B:$B),'H2 Originaldaten'!G108,7),2),1) -> 19 | H108: ='H2 Originaldaten'!H108 -> 73 | I108: ='H2 Originaldaten'!I108 -> 1 | J108: ='H2 Originaldaten'!J108 -> amc gremlin
A109: 108 | B109: =ROUND(MAX(_xlfn.NORM.INV(('Eingabe Email'!$B241+1)/MAX('Eingabe Email'!$B:$B),'H2 Originaldaten'!B109,7),2),1) -> 14 | C109: ='H2 Originaldaten'!C109 -> 4 | D109: =ROUND(MAX(_xlfn.NORM.INV(('Eingabe Email'!$B241+1)/MAX('Eingabe Email'!$B:$B),'H2 Originaldaten'!D109,7),2),1) -> 91 | E109: =ROUND(MAX(_xlfn.NORM.INV(('Eingabe Email'!$B241+1)/MAX('Eingabe Email'!$B:$B),'H2 Originaldaten'!E109,7),2),1) -> 82 | F109: =ROUND(MAX(_xlfn.NORM.INV(('Eingabe Email'!$B241+1)/MAX('Eingabe Email'!$B:$B),'H2 Originaldaten'!F109,7),2),1) -> 2273 | G109: =ROUND(MAX(_xlfn.NORM.INV(('Eingabe Email'!$B241+1)/MAX('Eingabe Email'!$B:$B),'H2 Originaldaten'!G109,7),2),1) -> 13 | H109: ='H2 Originaldaten'!H109 -> 73 | I109: ='H2 Originaldaten'!I109 -> 3 | J109: ='H2 Originaldaten'!J109 -> toyota carina
A110: 109 | B110: =ROUND(MAX(_xlfn.NORM.INV(('Eingabe Email'!$B242+1)/MAX('Eingabe Email'!$B:$B),'H2 Originaldaten'!B110,7),2),1) -> 15.3 | C110: ='H2 Originaldaten'!C110 -> 4 | D110: =ROUND(MAX(_xlfn.NORM.INV(('Eingabe Email'!$B242+1)/MAX('Eingabe Email'!$B:$B),'H2 Originaldaten'!D110,7),2),1) -> 134.3 | E110: =ROUND(MAX(_xlfn.NORM.INV(('Eingabe Email'!$B242+1)/MAX('Eingabe Email'!$B:$B),'H2 Originaldaten'!E110,7),2),1) -> 66.3 | F110: =ROUND(MAX(_xlfn.NORM.INV(('Eingabe Email'!$B242+1)/MAX('Eingabe Email'!$B:$B),'H2 Originaldaten'!F110,7),2),1) -> 2395.3 | G110: =ROUND(MAX(_xlfn.NORM.INV(('Eingabe Email'!$B242+1)/MAX('Eingabe Email'!$B:$B),'H2 Originaldaten'!G110,7),2),1) -> 13.8 | H110: ='H2 Originaldaten'!H110 -> 73 | I110: ='H2 Originaldaten'!I110 -> 1 | J110: ='H2 Originaldaten'!J110 -> chevrolet vega
A111: 110 | B111: =ROUND(MAX(_xlfn.NORM.INV(('Eingabe Email'!$B243+1)/MAX('Eingabe Email'!$B:$B),'H2 Originaldaten'!B111,7),2),1) -> 38.5 | C111: ='H2 Originaldaten'!C111 -> 4 | D111: =ROUND(MAX(_xlfn.NORM.INV(('Eingabe Email'!$B243+1)/MAX('Eingabe Email'!$B:$B),'H2 Originaldaten'!D111,7),2),1) -> 124.5 | E111: =ROUND(MAX(_xlfn.NORM.INV(('Eingabe Email'!$B243+1)/MAX('Eingabe Email'!$B:$B),'H2 Originaldaten'!E111,7),2),1) -> 110.5 | F111: =ROUND(MAX(_xlfn.NORM.INV(('Eingabe Email'!$B243+1)/MAX('Eingabe Email'!$B:$B),'H2 Originaldaten'!F111,7),2),1) -> 2395.5 | G111: =ROUND(MAX(_xlfn.NORM.INV(('Eingabe Email'!$B243+1)/MAX('Eingabe Email'!$B:$B),'H2 Originaldaten'!G111,7),2),1) -> 33 | H111: ='H2 Originaldaten'!H111 -> 73 | I111: ='H2 Originaldaten'!I111 -> 3 | J111: ='H2 Originaldaten'!J111 -> datsun 610
A112: 111 | B112: =ROUND(MAX(_xlfn.NORM.INV(('Eingabe Email'!$B244+1)/MAX('Eingabe Email'!$B:$B),'H2 Originaldaten'!B112,7),2),1) -> 19.5 | C112: ='H2 Originaldaten'!C112 -> 3 | D112: =ROUND(MAX(_xlfn.NORM.INV(('Eingabe Email'!$B244+1)/MAX('Eingabe Email'!$B:$B),'H2 Originaldaten'!D112,7),2),1) -> 71.5 | E112: =ROUND(MAX(_xlfn.NORM.INV(('Eingabe Email'!$B244+1)/MAX('Eingabe Email'!$B:$B),'H2 Originaldaten'!E112,7),2),1) -> 91.5 | F112: =ROUND(MAX(_xlfn.NORM.INV(('Eingabe Email'!$B244+1)/MAX('Eingabe Email'!$B:$B),'H2 Originaldaten'!F112,7),2),1) -> 2125.5 | G112: =ROUND(MAX(_xlfn.NORM.INV(('Eingabe Email'!$B244+1)/MAX('Eingabe Email'!$B:$B),'H2 Originaldaten'!G112,7),2),1) -> 15 | H112: ='H2 Originaldaten'!H112 -> 73 | I112: ='H2 Originaldaten'!I112 -> 3 | J112: ='H2 Originaldaten'!J112 -> maxda rx3
A113: 112 | B113: =ROUND(MAX(_xlfn.NORM.INV(('Eingabe Email'!$B245+1)/MAX('Eingabe Email'!$B:$B),'H2 Originaldaten'!B113,7),2),1) -> 25 | C113: ='H2 Originaldaten'!C113 -> 4 | D113: =ROUND(MAX(_xlfn.NORM.INV(('Eingabe Email'!$B245+1)/MAX('Eingabe Email'!$B:$B),'H2 Originaldaten'!D113,7),2),1) -> 128 | E113: =ROUND(MAX(_xlfn.NORM.INV(('Eingabe Email'!$B245+1)/MAX('Eingabe Email'!$B:$B),'H2 Originaldaten'!E113,7),2),1) -> 91 | F113: =ROUND(MAX(_xlfn.NORM.INV(('Eingabe Email'!$B245+1)/MAX('Eingabe Email'!$B:$B),'H2 Originaldaten'!F113,7),2),1) -> 2316 | G113: =ROUND(MAX(_xlfn.NORM.INV(('Eingabe Email'!$B245+1)/MAX('Eingabe Email'!$B:$B),'H2 Originaldaten'!G113,7),2),1) -> 24.5 | H113: ='H2 Originaldaten'!H113 -> 73 | I113: ='H2 Originaldaten'!I113 -> 1 | J113: ='H2 Originaldaten'!J113 -> ford pinto
A114: 113 | B114: =ROUND(MAX(_xlfn.NORM.INV(('Eingabe Email'!$B246+1)/MAX('Eingabe Email'!$B:$B),'H2 Originaldaten'!B114,7),2),1) -> 21.8 | C114: ='H2 Originaldaten'!C114 -> 6 | D114: =ROUND(MAX(_xlfn.NORM.INV(('Eingabe Email'!$B246+1)/MAX('Eingabe Email'!$B:$B),'H2 Originaldaten'!D114,7),2),1) -> 155.8 | E114: =ROUND(MAX(_xlfn.NORM.INV(('Eingabe Email'!$B246+1)/MAX('Eingabe Email'!$B:$B),'H2 Originaldaten'!E114,7),2),1) -> 107.8 | F114: =ROUND(MAX(_xlfn.NORM.INV(('Eingabe Email'!$B246+1)/MAX('Eingabe Email'!$B:$B),'H2 Originaldaten'!F114,7),2),1) -> 2472.8 | G114: =ROUND(MAX(_xlfn.NORM.INV(('Eingabe Email'!$B246+1)/MAX('Eingabe Email'!$B:$B),'H2 Originaldaten'!G114,7),2),1) -> 14.8 | H114: ='H2 Originaldaten'!H114 -> 73 | I114: ='H2 Originaldaten'!I114 -> 1 | J114: ='H2 Originaldaten'!J114 -> mercury capri v6
A115: 114 | B115: =ROUND(MAX(_xlfn.NORM.INV(('Eingabe Email'!$B247+1)/MAX('Eingabe Email'!$B:$B),'H2 Originaldaten'!B115,7),2),1) -> 24.8 | C115: ='H2 Originaldaten'!C115 -> 4 | D115: =ROUND(MAX(_xlfn.NORM.INV(('Eingabe Email'!$B247+1)/MAX('Eingabe Email'!$B:$B),'H2 Originaldaten'!D115,7),2),1) -> 96.8 | E115: =ROUND(MAX(_xlfn.NORM.INV(('Eingabe Email'!$B247+1)/MAX('Eingabe Email'!$B:$B),'H2 Originaldaten'!E115,7),2),1) -> 88.8 | F115: =ROUND(MAX(_xlfn.NORM.INV(('Eingabe Email'!$B247+1)/MAX('Eingabe Email'!$B:$B),'H2 Originaldaten'!F115,7),2),1) -> 2263.8 | G115: =ROUND(MAX(_xlfn.NORM.INV(('Eingabe Email'!$B247+1)/MAX('Eingabe Email'!$B:$B),'H2 Originaldaten'!G115,7),2),1) -> 14.3 | H115: ='H2 Originaldaten'!H115 -> 73 | I115: ='H2 Originaldaten'!I115 -> 2 | J115: ='H2 Originaldaten'!J115 -> fiat 124 sport coupe
A116: 115 | B116: =ROUND(MAX(_xlfn.NORM.INV(('Eingabe Email'!$B248+1)/MAX('Eingabe Email'!$B:$B),'H2 Originaldaten'!B116,7),2),1) -> 24.6 | C116: ='H2 Originaldaten'!C116 -> 8 | D116: =ROUND(MAX(_xlfn.NORM.INV(('Eingabe Email'!$B248+1)/MAX('Eingabe Email'!$B:$B),'H2 Originaldaten'!D116,7),2),1) -> 359.6 | E116: =ROUND(MAX(_xlfn.NORM.INV(('Eingabe Email'!$B248+1)/MAX('Eingabe Email'!$B:$B),'H2 Originaldaten'!E116,7),2),1) -> 154.6 | F116: =ROUND(MAX(_xlfn.NORM.INV(('Eingabe Email'!$B248+1)/MAX('Eingabe Email'!$B:$B),'H2 Originaldaten'!F116,7),2),1) -> 4091.6 | G116: =ROUND(MAX(_xlfn.NORM.INV(('Eingabe Email'!$B248+1)/MAX('Eingabe Email'!$B:$B),'H2 Originaldaten'!G116,7),2),1) -> 22.6 | H116: ='H2 Originaldaten'!H116 -> 73 | I116: ='H2 Originaldaten'!I116 -> 1 | J116: ='H2 Originaldaten'!J116 -> chevrolet monte carlo s
A117: 116 | B117: =ROUND(MAX(_xlfn.NORM.INV(('Eingabe Email'!$B249+1)/MAX('Eingabe Email'!$B:$B),'H2 Originaldaten'!B117,7),2),1) -> 20.2 | C117: ='H2 Originaldaten'!C117 -> 8 | D117: =ROUND(MAX(_xlfn.NORM.INV(('Eingabe Email'!$B249+1)/MAX('Eingabe Email'!$B:$B),'H2 Originaldaten'!D117,7),2),1) -> 404.2 | E117: =ROUND(MAX(_xlfn.NORM.INV(('Eingabe Email'!$B249+1)/MAX('Eingabe Email'!$B:$B),'H2 Originaldaten'!E117,7),2),1) -> 234.2 | F117: =ROUND(MAX(_xlfn.NORM.INV(('Eingabe Email'!$B249+1)/MAX('Eingabe Email'!$B:$B),'H2 Originaldaten'!F117,7),2),1) -> 4282.2 | G117: =ROUND(MAX(_xlfn.NORM.INV(('Eingabe Email'!$B249+1)/MAX('Eingabe Email'!$B:$B),'H2 Originaldaten'!G117,7),2),1) -> 13.7 | H117: ='H2 Originaldaten'!H117 -> 73 | I117: ='H2 Originaldaten'!I117 -> 1 | J117: ='H2 Originaldaten'!J117 -> pontiac grand prix
A118: 117 | B118: =ROUND(MAX(_xlfn.NORM.INV(('Eingabe Email'!$B250+1)/MAX('Eingabe Email'!$B:$B),'H2 Originaldaten'!B118,7),2),1) -> 15.8 | C118: ='H2 Originaldaten'!C118 -> 4 | D118: =ROUND(MAX(_xlfn.NORM.INV(('Eingabe Email'!$B250+1)/MAX('Eingabe Email'!$B:$B),'H2 Originaldaten'!D118,7),2),1) -> 54.8 | E118: =ROUND(MAX(_xlfn.NORM.INV(('Eingabe Email'!$B250+1)/MAX('Eingabe Email'!$B:$B),'H2 Originaldaten'!E118,7),2),1) -> 35.8 | F118: =ROUND(MAX(_xlfn.NORM.INV(('Eingabe Email'!$B250+1)/MAX('Eingabe Email'!$B:$B),'H2 Originaldaten'!F118,7),2),1) -> 1853.8 | G118: =ROUND(MAX(_xlfn.NORM.INV(('Eingabe Email'!$B250+1)/MAX('Eingabe Email'!$B:$B),'H2 Originaldaten'!G118,7),2),1) -> 6.3 | H118: ='H2 Originaldaten'!H118 -> 73 | I118: ='H2 Originaldaten'!I118 -> 2 | J118: ='H2 Originaldaten'!J118 -> fiat 128
A119: 118 | B119: =ROUND(MAX(_xlfn.NORM.INV(('Eingabe Email'!$B251+1)/MAX('Eingabe Email'!$B:$B),'H2 Originaldaten'!B119,7),2),1) -> 31.2 | C119: ='H2 Originaldaten'!C119 -> 4 | D119: =ROUND(MAX(_xlfn.NORM.INV(('Eingabe Email'!$B251+1)/MAX('Eingabe Email'!$B:$B),'H2 Originaldaten'!D119,7),2),1) -> 123.2 | E119: =ROUND(MAX(_xlfn.NORM.INV(('Eingabe Email'!$B251+1)/MAX('Eingabe Email'!$B:$B),'H2 Originaldaten'!E119,7),2),1) -> 82.2 | F119: =ROUND(MAX(_xlfn.NORM.INV(('Eingabe Email'!$B251+1)/MAX('Eingabe Email'!$B:$B),'H2 Originaldaten'!F119,7),2),1) -> 2165.2 | G119: =ROUND(MAX(_xlfn.NORM.INV(('Eingabe Email'!$B251+1)/MAX('Eingabe Email'!$B:$B),'H2 Originaldaten'!G119,7),2),1) -> 22.7 | H119: ='H2 Originaldaten'!H119 -> 73 | I119: ='H2 Originaldaten'!I119 -> 2 | J119: ='H2 Originaldaten'!J119 -> opel manta
A120: 119 | B120: =ROUND(MAX(_xlfn.NORM.INV(('Eingabe Email'!$B252+1)/MAX('Eingabe Email'!$B:$B),'H2 Originaldaten'!B120,7),2),1) -> 11.9 | C120: ='H2 Originaldaten'!C120 -> 4 | D120: =ROUND(MAX(_xlfn.NORM.INV(('Eingabe Email'!$B252+1)/MAX('Eingabe Email'!$B:$B),'H2 Originaldaten'!D120,7),2),1) -> 105.9 | E120: =ROUND(MAX(_xlfn.NORM.INV(('Eingabe Email'!$B252+1)/MAX('Eingabe Email'!$B:$B),'H2 Originaldaten'!E120,7),2),1) -> 82.9 | F120: =ROUND(MAX(_xlfn.NORM.INV(('Eingabe Email'!$B252+1)/MAX('Eingabe Email'!$B:$B),'H2 Originaldaten'!F120,7),2),1) -> 2573.9 | G120: =ROUND(MAX(_xlfn.NORM.INV(('Eingabe Email'!$B252+1)/MAX('Eingabe Email'!$B:$B),'H2 Originaldaten'!G120,7),2),1) -> 5.9 | H120: ='H2 Originaldaten'!H120 -> 73 | I120: ='H2 Originaldaten'!I120 -> 2 | J120: ='H2 Originaldaten'!J120 -> audi 100ls
A121: 120 | B121: =ROUND(MAX(_xlfn.NORM.INV(('Eingabe Email'!$B253+1)/MAX('Eingabe Email'!$B:$B),'H2 Originaldaten'!B121,7),2),1) -> 15.7 | C121: ='H2 Originaldaten'!C121 -> 4 | D121: =ROUND(MAX(_xlfn.NORM.INV(('Eingabe Email'!$B253+1)/MAX('Eingabe Email'!$B:$B),'H2 Originaldaten'!D121,7),2),1) -> 117.7 | E121: =ROUND(MAX(_xlfn.NORM.INV(('Eingabe Email'!$B253+1)/MAX('Eingabe Email'!$B:$B),'H2 Originaldaten'!E121,7),2),1) -> 108.7 | F121: =ROUND(MAX(_xlfn.NORM.INV(('Eingabe Email'!$B253+1)/MAX('Eingabe Email'!$B:$B),'H2 Originaldaten'!F121,7),2),1) -> 2864.7 | G121: =ROUND(MAX(_xlfn.NORM.INV(('Eingabe Email'!$B253+1)/MAX('Eingabe Email'!$B:$B),'H2 Originaldaten'!G121,7),2),1) -> 12.2 | H121: ='H2 Originaldaten'!H121 -> 73 | I121: ='H2 Originaldaten'!I121 -> 2 | J121: ='H2 Originaldaten'!J121 -> volvo 144ea
A122: 121 | B122: =ROUND(MAX(_xlfn.NORM.INV(('Eingabe Email'!$B254+1)/MAX('Eingabe Email'!$B:$B),'H2 Originaldaten'!B122,7),2),1) -> 26.6 | C122: ='H2 Originaldaten'!C122 -> 8 | D122: =ROUND(MAX(_xlfn.NORM.INV(('Eingabe Email'!$B254+1)/MAX('Eingabe Email'!$B:$B),'H2 Originaldaten'!D122,7),2),1) -> 329.6 | E122: =ROUND(MAX(_xlfn.NORM.INV(('Eingabe Email'!$B254+1)/MAX('Eingabe Email'!$B:$B),'H2 Originaldaten'!E122,7),2),1) -> 161.6 | F122: =ROUND(MAX(_xlfn.NORM.INV(('Eingabe Email'!$B254+1)/MAX('Eingabe Email'!$B:$B),'H2 Originaldaten'!F122,7),2),1) -> 3410.6 | G122: =ROUND(MAX(_xlfn.NORM.INV(('Eingabe Email'!$B254+1)/MAX('Eingabe Email'!$B:$B),'H2 Originaldaten'!G122,7),2),1) -> 22.6 | H122: ='H2 Originaldaten'!H122 -> 73 | I122: ='H2 Originaldaten'!I122 -> 1 | J122: ='H2 Originaldaten'!J122 -> dodge dart custom
A123: 122 | B123: =ROUND(MAX(_xlfn.NORM.INV(('Eingabe Email'!$B255+1)/MAX('Eingabe Email'!$B:$B),'H2 Originaldaten'!B123,7),2),1) -> 15.5 | C123: ='H2 Originaldaten'!C123 -> 4 | D123: =ROUND(MAX(_xlfn.NORM.INV(('Eingabe Email'!$B255+1)/MAX('Eingabe Email'!$B:$B),'H2 Originaldaten'!D123,7),2),1) -> 112.5 | E123: =ROUND(MAX(_xlfn.NORM.INV(('Eingabe Email'!$B255+1)/MAX('Eingabe Email'!$B:$B),'H2 Originaldaten'!E123,7),2),1) -> 101.5 | F123: =ROUND(MAX(_xlfn.NORM.INV(('Eingabe Email'!$B255+1)/MAX('Eingabe Email'!$B:$B),'H2 Originaldaten'!F123,7),2),1) -> 2651.5 | G123: =ROUND(MAX(_xlfn.NORM.INV(('Eingabe Email'!$B255+1)/MAX('Eingabe Email'!$B:$B),'H2 Originaldaten'!G123,7),2),1) -> 5.5 | H123: ='H2 Originaldaten'!H123 -> 73 | I123: ='H2 Originaldaten'!I123 -> 2 | J123: ='H2 Originaldaten'!J123 -> saab 99le
A124: 123 | B124: =ROUND(MAX(_xlfn.NORM.INV(('Eingabe Email'!$B256+1)/MAX('Eingabe Email'!$B:$B),'H2 Originaldaten'!B124,7),2),1) -> 10 | C124: ='H2 Originaldaten'!C124 -> 6 | D124: =ROUND(MAX(_xlfn.NORM.INV(('Eingabe Email'!$B256+1)/MAX('Eingabe Email'!$B:$B),'H2 Originaldaten'!D124,7),2),1) -> 146 | E124: =ROUND(MAX(_xlfn.NORM.INV(('Eingabe Email'!$B256+1)/MAX('Eingabe Email'!$B:$B),'H2 Originaldaten'!E124,7),2),1) -> 112 | F124: =ROUND(MAX(_xlfn.NORM.INV(('Eingabe Email'!$B256+1)/MAX('Eingabe Email'!$B:$B),'H2 Originaldaten'!F124,7),2),1) -> 2797 | G124: =ROUND(MAX(_xlfn.NORM.INV(('Eingabe Email'!$B256+1)/MAX('Eingabe Email'!$B:$B),'H2 Originaldaten'!G124,7),2),1) -> 3.5 | H124: ='H2 Originaldaten'!H124 -> 73 | I124: ='H2 Originaldaten'!I124 -> 3 | J124: ='H2 Originaldaten'!J124 -> toyota mark ii
A125: 124 | B125: =ROUND(MAX(_xlfn.NORM.INV(('Eingabe Email'!$B257+1)/MAX('Eingabe Email'!$B:$B),'H2 Originaldaten'!B125,7),2),1) -> 2 | C125: ='H2 Originaldaten'!C125 -> 8 | D125: =ROUND(MAX(_xlfn.NORM.INV(('Eingabe Email'!$B257+1)/MAX('Eingabe Email'!$B:$B),'H2 Originaldaten'!D125,7),2),1) -> 340.8 | E125: =ROUND(MAX(_xlfn.NORM.INV(('Eingabe Email'!$B257+1)/MAX('Eingabe Email'!$B:$B),'H2 Originaldaten'!E125,7),2),1) -> 170.8 | F125: =ROUND(MAX(_xlfn.NORM.INV(('Eingabe Email'!$B257+1)/MAX('Eingabe Email'!$B:$B),'H2 Originaldaten'!F125,7),2),1) -> 3654.8 | G125: =ROUND(MAX(_xlfn.NORM.INV(('Eingabe Email'!$B257+1)/MAX('Eingabe Email'!$B:$B),'H2 Originaldaten'!G125,7),2),1) -> 2 | H125: ='H2 Originaldaten'!H125 -> 73 | I125: ='H2 Originaldaten'!I125 -> 1 | J125: ='H2 Originaldaten'!J125 -> oldsmobile omega
A126: 125 | B126: =ROUND(MAX(_xlfn.NORM.INV(('Eingabe Email'!$B258+1)/MAX('Eingabe Email'!$B:$B),'H2 Originaldaten'!B126,7),2),1) -> 18.5 | C126: ='H2 Originaldaten'!C126 -> 6 | D126: =ROUND(MAX(_xlfn.NORM.INV(('Eingabe Email'!$B258+1)/MAX('Eingabe Email'!$B:$B),'H2 Originaldaten'!D126,7),2),1) -> 196.5 | E126: =ROUND(MAX(_xlfn.NORM.INV(('Eingabe Email'!$B258+1)/MAX('Eingabe Email'!$B:$B),'H2 Originaldaten'!E126,7),2),1) -> 93.5 | F126: =ROUND(MAX(_xlfn.NORM.INV(('Eingabe Email'!$B258+1)/MAX('Eingabe Email'!$B:$B),'H2 Originaldaten'!F126,7),2),1) -> 3100.5 | G126: =ROUND(MAX(_xlfn.NORM.INV(('Eingabe Email'!$B258+1)/MAX('Eingabe Email'!$B:$B),'H2 Originaldaten'!G126,7),2),1) -> 15 | H126: ='H2 Originaldaten'!H126 -> 74 | I126: ='H2 Originaldaten'!I126 -> 1 | J126: ='H2 Originaldaten'!J126 -> plymouth duster
A127: 126 | B127: =ROUND(MAX(_xlfn.NORM.INV(('Eingabe Email'!$B259+1)/MAX('Eingabe Email'!$B:$B),'H2 Originaldaten'!B127,7),2),1) -> 17.5 | C127: ='H2 Originaldaten'!C127 -> 6 | D127: =ROUND(MAX(_xlfn.NORM.INV(('Eingabe Email'!$B259+1)/MAX('Eingabe Email'!$B:$B),'H2 Originaldaten'!D127,7),2),1) -> 230.5 | E127: =ROUND(MAX(_xlfn.NORM.INV(('Eingabe Email'!$B259+1)/MAX('Eingabe Email'!$B:$B),'H2 Originaldaten'!E127,7),2),1) -> 98.5 | F127: =ROUND(MAX(_xlfn.NORM.INV(('Eingabe Email'!$B259+1)/MAX('Eingabe Email'!$B:$B),'H2 Originaldaten'!F127,7),2),1) -> 2899.5 | G127: =ROUND(MAX(_xlfn.NORM.INV(('Eingabe Email'!$B259+1)/MAX('Eingabe Email'!$B:$B),'H2 Originaldaten'!G127,7),2),1) -> 14.5 | H127: ='H2 Originaldaten'!H127 -> 74 | I127: ='H2 Originaldaten'!I127 -> 1 | J127: ='H2 Originaldaten'!J127 -> amc hornet
A128: 127 | B128: =ROUND(MAX(_xlfn.NORM.INV(('Eingabe Email'!$B260+1)/MAX('Eingabe Email'!$B:$B),'H2 Originaldaten'!B128,7),2),1) -> 8.9 | C128: ='H2 Originaldaten'!C128 -> 6 | D128: =ROUND(MAX(_xlfn.NORM.INV(('Eingabe Email'!$B260+1)/MAX('Eingabe Email'!$B:$B),'H2 Originaldaten'!D128,7),2),1) -> 243.9 | E128: =ROUND(MAX(_xlfn.NORM.INV(('Eingabe Email'!$B260+1)/MAX('Eingabe Email'!$B:$B),'H2 Originaldaten'!E128,7),2),1) -> 93.9 | F128: =ROUND(MAX(_xlfn.NORM.INV(('Eingabe Email'!$B260+1)/MAX('Eingabe Email'!$B:$B),'H2 Originaldaten'!F128,7),2),1) -> 3329.9 | G128: =ROUND(MAX(_xlfn.NORM.INV(('Eingabe Email'!$B260+1)/MAX('Eingabe Email'!$B:$B),'H2 Originaldaten'!G128,7),2),1) -> 10.9 | H128: ='H2 Originaldaten'!H128 -> 74 | I128: ='H2 Originaldaten'!I128 -> 1 | J128: ='H2 Originaldaten'!J128 -> chevrolet nova
A129: 128 | B129: =ROUND(MAX(_xlfn.NORM.INV(('Eingabe Email'!$B261+1)/MAX('Eingabe Email'!$B:$B),'H2 Originaldaten'!B129,7),2),1) -> 27.5 | C129: ='H2 Originaldaten'!C129 -> 4 | D129: =ROUND(MAX(_xlfn.NORM.INV(('Eingabe Email'!$B261+1)/MAX('Eingabe Email'!$B:$B),'H2 Originaldaten'!D129,7),2),1) -> 75.5 | E129: =ROUND(MAX(_xlfn.NORM.INV(('Eingabe Email'!$B261+1)/MAX('Eingabe Email'!$B:$B),'H2 Originaldaten'!E129,7),2),1) -> 63.5 | F129: =ROUND(MAX(_xlfn.NORM.INV(('Eingabe Email'!$B261+1)/MAX('Eingabe Email'!$B:$B),'H2 Originaldaten'!F129,7),2),1) -> 1946.5 | G129: =ROUND(MAX(_xlfn.NORM.INV(('Eingabe Email'!$B261+1)/MAX('Eingabe Email'!$B:$B),'H2 Originaldaten'!G129,7),2),1) -> 15.5 | H129: ='H2 Originaldaten'!H129 -> 74 | I129: ='H2 Originaldaten'!I129 -> 3 | J129: ='H2 Originaldaten'!J129 -> datsun b210
A130: 129 | B130: =ROUND(MAX(_xlfn.NORM.INV(('Eingabe Email'!$B262+1)/MAX('Eingabe Email'!$B:$B),'H2 Originaldaten'!B130,7),2),1) -> 19.3 | C130: ='H2 Originaldaten'!C130 -> 4 | D130: =ROUND(MAX(_xlfn.NORM.INV(('Eingabe Email'!$B262+1)/MAX('Eingabe Email'!$B:$B),'H2 Originaldaten'!D130,7),2),1) -> 115.3 | E130: =ROUND(MAX(_xlfn.NORM.INV(('Eingabe Email'!$B262+1)/MAX('Eingabe Email'!$B:$B),'H2 Originaldaten'!E130,7),2),1) -> 73.3 | F130: =ROUND(MAX(_xlfn.NORM.INV(('Eingabe Email'!$B262+1)/MAX('Eingabe Email'!$B:$B),'H2 Originaldaten'!F130,7),2),1) -> 2444.3 | G130: =ROUND(MAX(_xlfn.NORM.INV(('Eingabe Email'!$B262+1)/MAX('Eingabe Email'!$B:$B),'H2 Originaldaten'!G130,7),2),1) -> 9.8 | H130: ='H2 Originaldaten'!H130 -> 74 | I130: ='H2 Originaldaten'!I130 -> 1 | J130: ='H2 Originaldaten'!J130 -> ford pinto
A131: 130 | B131: =ROUND(MAX(_xlfn.NORM.INV(('Eingabe Email'!$B263+1)/MAX('Eingabe Email'!$B:$B),'H2 Originaldaten'!B131,7),2),1) -> 25.7 | C131: ='H2 Originaldaten'!C131 -> 4 | D131: =ROUND(MAX(_xlfn.NORM.INV(('Eingabe Email'!$B263+1)/MAX('Eingabe Email'!$B:$B),'H2 Originaldaten'!D131,7),2),1) -> 64.7 | E131: =ROUND(MAX(_xlfn.NORM.INV(('Eingabe Email'!$B263+1)/MAX('Eingabe Email'!$B:$B),'H2 Originaldaten'!E131,7),2),1) -> 58.7 | F131: =ROUND(MAX(_xlfn.NORM.INV(('Eingabe Email'!$B263+1)/MAX('Eingabe Email'!$B:$B),'H2 Originaldaten'!F131,7),2),1) -> 1829.7 | G131: =ROUND(MAX(_xlfn.NORM.INV(('Eingabe Email'!$B263+1)/MAX('Eingabe Email'!$B:$B),'H2 Originaldaten'!G131,7),2),1) -> 14.7 | H131: ='H2 Originaldaten'!H131 -> 74 | I131: ='H2 Originaldaten'!I131 -> 3 | J131: ='H2 Originaldaten'!J131 -> toyota corolla 1200
A132: 131 | B132: =ROUND(MAX(_xlfn.NORM.INV(('Eingabe Email'!$B264+1)/MAX('Eingabe Email'!$B:$B),'H2 Originaldaten'!B132,7),2),1) -> 31.9 | C132: ='H2 Originaldaten'!C132 -> 4 | D132: =ROUND(MAX(_xlfn.NORM.INV(('Eingabe Email'!$B264+1)/MAX('Eingabe Email'!$B:$B),'H2 Originaldaten'!D132,7),2),1) -> 146.9 | E132: =ROUND(MAX(_xlfn.NORM.INV(('Eingabe Email'!$B264+1)/MAX('Eingabe Email'!$B:$B),'H2 Originaldaten'!E132,7),2),1) -> 81.9 | F132: =ROUND(MAX(_xlfn.NORM.INV(('Eingabe Email'!$B264+1)/MAX('Eingabe Email'!$B:$B),'H2 Originaldaten'!F132,7),2),1) -> 2548.9 | G132: =ROUND(MAX(_xlfn.NORM.INV(('Eingabe Email'!$B264+1)/MAX('Eingabe Email'!$B:$B),'H2 Originaldaten'!G132,7),2),1) -> 23.9 | H132: ='H2 Originaldaten'!H132 -> 74 | I132: ='H2 Originaldaten'!I132 -> 1 | J132: ='H2 Originaldaten'!J132 -> chevrolet vega
A133: 132 | B133: =ROUND(MAX(_xlfn.NORM.INV(('Eingabe Email'!$B265+1)/MAX('Eingabe Email'!$B:$B),'H2 Originaldaten'!B133,7),2),1) -> 19.8 | C133: ='H2 Originaldaten'!C133 -> 6 | D133: =ROUND(MAX(_xlfn.NORM.INV(('Eingabe Email'!$B265+1)/MAX('Eingabe Email'!$B:$B),'H2 Originaldaten'!D133,7),2),1) -> 253.8 | E133: =ROUND(MAX(_xlfn.NORM.INV(('Eingabe Email'!$B265+1)/MAX('Eingabe Email'!$B:$B),'H2 Originaldaten'!E133,7),2),1) -> 103.8 | F133: =ROUND(MAX(_xlfn.NORM.INV(('Eingabe Email'!$B265+1)/MAX('Eingabe Email'!$B:$B),'H2 Originaldaten'!F133,7),2),1) -> 3784.8 | G133: =ROUND(MAX(_xlfn.NORM.INV(('Eingabe Email'!$B265+1)/MAX('Eingabe Email'!$B:$B),'H2 Originaldaten'!G133,7),2),1) -> 20.8 | H133: ='H2 Originaldaten'!H133 -> 74 | I133: ='H2 Originaldaten'!I133 -> 1 | J133: ='H2 Originaldaten'!J133 -> chevrolet chevelle malibu classic
A134: 133 | B134: =ROUND(MAX(_xlfn.NORM.INV(('Eingabe Email'!$B266+1)/MAX('Eingabe Email'!$B:$B),'H2 Originaldaten'!B134,7),2),1) -> 16.6 | C134: ='H2 Originaldaten'!C134 -> 6 | D134: =ROUND(MAX(_xlfn.NORM.INV(('Eingabe Email'!$B266+1)/MAX('Eingabe Email'!$B:$B),'H2 Originaldaten'!D134,7),2),1) -> 258.6 | E134: =ROUND(MAX(_xlfn.NORM.INV(('Eingabe Email'!$B266+1)/MAX('Eingabe Email'!$B:$B),'H2 Originaldaten'!E134,7),2),1) -> 110.6 | F134: =ROUND(MAX(_xlfn.NORM.INV(('Eingabe Email'!$B266+1)/MAX('Eingabe Email'!$B:$B),'H2 Originaldaten'!F134,7),2),1) -> 3632.6 | G134: =ROUND(MAX(_xlfn.NORM.INV(('Eingabe Email'!$B266+1)/MAX('Eingabe Email'!$B:$B),'H2 Originaldaten'!G134,7),2),1) -> 18.6 | H134: ='H2 Originaldaten'!H134 -> 74 | I134: ='H2 Originaldaten'!I134 -> 1 | J134: ='H2 Originaldaten'!J134 -> amc matador
A135: 134 | B135: =ROUND(MAX(_xlfn.NORM.INV(('Eingabe Email'!$B267+1)/MAX('Eingabe Email'!$B:$B),'H2 Originaldaten'!B135,7),2),1) -> 15.3 | C135: ='H2 Originaldaten'!C135 -> 6 | D135: =ROUND(MAX(_xlfn.NORM.INV(('Eingabe Email'!$B267+1)/MAX('Eingabe Email'!$B:$B),'H2 Originaldaten'!D135,7),2),1) -> 222.3 | E135: =ROUND(MAX(_xlfn.NORM.INV(('Eingabe Email'!$B267+1)/MAX('Eingabe Email'!$B:$B),'H2 Originaldaten'!E135,7),2),1) -> 102.3 | F135: =ROUND(MAX(_xlfn.NORM.INV(('Eingabe Email'!$B267+1)/MAX('Eingabe Email'!$B:$B),'H2 Originaldaten'!F135,7),2),1) -> 3610.3 | G135: =ROUND(MAX(_xlfn.NORM.INV(('Eingabe Email'!$B267+1)/MAX('Eingabe Email'!$B:$B),'H2 Originaldaten'!G135,7),2),1) -> 13.8 | H135: ='H2 Originaldaten'!H135 -> 74 | I135: ='H2 Originaldaten'!I135 -> 1 | J135: ='H2 Originaldaten'!J135 -> plymouth satellite sebring
A136: 135 | B136: =ROUND(MAX(_xlfn.NORM.INV(('Eingabe Email'!$B268+1)/MAX('Eingabe Email'!$B:$B),'H2 Originaldaten'!B136,7),2),1) -> 11.1 | C136: ='H2 Originaldaten'!C136 -> 8 | D136: =ROUND(MAX(_xlfn.NORM.INV(('Eingabe Email'!$B268+1)/MAX('Eingabe Email'!$B:$B),'H2 Originaldaten'!D136,7),2),1) -> 297.1 | E136: =ROUND(MAX(_xlfn.NORM.INV(('Eingabe Email'!$B268+1)/MAX('Eingabe Email'!$B:$B),'H2 Originaldaten'!E136,7),2),1) -> 135.1 | F136: =ROUND(MAX(_xlfn.NORM.INV(('Eingabe Email'!$B268+1)/MAX('Eingabe Email'!$B:$B),'H2 Originaldaten'!F136,7),2),1) -> 4136.1 | G136: =ROUND(MAX(_xlfn.NORM.INV(('Eingabe Email'!$B268+1)/MAX('Eingabe Email'!$B:$B),'H2 Originaldaten'!G136,7),2),1) -> 9.1 | H136: ='H2 Originaldaten'!H136 -> 74 | I136: ='H2 Originaldaten'!I136 -> 1 | J136: ='H2 Originaldaten'!J136 -> ford gran torino
A137: 136 | B137: =ROUND(MAX(_xlfn.NORM.INV(('Eingabe Email'!$B269+1)/MAX('Eingabe Email'!$B:$B),'H2 Originaldaten'!B137,7),2),1) -> 10.6 | C137: ='H2 Originaldaten'!C137 -> 8 | D137: =ROUND(MAX(_xlfn.NORM.INV(('Eingabe Email'!$B269+1)/MAX('Eingabe Email'!$B:$B),'H2 Originaldaten'!D137,7),2),1) -> 347.6 | E137: =ROUND(MAX(_xlfn.NORM.INV(('Eingabe Email'!$B269+1)/MAX('Eingabe Email'!$B:$B),'H2 Originaldaten'!E137,7),2),1) -> 147.6 | F137: =ROUND(MAX(_xlfn.NORM.INV(('Eingabe Email'!$B269+1)/MAX('Eingabe Email'!$B:$B),'H2 Originaldaten'!F137,7),2),1) -> 4696.6 | G137: =ROUND(MAX(_xlfn.NORM.INV(('Eingabe Email'!$B269+1)/MAX('Eingabe Email'!$B:$B),'H2 Originaldaten'!G137,7),2),1) -> 12.1 | H137: ='H2 Originaldaten'!H137 -> 74 | I137: ='H2 Originaldaten'!I137 -> 1 | J137: ='H2 Originaldaten'!J137 -> buick century luxus (sw)
A138: 137 | B138: =ROUND(MAX(_xlfn.NORM.INV(('Eingabe Email'!$B270+1)/MAX('Eingabe Email'!$B:$B),'H2 Originaldaten'!B138,7),2),1) -> 14.4 | C138: ='H2 Originaldaten'!C138 -> 8 | D138: =ROUND(MAX(_xlfn.NORM.INV(('Eingabe Email'!$B270+1)/MAX('Eingabe Email'!$B:$B),'H2 Originaldaten'!D138,7),2),1) -> 318.4 | E138: =ROUND(MAX(_xlfn.NORM.INV(('Eingabe Email'!$B270+1)/MAX('Eingabe Email'!$B:$B),'H2 Originaldaten'!E138,7),2),1) -> 150.4 | F138: =ROUND(MAX(_xlfn.NORM.INV(('Eingabe Email'!$B270+1)/MAX('Eingabe Email'!$B:$B),'H2 Originaldaten'!F138,7),2),1) -> 4457.4 | G138: =ROUND(MAX(_xlfn.NORM.INV(('Eingabe Email'!$B270+1)/MAX('Eingabe Email'!$B:$B),'H2 Originaldaten'!G138,7),2),1) -> 13.9 | H138: ='H2 Originaldaten'!H138 -> 74 | I138: ='H2 Originaldaten'!I138 -> 1 | J138: ='H2 Originaldaten'!J138 -> dodge coronet custom (sw)
A139: 138 | B139: =ROUND(MAX(_xlfn.NORM.INV(('Eingabe Email'!$B271+1)/MAX('Eingabe Email'!$B:$B),'H2 Originaldaten'!B139,7),2),1) -> 14.7 | C139: ='H2 Originaldaten'!C139 -> 8 | D139: =ROUND(MAX(_xlfn.NORM.INV(('Eingabe Email'!$B271+1)/MAX('Eingabe Email'!$B:$B),'H2 Originaldaten'!D139,7),2),1) -> 302.7 | E139: =ROUND(MAX(_xlfn.NORM.INV(('Eingabe Email'!$B271+1)/MAX('Eingabe Email'!$B:$B),'H2 Originaldaten'!E139,7),2),1) -> 140.7 | F139: =ROUND(MAX(_xlfn.NORM.INV(('Eingabe Email'!$B271+1)/MAX('Eingabe Email'!$B:$B),'H2 Originaldaten'!F139,7),2),1) -> 4638.7 | G139: =ROUND(MAX(_xlfn.NORM.INV(('Eingabe Email'!$B271+1)/MAX('Eingabe Email'!$B:$B),'H2 Originaldaten'!G139,7),2),1) -> 16.7 | H139: ='H2 Originaldaten'!H139 -> 74 | I139: ='H2 Originaldaten'!I139 -> 1 | J139: ='H2 Originaldaten'!J139 -> ford gran torino (sw)
A140: 139 | B140: =ROUND(MAX(_xlfn.NORM.INV(('Eingabe Email'!$B272+1)/MAX('Eingabe Email'!$B:$B),'H2 Originaldaten'!B140,7),2),1) -> 15.2 | C140: ='H2 Originaldaten'!C140 -> 8 | D140: =ROUND(MAX(_xlfn.NORM.INV(('Eingabe Email'!$B272+1)/MAX('Eingabe Email'!$B:$B),'H2 Originaldaten'!D140,7),2),1) -> 305.2 | E140: =ROUND(MAX(_xlfn.NORM.INV(('Eingabe Email'!$B272+1)/MAX('Eingabe Email'!$B:$B),'H2 Originaldaten'!E140,7),2),1) -> 151.2 | F140: =ROUND(MAX(_xlfn.NORM.INV(('Eingabe Email'!$B272+1)/MAX('Eingabe Email'!$B:$B),'H2 Originaldaten'!F140,7),2),1) -> 4258.2 | G140: =ROUND(MAX(_xlfn.NORM.INV(('Eingabe Email'!$B272+1)/MAX('Eingabe Email'!$B:$B),'H2 Originaldaten'!G140,7),2),1) -> 16.7 | H140: ='H2 Originaldaten'!H140 -> 74 | I140: ='H2 Originaldaten'!I140 -> 1 | J140: ='H2 Originaldaten'!J140 -> amc matador (sw)
A141: 140 | B141: =ROUND(MAX(_xlfn.NORM.INV(('Eingabe Email'!$B273+1)/MAX('Eingabe Email'!$B:$B),'H2 Originaldaten'!B141,7),2),1) -> 37.9 | C141: ='H2 Originaldaten'!C141 -> 4 | D141: =ROUND(MAX(_xlfn.NORM.INV(('Eingabe Email'!$B273+1)/MAX('Eingabe Email'!$B:$B),'H2 Originaldaten'!D141,7),2),1) -> 106.9 | E141: =ROUND(MAX(_xlfn.NORM.INV(('Eingabe Email'!$B273+1)/MAX('Eingabe Email'!$B:$B),'H2 Originaldaten'!E141,7),2),1) -> 91.9 | F141: =ROUND(MAX(_xlfn.NORM.INV(('Eingabe Email'!$B273+1)/MAX('Eingabe Email'!$B:$B),'H2 Originaldaten'!F141,7),2),1) -> 2227.9 | G141: =ROUND(MAX(_xlfn.NORM.INV(('Eingabe Email'!$B273+1)/MAX('Eingabe Email'!$B:$B),'H2 Originaldaten'!G141,7),2),1) -> 25.4 | H141: ='H2 Originaldaten'!H141 -> 74 | I141: ='H2 Originaldaten'!I141 -> 2 | J141: ='H2 Originaldaten'!J141 -> audi fox
A142: 141 | B142: =ROUND(MAX(_xlfn.NORM.INV(('Eingabe Email'!$B274+1)/MAX('Eingabe Email'!$B:$B),'H2 Originaldaten'!B142,7),2),1) -> 20.7 | C142: ='H2 Originaldaten'!C142 -> 4 | D142: =ROUND(MAX(_xlfn.NORM.INV(('Eingabe Email'!$B274+1)/MAX('Eingabe Email'!$B:$B),'H2 Originaldaten'!D142,7),2),1) -> 73.7 | E142: =ROUND(MAX(_xlfn.NORM.INV(('Eingabe Email'!$B274+1)/MAX('Eingabe Email'!$B:$B),'H2 Originaldaten'!E142,7),2),1) -> 61.7 | F142: =ROUND(MAX(_xlfn.NORM.INV(('Eingabe Email'!$B274+1)/MAX('Eingabe Email'!$B:$B),'H2 Originaldaten'!F142,7),2),1) -> 1957.7 | G142: =ROUND(MAX(_xlfn.NORM.INV(('Eingabe Email'!$B274+1)/MAX('Eingabe Email'!$B:$B),'H2 Originaldaten'!G142,7),2),1) -> 10.2 | H142: ='H2 Originaldaten'!H142 -> 74 | I142: ='H2 Originaldaten'!I142 -> 2 | J142: ='H2 Originaldaten'!J142 -> volkswagen dasher
A143: 142 | B143: =ROUND(MAX(_xlfn.NORM.INV(('Eingabe Email'!$B275+1)/MAX('Eingabe Email'!$B:$B),'H2 Originaldaten'!B143,7),2),1) -> 31 | C143: ='H2 Originaldaten'!C143 -> 4 | D143: =ROUND(MAX(_xlfn.NORM.INV(('Eingabe Email'!$B275+1)/MAX('Eingabe Email'!$B:$B),'H2 Originaldaten'!D143,7),2),1) -> 102 | E143: =ROUND(MAX(_xlfn.NORM.INV(('Eingabe Email'!$B275+1)/MAX('Eingabe Email'!$B:$B),'H2 Originaldaten'!E143,7),2),1) -> 83 | F143: =ROUND(MAX(_xlfn.NORM.INV(('Eingabe Email'!$B275+1)/MAX('Eingabe Email'!$B:$B),'H2 Originaldaten'!F143,7),2),1) -> 2305 | G143: =ROUND(MAX(_xlfn.NORM.INV(('Eingabe Email'!$B275+1)/MAX('Eingabe Email'!$B:$B),'H2 Originaldaten'!G143,7),2),1) -> 19.5 | H143: ='H2 Originaldaten'!H143 -> 74 | I143: ='H2 Originaldaten'!I143 -> 2 | J143: ='H2 Originaldaten'!J143 -> opel manta
A144: 143 | B144: =ROUND(MAX(_xlfn.NORM.INV(('Eingabe Email'!$B276+1)/MAX('Eingabe Email'!$B:$B),'H2 Originaldaten'!B144,7),2),1) -> 27.6 | C144: ='H2 Originaldaten'!C144 -> 4 | D144: =ROUND(MAX(_xlfn.NORM.INV(('Eingabe Email'!$B276+1)/MAX('Eingabe Email'!$B:$B),'H2 Originaldaten'!D144,7),2),1) -> 72.6 | E144: =ROUND(MAX(_xlfn.NORM.INV(('Eingabe Email'!$B276+1)/MAX('Eingabe Email'!$B:$B),'H2 Originaldaten'!E144,7),2),1) -> 48.6 | F144: =ROUND(MAX(_xlfn.NORM.INV(('Eingabe Email'!$B276+1)/MAX('Eingabe Email'!$B:$B),'H2 Originaldaten'!F144,7),2),1) -> 1645.6 | G144: =ROUND(MAX(_xlfn.NORM.INV(('Eingabe Email'!$B276+1)/MAX('Eingabe Email'!$B:$B),'H2 Originaldaten'!G144,7),2),1) -> 13.1 | H144: ='H2 Originaldaten'!H144 -> 74 | I144: ='H2 Originaldaten'!I144 -> 3 | J144: ='H2 Originaldaten'!J144 -> toyota corona
A145: 144 | B145: =ROUND(MAX(_xlfn.NORM.INV(('Eingabe Email'!$B277+1)/MAX('Eingabe Email'!$B:$B),'H2 Originaldaten'!B145,7),2),1) -> 39.3 | C145: ='H2 Originaldaten'!C145 -> 4 | D145: =ROUND(MAX(_xlfn.NORM.INV(('Eingabe Email'!$B277+1)/MAX('Eingabe Email'!$B:$B),'H2 Originaldaten'!D145,7),2),1) -> 90.3 | E145: =ROUND(MAX(_xlfn.NORM.INV(('Eingabe Email'!$B277+1)/MAX('Eingabe Email'!$B:$B),'H2 Originaldaten'!E145,7),2),1) -> 68.3 | F145: =ROUND(MAX(_xlfn.NORM.INV(('Eingabe Email'!$B277+1)/MAX('Eingabe Email'!$B:$B),'H2 Originaldaten'!F145,7),2),1) -> 2010.3 | G145: =ROUND(MAX(_xlfn.NORM.INV(('Eingabe Email'!$B277+1)/MAX('Eingabe Email'!$B:$B),'H2 Originaldaten'!G145,7),2),1) -> 26.3 | H145: ='H2 Originaldaten'!H145 -> 74 | I145: ='H2 Originaldaten'!I145 -> 3 | J145: ='H2 Originaldaten'!J145 -> datsun 710
A146: 145 | B146: =ROUND(MAX(_xlfn.NORM.INV(('Eingabe Email'!$B278+1)/MAX('Eingabe Email'!$B:$B),'H2 Originaldaten'!B146,7),2),1) -> 27.3 | C146: ='H2 Originaldaten'!C146 -> 4 | D146: =ROUND(MAX(_xlfn.NORM.INV(('Eingabe Email'!$B278+1)/MAX('Eingabe Email'!$B:$B),'H2 Originaldaten'!D146,7),2),1) -> 89.3 | E146: =ROUND(MAX(_xlfn.NORM.INV(('Eingabe Email'!$B278+1)/MAX('Eingabe Email'!$B:$B),'H2 Originaldaten'!E146,7),2),1) -> 74.3 | F146: =ROUND(MAX(_xlfn.NORM.INV(('Eingabe Email'!$B278+1)/MAX('Eingabe Email'!$B:$B),'H2 Originaldaten'!F146,7),2),1) -> 2124.3 | G146: =ROUND(MAX(_xlfn.NORM.INV(('Eingabe Email'!$B278+1)/MAX('Eingabe Email'!$B:$B),'H2 Originaldaten'!G146,7),2),1) -> 13.8 | H146: ='H2 Originaldaten'!H146 -> 74 | I146: ='H2 Originaldaten'!I146 -> 1 | J146: ='H2 Originaldaten'!J146 -> dodge colt
A147: 146 | B147: =ROUND(MAX(_xlfn.NORM.INV(('Eingabe Email'!$B279+1)/MAX('Eingabe Email'!$B:$B),'H2 Originaldaten'!B147,7),2),1) -> 36.3 | C147: ='H2 Originaldaten'!C147 -> 4 | D147: =ROUND(MAX(_xlfn.NORM.INV(('Eingabe Email'!$B279+1)/MAX('Eingabe Email'!$B:$B),'H2 Originaldaten'!D147,7),2),1) -> 102.3 | E147: =ROUND(MAX(_xlfn.NORM.INV(('Eingabe Email'!$B279+1)/MAX('Eingabe Email'!$B:$B),'H2 Originaldaten'!E147,7),2),1) -> 87.3 | F147: =ROUND(MAX(_xlfn.NORM.INV(('Eingabe Email'!$B279+1)/MAX('Eingabe Email'!$B:$B),'H2 Originaldaten'!F147,7),2),1) -> 2120.3 | G147: =ROUND(MAX(_xlfn.NORM.INV(('Eingabe Email'!$B279+1)/MAX('Eingabe Email'!$B:$B),'H2 Originaldaten'!G147,7),2),1) -> 27.8 | H147: ='H2 Originaldaten'!H147 -> 74 | I147: ='H2 Originaldaten'!I147 -> 2 | J147: ='H2 Originaldaten'!J147 -> fiat 128
A148: 147 | B148: =ROUND(MAX(_xlfn.NORM.INV(('Eingabe Email'!$B280+1)/MAX('Eingabe Email'!$B:$B),'H2 Originaldaten'!B148,7),2),1) -> 28.4 | C148: ='H2 Originaldaten'!C148 -> 4 | D148: =ROUND(MAX(_xlfn.NORM.INV(('Eingabe Email'!$B280+1)/MAX('Eingabe Email'!$B:$B),'H2 Originaldaten'!D148,7),2),1) -> 118.4 | E148: =ROUND(MAX(_xlfn.NORM.INV(('Eingabe Email'!$B280+1)/MAX('Eingabe Email'!$B:$B),'H2 Originaldaten'!E148,7),2),1) -> 77.4 | F148: =ROUND(MAX(_xlfn.NORM.INV(('Eingabe Email'!$B280+1)/MAX('Eingabe Email'!$B:$B),'H2 Originaldaten'!F148,7),2),1) -> 2248.4 | G148: =ROUND(MAX(_xlfn.NORM.INV(('Eingabe Email'!$B280+1)/MAX('Eingabe Email'!$B:$B),'H2 Originaldaten'!G148,7),2),1) -> 16.4 | H148: ='H2 Originaldaten'!H148 -> 74 | I148: ='H2 Originaldaten'!I148 -> 2 | J148: ='H2 Originaldaten'!J148 -> fiat 124 tc
A149: 148 | B149: =ROUND(MAX(_xlfn.NORM.INV(('Eingabe Email'!$B281+1)/MAX('Eingabe Email'!$B:$B),'H2 Originaldaten'!B149,7),2),1) -> 18.7 | C149: ='H2 Originaldaten'!C149 -> 4 | D149: =ROUND(MAX(_xlfn.NORM.INV(('Eingabe Email'!$B281+1)/MAX('Eingabe Email'!$B:$B),'H2 Originaldaten'!D149,7),2),1) -> 114.7 | E149: =ROUND(MAX(_xlfn.NORM.INV(('Eingabe Email'!$B281+1)/MAX('Eingabe Email'!$B:$B),'H2 Originaldaten'!E149,7),2),1) -> 91.7 | F149: =ROUND(MAX(_xlfn.NORM.INV(('Eingabe Email'!$B281+1)/MAX('Eingabe Email'!$B:$B),'H2 Originaldaten'!F149,7),2),1) -> 2483.7 | G149: =ROUND(MAX(_xlfn.NORM.INV(('Eingabe Email'!$B281+1)/MAX('Eingabe Email'!$B:$B),'H2 Originaldaten'!G149,7),2),1) -> 9.7 | H149: ='H2 Originaldaten'!H149 -> 74 | I149: ='H2 Originaldaten'!I149 -> 3 | J149: ='H2 Originaldaten'!J149 -> honda civic
A150: 149 | B150: =ROUND(MAX(_xlfn.NORM.INV(('Eingabe Email'!$B282+1)/MAX('Eingabe Email'!$B:$B),'H2 Originaldaten'!B150,7),2),1) -> 28.3 | C150: ='H2 Originaldaten'!C150 -> 4 | D150: =ROUND(MAX(_xlfn.NORM.INV(('Eingabe Email'!$B282+1)/MAX('Eingabe Email'!$B:$B),'H2 Originaldaten'!D150,7),2),1) -> 110.3 | E150: =ROUND(MAX(_xlfn.NORM.INV(('Eingabe Email'!$B282+1)/MAX('Eingabe Email'!$B:$B),'H2 Originaldaten'!E150,7),2),1) -> 95.3 | F150: =ROUND(MAX(_xlfn.NORM.INV(('Eingabe Email'!$B282+1)/MAX('Eingabe Email'!$B:$B),'H2 Originaldaten'!F150,7),2),1) -> 2393.3 | G150: =ROUND(MAX(_xlfn.NORM.INV(('Eingabe Email'!$B282+1)/MAX('Eingabe Email'!$B:$B),'H2 Originaldaten'!G150,7),2),1) -> 17.8 | H150: ='H2 Originaldaten'!H150 -> 74 | I150: ='H2 Originaldaten'!I150 -> 3 | J150: ='H2 Originaldaten'!J150 -> subaru
A151: 150 | B151: =ROUND(MAX(_xlfn.NORM.INV(('Eingabe Email'!$B283+1)/MAX('Eingabe Email'!$B:$B),'H2 Originaldaten'!B151,7),2),1) -> 37.5 | C151: ='H2 Originaldaten'!C151 -> 4 | D151: =ROUND(MAX(_xlfn.NORM.INV(('Eingabe Email'!$B283+1)/MAX('Eingabe Email'!$B:$B),'H2 Originaldaten'!D151,7),2),1) -> 85.5 | E151: =ROUND(MAX(_xlfn.NORM.INV(('Eingabe Email'!$B283+1)/MAX('Eingabe Email'!$B:$B),'H2 Originaldaten'!E151,7),2),1) -> 73.5 | F151: =ROUND(MAX(_xlfn.NORM.INV(('Eingabe Email'!$B283+1)/MAX('Eingabe Email'!$B:$B),'H2 Originaldaten'!F151,7),2),1) -> 2006.5 | G151: =ROUND(MAX(_xlfn.NORM.INV(('Eingabe Email'!$B283+1)/MAX('Eingabe Email'!$B:$B),'H2 Originaldaten'!G151,7),2),1) -> 22.5 | H151: ='H2 Originaldaten'!H151 -> 74 | I151: ='H2 Originaldaten'!I151 -> 2 | J151: ='H2 Originaldaten'!J151 -> fiat x1.9
A152: 151 | B152: =ROUND(MAX(_xlfn.NORM.INV(('Eingabe Email'!$B284+1)/MAX('Eingabe Email'!$B:$B),'H2 Originaldaten'!B152,7),2),1) -> 25.5 | C152: ='H2 Originaldaten'!C152 -> 6 | D152: =ROUND(MAX(_xlfn.NORM.INV(('Eingabe Email'!$B284+1)/MAX('Eingabe Email'!$B:$B),'H2 Originaldaten'!D152,7),2),1) -> 231.5 | E152: =ROUND(MAX(_xlfn.NORM.INV(('Eingabe Email'!$B284+1)/MAX('Eingabe Email'!$B:$B),'H2 Originaldaten'!E152,7),2),1) -> 101.5 | F152: =ROUND(MAX(_xlfn.NORM.INV(('Eingabe Email'!$B284+1)/MAX('Eingabe Email'!$B:$B),'H2 Originaldaten'!F152,7),2),1) -> 3270.5 | G152: =ROUND(MAX(_xlfn.NORM.INV(('Eingabe Email'!$B284+1)/MAX('Eingabe Email'!$B:$B),'H2 Originaldaten'!G152,7),2),1) -> 22.5 | H152: ='H2 Originaldaten'!H152 -> 75 | I152: ='H2 Originaldaten'!I152 -> 1 | J152: ='H2 Originaldaten'!J152 -> plymouth valiant custom
A153: 152 | B153: =ROUND(MAX(_xlfn.NORM.INV(('Eingabe Email'!$B285+1)/MAX('Eingabe Email'!$B:$B),'H2 Originaldaten'!B153,7),2),1) -> 26.3 | C153: ='H2 Originaldaten'!C153 -> 6 | D153: =ROUND(MAX(_xlfn.NORM.INV(('Eingabe Email'!$B285+1)/MAX('Eingabe Email'!$B:$B),'H2 Originaldaten'!D153,7),2),1) -> 258.3 | E153: =ROUND(MAX(_xlfn.NORM.INV(('Eingabe Email'!$B285+1)/MAX('Eingabe Email'!$B:$B),'H2 Originaldaten'!E153,7),2),1) -> 113.3 | F153: =ROUND(MAX(_xlfn.NORM.INV(('Eingabe Email'!$B285+1)/MAX('Eingabe Email'!$B:$B),'H2 Originaldaten'!F153,7),2),1) -> 3467.3 | G153: =ROUND(MAX(_xlfn.NORM.INV(('Eingabe Email'!$B285+1)/MAX('Eingabe Email'!$B:$B),'H2 Originaldaten'!G153,7),2),1) -> 24.3 | H153: ='H2 Originaldaten'!H153 -> 75 | I153: ='H2 Originaldaten'!I153 -> 1 | J153: ='H2 Originaldaten'!J153 -> chevrolet nova
A154: 153 | B154: =ROUND(MAX(_xlfn.NORM.INV(('Eingabe Email'!$B286+1)/MAX('Eingabe Email'!$B:$B),'H2 Originaldaten'!B154,7),2),1) -> 7.6 | C154: ='H2 Originaldaten'!C154 -> 6 | D154: =ROUND(MAX(_xlfn.NORM.INV(('Eingabe Email'!$B286+1)/MAX('Eingabe Email'!$B:$B),'H2 Originaldaten'!D154,7),2),1) -> 242.6 | E154: =ROUND(MAX(_xlfn.NORM.INV(('Eingabe Email'!$B286+1)/MAX('Eingabe Email'!$B:$B),'H2 Originaldaten'!E154,7),2),1) -> 64.6 | F154: =ROUND(MAX(_xlfn.NORM.INV(('Eingabe Email'!$B286+1)/MAX('Eingabe Email'!$B:$B),'H2 Originaldaten'!F154,7),2),1) -> 3424.6 | G154: =ROUND(MAX(_xlfn.NORM.INV(('Eingabe Email'!$B286+1)/MAX('Eingabe Email'!$B:$B),'H2 Originaldaten'!G154,7),2),1) -> 13.6 | H154: ='H2 Originaldaten'!H154 -> 75 | I154: ='H2 Originaldaten'!I154 -> 1 | J154: ='H2 Originaldaten'!J154 -> mercury monarch
A155: 154 | B155: =ROUND(MAX(_xlfn.NORM.INV(('Eingabe Email'!$B287+1)/MAX('Eingabe Email'!$B:$B),'H2 Originaldaten'!B155,7),2),1) -> 10.2 | C155: ='H2 Originaldaten'!C155 -> 6 | D155: =ROUND(MAX(_xlfn.NORM.INV(('Eingabe Email'!$B287+1)/MAX('Eingabe Email'!$B:$B),'H2 Originaldaten'!D155,7),2),1) -> 245.2 | E155: =ROUND(MAX(_xlfn.NORM.INV(('Eingabe Email'!$B287+1)/MAX('Eingabe Email'!$B:$B),'H2 Originaldaten'!E155,7),2),1) -> 67.2 | F155: =ROUND(MAX(_xlfn.NORM.INV(('Eingabe Email'!$B287+1)/MAX('Eingabe Email'!$B:$B),'H2 Originaldaten'!F155,7),2),1) -> 3153.2 | G155: =ROUND(MAX(_xlfn.NORM.INV(('Eingabe Email'!$B287+1)/MAX('Eingabe Email'!$B:$B),'H2 Originaldaten'!G155,7),2),1) -> 14.7 | H155: ='H2 Originaldaten'!H155 -> 75 | I155: ='H2 Originaldaten'!I155 -> 1 | J155: ='H2 Originaldaten'!J155 -> ford maverick
A156: 155 | B156: =ROUND(MAX(_xlfn.NORM.INV(('Eingabe Email'!$B288+1)/MAX('Eingabe Email'!$B:$B),'H2 Originaldaten'!B156,7),2),1) -> 15.5 | C156: ='H2 Originaldaten'!C156 -> 8 | D156: =ROUND(MAX(_xlfn.NORM.INV(('Eingabe Email'!$B288+1)/MAX('Eingabe Email'!$B:$B),'H2 Originaldaten'!D156,7),2),1) -> 399.5 | E156: =ROUND(MAX(_xlfn.NORM.INV(('Eingabe Email'!$B288+1)/MAX('Eingabe Email'!$B:$B),'H2 Originaldaten'!E156,7),2),1) -> 169.5 | F156: =ROUND(MAX(_xlfn.NORM.INV(('Eingabe Email'!$B288+1)/MAX('Eingabe Email'!$B:$B),'H2 Originaldaten'!F156,7),2),1) -> 4667.5 | G156: =ROUND(MAX(_xlfn.NORM.INV(('Eingabe Email'!$B288+1)/MAX('Eingabe Email'!$B:$B),'H2 Originaldaten'!G156,7),2),1) -> 11 | H156: ='H2 Originaldaten'!H156 -> 75 | I156: ='H2 Originaldaten'!I156 -> 1 | J156: ='H2 Originaldaten'!J156 -> pontiac catalina
A157: 156 | B157: =ROUND(MAX(_xlfn.NORM.INV(('Eingabe Email'!$B289+1)/MAX('Eingabe Email'!$B:$B),'H2 Originaldaten'!B157,7),2),1) -> 20.6 | C157: ='H2 Originaldaten'!C157 -> 8 | D157: =ROUND(MAX(_xlfn.NORM.INV(('Eingabe Email'!$B289+1)/MAX('Eingabe Email'!$B:$B),'H2 Originaldaten'!D157,7),2),1) -> 355.6 | E157: =ROUND(MAX(_xlfn.NORM.INV(('Eingabe Email'!$B289+1)/MAX('Eingabe Email'!$B:$B),'H2 Originaldaten'!E157,7),2),1) -> 150.6 | F157: =ROUND(MAX(_xlfn.NORM.INV(('Eingabe Email'!$B289+1)/MAX('Eingabe Email'!$B:$B),'H2 Originaldaten'!F157,7),2),1) -> 4445.6 | G157: =ROUND(MAX(_xlfn.NORM.INV(('Eingabe Email'!$B289+1)/MAX('Eingabe Email'!$B:$B),'H2 Originaldaten'!G157,7),2),1) -> 19.6 | H157: ='H2 Originaldaten'!H157 -> 75 | I157: ='H2 Originaldaten'!I157 -> 1 | J157: ='H2 Originaldaten'!J157 -> chevrolet bel air
A158: 157 | B158: =ROUND(MAX(_xlfn.NORM.INV(('Eingabe Email'!$B290+1)/MAX('Eingabe Email'!$B:$B),'H2 Originaldaten'!B158,7),2),1) -> 21.8 | C158: ='H2 Originaldaten'!C158 -> 8 | D158: =ROUND(MAX(_xlfn.NORM.INV(('Eingabe Email'!$B290+1)/MAX('Eingabe Email'!$B:$B),'H2 Originaldaten'!D158,7),2),1) -> 323.8 | E158: =ROUND(MAX(_xlfn.NORM.INV(('Eingabe Email'!$B290+1)/MAX('Eingabe Email'!$B:$B),'H2 Originaldaten'!E158,7),2),1) -> 155.8 | F158: =ROUND(MAX(_xlfn.NORM.INV(('Eingabe Email'!$B290+1)/MAX('Eingabe Email'!$B:$B),'H2 Originaldaten'!F158,7),2),1) -> 4503.8 | G158: =ROUND(MAX(_xlfn.NORM.INV(('Eingabe Email'!$B290+1)/MAX('Eingabe Email'!$B:$B),'H2 Originaldaten'!G158,7),2),1) -> 20.3 | H158: ='H2 Originaldaten'!H158 -> 75 | I158: ='H2 Originaldaten'!I158 -> 1 | J158: ='H2 Originaldaten'!J158 -> plymouth grand fury
A159: 158 | B159: =ROUND(MAX(_xlfn.NORM.INV(('Eingabe Email'!$B291+1)/MAX('Eingabe Email'!$B:$B),'H2 Originaldaten'!B159,7),2),1) -> 23 | C159: ='H2 Originaldaten'!C159 -> 8 | D159: =ROUND(MAX(_xlfn.NORM.INV(('Eingabe Email'!$B291+1)/MAX('Eingabe Email'!$B:$B),'H2 Originaldaten'!D159,7),2),1) -> 360 | E159: =ROUND(MAX(_xlfn.NORM.INV(('Eingabe Email'!$B291+1)/MAX('Eingabe Email'!$B:$B),'H2 Originaldaten'!E159,7),2),1) -> 157 | F159: =ROUND(MAX(_xlfn.NORM.INV(('Eingabe Email'!$B291+1)/MAX('Eingabe Email'!$B:$B),'H2 Originaldaten'!F159,7),2),1) -> 4666 | G159: =ROUND(MAX(_xlfn.NORM.INV(('Eingabe Email'!$B291+1)/MAX('Eingabe Email'!$B:$B),'H2 Originaldaten'!G159,7),2),1) -> 22.5 | H159: ='H2 Originaldaten'!H159 -> 75 | I159: ='H2 Originaldaten'!I159 -> 1 | J159: ='H2 Originaldaten'!J159 -> ford ltd
A160: 159 | B160: =ROUND(MAX(_xlfn.NORM.INV(('Eingabe Email'!$B292+1)/MAX('Eingabe Email'!$B:$B),'H2 Originaldaten'!B160,7),2),1) -> 25 | C160: ='H2 Originaldaten'!C160 -> 6 | D160: =ROUND(MAX(_xlfn.NORM.INV(('Eingabe Email'!$B292+1)/MAX('Eingabe Email'!$B:$B),'H2 Originaldaten'!D160,7),2),1) -> 239 | E160: =ROUND(MAX(_xlfn.NORM.INV(('Eingabe Email'!$B292+1)/MAX('Eingabe Email'!$B:$B),'H2 Originaldaten'!E160,7),2),1) -> 118 | F160: =ROUND(MAX(_xlfn.NORM.INV(('Eingabe Email'!$B292+1)/MAX('Eingabe Email'!$B:$B),'H2 Originaldaten'!F160,7),2),1) -> 3915 | G160: =ROUND(MAX(_xlfn.NORM.INV(('Eingabe Email'!$B292+1)/MAX('Eingabe Email'!$B:$B),'H2 Originaldaten'!G160,7),2),1) -> 29 | H160: ='H2 Originaldaten'!H160 -> 75 | I160: ='H2 Originaldaten'!I160 -> 1 | J160: ='H2 Originaldaten'!J160 -> buick century
A161: 160 | B161: =ROUND(MAX(_xlfn.NORM.INV(('Eingabe Email'!$B293+1)/MAX('Eingabe Email'!$B:$B),'H2 Originaldaten'!B161,7),2),1) -> 26.5 | C161: ='H2 Originaldaten'!C161 -> 6 | D161: =ROUND(MAX(_xlfn.NORM.INV(('Eingabe Email'!$B293+1)/MAX('Eingabe Email'!$B:$B),'H2 Originaldaten'!D161,7),2),1) -> 260.5 | E161: =ROUND(MAX(_xlfn.NORM.INV(('Eingabe Email'!$B293+1)/MAX('Eingabe Email'!$B:$B),'H2 Originaldaten'!E161,7),2),1) -> 115.5 | F161: =ROUND(MAX(_xlfn.NORM.INV(('Eingabe Email'!$B293+1)/MAX('Eingabe Email'!$B:$B),'H2 Originaldaten'!F161,7),2),1) -> 3907.5 | G161: =ROUND(MAX(_xlfn.NORM.INV(('Eingabe Email'!$B293+1)/MAX('Eingabe Email'!$B:$B),'H2 Originaldaten'!G161,7),2),1) -> 29 | H161: ='H2 Originaldaten'!H161 -> 75 | I161: ='H2 Originaldaten'!I161 -> 1 | J161: ='H2 Originaldaten'!J161 -> chevroelt chevelle malibu
A162: 161 | B162: =ROUND(MAX(_xlfn.NORM.INV(('Eingabe Email'!$B294+1)/MAX('Eingabe Email'!$B:$B),'H2 Originaldaten'!B162,7),2),1) -> 13.9 | C162: ='H2 Originaldaten'!C162 -> 6 | D162: =ROUND(MAX(_xlfn.NORM.INV(('Eingabe Email'!$B294+1)/MAX('Eingabe Email'!$B:$B),'H2 Originaldaten'!D162,7),2),1) -> 256.9 | E162: =ROUND(MAX(_xlfn.NORM.INV(('Eingabe Email'!$B294+1)/MAX('Eingabe Email'!$B:$B),'H2 Originaldaten'!E162,7),2),1) -> 108.9 | F162: =ROUND(MAX(_xlfn.NORM.INV(('Eingabe Email'!$B294+1)/MAX('Eingabe Email'!$B:$B),'H2 Originaldaten'!F162,7),2),1) -> 3728.9 | G162: =ROUND(MAX(_xlfn.NORM.INV(('Eingabe Email'!$B294+1)/MAX('Eingabe Email'!$B:$B),'H2 Originaldaten'!G162,7),2),1) -> 17.9 | H162: ='H2 Originaldaten'!H162 -> 75 | I162: ='H2 Originaldaten'!I162 -> 1 | J162: ='H2 Originaldaten'!J162 -> amc matador
A163: 162 | B163: =ROUND(MAX(_xlfn.NORM.INV(('Eingabe Email'!$B295+1)/MAX('Eingabe Email'!$B:$B),'H2 Originaldaten'!B163,7),2),1) -> 3 | C163: ='H2 Originaldaten'!C163 -> 6 | D163: =ROUND(MAX(_xlfn.NORM.INV(('Eingabe Email'!$B295+1)/MAX('Eingabe Email'!$B:$B),'H2 Originaldaten'!D163,7),2),1) -> 210 | E163: =ROUND(MAX(_xlfn.NORM.INV(('Eingabe Email'!$B295+1)/MAX('Eingabe Email'!$B:$B),'H2 Originaldaten'!E163,7),2),1) -> 80 | F163: =ROUND(MAX(_xlfn.NORM.INV(('Eingabe Email'!$B295+1)/MAX('Eingabe Email'!$B:$B),'H2 Originaldaten'!F163,7),2),1) -> 3770 | G163: =ROUND(MAX(_xlfn.NORM.INV(('Eingabe Email'!$B295+1)/MAX('Eingabe Email'!$B:$B),'H2 Originaldaten'!G163,7),2),1) -> 4 | H163: ='H2 Originaldaten'!H163 -> 75 | I163: ='H2 Originaldaten'!I163 -> 1 | J163: ='H2 Originaldaten'!J163 -> plymouth fury
A164: 163 | B164: =ROUND(MAX(_xlfn.NORM.INV(('Eingabe Email'!$B296+1)/MAX('Eingabe Email'!$B:$B),'H2 Originaldaten'!B164,7),2),1) -> 16.4 | C164: ='H2 Originaldaten'!C164 -> 6 | D164: =ROUND(MAX(_xlfn.NORM.INV(('Eingabe Email'!$B296+1)/MAX('Eingabe Email'!$B:$B),'H2 Originaldaten'!D164,7),2),1) -> 226.4 | E164: =ROUND(MAX(_xlfn.NORM.INV(('Eingabe Email'!$B296+1)/MAX('Eingabe Email'!$B:$B),'H2 Originaldaten'!E164,7),2),1) -> 105.4 | F164: =ROUND(MAX(_xlfn.NORM.INV(('Eingabe Email'!$B296+1)/MAX('Eingabe Email'!$B:$B),'H2 Originaldaten'!F164,7),2),1) -> 3034.4 | G164: =ROUND(MAX(_xlfn.NORM.INV(('Eingabe Email'!$B296+1)/MAX('Eingabe Email'!$B:$B),'H2 Originaldaten'!G164,7),2),1) -> 10.4 | H164: ='H2 Originaldaten'!H164 -> 75 | I164: ='H2 Originaldaten'!I164 -> 1 | J164: ='H2 Originaldaten'!J164 -> buick skyhawk
A165: 164 | B165: =ROUND(MAX(_xlfn.NORM.INV(('Eingabe Email'!$B297+1)/MAX('Eingabe Email'!$B:$B),'H2 Originaldaten'!B165,7),2),1) -> 19.6 | C165: ='H2 Originaldaten'!C165 -> 8 | D165: =ROUND(MAX(_xlfn.NORM.INV(('Eingabe Email'!$B297+1)/MAX('Eingabe Email'!$B:$B),'H2 Originaldaten'!D165,7),2),1) -> 261.6 | E165: =ROUND(MAX(_xlfn.NORM.INV(('Eingabe Email'!$B297+1)/MAX('Eingabe Email'!$B:$B),'H2 Originaldaten'!E165,7),2),1) -> 109.6 | F165: =ROUND(MAX(_xlfn.NORM.INV(('Eingabe Email'!$B297+1)/MAX('Eingabe Email'!$B:$B),'H2 Originaldaten'!F165,7),2),1) -> 3220.6 | G165: =ROUND(MAX(_xlfn.NORM.INV(('Eingabe Email'!$B297+1)/MAX('Eingabe Email'!$B:$B),'H2 Originaldaten'!G165,7),2),1) -> 13.1 | H165: ='H2 Originaldaten'!H165 -> 75 | I165: ='H2 Originaldaten'!I165 -> 1 | J165: ='H2 Originaldaten'!J165 -> chevrolet monza 2+2
A166: 165 | B166: =ROUND(MAX(_xlfn.NORM.INV(('Eingabe Email'!$B298+1)/MAX('Eingabe Email'!$B:$B),'H2 Originaldaten'!B166,7),2),1) -> 14.6 | C166: ='H2 Originaldaten'!C166 -> 8 | D166: =ROUND(MAX(_xlfn.NORM.INV(('Eingabe Email'!$B298+1)/MAX('Eingabe Email'!$B:$B),'H2 Originaldaten'!D166,7),2),1) -> 303.6 | E166: =ROUND(MAX(_xlfn.NORM.INV(('Eingabe Email'!$B298+1)/MAX('Eingabe Email'!$B:$B),'H2 Originaldaten'!E166,7),2),1) -> 130.6 | F166: =ROUND(MAX(_xlfn.NORM.INV(('Eingabe Email'!$B298+1)/MAX('Eingabe Email'!$B:$B),'H2 Originaldaten'!F166,7),2),1) -> 3170.6 | G166: =ROUND(MAX(_xlfn.NORM.INV(('Eingabe Email'!$B298+1)/MAX('Eingabe Email'!$B:$B),'H2 Originaldaten'!G166,7),2),1) -> 13.6 | H166: ='H2 Originaldaten'!H166 -> 75 | I166: ='H2 Originaldaten'!I166 -> 1 | J166: ='H2 Originaldaten'!J166 -> ford mustang ii
A167: 166 | B167: =ROUND(MAX(_xlfn.NORM.INV(('Eingabe Email'!$B299+1)/MAX('Eingabe Email'!$B:$B),'H2 Originaldaten'!B167,7),2),1) -> 22.5 | C167: ='H2 Originaldaten'!C167 -> 4 | D167: =ROUND(MAX(_xlfn.NORM.INV(('Eingabe Email'!$B299+1)/MAX('Eingabe Email'!$B:$B),'H2 Originaldaten'!D167,7),2),1) -> 90.5 | E167: =ROUND(MAX(_xlfn.NORM.INV(('Eingabe Email'!$B299+1)/MAX('Eingabe Email'!$B:$B),'H2 Originaldaten'!E167,7),2),1) -> 68.5 | F167: =ROUND(MAX(_xlfn.NORM.INV(('Eingabe Email'!$B299+1)/MAX('Eingabe Email'!$B:$B),'H2 Originaldaten'!F167,7),2),1) -> 2164.5 | G167: =ROUND(MAX(_xlfn.NORM.INV(('Eingabe Email'!$B299+1)/MAX('Eingabe Email'!$B:$B),'H2 Originaldaten'!G167,7),2),1) -> 9.5 | H167: ='H2 Originaldaten'!H167 -> 75 | I167: ='H2 Originaldaten'!I167 -> 3 | J167: ='H2 Originaldaten'!J167 -> toyota corolla
A168: 167 | B168: =ROUND(MAX(_xlfn.NORM.INV(('Eingabe Email'!$B300+1)/MAX('Eingabe Email'!$B:$B),'H2 Originaldaten'!B168,7),2),1) -> 23.4 | C168: ='H2 Originaldaten'!C168 -> 4 | D168: =ROUND(MAX(_xlfn.NORM.INV(('Eingabe Email'!$B300+1)/MAX('Eingabe Email'!$B:$B),'H2 Originaldaten'!D168,7),2),1) -> 140.4 | E168: =ROUND(MAX(_xlfn.NORM.INV(('Eingabe Email'!$B300+1)/MAX('Eingabe Email'!$B:$B),'H2 Originaldaten'!E168,7),2),1) -> 83.4 | F168: =ROUND(MAX(_xlfn.NORM.INV(('Eingabe Email'!$B300+1)/MAX('Eingabe Email'!$B:$B),'H2 Originaldaten'!F168,7),2),1) -> 2639.4 | G168: =ROUND(MAX(_xlfn.NORM.INV(('Eingabe Email'!$B300+1)/MAX('Eingabe Email'!$B:$B),'H2 Originaldaten'!G168,7),2),1) -> 17.4 | H168: ='H2 Originaldaten'!H168 -> 75 | I168: ='H2 Originaldaten'!I168 -> 1 | J168: ='H2 Originaldaten'!J168 -> ford pinto
A169: 168 | B169: =ROUND(MAX(_xlfn.NORM.INV(('Eingabe Email'!$B301+1)/MAX('Eingabe Email'!$B:$B),'H2 Originaldaten'!B169,7),2),1) -> 18.1 | C169: ='H2 Originaldaten'!C169 -> 6 | D169: =ROUND(MAX(_xlfn.NORM.INV(('Eingabe Email'!$B301+1)/MAX('Eingabe Email'!$B:$B),'H2 Originaldaten'!D169,7),2),1) -> 230.1 | E169: =ROUND(MAX(_xlfn.NORM.INV(('Eingabe Email'!$B301+1)/MAX('Eingabe Email'!$B:$B),'H2 Originaldaten'!E169,7),2),1) -> 98.1 | F169: =ROUND(MAX(_xlfn.NORM.INV(('Eingabe Email'!$B301+1)/MAX('Eingabe Email'!$B:$B),'H2 Originaldaten'!F169,7),2),1) -> 2912.1 | G169: =ROUND(MAX(_xlfn.NORM.INV(('Eingabe Email'!$B301+1)/MAX('Eingabe Email'!$B:$B),'H2 Originaldaten'!G169,7),2),1) -> 14.1 | H169: ='H2 Originaldaten'!H169 -> 75 | I169: ='H2 Originaldaten'!I169 -> 1 | J169: ='H2 Originaldaten'!J169 -> amc gremlin
A170: 169 | B170: =ROUND(MAX(_xlfn.NORM.INV(('Eingabe Email'!$B302+1)/MAX('Eingabe Email'!$B:$B),'H2 Originaldaten'!B170,7),2),1) -> 23.7 | C170: ='H2 Originaldaten'!C170 -> 4 | D170: =ROUND(MAX(_xlfn.NORM.INV(('Eingabe Email'!$B302+1)/MAX('Eingabe Email'!$B:$B),'H2 Originaldaten'!D170,7),2),1) -> 140.7 | E170: =ROUND(MAX(_xlfn.NORM.INV(('Eingabe Email'!$B302+1)/MAX('Eingabe Email'!$B:$B),'H2 Originaldaten'!E170,7),2),1) -> 78.7 | F170: =ROUND(MAX(_xlfn.NORM.INV(('Eingabe Email'!$B302+1)/MAX('Eingabe Email'!$B:$B),'H2 Originaldaten'!F170,7),2),1) -> 2592.7 | G170: =ROUND(MAX(_xlfn.NORM.INV(('Eingabe Email'!$B302+1)/MAX('Eingabe Email'!$B:$B),'H2 Originaldaten'!G170,7),2),1) -> 19.2 | H170: ='H2 Originaldaten'!H170 -> 75 | I170: ='H2 Originaldaten'!I170 -> 1 | J170: ='H2 Originaldaten'!J170 -> pontiac astro
A171: 170 | B171: =ROUND(MAX(_xlfn.NORM.INV(('Eingabe Email'!$B303+1)/MAX('Eingabe Email'!$B:$B),'H2 Originaldaten'!B171,7),2),1) -> 28.5 | C171: ='H2 Originaldaten'!C171 -> 4 | D171: =ROUND(MAX(_xlfn.NORM.INV(('Eingabe Email'!$B303+1)/MAX('Eingabe Email'!$B:$B),'H2 Originaldaten'!D171,7),2),1) -> 138.5 | E171: =ROUND(MAX(_xlfn.NORM.INV(('Eingabe Email'!$B303+1)/MAX('Eingabe Email'!$B:$B),'H2 Originaldaten'!E171,7),2),1) -> 100.5 | F171: =ROUND(MAX(_xlfn.NORM.INV(('Eingabe Email'!$B303+1)/MAX('Eingabe Email'!$B:$B),'H2 Originaldaten'!F171,7),2),1) -> 2706.5 | G171: =ROUND(MAX(_xlfn.NORM.INV(('Eingabe Email'!$B303+1)/MAX('Eingabe Email'!$B:$B),'H2 Originaldaten'!G171,7),2),1) -> 18 | H171: ='H2 Originaldaten'!H171 -> 75 | I171: ='H2 Originaldaten'!I171 -> 3 | J171: ='H2 Originaldaten'!J171 -> toyota corona
A172: 171 | B172: =ROUND(MAX(_xlfn.NORM.INV(('Eingabe Email'!$B304+1)/MAX('Eingabe Email'!$B:$B),'H2 Originaldaten'!B172,7),2),1) -> 22.7 | C172: ='H2 Originaldaten'!C172 -> 4 | D172: =ROUND(MAX(_xlfn.NORM.INV(('Eingabe Email'!$B304+1)/MAX('Eingabe Email'!$B:$B),'H2 Originaldaten'!D172,7),2),1) -> 87.7 | E172: =ROUND(MAX(_xlfn.NORM.INV(('Eingabe Email'!$B304+1)/MAX('Eingabe Email'!$B:$B),'H2 Originaldaten'!E172,7),2),1) -> 68.7 | F172: =ROUND(MAX(_xlfn.NORM.INV(('Eingabe Email'!$B304+1)/MAX('Eingabe Email'!$B:$B),'H2 Originaldaten'!F172,7),2),1) -> 2220.7 | G172: =ROUND(MAX(_xlfn.NORM.INV(('Eingabe Email'!$B304+1)/MAX('Eingabe Email'!$B:$B),'H2 Originaldaten'!G172,7),2),1) -> 14.2 | H172: ='H2 Originaldaten'!H172 -> 75 | I172: ='H2 Originaldaten'!I172 -> 2 | J172: ='H2 Originaldaten'!J172 -> volkswagen dasher
A173: 172 | B173: =ROUND(MAX(_xlfn.NORM.INV(('Eingabe Email'!$B305+1)/MAX('Eingabe Email'!$B:$B),'H2 Originaldaten'!B173,7),2),1) -> 24 | C173: ='H2 Originaldaten'!C173 -> 4 | D173: =ROUND(MAX(_xlfn.NORM.INV(('Eingabe Email'!$B305+1)/MAX('Eingabe Email'!$B:$B),'H2 Originaldaten'!D173,7),2),1) -> 119 | E173: =ROUND(MAX(_xlfn.NORM.INV(('Eingabe Email'!$B305+1)/MAX('Eingabe Email'!$B:$B),'H2 Originaldaten'!E173,7),2),1) -> 97 | F173: =ROUND(MAX(_xlfn.NORM.INV(('Eingabe Email'!$B305+1)/MAX('Eingabe Email'!$B:$B),'H2 Originaldaten'!F173,7),2),1) -> 2545 | G173: =ROUND(MAX(_xlfn.NORM.INV(('Eingabe Email'!$B305+1)/MAX('Eingabe Email'!$B:$B),'H2 Originaldaten'!G173,7),2),1) -> 17 | H173: ='H2 Originaldaten'!H173 -> 75 | I173: ='H2 Originaldaten'!I173 -> 3 | J173: ='H2 Originaldaten'!J173 -> datsun 710
A174: 173 | B174: =ROUND(MAX(_xlfn.NORM.INV(('Eingabe Email'!$B306+1)/MAX('Eingabe Email'!$B:$B),'H2 Originaldaten'!B174,7),2),1) -> 18.7 | C174: ='H2 Originaldaten'!C174 -> 6 | D174: =ROUND(MAX(_xlfn.NORM.INV(('Eingabe Email'!$B306+1)/MAX('Eingabe Email'!$B:$B),'H2 Originaldaten'!D174,7),2),1) -> 171.7 | E174: =ROUND(MAX(_xlfn.NORM.INV(('Eingabe Email'!$B306+1)/MAX('Eingabe Email'!$B:$B),'H2 Originaldaten'!E174,7),2),1) -> 97.7 | F174: =ROUND(MAX(_xlfn.NORM.INV(('Eingabe Email'!$B306+1)/MAX('Eingabe Email'!$B:$B),'H2 Originaldaten'!F174,7),2),1) -> 2984.7 | G174: =ROUND(MAX(_xlfn.NORM.INV(('Eingabe Email'!$B306+1)/MAX('Eingabe Email'!$B:$B),'H2 Originaldaten'!G174,7),2),1) -> 15.2 | H174: ='H2 Originaldaten'!H174 -> 75 | I174: ='H2 Originaldaten'!I174 -> 1 | J174: ='H2 Originaldaten'!J174 -> ford pinto
A175: 174 | B175: =ROUND(MAX(_xlfn.NORM.INV(('Eingabe Email'!$B307+1)/MAX('Eingabe Email'!$B:$B),'H2 Originaldaten'!B175,7),2),1) -> 43.5 | C175: ='H2 Originaldaten'!C175 -> 4 | D175: =ROUND(MAX(_xlfn.NORM.INV(('Eingabe Email'!$B307+1)/MAX('Eingabe Email'!$B:$B),'H2 Originaldaten'!D175,7),2),1) -> 104.5 | E175: =ROUND(MAX(_xlfn.NORM.INV(('Eingabe Email'!$B307+1)/MAX('Eingabe Email'!$B:$B),'H2 Originaldaten'!E175,7),2),1) -> 84.5 | F175: =ROUND(MAX(_xlfn.NORM.INV(('Eingabe Email'!$B307+1)/MAX('Eingabe Email'!$B:$B),'H2 Originaldaten'!F175,7),2),1) -> 1951.5 | G175: =ROUND(MAX(_xlfn.NORM.INV(('Eingabe Email'!$B307+1)/MAX('Eingabe Email'!$B:$B),'H2 Originaldaten'!G175,7),2),1) -> 28.5 | H175: ='H2 Originaldaten'!H175 -> 75 | I175: ='H2 Originaldaten'!I175 -> 2 | J175: ='H2 Originaldaten'!J175 -> volkswagen rabbit
A176: 175 | B176: =ROUND(MAX(_xlfn.NORM.INV(('Eingabe Email'!$B308+1)/MAX('Eingabe Email'!$B:$B),'H2 Originaldaten'!B176,7),2),1) -> 27.5 | C176: ='H2 Originaldaten'!C176 -> 6 | D176: =ROUND(MAX(_xlfn.NORM.INV(('Eingabe Email'!$B308+1)/MAX('Eingabe Email'!$B:$B),'H2 Originaldaten'!D176,7),2),1) -> 240.5 | E176: =ROUND(MAX(_xlfn.NORM.INV(('Eingabe Email'!$B308+1)/MAX('Eingabe Email'!$B:$B),'H2 Originaldaten'!E176,7),2),1) -> 98.5 | F176: =ROUND(MAX(_xlfn.NORM.INV(('Eingabe Email'!$B308+1)/MAX('Eingabe Email'!$B:$B),'H2 Originaldaten'!F176,7),2),1) -> 3219.5 | G176: =ROUND(MAX(_xlfn.NORM.INV(('Eingabe Email'!$B308+1)/MAX('Eingabe Email'!$B:$B),'H2 Originaldaten'!G176,7),2),1) -> 25.5 | H176: ='H2 Originaldaten'!H176 -> 75 | I176: ='H2 Originaldaten'!I176 -> 1 | J176: ='H2 Originaldaten'!J176 -> amc pacer
A177: 176 | B177: =ROUND(MAX(_xlfn.NORM.INV(('Eingabe Email'!$B309+1)/MAX('Eingabe Email'!$B:$B),'H2 Originaldaten'!B177,7),2),1) -> 22 | C177: ='H2 Originaldaten'!C177 -> 4 | D177: =ROUND(MAX(_xlfn.NORM.INV(('Eingabe Email'!$B309+1)/MAX('Eingabe Email'!$B:$B),'H2 Originaldaten'!D177,7),2),1) -> 114 | E177: =ROUND(MAX(_xlfn.NORM.INV(('Eingabe Email'!$B309+1)/MAX('Eingabe Email'!$B:$B),'H2 Originaldaten'!E177,7),2),1) -> 94 | F177: =ROUND(MAX(_xlfn.NORM.INV(('Eingabe Email'!$B309+1)/MAX('Eingabe Email'!$B:$B),'H2 Originaldaten'!F177,7),2),1) -> 2693 | G177: =ROUND(MAX(_xlfn.NORM.INV(('Eingabe Email'!$B309+1)/MAX('Eingabe Email'!$B:$B),'H2 Originaldaten'!G177,7),2),1) -> 14 | H177: ='H2 Originaldaten'!H177 -> 75 | I177: ='H2 Originaldaten'!I177 -> 2 | J177: ='H2 Originaldaten'!J177 -> audi 100ls
A178: 177 | B178: =ROUND(MAX(_xlfn.NORM.INV(('Eingabe Email'!$B310+1)/MAX('Eingabe Email'!$B:$B),'H2 Originaldaten'!B178,7),2),1) -> 6.6 | C178: ='H2 Originaldaten'!C178 -> 4 | D178: =ROUND(MAX(_xlfn.NORM.INV(('Eingabe Email'!$B310+1)/MAX('Eingabe Email'!$B:$B),'H2 Originaldaten'!D178,7),2),1) -> 103.6 | E178: =ROUND(MAX(_xlfn.NORM.INV(('Eingabe Email'!$B310+1)/MAX('Eingabe Email'!$B:$B),'H2 Originaldaten'!E178,7),2),1) -> 71.6 | F178: =ROUND(MAX(_xlfn.NORM.INV(('Eingabe Email'!$B310+1)/MAX('Eingabe Email'!$B:$B),'H2 Originaldaten'!F178,7),2),1) -> 2940.6 | G178: =ROUND(MAX(_xlfn.NORM.INV(('Eingabe Email'!$B310+1)/MAX('Eingabe Email'!$B:$B),'H2 Originaldaten'!G178,7),2),1) -> 2 | H178: ='H2 Originaldaten'!H178 -> 75 | I178: ='H2 Originaldaten'!I178 -> 2 | J178: ='H2 Originaldaten'!J178 -> peugeot 504
A179: 178 | B179: =ROUND(MAX(_xlfn.NORM.INV(('Eingabe Email'!$B311+1)/MAX('Eingabe Email'!$B:$B),'H2 Originaldaten'!B179,7),2),1) -> 22 | C179: ='H2 Originaldaten'!C179 -> 4 | D179: =ROUND(MAX(_xlfn.NORM.INV(('Eingabe Email'!$B311+1)/MAX('Eingabe Email'!$B:$B),'H2 Originaldaten'!D179,7),2),1) -> 121 | E179: =ROUND(MAX(_xlfn.NORM.INV(('Eingabe Email'!$B311+1)/MAX('Eingabe Email'!$B:$B),'H2 Originaldaten'!E179,7),2),1) -> 98 | F179: =ROUND(MAX(_xlfn.NORM.INV(('Eingabe Email'!$B311+1)/MAX('Eingabe Email'!$B:$B),'H2 Originaldaten'!F179,7),2),1) -> 2945 | G179: =ROUND(MAX(_xlfn.NORM.INV(('Eingabe Email'!$B311+1)/MAX('Eingabe Email'!$B:$B),'H2 Originaldaten'!G179,7),2),1) -> 14.5 | H179: ='H2 Originaldaten'!H179 -> 75 | I179: ='H2 Originaldaten'!I179 -> 2 | J179: ='H2 Originaldaten'!J179 -> volvo 244dl
A180: 179 | B180: =ROUND(MAX(_xlfn.NORM.INV(('Eingabe Email'!$B312+1)/MAX('Eingabe Email'!$B:$B),'H2 Originaldaten'!B180,7),2),1) -> 31.3 | C180: ='H2 Originaldaten'!C180 -> 4 | D180: =ROUND(MAX(_xlfn.NORM.INV(('Eingabe Email'!$B312+1)/MAX('Eingabe Email'!$B:$B),'H2 Originaldaten'!D180,7),2),1) -> 127.3 | E180: =ROUND(MAX(_xlfn.NORM.INV(('Eingabe Email'!$B312+1)/MAX('Eingabe Email'!$B:$B),'H2 Originaldaten'!E180,7),2),1) -> 121.3 | F180: =ROUND(MAX(_xlfn.NORM.INV(('Eingabe Email'!$B312+1)/MAX('Eingabe Email'!$B:$B),'H2 Originaldaten'!F180,7),2),1) -> 2677.3 | G180: =ROUND(MAX(_xlfn.NORM.INV(('Eingabe Email'!$B312+1)/MAX('Eingabe Email'!$B:$B),'H2 Originaldaten'!G180,7),2),1) -> 19.8 | H180: ='H2 Originaldaten'!H180 -> 75 | I180: ='H2 Originaldaten'!I180 -> 2 | J180: ='H2 Originaldaten'!J180 -> saab 99le
A181: 180 | B181: =ROUND(MAX(_xlfn.NORM.INV(('Eingabe Email'!$B313+1)/MAX('Eingabe Email'!$B:$B),'H2 Originaldaten'!B181,7),2),1) -> 19.2 | C181: ='H2 Originaldaten'!C181 -> 4 | D181: =ROUND(MAX(_xlfn.NORM.INV(('Eingabe Email'!$B313+1)/MAX('Eingabe Email'!$B:$B),'H2 Originaldaten'!D181,7),2),1) -> 77.2 | E181: =ROUND(MAX(_xlfn.NORM.INV(('Eingabe Email'!$B313+1)/MAX('Eingabe Email'!$B:$B),'H2 Originaldaten'!E181,7),2),1) -> 39.2 | F181: =ROUND(MAX(_xlfn.NORM.INV(('Eingabe Email'!$B313+1)/MAX('Eingabe Email'!$B:$B),'H2 Originaldaten'!F181,7),2),1) -> 1781.2 | G181: =ROUND(MAX(_xlfn.NORM.INV(('Eingabe Email'!$B313+1)/MAX('Eingabe Email'!$B:$B),'H2 Originaldaten'!G181,7),2),1) -> 3.7 | H181: ='H2 Originaldaten'!H181 -> 75 | I181: ='H2 Originaldaten'!I181 -> 3 | J181: ='H2 Originaldaten'!J181 -> honda civic cvcc
A182: 181 | B182: =ROUND(MAX(_xlfn.NORM.INV(('Eingabe Email'!$B314+1)/MAX('Eingabe Email'!$B:$B),'H2 Originaldaten'!B182,7),2),1) -> 27.1 | C182: ='H2 Originaldaten'!C182 -> 4 | D182: =ROUND(MAX(_xlfn.NORM.INV(('Eingabe Email'!$B314+1)/MAX('Eingabe Email'!$B:$B),'H2 Originaldaten'!D182,7),2),1) -> 106.1 | E182: =ROUND(MAX(_xlfn.NORM.INV(('Eingabe Email'!$B314+1)/MAX('Eingabe Email'!$B:$B),'H2 Originaldaten'!E182,7),2),1) -> 85.1 | F182: =ROUND(MAX(_xlfn.NORM.INV(('Eingabe Email'!$B314+1)/MAX('Eingabe Email'!$B:$B),'H2 Originaldaten'!F182,7),2),1) -> 2463.1 | G182: =ROUND(MAX(_xlfn.NORM.INV(('Eingabe Email'!$B314+1)/MAX('Eingabe Email'!$B:$B),'H2 Originaldaten'!G182,7),2),1) -> 14.6 | H182: ='H2 Originaldaten'!H182 -> 76 | I182: ='H2 Originaldaten'!I182 -> 2 | J182: ='H2 Originaldaten'!J182 -> fiat 131
A183: 182 | B183: =ROUND(MAX(_xlfn.NORM.INV(('Eingabe Email'!$B315+1)/MAX('Eingabe Email'!$B:$B),'H2 Originaldaten'!B183,7),2),1) -> 28.4 | C183: ='H2 Originaldaten'!C183 -> 4 | D183: =ROUND(MAX(_xlfn.NORM.INV(('Eingabe Email'!$B315+1)/MAX('Eingabe Email'!$B:$B),'H2 Originaldaten'!D183,7),2),1) -> 119.4 | E183: =ROUND(MAX(_xlfn.NORM.INV(('Eingabe Email'!$B315+1)/MAX('Eingabe Email'!$B:$B),'H2 Originaldaten'!E183,7),2),1) -> 84.4 | F183: =ROUND(MAX(_xlfn.NORM.INV(('Eingabe Email'!$B315+1)/MAX('Eingabe Email'!$B:$B),'H2 Originaldaten'!F183,7),2),1) -> 2223.4 | G183: =ROUND(MAX(_xlfn.NORM.INV(('Eingabe Email'!$B315+1)/MAX('Eingabe Email'!$B:$B),'H2 Originaldaten'!G183,7),2),1) -> 20.3 | H183: ='H2 Originaldaten'!H183 -> 76 | I183: ='H2 Originaldaten'!I183 -> 2 | J183: ='H2 Originaldaten'!J183 -> opel 1900
A184: 183 | B184: =ROUND(MAX(_xlfn.NORM.INV(('Eingabe Email'!$B316+1)/MAX('Eingabe Email'!$B:$B),'H2 Originaldaten'!B184,7),2),1) -> 20.1 | C184: ='H2 Originaldaten'!C184 -> 4 | D184: =ROUND(MAX(_xlfn.NORM.INV(('Eingabe Email'!$B316+1)/MAX('Eingabe Email'!$B:$B),'H2 Originaldaten'!D184,7),2),1) -> 135.1 | E184: =ROUND(MAX(_xlfn.NORM.INV(('Eingabe Email'!$B316+1)/MAX('Eingabe Email'!$B:$B),'H2 Originaldaten'!E184,7),2),1) -> 87.1 | F184: =ROUND(MAX(_xlfn.NORM.INV(('Eingabe Email'!$B316+1)/MAX('Eingabe Email'!$B:$B),'H2 Originaldaten'!F184,7),2),1) -> 2567.1 | G184: =ROUND(MAX(_xlfn.NORM.INV(('Eingabe Email'!$B316+1)/MAX('Eingabe Email'!$B:$B),'H2 Originaldaten'!G184,7),2),1) -> 10 | H184: ='H2 Originaldaten'!H184 -> 76 | I184: ='H2 Originaldaten'!I184 -> 1 | J184: ='H2 Originaldaten'!J184 -> capri ii
A185: 184 | B185: =ROUND(MAX(_xlfn.NORM.INV(('Eingabe Email'!$B317+1)/MAX('Eingabe Email'!$B:$B),'H2 Originaldaten'!B185,7),2),1) -> 28.6 | C185: ='H2 Originaldaten'!C185 -> 4 | D185: =ROUND(MAX(_xlfn.NORM.INV(('Eingabe Email'!$B317+1)/MAX('Eingabe Email'!$B:$B),'H2 Originaldaten'!D185,7),2),1) -> 100.6 | E185: =ROUND(MAX(_xlfn.NORM.INV(('Eingabe Email'!$B317+1)/MAX('Eingabe Email'!$B:$B),'H2 Originaldaten'!E185,7),2),1) -> 81.6 | F185: =ROUND(MAX(_xlfn.NORM.INV(('Eingabe Email'!$B317+1)/MAX('Eingabe Email'!$B:$B),'H2 Originaldaten'!F185,7),2),1) -> 2257.6 | G185: =ROUND(MAX(_xlfn.NORM.INV(('Eingabe Email'!$B317+1)/MAX('Eingabe Email'!$B:$B),'H2 Originaldaten'!G185,7),2),1) -> 20.3 | H185: ='H2 Originaldaten'!H185 -> 76 | I185: ='H2 Originaldaten'!I185 -> 1 | J185: ='H2 Originaldaten'!J185 -> dodge colt
A186: 185 | B186: =ROUND(MAX(_xlfn.NORM.INV(('Eingabe Email'!$B318+1)/MAX('Eingabe Email'!$B:$B),'H2 Originaldaten'!B186,7),2),1) -> 42.1 | C186: ='H2 Originaldaten'!C186 -> 4 | D186: =ROUND(MAX(_xlfn.NORM.INV(('Eingabe Email'!$B318+1)/MAX('Eingabe Email'!$B:$B),'H2 Originaldaten'!D186,7),2),1) -> 116.1 | E186: =ROUND(MAX(_xlfn.NORM.INV(('Eingabe Email'!$B318+1)/MAX('Eingabe Email'!$B:$B),'H2 Originaldaten'!E186,7),2),1) -> 98.1 | F186: =ROUND(MAX(_xlfn.NORM.INV(('Eingabe Email'!$B318+1)/MAX('Eingabe Email'!$B:$B),'H2 Originaldaten'!F186,7),2),1) -> 2217.1 | G186: =ROUND(MAX(_xlfn.NORM.INV(('Eingabe Email'!$B318+1)/MAX('Eingabe Email'!$B:$B),'H2 Originaldaten'!G186,7),2),1) -> 30.4 | H186: ='H2 Originaldaten'!H186 -> 76 | I186: ='H2 Originaldaten'!I186 -> 2 | J186: ='H2 Originaldaten'!J186 -> renault 12tl
A187: 186 | B187: =ROUND(MAX(_xlfn.NORM.INV(('Eingabe Email'!$B319+1)/MAX('Eingabe Email'!$B:$B),'H2 Originaldaten'!B187,7),2),1) -> 26 | C187: ='H2 Originaldaten'!C187 -> 8 | D187: =ROUND(MAX(_xlfn.NORM.INV(('Eingabe Email'!$B319+1)/MAX('Eingabe Email'!$B:$B),'H2 Originaldaten'!D187,7),2),1) -> 313.5 | E187: =ROUND(MAX(_xlfn.NORM.INV(('Eingabe Email'!$B319+1)/MAX('Eingabe Email'!$B:$B),'H2 Originaldaten'!E187,7),2),1) -> 148.5 | F187: =ROUND(MAX(_xlfn.NORM.INV(('Eingabe Email'!$B319+1)/MAX('Eingabe Email'!$B:$B),'H2 Originaldaten'!F187,7),2),1) -> 4223.5 | G187: =ROUND(MAX(_xlfn.NORM.INV(('Eingabe Email'!$B319+1)/MAX('Eingabe Email'!$B:$B),'H2 Originaldaten'!G187,7),2),1) -> 21.5 | H187: ='H2 Originaldaten'!H187 -> 76 | I187: ='H2 Originaldaten'!I187 -> 1 | J187: ='H2 Originaldaten'!J187 -> chevrolet chevelle malibu classic
A188: 187 | B188: =ROUND(MAX(_xlfn.NORM.INV(('Eingabe Email'!$B320+1)/MAX('Eingabe Email'!$B:$B),'H2 Originaldaten'!B188,7),2),1) -> 16.3 | C188: ='H2 Originaldaten'!C188 -> 8 | D188: =ROUND(MAX(_xlfn.NORM.INV(('Eingabe Email'!$B320+1)/MAX('Eingabe Email'!$B:$B),'H2 Originaldaten'!D188,7),2),1) -> 318.3 | E188: =ROUND(MAX(_xlfn.NORM.INV(('Eingabe Email'!$B320+1)/MAX('Eingabe Email'!$B:$B),'H2 Originaldaten'!E188,7),2),1) -> 150.3 | F188: =ROUND(MAX(_xlfn.NORM.INV(('Eingabe Email'!$B320+1)/MAX('Eingabe Email'!$B:$B),'H2 Originaldaten'!F188,7),2),1) -> 4190.3 | G188: =ROUND(MAX(_xlfn.NORM.INV(('Eingabe Email'!$B320+1)/MAX('Eingabe Email'!$B:$B),'H2 Originaldaten'!G188,7),2),1) -> 13.3 | H188: ='H2 Originaldaten'!H188 -> 76 | I188: ='H2 Originaldaten'!I188 -> 1 | J188: ='H2 Originaldaten'!J188 -> dodge coronet brougham
A189: 188 | B189: =ROUND(MAX(_xlfn.NORM.INV(('Eingabe Email'!$B321+1)/MAX('Eingabe Email'!$B:$B),'H2 Originaldaten'!B189,7),2),1) -> 20.4 | C189: ='H2 Originaldaten'!C189 -> 8 | D189: =ROUND(MAX(_xlfn.NORM.INV(('Eingabe Email'!$B321+1)/MAX('Eingabe Email'!$B:$B),'H2 Originaldaten'!D189,7),2),1) -> 308.9 | E189: =ROUND(MAX(_xlfn.NORM.INV(('Eingabe Email'!$B321+1)/MAX('Eingabe Email'!$B:$B),'H2 Originaldaten'!E189,7),2),1) -> 124.9 | F189: =ROUND(MAX(_xlfn.NORM.INV(('Eingabe Email'!$B321+1)/MAX('Eingabe Email'!$B:$B),'H2 Originaldaten'!F189,7),2),1) -> 3966.9 | G189: =ROUND(MAX(_xlfn.NORM.INV(('Eingabe Email'!$B321+1)/MAX('Eingabe Email'!$B:$B),'H2 Originaldaten'!G189,7),2),1) -> 18.8 | H189: ='H2 Originaldaten'!H189 -> 76 | I189: ='H2 Originaldaten'!I189 -> 1 | J189: ='H2 Originaldaten'!J189 -> amc matador
A190: 189 | B190: =ROUND(MAX(_xlfn.NORM.INV(('Eingabe Email'!$B322+1)/MAX('Eingabe Email'!$B:$B),'H2 Originaldaten'!B190,7),2),1) -> 23 | C190: ='H2 Originaldaten'!C190 -> 8 | D190: =ROUND(MAX(_xlfn.NORM.INV(('Eingabe Email'!$B322+1)/MAX('Eingabe Email'!$B:$B),'H2 Originaldaten'!D190,7),2),1) -> 359.5 | E190: =ROUND(MAX(_xlfn.NORM.INV(('Eingabe Email'!$B322+1)/MAX('Eingabe Email'!$B:$B),'H2 Originaldaten'!E190,7),2),1) -> 160.5 | F190: =ROUND(MAX(_xlfn.NORM.INV(('Eingabe Email'!$B322+1)/MAX('Eingabe Email'!$B:$B),'H2 Originaldaten'!F190,7),2),1) -> 4223.5 | G190: =ROUND(MAX(_xlfn.NORM.INV(('Eingabe Email'!$B322+1)/MAX('Eingabe Email'!$B:$B),'H2 Originaldaten'!G190,7),2),1) -> 21.3 | H190: ='H2 Originaldaten'!H190 -> 76 | I190: ='H2 Originaldaten'!I190 -> 1 | J190: ='H2 Originaldaten'!J190 -> ford gran torino
A191: 190 | B191: =ROUND(MAX(_xlfn.NORM.INV(('Eingabe Email'!$B323+1)/MAX('Eingabe Email'!$B:$B),'H2 Originaldaten'!B191,7),2),1) -> 28.8 | C191: ='H2 Originaldaten'!C191 -> 6 | D191: =ROUND(MAX(_xlfn.NORM.INV(('Eingabe Email'!$B323+1)/MAX('Eingabe Email'!$B:$B),'H2 Originaldaten'!D191,7),2),1) -> 231.8 | E191: =ROUND(MAX(_xlfn.NORM.INV(('Eingabe Email'!$B323+1)/MAX('Eingabe Email'!$B:$B),'H2 Originaldaten'!E191,7),2),1) -> 106.8 | F191: =ROUND(MAX(_xlfn.NORM.INV(('Eingabe Email'!$B323+1)/MAX('Eingabe Email'!$B:$B),'H2 Originaldaten'!F191,7),2),1) -> 3239.8 | G191: =ROUND(MAX(_xlfn.NORM.INV(('Eingabe Email'!$B323+1)/MAX('Eingabe Email'!$B:$B),'H2 Originaldaten'!G191,7),2),1) -> 22.2 | H191: ='H2 Originaldaten'!H191 -> 76 | I191: ='H2 Originaldaten'!I191 -> 1 | J191: ='H2 Originaldaten'!J191 -> plymouth valiant
A192: 191 | B192: =ROUND(MAX(_xlfn.NORM.INV(('Eingabe Email'!$B324+1)/MAX('Eingabe Email'!$B:$B),'H2 Originaldaten'!B192,7),2),1) -> 23.4 | C192: ='H2 Originaldaten'!C192 -> 6 | D192: =ROUND(MAX(_xlfn.NORM.INV(('Eingabe Email'!$B324+1)/MAX('Eingabe Email'!$B:$B),'H2 Originaldaten'!D192,7),2),1) -> 251.4 | E192: =ROUND(MAX(_xlfn.NORM.INV(('Eingabe Email'!$B324+1)/MAX('Eingabe Email'!$B:$B),'H2 Originaldaten'!E192,7),2),1) -> 106.4 | F192: =ROUND(MAX(_xlfn.NORM.INV(('Eingabe Email'!$B324+1)/MAX('Eingabe Email'!$B:$B),'H2 Originaldaten'!F192,7),2),1) -> 3354.4 | G192: =ROUND(MAX(_xlfn.NORM.INV(('Eingabe Email'!$B324+1)/MAX('Eingabe Email'!$B:$B),'H2 Originaldaten'!G192,7),2),1) -> 15.9 | H192: ='H2 Originaldaten'!H192 -> 76 | I192: ='H2 Originaldaten'!I192 -> 1 | J192: ='H2 Originaldaten'!J192 -> chevrolet nova
A193: 192 | B193: =ROUND(MAX(_xlfn.NORM.INV(('Eingabe Email'!$B325+1)/MAX('Eingabe Email'!$B:$B),'H2 Originaldaten'!B193,7),2),1) -> 21.2 | C193: ='H2 Originaldaten'!C193 -> 6 | D193: =ROUND(MAX(_xlfn.NORM.INV(('Eingabe Email'!$B325+1)/MAX('Eingabe Email'!$B:$B),'H2 Originaldaten'!D193,7),2),1) -> 197.2 | E193: =ROUND(MAX(_xlfn.NORM.INV(('Eingabe Email'!$B325+1)/MAX('Eingabe Email'!$B:$B),'H2 Originaldaten'!E193,7),2),1) -> 78.2 | F193: =ROUND(MAX(_xlfn.NORM.INV(('Eingabe Email'!$B325+1)/MAX('Eingabe Email'!$B:$B),'H2 Originaldaten'!F193,7),2),1) -> 3009.2 | G193: =ROUND(MAX(_xlfn.NORM.INV(('Eingabe Email'!$B325+1)/MAX('Eingabe Email'!$B:$B),'H2 Originaldaten'!G193,7),2),1) -> 14.8 | H193: ='H2 Originaldaten'!H193 -> 76 | I193: ='H2 Originaldaten'!I193 -> 1 | J193: ='H2 Originaldaten'!J193 -> ford maverick
A194: 193 | B194: =ROUND(MAX(_xlfn.NORM.INV(('Eingabe Email'!$B326+1)/MAX('Eingabe Email'!$B:$B),'H2 Originaldaten'!B194,7),2),1) -> 19.9 | C194: ='H2 Originaldaten'!C194 -> 6 | D194: =ROUND(MAX(_xlfn.NORM.INV(('Eingabe Email'!$B326+1)/MAX('Eingabe Email'!$B:$B),'H2 Originaldaten'!D194,7),2),1) -> 229.4 | E194: =ROUND(MAX(_xlfn.NORM.INV(('Eingabe Email'!$B326+1)/MAX('Eingabe Email'!$B:$B),'H2 Originaldaten'!E194,7),2),1) -> 87.4 | F194: =ROUND(MAX(_xlfn.NORM.INV(('Eingabe Email'!$B326+1)/MAX('Eingabe Email'!$B:$B),'H2 Originaldaten'!F194,7),2),1) -> 3082.4 | G194: =ROUND(MAX(_xlfn.NORM.INV(('Eingabe Email'!$B326+1)/MAX('Eingabe Email'!$B:$B),'H2 Originaldaten'!G194,7),2),1) -> 15 | H194: ='H2 Originaldaten'!H194 -> 76 | I194: ='H2 Originaldaten'!I194 -> 1 | J194: ='H2 Originaldaten'!J194 -> amc hornet
A195: 194 | B195: =ROUND(MAX(_xlfn.NORM.INV(('Eingabe Email'!$B327+1)/MAX('Eingabe Email'!$B:$B),'H2 Originaldaten'!B195,7),2),1) -> 34.9 | C195: ='H2 Originaldaten'!C195 -> 4 | D195: =ROUND(MAX(_xlfn.NORM.INV(('Eingabe Email'!$B327+1)/MAX('Eingabe Email'!$B:$B),'H2 Originaldaten'!D195,7),2),1) -> 90.9 | E195: =ROUND(MAX(_xlfn.NORM.INV(('Eingabe Email'!$B327+1)/MAX('Eingabe Email'!$B:$B),'H2 Originaldaten'!E195,7),2),1) -> 57.9 | F195: =ROUND(MAX(_xlfn.NORM.INV(('Eingabe Email'!$B327+1)/MAX('Eingabe Email'!$B:$B),'H2 Originaldaten'!F195,7),2),1) -> 2040.9 | G195: =ROUND(MAX(_xlfn.NORM.INV(('Eingabe Email'!$B327+1)/MAX('Eingabe Email'!$B:$B),'H2 Originaldaten'!G195,7),2),1) -> 28.1 | H195: ='H2 Originaldaten'!H195 -> 76 | I195: ='H2 Originaldaten'!I195 -> 1 | J195: ='H2 Originaldaten'!J195 -> chevrolet chevette
A196: 195 | B196: =ROUND(MAX(_xlfn.NORM.INV(('Eingabe Email'!$B328+1)/MAX('Eingabe Email'!$B:$B),'H2 Originaldaten'!B196,7),2),1) -> 17 | C196: ='H2 Originaldaten'!C196 -> 4 | D196: =ROUND(MAX(_xlfn.NORM.INV(('Eingabe Email'!$B328+1)/MAX('Eingabe Email'!$B:$B),'H2 Originaldaten'!D196,7),2),1) -> 90.5 | E196: =ROUND(MAX(_xlfn.NORM.INV(('Eingabe Email'!$B328+1)/MAX('Eingabe Email'!$B:$B),'H2 Originaldaten'!E196,7),2),1) -> 52.5 | F196: =ROUND(MAX(_xlfn.NORM.INV(('Eingabe Email'!$B328+1)/MAX('Eingabe Email'!$B:$B),'H2 Originaldaten'!F196,7),2),1) -> 2156.5 | G196: =ROUND(MAX(_xlfn.NORM.INV(('Eingabe Email'!$B328+1)/MAX('Eingabe Email'!$B:$B),'H2 Originaldaten'!G196,7),2),1) -> 14.6 | H196: ='H2 Originaldaten'!H196 -> 76 | I196: ='H2 Originaldaten'!I196 -> 1 | J196: ='H2 Originaldaten'!J196 -> chevrolet woody
A197: 196 | B197: =ROUND(MAX(_xlfn.NORM.INV(('Eingabe Email'!$B329+1)/MAX('Eingabe Email'!$B:$B),'H2 Originaldaten'!B197,7),2),1) -> 29.6 | C197: ='H2 Originaldaten'!C197 -> 4 | D197: =ROUND(MAX(_xlfn.NORM.INV(('Eingabe Email'!$B329+1)/MAX('Eingabe Email'!$B:$B),'H2 Originaldaten'!D197,7),2),1) -> 90.6 | E197: =ROUND(MAX(_xlfn.NORM.INV(('Eingabe Email'!$B329+1)/MAX('Eingabe Email'!$B:$B),'H2 Originaldaten'!E197,7),2),1) -> 70.6 | F197: =ROUND(MAX(_xlfn.NORM.INV(('Eingabe Email'!$B329+1)/MAX('Eingabe Email'!$B:$B),'H2 Originaldaten'!F197,7),2),1) -> 1937.6 | G197: =ROUND(MAX(_xlfn.NORM.INV(('Eingabe Email'!$B329+1)/MAX('Eingabe Email'!$B:$B),'H2 Originaldaten'!G197,7),2),1) -> 14.8 | H197: ='H2 Originaldaten'!H197 -> 76 | I197: ='H2 Originaldaten'!I197 -> 2 | J197: ='H2 Originaldaten'!J197 -> vw rabbit
A198: 197 | B198: =ROUND(MAX(_xlfn.NORM.INV(('Eingabe Email'!$B330+1)/MAX('Eingabe Email'!$B:$B),'H2 Originaldaten'!B198,7),2),1) -> 29.2 | C198: ='H2 Originaldaten'!C198 -> 4 | D198: =ROUND(MAX(_xlfn.NORM.INV(('Eingabe Email'!$B330+1)/MAX('Eingabe Email'!$B:$B),'H2 Originaldaten'!D198,7),2),1) -> 87.2 | E198: =ROUND(MAX(_xlfn.NORM.INV(('Eingabe Email'!$B330+1)/MAX('Eingabe Email'!$B:$B),'H2 Originaldaten'!E198,7),2),1) -> 49.2 | F198: =ROUND(MAX(_xlfn.NORM.INV(('Eingabe Email'!$B330+1)/MAX('Eingabe Email'!$B:$B),'H2 Originaldaten'!F198,7),2),1) -> 1791.2 | G198: =ROUND(MAX(_xlfn.NORM.INV(('Eingabe Email'!$B330+1)/MAX('Eingabe Email'!$B:$B),'H2 Originaldaten'!G198,7),2),1) -> 13.6 | H198: ='H2 Originaldaten'!H198 -> 76 | I198: ='H2 Originaldaten'!I198 -> 3 | J198: ='H2 Originaldaten'!J198 -> honda civic
A199: 198 | B199: =ROUND(MAX(_xlfn.NORM.INV(('Eingabe Email'!$B331+1)/MAX('Eingabe Email'!$B:$B),'H2 Originaldaten'!B199,7),2),1) -> 26.9 | C199: ='H2 Originaldaten'!C199 -> 6 | D199: =ROUND(MAX(_xlfn.NORM.INV(('Eingabe Email'!$B331+1)/MAX('Eingabe Email'!$B:$B),'H2 Originaldaten'!D199,7),2),1) -> 231.9 | E199: =ROUND(MAX(_xlfn.NORM.INV(('Eingabe Email'!$B331+1)/MAX('Eingabe Email'!$B:$B),'H2 Originaldaten'!E199,7),2),1) -> 106.9 | F199: =ROUND(MAX(_xlfn.NORM.INV(('Eingabe Email'!$B331+1)/MAX('Eingabe Email'!$B:$B),'H2 Originaldaten'!F199,7),2),1) -> 3657.9 | G199: =ROUND(MAX(_xlfn.NORM.INV(('Eingabe Email'!$B331+1)/MAX('Eingabe Email'!$B:$B),'H2 Originaldaten'!G199,7),2),1) -> 24.6 | H199: ='H2 Originaldaten'!H199 -> 76 | I199: ='H2 Originaldaten'!I199 -> 1 | J199: ='H2 Originaldaten'!J199 -> dodge aspen se
A200: 199 | B200: =ROUND(MAX(_xlfn.NORM.INV(('Eingabe Email'!$B332+1)/MAX('Eingabe Email'!$B:$B),'H2 Originaldaten'!B200,7),2),1) -> 21 | C200: ='H2 Originaldaten'!C200 -> 6 | D200: =ROUND(MAX(_xlfn.NORM.INV(('Eingabe Email'!$B332+1)/MAX('Eingabe Email'!$B:$B),'H2 Originaldaten'!D200,7),2),1) -> 253 | E200: =ROUND(MAX(_xlfn.NORM.INV(('Eingabe Email'!$B332+1)/MAX('Eingabe Email'!$B:$B),'H2 Originaldaten'!E200,7),2),1) -> 81 | F200: =ROUND(MAX(_xlfn.NORM.INV(('Eingabe Email'!$B332+1)/MAX('Eingabe Email'!$B:$B),'H2 Originaldaten'!F200,7),2),1) -> 3577 | G200: =ROUND(MAX(_xlfn.NORM.INV(('Eingabe Email'!$B332+1)/MAX('Eingabe Email'!$B:$B),'H2 Originaldaten'!G200,7),2),1) -> 24 | H200: ='H2 Originaldaten'!H200 -> 76 | I200: ='H2 Originaldaten'!I200 -> 1 | J200: ='H2 Originaldaten'!J200 -> ford granada ghia
... 193 more rows

Sheet H1 Originaldaten
A1: Column_1-T | B1: education | C1: income | D1: women | E1: prestige | F1: census | G1: type
A2: gov.administrators | B2: 13.11 | C2: 12351 | D2: 11.16 | E2: 68.8 | F2: 1113 | G2: prof
A3: general.managers | B3: 12.26 | C3: 25879 | D3: 4.02 | E3: 69.1 | F3: 1130 | G3: prof
A4: accountants | B4: 12.77 | C4: 9271 | D4: 15.7 | E4: 63.4 | F4: 1171 | G4: prof
A5: purchasing.officers | B5: 11.42 | C5: 8865 | D5: 9.11 | E5: 56.8 | F5: 1175 | G5: prof
A6: chemists | B6: 14.62 | C6: 8403 | D6: 11.68 | E6: 73.5 | F6: 2111 | G6: prof
A7: physicists | B7: 15.64 | C7: 11030 | D7: 5.13 | E7: 77.6 | F7: 2113 | G7: prof
A8: biologists | B8: 15.09 | C8: 8258 | D8: 25.65 | E8: 72.6 | F8: 2133 | G8: prof
A9: architects | B9: 15.44 | C9: 14163 | D9: 2.69 | E9: 78.1 | F9: 2141 | G9: prof
A10: civil.engineers | B10: 14.52 | C10: 11377 | D10: 1.03 | E10: 73.1 | F10: 2143 | G10: prof
A11: mining.engineers | B11: 14.64 | C11: 11023 | D11: 0.94 | E11: 68.8 | F11: 2153 | G11: prof
A12: surveyors | B12: 12.39 | C12: 5902 | D12: 1.91 | E12: 62 | F12: 2161 | G12: prof
A13: draughtsmen | B13: 12.3 | C13: 7059 | D13: 7.83 | E13: 60 | F13: 2163 | G13: prof
A14: computer.programers | B14: 13.83 | C14: 8425 | D14: 15.33 | E14: 53.8 | F14: 2183 | G14: prof
A15: economists | B15: 14.44 | C15: 8049 | D15: 57.31 | E15: 62.2 | F15: 2311 | G15: prof
A16: psychologists | B16: 14.36 | C16: 7405 | D16: 48.28 | E16: 74.9 | F16: 2315 | G16: prof
A17: social.workers | B17: 14.21 | C17: 6336 | D17: 54.77 | E17: 55.1 | F17: 2331 | G17: prof
A18: lawyers | B18: 15.77 | C18: 19263 | D18: 5.13 | E18: 82.3 | F18: 2343 | G18: prof
A19: librarians | B19: 14.15 | C19: 6112 | D19: 77.1 | E19: 58.1 | F19: 2351 | G19: prof
A20: vocational.counsellors | B20: 15.22 | C20: 9593 | D20: 34.89 | E20: 58.3 | F20: 2391 | G20: prof | H20: AUSGABE: ZUSAMMENFASSUNG
A21: ministers | B21: 14.5 | C21: 4686 | D21: 4.14 | E21: 72.8 | F21: 2511 | G21: prof
A22: university.teachers | B22: 15.97 | C22: 12480 | D22: 19.59 | E22: 84.6 | F22: 2711 | G22: prof | H22: Regressions-Statistik
A23: primary.school.teachers | B23: 13.62 | C23: 5648 | D23: 83.78 | E23: 59.6 | F23: 2731 | G23: prof | H23: Multipler Korrelationskoeffizient | I23: 0.8934077933
A24: secondary.school.teachers | B24: 15.08 | C24: 8034 | D24: 46.8 | E24: 66.1 | F24: 2733 | G24: prof | H24: Bestimmtheitsmaß | I24: 0.7981774852
A25: physicians | B25: 15.96 | C25: 25308 | D25: 10.56 | E25: 87.2 | F25: 3111 | G25: prof | H25: Adjustiertes Bestimmtheitsmaß | I25: 0.7919992449
A26: veterinarians | B26: 15.94 | C26: 14558 | D26: 4.32 | E26: 66.7 | F26: 3115 | G26: prof | H26: Standardfehler | I26: 7.846466897
A27: osteopaths.chiropractors | B27: 14.71 | C27: 17498 | D27: 6.91 | E27: 68.4 | F27: 3117 | G27: prof | H27: Beobachtungen | I27: 102
A28: nurses | B28: 12.46 | C28: 4614 | D28: 96.12 | E28: 64.7 | F28: 3131 | G28: prof
A29: nursing.aides | B29: 9.45 | C29: 3485 | D29: 76.14 | E29: 34.9 | F29: 3135 | G29: bc | H29: ANOVA
A30: physio.therapsts | B30: 13.62 | C30: 5092 | D30: 82.66 | E30: 72.1 | F30: 3137 | G30: prof | I30: Freiheitsgrade (df) | J30: Quadratsummen (SS) | K30: Mittlere Quadratsumme (MS) | L30: Prüfgröße (F) | M30: F krit
A31: pharmacists | B31: 15.21 | C31: 10432 | D31: 24.71 | E31: 69.3 | F31: 3151 | G31: prof | H31: Regression | I31: 3 | J31: 23861.85648 | K31: 7953.952159 | L31: 129.1917201 | M31: 6.259061029e-34
A32: medical.technicians | B32: 12.79 | C32: 5180 | D32: 76.04 | E32: 67.5 | F32: 3156 | G32: wc | H32: Residue | I32: 98 | J32: 6033.570191 | K32: 61.56704277
A33: commercial.artists | B33: 11.09 | C33: 6197 | D33: 21.03 | E33: 57.2 | F33: 3314 | G33: prof | H33: Gesamt | I33: 101 | J33: 29895.42667
A34: radio.tv.announcers | B34: 12.71 | C34: 7562 | D34: 11.15 | E34: 57.6 | F34: 3337 | G34: wc
A35: athletes | B35: 11.44 | C35: 8206 | D35: 8.13 | E35: 54.1 | F35: 3373 | G35: NA | I35: Koeffizienten | J35: Standardfehler | K35: t-Statistik | L35: P-Wert | M35: Untere 95% | N35: Obere 95% | O35: Untere 95,0% | P35: Obere 95,0%
A36: secretaries | B36: 11.59 | C36: 4036 | D36: 97.51 | E36: 46 | F36: 4111 | G36: wc | H36: Schnittpunkt | I36: -6.794334203 | J36: 3.239088646 | K36: -2.097606748 | L36: 0.03851305503 | M36: -13.2222002 | N36: -0.3664682017 | O36: -13.2222002 | P36: -0.3664682017
A37: typists | B37: 11.49 | C37: 3148 | D37: 95.97 | E37: 41.9 | F37: 4113 | G37: wc | H37: X Variable 1 | I37: 4.186637275 | J37: 0.3887012613 | K37: 10.77083532 | L37: 2.590069292e-18 | M37: 3.415272272 | N37: 4.958002277 | O37: 3.415272272 | P37: 4.958002277
A38: bookkeepers | B38: 11.32 | C38: 4348 | D38: 68.24 | E38: 49.4 | F38: 4131 | G38: wc | H38: X Variable 2 | I38: 0.001313560428 | J38: 0.0002777811984 | K38: 4.728759311 | L38: 7.579371938e-06 | M38: 0.0007623126806 | N38: 0.001864808176 | O38: 0.0007623126806 | P38: 0.001864808176
A39: tellers.cashiers | B39: 10.64 | C39: 2448 | D39: 91.76 | E39: 42.3 | F39: 4133 | G39: wc | H39: X Variable 3 | I39: -0.008905156742 | J39: 0.03040705764 | K39: -0.2928647963 | L39: 0.7702447049 | M39: -0.06924697302 | N39: 0.05143665954 | O39: -0.06924697302 | P39: 0.05143665954
A40: computer.operators | B40: 11.36 | C40: 4330 | D40: 75.92 | E40: 47.7 | F40: 4143 | G40: wc
A41: shipping.clerks | B41: 9.17 | C41: 4761 | D41: 11.37 | E41: 30.9 | F41: 4153 | G41: wc
A42: file.clerks | B42: 12.09 | C42: 3016 | D42: 83.19 | E42: 32.7 | F42: 4161 | G42: wc
A43: receptionsts | B43: 11.04 | C43: 2901 | D43: 92.86 | E43: 38.7 | F43: 4171 | G43: wc | H43: AUSGABE: RESIDUENPLOT
A44: mail.carriers | B44: 9.22 | C44: 5511 | D44: 7.62 | E44: 36.1 | F44: 4172 | G44: wc
A45: postal.clerks | B45: 10.07 | C45: 3739 | D45: 52.27 | E45: 37.2 | F45: 4173 | G45: wc | H45: Beobachtung | I45: Schätzung für Y | J45: Residuen
A46: telephone.operators | B46: 10.51 | C46: 3161 | D46: 96.14 | E46: 38.1 | F46: 4175 | G46: wc | H46: 1 | I46: 64.21688377 | J46: 4.583116232
A47: collectors | B47: 11.2 | C47: 4741 | D47: 47.06 | E47: 29.4 | F47: 4191 | G47: wc | H47: 2 | I47: 78.49167038 | J47: -9.391670377
A48: claim.adjustors | B48: 11.13 | C48: 5052 | D48: 56.1 | E48: 51.1 | F48: 4192 | G48: wc | H48: 3 | I48: 58.70723156 | J48: 4.692768436
A49: travel.clerks | B49: 11.43 | C49: 6259 | D49: 39.17 | E49: 35.7 | F49: 4193 | G49: wc | H49: 4 | I49: 52.58065069 | J49: 4.219349308
A50: office.clerks | B50: 11 | C50: 4075 | D50: 63.23 | E50: 35.6 | F50: 4197 | G50: wc | H50: 5 | I50: 65.3481388 | J50: 8.151861199
A51: sales.supervisors | B51: 9.84 | C51: 7482 | D51: 17.04 | E51: 41.5 | F51: 5130 | G51: wc | H51: 6 | I51: 73.12756084 | J51: 4.472439158
A52: commercial.travellers | B52: 11.13 | C52: 8780 | D52: 3.16 | E52: 40.2 | F52: 5133 | G52: wc | H52: 7 | I52: 67.00098702 | J52: 5.599012982
A53: sales.clerks | B53: 10.05 | C53: 2594 | D53: 67.82 | E53: 26.5 | F53: 5137 | G53: wc | H53: 8 | I53: 76.42734679 | J53: 1.672653208
A54: newsboys | B54: 9.62 | C54: 918 | D54: 7 | E54: 14.8 | F54: 5143 | G54: NA | H54: 9 | I54: 68.93084371 | J54: 4.169156294
A55: service.station.attendant | B55: 9.93 | C55: 2370 | D55: 3.69 | E55: 23.3 | F55: 5145 | G55: bc | H55: 10 | I55: 68.96904125 | J55: -0.1690412514
A56: insurance.agents | B56: 11.6 | C56: 8131 | D56: 13.09 | E56: 47.3 | F56: 5171 | G56: wc | H56: 11 | I56: 52.81372643 | J56: 9.186273572
A57: real.estate.salesmen | B57: 11.09 | C57: 6992 | D57: 24.44 | E57: 47.1 | F57: 5172 | G57: wc | H57: 12 | I57: 53.90399996 | J57: 6.096000039
A58: buyers | B58: 11.03 | C58: 7956 | D58: 23.88 | E58: 51.1 | F58: 5191 | G58: wc | H58: 13 | I58: 62.03708986 | J58: -8.237089861
A59: firefighters | B59: 9.47 | C59: 8895 | D59: 0 | E59: 43.5 | F59: 6111 | G59: bc | H59: 14 | I59: 63.7232014 | J59: -1.523201397
A60: policemen | B60: 10.93 | C60: 8891 | D60: 1.65 | E60: 51.6 | F60: 6112 | G60: bc | H60: 15 | I60: 62.62275106 | J60: 12.27724894
A61: cooks | B61: 7.74 | C61: 3116 | D61: 52 | E61: 29.7 | F61: 6121 | G61: bc | H61: 16 | I61: 60.53276491 | J61: -5.432764909
A62: bartenders | B62: 8.5 | C62: 3930 | D62: 15.51 | E62: 20.2 | F62: 6123 | G62: bc | H62: 17 | I62: 84.48636669 | J62: -2.186366694
A63: funeral.directors | B63: 10.57 | C63: 7869 | D63: 6.01 | E63: 54.9 | F63: 6141 | G63: bc | H63: 18 | I63: 59.78847699 | J63: -1.688476986
A64: babysitters | B64: 9.46 | C64: 611 | D64: 96.53 | E64: 25.9 | F64: 6147 | G64: NA | H64: 19 | I64: 69.21656939 | J64: -10.91656939
A65: launderers | B65: 7.33 | C65: 3000 | D65: 69.31 | E65: 20.8 | F65: 6162 | G65: bc | H65: 20 | I65: 60.0303831 | J65: 12.7696169
A66: janitors | B66: 7.11 | C66: 3472 | D66: 33.57 | E66: 17.3 | F66: 6191 | G66: bc | H66: 21 | I66: 76.2850452 | J66: 8.314954803
A67: elevator.operators | B67: 7.58 | C67: 3582 | D67: 30.08 | E67: 20.1 | F67: 6193 | G67: bc | H67: 22 | I67: 56.90058074 | J67: 2.699419255
A68: farmers | B68: 6.84 | C68: 3643 | D68: 3.6 | E68: 44.1 | F68: 7112 | G68: NA | H68: 23 | I68: 66.47653904 | J68: -0.376539044
A69: farm.workers | B69: 8.6 | C69: 1656 | D69: 27.75 | E69: 21.5 | F69: 7182 | G69: bc | H69: 24 | I69: 93.17394556 | J69: -5.973945564
A70: rotary.well.drillers | B70: 8.88 | C70: 6860 | D70: 0 | E70: 35.3 | F70: 7711 | G70: bc | H70: 25 | I70: 79.02500639 | J70: -12.32500639
A71: bakers | B71: 7.54 | C71: 4199 | D71: 33.3 | E71: 38.9 | F71: 8213 | G71: bc | H71: 26 | I71: 77.71424585 | J71: -9.314245848
A72: slaughterers.1 | B72: 7.64 | C72: 5134 | D72: 17.26 | E72: 25.2 | F72: 8215 | G72: bc | H72: 27 | I72: 50.57597039 | J72: 14.12402961
A73: slaughterers.2 | B73: 7.64 | C73: 5134 | D73: 17.26 | E73: 34.8 | F73: 8215 | G73: bc | H73: 28 | I73: 36.6691075 | J73: -1.769107501
A74: canners | B74: 7.42 | C74: 1890 | D74: 72.24 | E74: 23.2 | F74: 8221 | G74: bc | H74: 29 | I74: 56.18021492 | J74: 15.91978508
A75: textile.weavers | B75: 6.69 | C75: 4443 | D75: 31.36 | E75: 33.3 | F75: 8267 | G75: bc | H75: 30 | I75: 70.36743471 | J75: -1.067434709
A76: textile.labourers | B76: 6.74 | C76: 3485 | D76: 39.48 | E76: 28.8 | F76: 8278 | G76: bc | H76: 31 | I76: 52.87985144 | J76: 14.62014856
A77: tool.die.makers | B77: 10.09 | C77: 8043 | D77: 1.5 | E77: 42.5 | F77: 8311 | G77: bc | H77: 32 | I77: 47.5883317 | J77: 9.611668299
A78: machinists | B78: 8.81 | C78: 6686 | D78: 4.28 | E78: 44.2 | F78: 8313 | G78: bc | H78: 33 | I78: 56.25167702 | J78: 1.348322981
A79: sheet.metal.workers | B79: 8.4 | C79: 6565 | D79: 2.3 | E79: 35.9 | F79: 8333 | G79: bc | H79: 34 | I79: 51.80747417 | J79: 2.292525831
A80: welders | B80: 7.92 | C80: 6477 | D80: 5.17 | E80: 41.8 | F80: 8335 | G80: bc | H80: 35 | I80: 46.16197986 | J80: -0.161979865
A81: auto.workers | B81: 8.43 | C81: 5811 | D81: 13.62 | E81: 35.9 | F81: 8513 | G81: bc | H81: 36 | I81: 44.59058842 | J81: -2.690588419
A82: aircraft.workers | B82: 8.78 | C82: 6573 | D82: 5.78 | E82: 43.7 | F82: 8515 | G82: bc | H82: 37 | I82: 45.70207259 | J82: 3.697927408
A83: electronic.workers | B83: 8.76 | C83: 3942 | D83: 74.54 | E83: 50.8 | F83: 8534 | G83: bc | H83: 38 | I83: 40.14994515 | J83: 2.150054855
A84: radio.tv.repairmen | B84: 10.29 | C84: 5449 | D84: 2.92 | E84: 37.2 | F84: 8537 | G84: bc | H84: 39 | I84: 45.77750239 | J84: 1.922497608
A85: sewing.mach.operators | B85: 6.38 | C85: 2847 | D85: 90.67 | E85: 28.2 | F85: 8563 | G85: bc | H85: 40 | I85: 37.74973917 | J85: -6.849739173
A86: auto.repairmen | B86: 8.1 | C86: 5795 | D86: 0.81 | E86: 38.1 | F86: 8581 | G86: bc | H86: 41 | I86: 47.04298871 | J86: -14.34298871
A87: aircraft.repairmen | B87: 10.1 | C87: 7716 | D87: 0.78 | E87: 50.3 | F87: 8582 | G87: bc | H87: 42 | I87: 42.40984726 | J87: -3.709847257
A88: railway.sectionmen | B88: 6.67 | C88: 4696 | D88: 0 | E88: 27.3 | F88: 8715 | G88: bc | H88: 43 | I88: 38.9776357 | J88: -2.877635695
A89: electrical.linemen | B89: 9.05 | C89: 8316 | D89: 1.34 | E89: 40.9 | F89: 8731 | G89: bc | H89: 44 | I89: 39.81103305 | J89: -2.611033051
A90: electricians | B90: 9.93 | C90: 7147 | D90: 0.99 | E90: 50.2 | F90: 8733 | G90: bc | H90: 45 | I90: 40.5032463 | J90: -2.403246298
A91: construction.foremen | B91: 8.24 | C91: 8880 | D91: 0.65 | E91: 51.1 | F91: 8780 | G91: bc | H91: 46 | I91: 45.90451659 | J91: -16.50451659
A92: carpenters | B92: 6.92 | C92: 5299 | D92: 0.56 | E92: 38.9 | F92: 8781 | G92: bc | H92: 47 | I92: 45.93946665 | J92: 5.160533346
A93: masons | B93: 6.6 | C93: 5959 | D93: 0.52 | E93: 36.2 | F93: 8782 | G93: bc | H93: 48 | I93: 48.93168958 | J93: -13.23168958
A94: house.painters | B94: 7.81 | C94: 4549 | D94: 2.46 | E94: 29.9 | F94: 8785 | G94: bc | H94: 49 | I94: 44.0483615 | J94: -8.448361503
A95: plumbers | B95: 8.33 | C95: 6928 | D95: 0.61 | E95: 42.9 | F95: 8791 | G95: bc | H95: 50 | I95: 44.07849183 | J95: -2.578491833
A96: construction.labourers | B96: 7.52 | C96: 3910 | D96: 1.09 | E96: 26.5 | F96: 8798 | G96: bc | H96: 51 | I96: 51.30785893 | J96: -11.10785893
A97: pilots | B97: 12.27 | C97: 14032 | D97: 0.58 | E97: 66.1 | F97: 9111 | G97: prof | H97: 52 | I97: 38.08479843 | J97: -11.58479843
A98: train.engineers | B98: 8.49 | C98: 8845 | D98: 0 | E98: 48.9 | F98: 9131 | G98: bc | H98: 53 | I98: 34.62462876 | J98: -19.82462876
A99: bus.drivers | B99: 7.58 | C99: 5562 | D99: 9.47 | E99: 35.9 | F99: 9171 | G99: bc | H99: 54 | I99: 37.85925212 | J99: -14.55925212
A100: taxi.drivers | B100: 7.93 | C100: 4224 | D100: 3.59 | E100: 25.1 | F100: 9173 | G100: bc | H100: 55 | I100: 52.33464952 | J100: -5.034649524
A101: longshoremen | B101: 8.37 | C101: 4753 | D101: 0 | E101: 26.1 | F101: 9313 | G101: bc | H101: 56 | I101: 48.60224566 | J101: -1.502245657
A102: typesetters | B102: 10 | C102: 6462 | D102: 13.58 | E102: 42.2 | F102: 9511 | G102: bc | H102: 57 | I102: 49.62230656 | J102: 1.477693439
A103: bookbinders | B103: 8.55 | C103: 3617 | D103: 70.87 | E103: 35.2 | F103: 9517 | G103: bc | H103: 58 | I103: 44.5372408 | J103: -1.037240798
H104: 59 | I104: 50.62978347 | J104: 0.9702165318
H105: 60 | I105: 29.24022445 | J105: 0.459775553
H106: 61 | I106: 33.81625613 | J106: -13.61625613
H107: 62 | I107: 47.74130881 | J107: 7.158691192
H108: 63 | I108: 32.75422506 | J108: -6.854225057
H109: 64 | I109: 27.21718189 | J109: -6.417181891
H110: 65 | I110: 27.23439252 | J110: -9.934392515
H111: 66 | I111: 29.37768268 | J111: -9.277682678
H112: 67 | I112: 26.59550683 | J112: 17.50449317
H113: 68 | I113: 31.13888433 | J113: -9.638884329
H114: 69 | I114: 39.39402933 | J114: -4.094029334
H115: 70 | I115: 29.99200937 | J115: 8.907990633
H116: 71 | I116: 31.78169081 | J116: -6.581690809
H117: 72 | I117: 31.78169081 | J117: 3.018309191
H118: 73 | I118: 26.10983506 | J118: -2.909835062
H119: 74 | I119: 26.77115243 | J119: 6.528847568
H120: 75 | I120: 25.64978353 | J120: 3.150216467
H121: 76 | I121: 46.00044469 | J121: -3.500444688
H122: 77 | I122: 38.83429114 | J122: 5.365708861
H123: 78 | I123: 36.97646126 | J123: -1.076461255
H124: 79 | I124: 34.82572425 | J124: 6.974275754
H125: 80 | I125: 36.01082944 | J125: -0.1108294364
H126: 81 | I126: 38.54690196 | J126: 5.153098042
H127: 82 | I127: 34.39487315 | J127: 16.40512685
H128: 83 | I128: 43.41775107 | J128: -6.217751069
H129: 84 | I129: 22.84868759 | J129: 5.351312413
H130: 85 | I130: 34.72229723 | J130: 3.377702773
H131: 86 | I131: 45.61918851 | J131: 4.680811487
H132: 87 | I132: 27.29901619 | J132: 0.0009838096672
H133: 88 | I133: 42.00636874 | J133: -1.106368744
H134: 89 | I134: 44.15817421 | J134: 6.04182579
H135: 90 | I135: 39.36218519 | J135: 11.73781481
H136: 91 | I136: 29.13276556 | J136: 9.767234441
H137: 92 | I137: 28.66034772 | J137: 7.53965228
H138: 93 | I138: 31.85678261 | J138: -1.956782615
H139: 94 | I139: 37.1752688 | J139: 5.724731204
H140: 95 | I140: 29.81549276 | J140: -3.315492756
H141: 96 | I141: 63.0024201 | J141: 3.097579904
H142: 97 | I142: 40.36865825 | J142: 8.531341753
H143: 98 | I143: 32.16206761 | J143: 3.737932393
H144: 99 | I144: 31.92220912 | J144: -6.822209122
H145: 100 | I145: 34.4911725 | J145: -8.391172502
H146: 101 | I146: 43.439334 | J146: -1.239334003
H147: 102 | I147: 33.12145411 | J147: 2.078545894

Sheet H2 Originaldaten
A1: Column_1 | B1: mpg | C1: cylinders | D1: displacement | E1: horsepower | F1: weight | G1: acceleration | H1: year | I1: origin | J1: name | P1: horsepower | Q1: mpg | S1: mpg
A2: 1 | B2: 18 | C2: 8 | D2: 307 | E2: 130 | F2: 3504 | G2: 12 | H2: 70 | I2: 1 | J2: chevrolet chevelle malibu | P2: 130 | Q2: 18 | R2: =LN(P2) -> 4.86753445 | S2: 18
A3: 2 | B3: 15 | C3: 8 | D3: 350 | E3: 165 | F3: 3693 | G3: 11.5 | H3: 70 | I3: 1 | J3: buick skylark 320 | P3: 165 | Q3: 15 | R3: =LN(P3) -> 5.105945474 | S3: 15
A4: 3 | B4: 18 | C4: 8 | D4: 318 | E4: 150 | F4: 3436 | G4: 11 | H4: 70 | I4: 1 | J4: plymouth satellite | P4: 150 | Q4: 18 | R4: 5.010635294 | S4: 18
A5: 4 | B5: 16 | C5: 8 | D5: 304 | E5: 150 | F5: 3433 | G5: 12 | H5: 70 | I5: 1 | J5: amc rebel sst | P5: 150 | Q5: 16 | R5: 5.010635294 | S5: 16
A6: 5 | B6: 17 | C6: 8 | D6: 302 | E6: 140 | F6: 3449 | G6: 10.5 | H6: 70 | I6: 1 | J6: ford torino | P6: 140 | Q6: 17 | R6: 4.941642423 | S6: 17
A7: 6 | B7: 15 | C7: 8 | D7: 429 | E7: 198 | F7: 4341 | G7: 10 | H7: 70 | I7: 1 | J7: ford galaxie 500 | P7: 198 | Q7: 15 | R7: 5.288267031 | S7: 15
A8: 7 | B8: 14 | C8: 8 | D8: 454 | E8: 220 | F8: 4354 | G8: 9 | H8: 70 | I8: 1 | J8: chevrolet impala | P8: 220 | Q8: 14 | R8: 5.393627546 | S8: 14
A9: 8 | B9: 14 | C9: 8 | D9: 440 | E9: 215 | F9: 4312 | G9: 8.5 | H9: 70 | I9: 1 | J9: plymouth fury iii | P9: 215 | Q9: 14 | R9: 5.370638028 | S9: 14
A10: 9 | B10: 14 | C10: 8 | D10: 455 | E10: 225 | F10: 4425 | G10: 10 | H10: 70 | I10: 1 | J10: pontiac catalina | P10: 225 | Q10: 14 | R10: 5.416100402 | S10: 14
A11: 10 | B11: 15 | C11: 8 | D11: 390 | E11: 190 | F11: 3850 | G11: 8.5 | H11: 70 | I11: 1 | J11: amc ambassador dpl | P11: 190 | Q11: 15 | R11: 5.247024072 | S11: 15
A12: 11 | B12: 15 | C12: 8 | D12: 383 | E12: 170 | F12: 3563 | G12: 10 | H12: 70 | I12: 1 | J12: dodge challenger se | P12: 170 | Q12: 15 | R12: 5.135798437 | S12: 15
A13: 12 | B13: 14 | C13: 8 | D13: 340 | E13: 160 | F13: 3609 | G13: 8 | H13: 70 | I13: 1 | J13: plymouth 'cuda 340 | P13: 160 | Q13: 14 | R13: 5.075173815 | S13: 14
A14: 13 | B14: 15 | C14: 8 | D14: 400 | E14: 150 | F14: 3761 | G14: 9.5 | H14: 70 | I14: 1 | J14: chevrolet monte carlo | P14: 150 | Q14: 15 | R14: 5.010635294 | S14: 15
A15: 14 | B15: 14 | C15: 8 | D15: 455 | E15: 225 | F15: 3086 | G15: 10 | H15: 70 | I15: 1 | J15: buick estate wagon (sw) | P15: 225 | Q15: 14 | R15: 5.416100402 | S15: 14
A16: 15 | B16: 24 | C16: 4 | D16: 113 | E16: 95 | F16: 2372 | G16: 15 | H16: 70 | I16: 3 | J16: toyota corona mark ii | P16: 95 | Q16: 24 | R16: 4.553876892 | S16: 24
A17: 16 | B17: 22 | C17: 6 | D17: 198 | E17: 95 | F17: 2833 | G17: 15.5 | H17: 70 | I17: 1 | J17: plymouth duster | P17: 95 | Q17: 22 | R17: 4.553876892 | S17: 22
A18: 17 | B18: 18 | C18: 6 | D18: 199 | E18: 97 | F18: 2774 | G18: 15.5 | H18: 70 | I18: 1 | J18: amc hornet | P18: 97 | Q18: 18 | R18: 4.574710979 | S18: 18
A19: 18 | B19: 21 | C19: 6 | D19: 200 | E19: 85 | F19: 2587 | G19: 16 | H19: 70 | I19: 1 | J19: ford maverick | P19: 85 | Q19: 21 | R19: 4.442651256 | S19: 21
A20: 19 | B20: 27 | C20: 4 | D20: 97 | E20: 88 | F20: 2130 | G20: 14.5 | H20: 70 | I20: 3 | J20: datsun pl510 | P20: 88 | Q20: 27 | R20: 4.477336814 | S20: 27
A21: 20 | B21: 26 | C21: 4 | D21: 97 | E21: 46 | F21: 1835 | G21: 20.5 | H21: 70 | I21: 2 | J21: volkswagen 1131 deluxe sedan | P21: 46 | Q21: 26 | R21: 3.828641396 | S21: 26
A22: 21 | B22: 25 | C22: 4 | D22: 110 | E22: 87 | F22: 2672 | G22: 17.5 | H22: 70 | I22: 2 | J22: peugeot 504 | P22: 87 | Q22: 25 | R22: 4.465908119 | S22: 25
A23: 22 | B23: 24 | C23: 4 | D23: 107 | E23: 90 | F23: 2430 | G23: 14.5 | H23: 70 | I23: 2 | J23: audi 100 ls | P23: 90 | Q23: 24 | R23: 4.49980967 | S23: 24
A24: 23 | B24: 25 | C24: 4 | D24: 104 | E24: 95 | F24: 2375 | G24: 17.5 | H24: 70 | I24: 2 | J24: saab 99e | P24: 95 | Q24: 25 | R24: 4.553876892 | S24: 25
A25: 24 | B25: 26 | C25: 4 | D25: 121 | E25: 113 | F25: 2234 | G25: 12.5 | H25: 70 | I25: 2 | J25: bmw 2002 | P25: 113 | Q25: 26 | R25: 4.727387819 | S25: 26
A26: 25 | B26: 21 | C26: 6 | D26: 199 | E26: 90 | F26: 2648 | G26: 15 | H26: 70 | I26: 1 | J26: amc gremlin | P26: 90 | Q26: 21 | R26: 4.49980967 | S26: 21
A27: 26 | B27: 10 | C27: 8 | D27: 360 | E27: 215 | F27: 4615 | G27: 14 | H27: 70 | I27: 1 | J27: ford f250 | P27: 215 | Q27: 10 | R27: 5.370638028 | S27: 10
A28: 27 | B28: 10 | C28: 8 | D28: 307 | E28: 200 | F28: 4376 | G28: 15 | H28: 70 | I28: 1 | J28: chevy c20 | P28: 200 | Q28: 10 | R28: 5.298317367 | S28: 10
A29: 28 | B29: 11 | C29: 8 | D29: 318 | E29: 210 | F29: 4382 | G29: 13.5 | H29: 70 | I29: 1 | J29: dodge d200 | P29: 210 | Q29: 11 | R29: 5.347107531 | S29: 11
A30: 29 | B30: 9 | C30: 8 | D30: 304 | E30: 193 | F30: 4732 | G30: 18.5 | H30: 70 | I30: 1 | J30: hi 1200d | P30: 193 | Q30: 9 | R30: 5.262690189 | S30: 9
A31: 30 | B31: 27 | C31: 4 | D31: 97 | E31: 88 | F31: 2130 | G31: 14.5 | H31: 71 | I31: 3 | J31: datsun pl510 | P31: 88 | Q31: 27 | R31: 4.477336814 | S31: 27
A32: 31 | B32: 28 | C32: 4 | D32: 140 | E32: 90 | F32: 2264 | G32: 15.5 | H32: 71 | I32: 1 | J32: chevrolet vega 2300 | P32: 90 | Q32: 28 | R32: 4.49980967 | S32: 28
A33: 32 | B33: 25 | C33: 4 | D33: 113 | E33: 95 | F33: 2228 | G33: 14 | H33: 71 | I33: 3 | J33: toyota corona | P33: 95 | Q33: 25 | R33: 4.553876892 | S33: 25
A34: 34 | B34: 19 | C34: 6 | D34: 232 | E34: 100 | F34: 2634 | G34: 13 | H34: 71 | I34: 1 | J34: amc gremlin | P34: 100 | Q34: 19 | R34: 4.605170186 | S34: 19
A35: 35 | B35: 16 | C35: 6 | D35: 225 | E35: 105 | F35: 3439 | G35: 15.5 | H35: 71 | I35: 1 | J35: plymouth satellite custom | P35: 105 | Q35: 16 | R35: 4.65396035 | S35: 16
A36: 36 | B36: 17 | C36: 6 | D36: 250 | E36: 100 | F36: 3329 | G36: 15.5 | H36: 71 | I36: 1 | J36: chevrolet chevelle malibu | P36: 100 | Q36: 17 | R36: 4.605170186 | S36: 17
A37: 37 | B37: 19 | C37: 6 | D37: 250 | E37: 88 | F37: 3302 | G37: 15.5 | H37: 71 | I37: 1 | J37: ford torino 500 | P37: 88 | Q37: 19 | R37: 4.477336814 | S37: 19
A38: 38 | B38: 18 | C38: 6 | D38: 232 | E38: 100 | F38: 3288 | G38: 15.5 | H38: 71 | I38: 1 | J38: amc matador | P38: 100 | Q38: 18 | R38: 4.605170186 | S38: 18
A39: 39 | B39: 14 | C39: 8 | D39: 350 | E39: 165 | F39: 4209 | G39: 12 | H39: 71 | I39: 1 | J39: chevrolet impala | P39: 165 | Q39: 14 | R39: 5.105945474 | S39: 14
A40: 40 | B40: 14 | C40: 8 | D40: 400 | E40: 175 | F40: 4464 | G40: 11.5 | H40: 71 | I40: 1 | J40: pontiac catalina brougham | P40: 175 | Q40: 14 | R40: 5.164785974 | S40: 14
A41: 41 | B41: 14 | C41: 8 | D41: 351 | E41: 153 | F41: 4154 | G41: 13.5 | H41: 71 | I41: 1 | J41: ford galaxie 500 | P41: 153 | Q41: 14 | R41: 5.030437921 | S41: 14
A42: 42 | B42: 14 | C42: 8 | D42: 318 | E42: 150 | F42: 4096 | G42: 13 | H42: 71 | I42: 1 | J42: plymouth fury iii | P42: 150 | Q42: 14 | R42: 5.010635294 | S42: 14
A43: 43 | B43: 12 | C43: 8 | D43: 383 | E43: 180 | F43: 4955 | G43: 11.5 | H43: 71 | I43: 1 | J43: dodge monaco (sw) | P43: 180 | Q43: 12 | R43: 5.192956851 | S43: 12
A44: 44 | B44: 13 | C44: 8 | D44: 400 | E44: 170 | F44: 4746 | G44: 12 | H44: 71 | I44: 1 | J44: ford country squire (sw) | P44: 170 | Q44: 13 | R44: 5.135798437 | S44: 13
A45: 45 | B45: 13 | C45: 8 | D45: 400 | E45: 175 | F45: 5140 | G45: 12 | H45: 71 | I45: 1 | J45: pontiac safari (sw) | P45: 175 | Q45: 13 | R45: 5.164785974 | S45: 13
A46: 46 | B46: 18 | C46: 6 | D46: 258 | E46: 110 | F46: 2962 | G46: 13.5 | H46: 71 | I46: 1 | J46: amc hornet sportabout (sw) | P46: 110 | Q46: 18 | R46: 4.700480366 | S46: 18
A47: 47 | B47: 22 | C47: 4 | D47: 140 | E47: 72 | F47: 2408 | G47: 19 | H47: 71 | I47: 1 | J47: chevrolet vega (sw) | P47: 72 | Q47: 22 | R47: 4.276666119 | S47: 22
A48: 48 | B48: 19 | C48: 6 | D48: 250 | E48: 100 | F48: 3282 | G48: 15 | H48: 71 | I48: 1 | J48: pontiac firebird | P48: 100 | Q48: 19 | R48: 4.605170186 | S48: 19
A49: 49 | B49: 18 | C49: 6 | D49: 250 | E49: 88 | F49: 3139 | G49: 14.5 | H49: 71 | I49: 1 | J49: ford mustang | P49: 88 | Q49: 18 | R49: 4.477336814 | S49: 18
A50: 50 | B50: 23 | C50: 4 | D50: 122 | E50: 86 | F50: 2220 | G50: 14 | H50: 71 | I50: 1 | J50: mercury capri 2000 | P50: 86 | Q50: 23 | R50: 4.454347296 | S50: 23
A51: 51 | B51: 28 | C51: 4 | D51: 116 | E51: 90 | F51: 2123 | G51: 14 | H51: 71 | I51: 2 | J51: opel 1900 | P51: 90 | Q51: 28 | R51: 4.49980967 | S51: 28
A52: 52 | B52: 30 | C52: 4 | D52: 79 | E52: 70 | F52: 2074 | G52: 19.5 | H52: 71 | I52: 2 | J52: peugeot 304 | P52: 70 | Q52: 30 | R52: 4.248495242 | S52: 30
A53: 53 | B53: 30 | C53: 4 | D53: 88 | E53: 76 | F53: 2065 | G53: 14.5 | H53: 71 | I53: 2 | J53: fiat 124b | P53: 76 | Q53: 30 | R53: 4.33073334 | S53: 30
A54: 54 | B54: 31 | C54: 4 | D54: 71 | E54: 65 | F54: 1773 | G54: 19 | H54: 71 | I54: 3 | J54: toyota corolla 1200 | P54: 65 | Q54: 31 | R54: 4.17438727 | S54: 31
A55: 55 | B55: 35 | C55: 4 | D55: 72 | E55: 69 | F55: 1613 | G55: 18 | H55: 71 | I55: 3 | J55: datsun 1200 | P55: 69 | Q55: 35 | R55: 4.234106505 | S55: 35
A56: 56 | B56: 27 | C56: 4 | D56: 97 | E56: 60 | F56: 1834 | G56: 19 | H56: 71 | I56: 2 | J56: volkswagen model 111 | P56: 60 | Q56: 27 | R56: 4.094344562 | S56: 27
A57: 57 | B57: 26 | C57: 4 | D57: 91 | E57: 70 | F57: 1955 | G57: 20.5 | H57: 71 | I57: 1 | J57: plymouth cricket | P57: 70 | Q57: 26 | R57: 4.248495242 | S57: 26
A58: 58 | B58: 24 | C58: 4 | D58: 113 | E58: 95 | F58: 2278 | G58: 15.5 | H58: 72 | I58: 3 | J58: toyota corona hardtop | P58: 95 | Q58: 24 | R58: 4.553876892 | S58: 24
A59: 59 | B59: 25 | C59: 4 | D59: 97.5 | E59: 80 | F59: 2126 | G59: 17 | H59: 72 | I59: 1 | J59: dodge colt hardtop | P59: 80 | Q59: 25 | R59: 4.382026635 | S59: 25
A60: 60 | B60: 23 | C60: 4 | D60: 97 | E60: 54 | F60: 2254 | G60: 23.5 | H60: 72 | I60: 2 | J60: volkswagen type 3 | P60: 54 | Q60: 23 | R60: 3.988984047 | S60: 23
A61: 61 | B61: 20 | C61: 4 | D61: 140 | E61: 90 | F61: 2408 | G61: 19.5 | H61: 72 | I61: 1 | J61: chevrolet vega | P61: 90 | Q61: 20 | R61: 4.49980967 | S61: 20
A62: 62 | B62: 21 | C62: 4 | D62: 122 | E62: 86 | F62: 2226 | G62: 16.5 | H62: 72 | I62: 1 | J62: ford pinto runabout | P62: 86 | Q62: 21 | R62: 4.454347296 | S62: 21
A63: 63 | B63: 13 | C63: 8 | D63: 350 | E63: 165 | F63: 4274 | G63: 12 | H63: 72 | I63: 1 | J63: chevrolet impala | P63: 165 | Q63: 13 | R63: 5.105945474 | S63: 13
A64: 64 | B64: 14 | C64: 8 | D64: 400 | E64: 175 | F64: 4385 | G64: 12 | H64: 72 | I64: 1 | J64: pontiac catalina | P64: 175 | Q64: 14 | R64: 5.164785974 | S64: 14
A65: 65 | B65: 15 | C65: 8 | D65: 318 | E65: 150 | F65: 4135 | G65: 13.5 | H65: 72 | I65: 1 | J65: plymouth fury iii | P65: 150 | Q65: 15 | R65: 5.010635294 | S65: 15
A66: 66 | B66: 14 | C66: 8 | D66: 351 | E66: 153 | F66: 4129 | G66: 13 | H66: 72 | I66: 1 | J66: ford galaxie 500 | P66: 153 | Q66: 14 | R66: 5.030437921 | S66: 14
A67: 67 | B67: 17 | C67: 8 | D67: 304 | E67: 150 | F67: 3672 | G67: 11.5 | H67: 72 | I67: 1 | J67: amc ambassador sst | P67: 150 | Q67: 17 | R67: =LN(P67) -> 5.010635294 | S67: 17
A68: 68 | B68: 11 | C68: 8 | D68: 429 | E68: 208 | F68: 4633 | G68: 11 | H68: 72 | I68: 1 | J68: mercury marquis | P68: 208 | Q68: 11 | R68: 5.33753808 | S68: 11
A69: 69 | B69: 13 | C69: 8 | D69: 350 | E69: 155 | F69: 4502 | G69: 13.5 | H69: 72 | I69: 1 | J69: buick lesabre custom | P69: 155 | Q69: 13 | R69: 5.043425117 | S69: 13
A70: 70 | B70: 12 | C70: 8 | D70: 350 | E70: 160 | F70: 4456 | G70: 13.5 | H70: 72 | I70: 1 | J70: oldsmobile delta 88 royale | P70: 160 | Q70: 12 | R70: 5.075173815 | S70: 12
A71: 71 | B71: 13 | C71: 8 | D71: 400 | E71: 190 | F71: 4422 | G71: 12.5 | H71: 72 | I71: 1 | J71: chrysler newport royal | P71: 190 | Q71: 13 | R71: 5.247024072 | S71: 13
A72: 72 | B72: 19 | C72: 3 | D72: 70 | E72: 97 | F72: 2330 | G72: 13.5 | H72: 72 | I72: 3 | J72: mazda rx2 coupe | P72: 97 | Q72: 19 | R72: 4.574710979 | S72: 19
A73: 73 | B73: 15 | C73: 8 | D73: 304 | E73: 150 | F73: 3892 | G73: 12.5 | H73: 72 | I73: 1 | J73: amc matador (sw) | P73: 150 | Q73: 15 | R73: 5.010635294 | S73: 15
A74: 74 | B74: 13 | C74: 8 | D74: 307 | E74: 130 | F74: 4098 | G74: 14 | H74: 72 | I74: 1 | J74: chevrolet chevelle concours (sw) | P74: 130 | Q74: 13 | R74: 4.86753445 | S74: 13
A75: 75 | B75: 13 | C75: 8 | D75: 302 | E75: 140 | F75: 4294 | G75: 16 | H75: 72 | I75: 1 | J75: ford gran torino (sw) | P75: 140 | Q75: 13 | R75: 4.941642423 | S75: 13
A76: 76 | B76: 14 | C76: 8 | D76: 318 | E76: 150 | F76: 4077 | G76: 14 | H76: 72 | I76: 1 | J76: plymouth satellite custom (sw) | P76: 150 | Q76: 14 | R76: 5.010635294 | S76: 14
A77: 77 | B77: 18 | C77: 4 | D77: 121 | E77: 112 | F77: 2933 | G77: 14.5 | H77: 72 | I77: 2 | J77: volvo 145e (sw) | P77: 112 | Q77: 18 | R77: 4.718498871 | S77: 18
A78: 78 | B78: 22 | C78: 4 | D78: 121 | E78: 76 | F78: 2511 | G78: 18 | H78: 72 | I78: 2 | J78: volkswagen 411 (sw) | P78: 76 | Q78: 22 | R78: 4.33073334 | S78: 22
A79: 79 | B79: 21 | C79: 4 | D79: 120 | E79: 87 | F79: 2979 | G79: 19.5 | H79: 72 | I79: 2 | J79: peugeot 504 (sw) | P79: 87 | Q79: 21 | R79: 4.465908119 | S79: 21
A80: 80 | B80: 26 | C80: 4 | D80: 96 | E80: 69 | F80: 2189 | G80: 18 | H80: 72 | I80: 2 | J80: renault 12 (sw) | P80: 69 | Q80: 26 | R80: 4.234106505 | S80: 26
A81: 81 | B81: 22 | C81: 4 | D81: 122 | E81: 86 | F81: 2395 | G81: 16 | H81: 72 | I81: 1 | J81: ford pinto (sw) | P81: 86 | Q81: 22 | R81: 4.454347296 | S81: 22
A82: 82 | B82: 28 | C82: 4 | D82: 97 | E82: 92 | F82: 2288 | G82: 17 | H82: 72 | I82: 3 | J82: datsun 510 (sw) | P82: 92 | Q82: 28 | R82: 4.521788577 | S82: 28
A83: 83 | B83: 23 | C83: 4 | D83: 120 | E83: 97 | F83: 2506 | G83: 14.5 | H83: 72 | I83: 3 | J83: toyouta corona mark ii (sw) | P83: 97 | Q83: 23 | R83: 4.574710979 | S83: 23
A84: 84 | B84: 28 | C84: 4 | D84: 98 | E84: 80 | F84: 2164 | G84: 15 | H84: 72 | I84: 1 | J84: dodge colt (sw) | P84: 80 | Q84: 28 | R84: 4.382026635 | S84: 28
A85: 85 | B85: 27 | C85: 4 | D85: 97 | E85: 88 | F85: 2100 | G85: 16.5 | H85: 72 | I85: 3 | J85: toyota corolla 1600 (sw) | P85: 88 | Q85: 27 | R85: 4.477336814 | S85: 27
A86: 86 | B86: 13 | C86: 8 | D86: 350 | E86: 175 | F86: 4100 | G86: 13 | H86: 73 | I86: 1 | J86: buick century 350 | P86: 175 | Q86: 13 | R86: 5.164785974 | S86: 13
A87: 87 | B87: 14 | C87: 8 | D87: 304 | E87: 150 | F87: 3672 | G87: 11.5 | H87: 73 | I87: 1 | J87: amc matador | P87: 150 | Q87: 14 | R87: 5.010635294 | S87: 14
A88: 88 | B88: 13 | C88: 8 | D88: 350 | E88: 145 | F88: 3988 | G88: 13 | H88: 73 | I88: 1 | J88: chevrolet malibu | P88: 145 | Q88: 13 | R88: 4.976733742 | S88: 13
A89: 89 | B89: 14 | C89: 8 | D89: 302 | E89: 137 | F89: 4042 | G89: 14.5 | H89: 73 | I89: 1 | J89: ford gran torino | P89: 137 | Q89: 14 | R89: 4.919980926 | S89: 14
A90: 90 | B90: 15 | C90: 8 | D90: 318 | E90: 150 | F90: 3777 | G90: 12.5 | H90: 73 | I90: 1 | J90: dodge coronet custom | P90: 150 | Q90: 15 | R90: 5.010635294 | S90: 15
A91: 91 | B91: 12 | C91: 8 | D91: 429 | E91: 198 | F91: 4952 | G91: 11.5 | H91: 73 | I91: 1 | J91: mercury marquis brougham | P91: 198 | Q91: 12 | R91: 5.288267031 | S91: 12
A92: 92 | B92: 13 | C92: 8 | D92: 400 | E92: 150 | F92: 4464 | G92: 12 | H92: 73 | I92: 1 | J92: chevrolet caprice classic | P92: 150 | Q92: 13 | R92: 5.010635294 | S92: 13
A93: 93 | B93: 13 | C93: 8 | D93: 351 | E93: 158 | F93: 4363 | G93: 13 | H93: 73 | I93: 1 | J93: ford ltd | P93: 158 | Q93: 13 | R93: 5.062595033 | S93: 13
A94: 94 | B94: 14 | C94: 8 | D94: 318 | E94: 150 | F94: 4237 | G94: 14.5 | H94: 73 | I94: 1 | J94: plymouth fury gran sedan | P94: 150 | Q94: 14 | R94: 5.010635294 | S94: 14
A95: 95 | B95: 13 | C95: 8 | D95: 440 | E95: 215 | F95: 4735 | G95: 11 | H95: 73 | I95: 1 | J95: chrysler new yorker brougham | P95: 215 | Q95: 13 | R95: 5.370638028 | S95: 13
A96: 96 | B96: 12 | C96: 8 | D96: 455 | E96: 225 | F96: 4951 | G96: 11 | H96: 73 | I96: 1 | J96: buick electra 225 custom | P96: 225 | Q96: 12 | R96: 5.416100402 | S96: 12
A97: 97 | B97: 13 | C97: 8 | D97: 360 | E97: 175 | F97: 3821 | G97: 11 | H97: 73 | I97: 1 | J97: amc ambassador brougham | P97: 175 | Q97: 13 | R97: 5.164785974 | S97: 13
A98: 98 | B98: 18 | C98: 6 | D98: 225 | E98: 105 | F98: 3121 | G98: 16.5 | H98: 73 | I98: 1 | J98: plymouth valiant | P98: 105 | Q98: 18 | R98: 4.65396035 | S98: 18
A99: 99 | B99: 16 | C99: 6 | D99: 250 | E99: 100 | F99: 3278 | G99: 18 | H99: 73 | I99: 1 | J99: chevrolet nova custom | P99: 100 | Q99: 16 | R99: 4.605170186 | S99: 16
A100: 100 | B100: 18 | C100: 6 | D100: 232 | E100: 100 | F100: 2945 | G100: 16 | H100: 73 | I100: 1 | J100: amc hornet | P100: 100 | Q100: 18 | R100: 4.605170186 | S100: 18
A101: 101 | B101: 18 | C101: 6 | D101: 250 | E101: 88 | F101: 3021 | G101: 16.5 | H101: 73 | I101: 1 | J101: ford maverick | P101: 88 | Q101: 18 | R101: 4.477336814 | S101: 18
A102: 102 | B102: 23 | C102: 6 | D102: 198 | E102: 95 | F102: 2904 | G102: 16 | H102: 73 | I102: 1 | J102: plymouth duster | P102: 95 | Q102: 23 | R102: 4.553876892 | S102: 23
A103: 103 | B103: 26 | C103: 4 | D103: 97 | E103: 46 | F103: 1950 | G103: 21 | H103: 73 | I103: 2 | J103: volkswagen super beetle | P103: 46 | Q103: 26 | R103: 3.828641396 | S103: 26
A104: 104 | B104: 11 | C104: 8 | D104: 400 | E104: 150 | F104: 4997 | G104: 14 | H104: 73 | I104: 1 | J104: chevrolet impala | P104: 150 | Q104: 11 | R104: 5.010635294 | S104: 11
A105: 105 | B105: 12 | C105: 8 | D105: 400 | E105: 167 | F105: 4906 | G105: 12.5 | H105: 73 | I105: 1 | J105: ford country | P105: 167 | Q105: 12 | R105: 5.117993812 | S105: 12
A106: 106 | B106: 13 | C106: 8 | D106: 360 | E106: 170 | F106: 4654 | G106: 13 | H106: 73 | I106: 1 | J106: plymouth custom suburb | P106: 170 | Q106: 13 | R106: 5.135798437 | S106: 13
A107: 107 | B107: 12 | C107: 8 | D107: 350 | E107: 180 | F107: 4499 | G107: 12.5 | H107: 73 | I107: 1 | J107: oldsmobile vista cruiser | P107: 180 | Q107: 12 | R107: 5.192956851 | S107: 12
A108: 108 | B108: 18 | C108: 6 | D108: 232 | E108: 100 | F108: 2789 | G108: 15 | H108: 73 | I108: 1 | J108: amc gremlin | P108: 100 | Q108: 18 | R108: 4.605170186 | S108: 18
A109: 109 | B109: 20 | C109: 4 | D109: 97 | E109: 88 | F109: 2279 | G109: 19 | H109: 73 | I109: 3 | J109: toyota carina | P109: 88 | Q109: 20 | R109: 4.477336814 | S109: 20
A110: 110 | B110: 21 | C110: 4 | D110: 140 | E110: 72 | F110: 2401 | G110: 19.5 | H110: 73 | I110: 1 | J110: chevrolet vega | P110: 72 | Q110: 21 | R110: 4.276666119 | S110: 21
A111: 111 | B111: 22 | C111: 4 | D111: 108 | E111: 94 | F111: 2379 | G111: 16.5 | H111: 73 | I111: 3 | J111: datsun 610 | P111: 94 | Q111: 22 | R111: 4.543294782 | S111: 22
A112: 112 | B112: 18 | C112: 3 | D112: 70 | E112: 90 | F112: 2124 | G112: 13.5 | H112: 73 | I112: 3 | J112: maxda rx3 | P112: 90 | Q112: 18 | R112: 4.49980967 | S112: 18
A113: 113 | B113: 19 | C113: 4 | D113: 122 | E113: 85 | F113: 2310 | G113: 18.5 | H113: 73 | I113: 1 | J113: ford pinto | P113: 85 | Q113: 19 | R113: 4.442651256 | S113: 19
A114: 114 | B114: 21 | C114: 6 | D114: 155 | E114: 107 | F114: 2472 | G114: 14 | H114: 73 | I114: 1 | J114: mercury capri v6 | P114: 107 | Q114: 21 | R114: 4.672828834 | S114: 21
A115: 115 | B115: 26 | C115: 4 | D115: 98 | E115: 90 | F115: 2265 | G115: 15.5 | H115: 73 | I115: 2 | J115: fiat 124 sport coupe | P115: 90 | Q115: 26 | R115: 4.49980967 | S115: 26
A116: 116 | B116: 15 | C116: 8 | D116: 350 | E116: 145 | F116: 4082 | G116: 13 | H116: 73 | I116: 1 | J116: chevrolet monte carlo s | P116: 145 | Q116: 15 | R116: 4.976733742 | S116: 15
A117: 117 | B117: 16 | C117: 8 | D117: 400 | E117: 230 | F117: 4278 | G117: 9.5 | H117: 73 | I117: 1 | J117: pontiac grand prix | P117: 230 | Q117: 16 | R117: 5.438079309 | S117: 16
A118: 118 | B118: 29 | C118: 4 | D118: 68 | E118: 49 | F118: 1867 | G118: 19.5 | H118: 73 | I118: 2 | J118: fiat 128 | P118: 49 | Q118: 29 | R118: 3.891820298 | S118: 29
A119: 119 | B119: 24 | C119: 4 | D119: 116 | E119: 75 | F119: 2158 | G119: 15.5 | H119: 73 | I119: 2 | J119: opel manta | P119: 75 | Q119: 24 | R119: 4.317488114 | S119: 24
A120: 120 | B120: 20 | C120: 4 | D120: 114 | E120: 91 | F120: 2582 | G120: 14 | H120: 73 | I120: 2 | J120: audi 100ls | P120: 91 | Q120: 20 | R120: 4.510859507 | S120: 20
A121: 121 | B121: 19 | C121: 4 | D121: 121 | E121: 112 | F121: 2868 | G121: 15.5 | H121: 73 | I121: 2 | J121: volvo 144ea | P121: 112 | Q121: 19 | R121: 4.718498871 | S121: 19
A122: 122 | B122: 15 | C122: 8 | D122: 318 | E122: 150 | F122: 3399 | G122: 11 | H122: 73 | I122: 1 | J122: dodge dart custom | P122: 150 | Q122: 15 | R122: 5.010635294 | S122: 15
A123: 123 | B123: 24 | C123: 4 | D123: 121 | E123: 110 | F123: 2660 | G123: 14 | H123: 73 | I123: 2 | J123: saab 99le | P123: 110 | Q123: 24 | R123: 4.700480366 | S123: 24
A124: 124 | B124: 20 | C124: 6 | D124: 156 | E124: 122 | F124: 2807 | G124: 13.5 | H124: 73 | I124: 3 | J124: toyota mark ii | P124: 122 | Q124: 20 | R124: 4.804021045 | S124: 20
A125: 125 | B125: 11 | C125: 8 | D125: 350 | E125: 180 | F125: 3664 | G125: 11 | H125: 73 | I125: 1 | J125: oldsmobile omega | P125: 180 | Q125: 11 | R125: 5.192956851 | S125: 11
A126: 126 | B126: 20 | C126: 6 | D126: 198 | E126: 95 | F126: 3102 | G126: 16.5 | H126: 74 | I126: 1 | J126: plymouth duster | P126: 95 | Q126: 20 | R126: 4.553876892 | S126: 20
A127: 128 | B127: 19 | C127: 6 | D127: 232 | E127: 100 | F127: 2901 | G127: 16 | H127: 74 | I127: 1 | J127: amc hornet | P127: 100 | Q127: 19 | R127: 4.605170186 | S127: 19
A128: 129 | B128: 15 | C128: 6 | D128: 250 | E128: 100 | F128: 3336 | G128: 17 | H128: 74 | I128: 1 | J128: chevrolet nova | P128: 100 | Q128: 15 | R128: 4.605170186 | S128: 15
A129: 130 | B129: 31 | C129: 4 | D129: 79 | E129: 67 | F129: 1950 | G129: 19 | H129: 74 | I129: 3 | J129: datsun b210 | P129: 67 | Q129: 31 | R129: 4.204692619 | S129: 31
A130: 131 | B130: 26 | C130: 4 | D130: 122 | E130: 80 | F130: 2451 | G130: 16.5 | H130: 74 | I130: 1 | J130: ford pinto | P130: 80 | Q130: 26 | R130: 4.382026635 | S130: 26
A131: 132 | B131: 32 | C131: 4 | D131: 71 | E131: 65 | F131: 1836 | G131: 21 | H131: 74 | I131: 3 | J131: toyota corolla 1200 | P131: 65 | Q131: 32 | R131: =LN(P131) -> 4.17438727 | S131: 32
A132: 133 | B132: 25 | C132: 4 | D132: 140 | E132: 75 | F132: 2542 | G132: 17 | H132: 74 | I132: 1 | J132: chevrolet vega | P132: 75 | Q132: 25 | R132: 4.317488114 | S132: 25
A133: 134 | B133: 16 | C133: 6 | D133: 250 | E133: 100 | F133: 3781 | G133: 17 | H133: 74 | I133: 1 | J133: chevrolet chevelle malibu classic | P133: 100 | Q133: 16 | R133: 4.605170186 | S133: 16
A134: 135 | B134: 16 | C134: 6 | D134: 258 | E134: 110 | F134: 3632 | G134: 18 | H134: 74 | I134: 1 | J134: amc matador | P134: 110 | Q134: 16 | R134: 4.700480366 | S134: 16
A135: 136 | B135: 18 | C135: 6 | D135: 225 | E135: 105 | F135: 3613 | G135: 16.5 | H135: 74 | I135: 1 | J135: plymouth satellite sebring | P135: 105 | Q135: 18 | R135: 4.65396035 | S135: 18
A136: 137 | B136: 16 | C136: 8 | D136: 302 | E136: 140 | F136: 4141 | G136: 14 | H136: 74 | I136: 1 | J136: ford gran torino | P136: 140 | Q136: 16 | R136: 4.941642423 | S136: 16
A137: 138 | B137: 13 | C137: 8 | D137: 350 | E137: 150 | F137: 4699 | G137: 14.5 | H137: 74 | I137: 1 | J137: buick century luxus (sw) | P137: 150 | Q137: 13 | R137: 5.010635294 | S137: 13
A138: 139 | B138: 14 | C138: 8 | D138: 318 | E138: 150 | F138: 4457 | G138: 13.5 | H138: 74 | I138: 1 | J138: dodge coronet custom (sw) | P138: 150 | Q138: 14 | R138: 5.010635294 | S138: 14
A139: 140 | B139: 14 | C139: 8 | D139: 302 | E139: 140 | F139: 4638 | G139: 16 | H139: 74 | I139: 1 | J139: ford gran torino (sw) | P139: 140 | Q139: 14 | R139: 4.941642423 | S139: 14
A140: 141 | B140: 14 | C140: 8 | D140: 304 | E140: 150 | F140: 4257 | G140: 15.5 | H140: 74 | I140: 1 | J140: amc matador (sw) | P140: 150 | Q140: 14 | R140: 5.010635294 | S140: 14
A141: 142 | B141: 29 | C141: 4 | D141: 98 | E141: 83 | F141: 2219 | G141: 16.5 | H141: 74 | I141: 2 | J141: audi fox | P141: 83 | Q141: 29 | R141: 4.418840608 | S141: 29
A142: 143 | B142: 26 | C142: 4 | D142: 79 | E142: 67 | F142: 1963 | G142: 15.5 | H142: 74 | I142: 2 | J142: volkswagen dasher | P142: 67 | Q142: 26 | R142: 4.204692619 | S142: 26
A143: 144 | B143: 26 | C143: 4 | D143: 97 | E143: 78 | F143: 2300 | G143: 14.5 | H143: 74 | I143: 2 | J143: opel manta | P143: 78 | Q143: 26 | R143: 4.356708827 | S143: 26
A144: 145 | B144: 31 | C144: 4 | D144: 76 | E144: 52 | F144: 1649 | G144: 16.5 | H144: 74 | I144: 3 | J144: toyota corona | P144: 52 | Q144: 31 | R144: 3.951243719 | S144: 31
A145: 146 | B145: 32 | C145: 4 | D145: 83 | E145: 61 | F145: 2003 | G145: 19 | H145: 74 | I145: 3 | J145: datsun 710 | P145: 61 | Q145: 32 | R145: 4.110873864 | S145: 32
A146: 147 | B146: 28 | C146: 4 | D146: 90 | E146: 75 | F146: 2125 | G146: 14.5 | H146: 74 | I146: 1 | J146: dodge colt | P146: 75 | Q146: 28 | R146: 4.317488114 | S146: 28
A147: 148 | B147: 24 | C147: 4 | D147: 90 | E147: 75 | F147: 2108 | G147: 15.5 | H147: 74 | I147: 2 | J147: fiat 128 | P147: 75 | Q147: 24 | R147: 4.317488114 | S147: 24
A148: 149 | B148: 26 | C148: 4 | D148: 116 | E148: 75 | F148: 2246 | G148: 14 | H148: 74 | I148: 2 | J148: fiat 124 tc | P148: 75 | Q148: 26 | R148: 4.317488114 | S148: 26
A149: 150 | B149: 24 | C149: 4 | D149: 120 | E149: 97 | F149: 2489 | G149: 15 | H149: 74 | I149: 3 | J149: honda civic | P149: 97 | Q149: 24 | R149: 4.574710979 | S149: 24
A150: 151 | B150: 26 | C150: 4 | D150: 108 | E150: 93 | F150: 2391 | G150: 15.5 | H150: 74 | I150: 3 | J150: subaru | P150: 93 | Q150: 26 | R150: 4.532599493 | S150: 26
A151: 152 | B151: 31 | C151: 4 | D151: 79 | E151: 67 | F151: 2000 | G151: 16 | H151: 74 | I151: 2 | J151: fiat x1.9 | P151: 67 | Q151: 31 | R151: 4.204692619 | S151: 31
A152: 153 | B152: 19 | C152: 6 | D152: 225 | E152: 95 | F152: 3264 | G152: 16 | H152: 75 | I152: 1 | J152: plymouth valiant custom | P152: 95 | Q152: 19 | R152: 4.553876892 | S152: 19
A153: 154 | B153: 18 | C153: 6 | D153: 250 | E153: 105 | F153: 3459 | G153: 16 | H153: 75 | I153: 1 | J153: chevrolet nova | P153: 105 | Q153: 18 | R153: 4.65396035 | S153: 18
A154: 155 | B154: 15 | C154: 6 | D154: 250 | E154: 72 | F154: 3432 | G154: 21 | H154: 75 | I154: 1 | J154: mercury monarch | P154: 72 | Q154: 15 | R154: 4.276666119 | S154: 15
A155: 156 | B155: 15 | C155: 6 | D155: 250 | E155: 72 | F155: 3158 | G155: 19.5 | H155: 75 | I155: 1 | J155: ford maverick | P155: 72 | Q155: 15 | R155: 4.276666119 | S155: 15
A156: 157 | B156: 16 | C156: 8 | D156: 400 | E156: 170 | F156: 4668 | G156: 11.5 | H156: 75 | I156: 1 | J156: pontiac catalina | P156: 170 | Q156: 16 | R156: 5.135798437 | S156: 16
A157: 158 | B157: 15 | C157: 8 | D157: 350 | E157: 145 | F157: 4440 | G157: 14 | H157: 75 | I157: 1 | J157: chevrolet bel air | P157: 145 | Q157: 15 | R157: 4.976733742 | S157: 15
A158: 159 | B158: 16 | C158: 8 | D158: 318 | E158: 150 | F158: 4498 | G158: 14.5 | H158: 75 | I158: 1 | J158: plymouth grand fury | P158: 150 | Q158: 16 | R158: 5.010635294 | S158: 16
A159: 160 | B159: 14 | C159: 8 | D159: 351 | E159: 148 | F159: 4657 | G159: 13.5 | H159: 75 | I159: 1 | J159: ford ltd | P159: 148 | Q159: 14 | R159: 4.997212274 | S159: 14
A160: 161 | B160: 17 | C160: 6 | D160: 231 | E160: 110 | F160: 3907 | G160: 21 | H160: 75 | I160: 1 | J160: buick century | P160: 110 | Q160: 17 | R160: 4.700480366 | S160: 17
A161: 162 | B161: 16 | C161: 6 | D161: 250 | E161: 105 | F161: 3897 | G161: 18.5 | H161: 75 | I161: 1 | J161: chevroelt chevelle malibu | P161: 105 | Q161: 16 | R161: 4.65396035 | S161: 16
A162: 163 | B162: 15 | C162: 6 | D162: 258 | E162: 110 | F162: 3730 | G162: 19 | H162: 75 | I162: 1 | J162: amc matador | P162: 110 | Q162: 15 | R162: 4.700480366 | S162: 15
A163: 164 | B163: 18 | C163: 6 | D163: 225 | E163: 95 | F163: 3785 | G163: 19 | H163: 75 | I163: 1 | J163: plymouth fury | P163: 95 | Q163: 18 | R163: 4.553876892 | S163: 18
A164: 165 | B164: 21 | C164: 6 | D164: 231 | E164: 110 | F164: 3039 | G164: 15 | H164: 75 | I164: 1 | J164: buick skyhawk | P164: 110 | Q164: 21 | R164: 4.700480366 | S164: 21
A165: 166 | B165: 20 | C165: 8 | D165: 262 | E165: 110 | F165: 3221 | G165: 13.5 | H165: 75 | I165: 1 | J165: chevrolet monza 2+2 | P165: 110 | Q165: 20 | R165: 4.700480366 | S165: 20
A166: 167 | B166: 13 | C166: 8 | D166: 302 | E166: 129 | F166: 3169 | G166: 12 | H166: 75 | I166: 1 | J166: ford mustang ii | P166: 129 | Q166: 13 | R166: 4.859812404 | S166: 13
A167: 168 | B167: 29 | C167: 4 | D167: 97 | E167: 75 | F167: 2171 | G167: 16 | H167: 75 | I167: 3 | J167: toyota corolla | P167: 75 | Q167: 29 | R167: 4.317488114 | S167: 29
A168: 169 | B168: 23 | C168: 4 | D168: 140 | E168: 83 | F168: 2639 | G168: 17 | H168: 75 | I168: 1 | J168: ford pinto | P168: 83 | Q168: 23 | R168: 4.418840608 | S168: 23
A169: 170 | B169: 20 | C169: 6 | D169: 232 | E169: 100 | F169: 2914 | G169: 16 | H169: 75 | I169: 1 | J169: amc gremlin | P169: 100 | Q169: 20 | R169: 4.605170186 | S169: 20
A170: 171 | B170: 23 | C170: 4 | D170: 140 | E170: 78 | F170: 2592 | G170: 18.5 | H170: 75 | I170: 1 | J170: pontiac astro | P170: 78 | Q170: 23 | R170: 4.356708827 | S170: 23
A171: 172 | B171: 24 | C171: 4 | D171: 134 | E171: 96 | F171: 2702 | G171: 13.5 | H171: 75 | I171: 3 | J171: toyota corona | P171: 96 | Q171: 24 | R171: 4.564348191 | S171: 24
A172: 173 | B172: 25 | C172: 4 | D172: 90 | E172: 71 | F172: 2223 | G172: 16.5 | H172: 75 | I172: 2 | J172: volkswagen dasher | P172: 71 | Q172: 25 | R172: 4.262679877 | S172: 25
A173: 174 | B173: 24 | C173: 4 | D173: 119 | E173: 97 | F173: 2545 | G173: 17 | H173: 75 | I173: 3 | J173: datsun 710 | P173: 97 | Q173: 24 | R173: 4.574710979 | S173: 24
A174: 175 | B174: 18 | C174: 6 | D174: 171 | E174: 97 | F174: 2984 | G174: 14.5 | H174: 75 | I174: 1 | J174: ford pinto | P174: 97 | Q174: 18 | R174: 4.574710979 | S174: 18
A175: 176 | B175: 29 | C175: 4 | D175: 90 | E175: 70 | F175: 1937 | G175: 14 | H175: 75 | I175: 2 | J175: volkswagen rabbit | P175: 70 | Q175: 29 | R175: 4.248495242 | S175: 29
A176: 177 | B176: 19 | C176: 6 | D176: 232 | E176: 90 | F176: 3211 | G176: 17 | H176: 75 | I176: 1 | J176: amc pacer | P176: 90 | Q176: 19 | R176: 4.49980967 | S176: 19
A177: 178 | B177: 23 | C177: 4 | D177: 115 | E177: 95 | F177: 2694 | G177: 15 | H177: 75 | I177: 2 | J177: audi 100ls | P177: 95 | Q177: 23 | R177: 4.553876892 | S177: 23
A178: 179 | B178: 23 | C178: 4 | D178: 120 | E178: 88 | F178: 2957 | G178: 17 | H178: 75 | I178: 2 | J178: peugeot 504 | P178: 88 | Q178: 23 | R178: 4.477336814 | S178: 23
A179: 180 | B179: 22 | C179: 4 | D179: 121 | E179: 98 | F179: 2945 | G179: 14.5 | H179: 75 | I179: 2 | J179: volvo 244dl | P179: 98 | Q179: 22 | R179: 4.584967479 | S179: 22
A180: 181 | B180: 25 | C180: 4 | D180: 121 | E180: 115 | F180: 2671 | G180: 13.5 | H180: 75 | I180: 2 | J180: saab 99le | P180: 115 | Q180: 25 | R180: 4.744932128 | S180: 25
A181: 182 | B181: 33 | C181: 4 | D181: 91 | E181: 53 | F181: 1795 | G181: 17.5 | H181: 75 | I181: 3 | J181: honda civic cvcc | P181: 53 | Q181: 33 | R181: 3.970291914 | S181: 33
A182: 183 | B182: 28 | C182: 4 | D182: 107 | E182: 86 | F182: 2464 | G182: 15.5 | H182: 76 | I182: 2 | J182: fiat 131 | P182: 86 | Q182: 28 | R182: 4.454347296 | S182: 28
A183: 184 | B183: 25 | C183: 4 | D183: 116 | E183: 81 | F183: 2220 | G183: 16.9 | H183: 76 | I183: 2 | J183: opel 1900 | P183: 81 | Q183: 25 | R183: 4.394449155 | S183: 25
A184: 185 | B184: 25 | C184: 4 | D184: 140 | E184: 92 | F184: 2572 | G184: 14.9 | H184: 76 | I184: 1 | J184: capri ii | P184: 92 | Q184: 25 | R184: 4.521788577 | S184: 25
A185: 186 | B185: 26 | C185: 4 | D185: 98 | E185: 79 | F185: 2255 | G185: 17.7 | H185: 76 | I185: 1 | J185: dodge colt | P185: 79 | Q185: 26 | R185: 4.369447852 | S185: 26
A186: 187 | B186: 27 | C186: 4 | D186: 101 | E186: 83 | F186: 2202 | G186: 15.3 | H186: 76 | I186: 2 | J186: renault 12tl | P186: 83 | Q186: 27 | R186: 4.418840608 | S186: 27
A187: 188 | B187: 17.5 | C187: 8 | D187: 305 | E187: 140 | F187: 4215 | G187: 13 | H187: 76 | I187: 1 | J187: chevrolet chevelle malibu classic | P187: 140 | Q187: 17.5 | R187: 4.941642423 | S187: 17.5
A188: 189 | B188: 16 | C188: 8 | D188: 318 | E188: 150 | F188: 4190 | G188: 13 | H188: 76 | I188: 1 | J188: dodge coronet brougham | P188: 150 | Q188: 16 | R188: 5.010635294 | S188: 16
A189: 190 | B189: 15.5 | C189: 8 | D189: 304 | E189: 120 | F189: 3962 | G189: 13.9 | H189: 76 | I189: 1 | J189: amc matador | P189: 120 | Q189: 15.5 | R189: 4.787491743 | S189: 15.5
A190: 191 | B190: 14.5 | C190: 8 | D190: 351 | E190: 152 | F190: 4215 | G190: 12.8 | H190: 76 | I190: 1 | J190: ford gran torino | P190: 152 | Q190: 14.5 | R190: 5.023880521 | S190: 14.5
A191: 192 | B191: 22 | C191: 6 | D191: 225 | E191: 100 | F191: 3233 | G191: 15.4 | H191: 76 | I191: 1 | J191: plymouth valiant | P191: 100 | Q191: 22 | R191: 4.605170186 | S191: 22
A192: 193 | B192: 22 | C192: 6 | D192: 250 | E192: 105 | F192: 3353 | G192: 14.5 | H192: 76 | I192: 1 | J192: chevrolet nova | P192: 105 | Q192: 22 | R192: 4.65396035 | S192: 22
A193: 194 | B193: 24 | C193: 6 | D193: 200 | E193: 81 | F193: 3012 | G193: 17.6 | H193: 76 | I193: 1 | J193: ford maverick | P193: 81 | Q193: 24 | R193: 4.394449155 | S193: 24
A194: 195 | B194: 22.5 | C194: 6 | D194: 232 | E194: 90 | F194: 3085 | G194: 17.6 | H194: 76 | I194: 1 | J194: amc hornet | P194: 90 | Q194: 22.5 | R194: 4.49980967 | S194: 22.5
A195: 196 | B195: 29 | C195: 4 | D195: 85 | E195: 52 | F195: 2035 | G195: 22.2 | H195: 76 | I195: 1 | J195: chevrolet chevette | P195: 52 | Q195: 29 | R195: =LN(P195) -> 3.951243719 | S195: 29
A196: 197 | B196: 24.5 | C196: 4 | D196: 98 | E196: 60 | F196: 2164 | G196: 22.1 | H196: 76 | I196: 1 | J196: chevrolet woody | P196: 60 | Q196: 24.5 | R196: 4.094344562 | S196: 24.5
A197: 198 | B197: 29 | C197: 4 | D197: 90 | E197: 70 | F197: 1937 | G197: 14.2 | H197: 76 | I197: 2 | J197: vw rabbit | P197: 70 | Q197: 29 | R197: 4.248495242 | S197: 29
A198: 199 | B198: 33 | C198: 4 | D198: 91 | E198: 53 | F198: 1795 | G198: 17.4 | H198: 76 | I198: 3 | J198: honda civic | P198: 53 | Q198: 33 | R198: 3.970291914 | S198: 33
A199: 200 | B199: 20 | C199: 6 | D199: 225 | E199: 100 | F199: 3651 | G199: 17.7 | H199: 76 | I199: 1 | J199: dodge aspen se | P199: 100 | Q199: 20 | R199: 4.605170186 | S199: 20
A200: 201 | B200: 18 | C200: 6 | D200: 250 | E200: 78 | F200: 3574 | G200: 21 | H200: 76 | I200: 1 | J200: ford granada ghia | P200: 78 | Q200: 18 | R200: 4.356708827 | S200: 18
... 193 more rows

Sheet H1 Originaldaten (2)
A1: Column_1-T | B1: education | C1: income | D1: prestige | E1: census | F1: type
A2: gov.administrators | B2: 13.11 | C2: 12351 | D2: 68.8 | E2: 1113 | F2: prof
A3: general.managers | B3: 12.26 | C3: 25879 | D3: 69.1 | E3: 1130 | F3: prof
A4: accountants | B4: 12.77 | C4: 9271 | D4: 63.4 | E4: 1171 | F4: prof
A5: purchasing.officers | B5: 11.42 | C5: 8865 | D5: 56.8 | E5: 1175 | F5: prof
A6: chemists | B6: 14.62 | C6: 8403 | D6: 73.5 | E6: 2111 | F6: prof
A7: physicists | B7: 15.64 | C7: 11030 | D7: 77.6 | E7: 2113 | F7: prof
A8: biologists | B8: 15.09 | C8: 8258 | D8: 72.6 | E8: 2133 | F8: prof
A9: architects | B9: 15.44 | C9: 14163 | D9: 78.1 | E9: 2141 | F9: prof
A10: civil.engineers | B10: 14.52 | C10: 11377 | D10: 73.1 | E10: 2143 | F10: prof
A11: mining.engineers | B11: 14.64 | C11: 11023 | D11: 68.8 | E11: 2153 | F11: prof
A12: surveyors | B12: 12.39 | C12: 5902 | D12: 62 | E12: 2161 | F12: prof
A13: draughtsmen | B13: 12.3 | C13: 7059 | D13: 60 | E13: 2163 | F13: prof
A14: computer.programers | B14: 13.83 | C14: 8425 | D14: 53.8 | E14: 2183 | F14: prof
A15: economists | B15: 14.44 | C15: 8049 | D15: 62.2 | E15: 2311 | F15: prof
A16: psychologists | B16: 14.36 | C16: 7405 | D16: 74.9 | E16: 2315 | F16: prof
A17: social.workers | B17: 14.21 | C17: 6336 | D17: 55.1 | E17: 2331 | F17: prof
A18: lawyers | B18: 15.77 | C18: 19263 | D18: 82.3 | E18: 2343 | F18: prof
A19: librarians | B19: 14.15 | C19: 6112 | D19: 58.1 | E19: 2351 | F19: prof
A20: vocational.counsellors | B20: 15.22 | C20: 9593 | D20: 58.3 | E20: 2391 | F20: prof
A21: ministers | B21: 14.5 | C21: 4686 | D21: 72.8 | E21: 2511 | F21: prof
A22: university.teachers | B22: 15.97 | C22: 12480 | D22: 84.6 | E22: 2711 | F22: prof
A23: primary.school.teachers | B23: 13.62 | C23: 5648 | D23: 59.6 | E23: 2731 | F23: prof | H23: AUSGABE: ZUSAMMENFASSUNG
A24: secondary.school.teachers | B24: 15.08 | C24: 8034 | D24: 66.1 | E24: 2733 | F24: prof
A25: physicians | B25: 15.96 | C25: 25308 | D25: 87.2 | E25: 3111 | F25: prof | H25: Regressions-Statistik
A26: veterinarians | B26: 15.94 | C26: 14558 | D26: 66.7 | E26: 3115 | F26: prof | H26: Multipler Korrelationskoeffizient | I26: 0.893308933
A27: osteopaths.chiropractors | B27: 14.71 | C27: 17498 | D27: 68.4 | E27: 3117 | F27: prof | H27: Bestimmtheitsmaß | I27: 0.7980008497
A28: nurses | B28: 12.46 | C28: 4614 | D28: 64.7 | E28: 3131 | F28: prof | H28: Adjustiertes Bestimmtheitsmaß | I28: 0.7939200588
A29: nursing.aides | B29: 9.45 | C29: 3485 | D29: 34.9 | E29: 3135 | F29: bc | H29: Standardfehler | I29: 7.810153184
A30: physio.therapsts | B30: 13.62 | C30: 5092 | D30: 72.1 | E30: 3137 | F30: prof | H30: Beobachtungen | I30: 102
A31: pharmacists | B31: 15.21 | C31: 10432 | D31: 69.3 | E31: 3151 | F31: prof
A32: medical.technicians | B32: 12.79 | C32: 5180 | D32: 67.5 | E32: 3156 | F32: wc | H32: ANOVA
A33: commercial.artists | B33: 11.09 | C33: 6197 | D33: 57.2 | E33: 3314 | F33: prof | I33: Freiheitsgrade (df) | J33: Quadratsummen (SS) | K33: Mittlere Quadratsumme (MS) | L33: Prüfgröße (F) | M33: F krit
A34: radio.tv.announcers | B34: 12.71 | C34: 7562 | D34: 57.6 | E34: 3337 | F34: wc | H34: Regression | I34: 2 | J34: 23856.57588 | K34: 11928.28794 | L34: 195.5505358 | M34: 4.119100186e-35
A35: athletes | B35: 11.44 | C35: 8206 | D35: 54.1 | E35: 3373 | F35: NA | H35: Residue | I35: 99 | J35: 6038.850783 | K35: 60.99849276
A36: secretaries | B36: 11.59 | C36: 4036 | D36: 46 | E36: 4111 | F36: wc | H36: Gesamt | I36: 101 | J36: 29895.42667
A37: typists | B37: 11.49 | C37: 3148 | D37: 41.9 | E37: 4113 | F37: wc
A38: bookkeepers | B38: 11.32 | C38: 4348 | D38: 49.4 | E38: 4131 | F38: wc | I38: Koeffizienten | J38: Standardfehler | K38: t-Statistik | L38: P-Wert | M38: Untere 95% | N38: Obere 95% | O38: Untere 95,0% | P38: Obere 95,0%
A39: tellers.cashiers | B39: 10.64 | C39: 2448 | D39: 42.3 | E39: 4133 | F39: wc | H39: Schnittpunkt | I39: -6.84777872 | J39: 3.218977096 | K39: -2.127315142 | L39: 0.03587840024 | M39: -13.23492764 | N39: -0.4606297987 | O39: -13.23492764 | P39: -0.4606297987
A40: computer.operators | B40: 11.36 | C40: 4330 | D40: 47.7 | E40: 4143 | F40: wc | H40: X Variable 1 | I40: 4.137444384 | J40: 0.3489120233 | K40: 11.85813073 | L40: 1.032201919e-20 | M40: 3.445127232 | N40: 4.829761535 | O40: 3.445127232 | P40: 4.829761535
A41: shipping.clerks | B41: 9.17 | C41: 4761 | D41: 30.9 | E41: 4153 | F41: wc | H41: X Variable 2 | I41: 0.001361165851 | J41: 0.0002242120677 | K41: 6.070885769 | L41: 2.355195767e-08 | M41: 0.0009162804656 | N41: 0.001806051237 | O41: 0.0009162804656 | P41: 0.001806051237
A42: file.clerks | B42: 12.09 | C42: 3016 | D42: 32.7 | E42: 4161 | F42: wc
A43: receptionsts | B43: 11.04 | C43: 2901 | D43: 38.7 | E43: 4171 | F43: wc
A44: mail.carriers | B44: 9.22 | C44: 5511 | D44: 36.1 | E44: 4172 | F44: wc
A45: postal.clerks | B45: 10.07 | C45: 3739 | D45: 37.2 | E45: 4173 | F45: wc | H45: AUSGABE: RESIDUENPLOT
A46: telephone.operators | B46: 10.51 | C46: 3161 | D46: 38.1 | E46: 4175 | F46: wc
A47: collectors | B47: 11.2 | C47: 4741 | D47: 29.4 | E47: 4191 | F47: wc | H47: Beobachtung | I47: Schätzung für Y | J47: Residuen
A48: claim.adjustors | B48: 11.13 | C48: 5052 | D48: 51.1 | E48: 4192 | F48: wc | H48: 1 | I48: 64.20587658 | J48: 4.594123422
A49: travel.clerks | B49: 11.43 | C49: 6259 | D49: 35.7 | E49: 4193 | F49: wc | H49: 2 | I49: 79.10290049 | J49: -10.00290049
A50: office.clerks | B50: 11 | C50: 4075 | D50: 35.6 | E50: 4197 | F50: wc | H50: 3 | I50: 58.60675467 | J50: 4.793245334
A51: sales.supervisors | B51: 9.84 | C51: 7482 | D51: 41.5 | E51: 5130 | F51: wc | H51: 4 | I51: 52.46857141 | J51: 4.331428588
A52: commercial.travellers | B52: 11.13 | C52: 8780 | D52: 40.2 | E52: 5133 | F52: wc | H52: 5 | I52: 65.07953482 | J52: 8.420465183
A53: sales.clerks | B53: 10.05 | C53: 2594 | D53: 26.5 | E53: 5137 | F53: wc | H53: 6 | I53: 72.87551078 | J53: 4.724489221
A54: newsboys | B54: 9.62 | C54: 918 | D54: 14.8 | E54: 5143 | F54: NA | H54: 7 | I54: 66.82676463 | J54: 5.773235371
A55: service.station.attendant | B55: 9.93 | C55: 2370 | D55: 23.3 | E55: 5145 | F55: bc | H55: 8 | I55: 76.31255451 | J55: 1.787445486
A56: insurance.agents | B56: 11.6 | C56: 8131 | D56: 47.3 | E56: 5171 | F56: wc | H56: 9 | I56: 68.71389762 | J56: 4.38610238
A57: real.estate.salesmen | B57: 11.09 | C57: 6992 | D57: 47.1 | E57: 5172 | F57: wc | H57: 10 | I57: 68.72853823 | J57: 0.07146176547
A58: buyers | B58: 11.03 | C58: 7956 | D58: 51.1 | E58: 5191 | F58: wc | H58: 11 | I58: 52.44875805 | J58: 9.551241953
A59: firefighters | B59: 9.47 | C59: 8895 | D59: 43.5 | E59: 6111 | F59: bc | H59: 12 | I59: 53.65125694 | J59: 6.348743057
A60: policemen | B60: 10.93 | C60: 8891 | D60: 51.6 | E60: 6112 | F60: bc | H60: 13 | I60: 61.8408994 | J60: -8.040899402
A61: cooks | B61: 7.74 | C61: 3116 | D61: 29.7 | E61: 6121 | F61: bc | H61: 14 | I61: 63.85294212 | J61: -1.652942116
A62: bartenders | B62: 8.5 | C62: 3930 | D62: 20.2 | E62: 6123 | F62: bc | H62: 15 | I62: 62.64535576 | J62: 12.25464424
A63: funeral.directors | B63: 10.57 | C63: 7869 | D63: 54.9 | E63: 6141 | F63: bc | H63: 16 | I63: 60.56965281 | J63: -5.469652805
A64: babysitters | B64: 9.46 | C64: 611 | D64: 25.9 | E64: 6147 | F64: NA | H64: 17 | I64: 84.619857 | J64: -2.319857002
A65: launderers | B65: 7.33 | C65: 3000 | D65: 20.8 | E65: 6162 | F65: bc | H65: 18 | I65: 60.01650499 | J65: -1.916504991
A66: janitors | B66: 7.11 | C66: 3472 | D66: 17.3 | E66: 6191 | F66: bc | H66: 19 | I66: 69.18178881 | J66: -10.88178881
A67: elevator.operators | B67: 7.58 | C67: 3582 | D67: 20.1 | E67: 6193 | F67: bc | H67: 20 | I67: 59.52358802 | J67: 13.27641198
A68: farmers | B68: 6.84 | C68: 3643 | D68: 44.1 | E68: 7112 | F68: NA | H68: 21 | I68: 76.21455791 | J68: 8.38544209
A69: farm.workers | B69: 8.6 | C69: 1656 | D69: 21.5 | E69: 7182 | F69: bc | H69: 22 | I69: 57.19207851 | J69: 2.407921487
A70: rotary.well.drillers | B70: 8.88 | C70: 6860 | D70: 35.3 | E70: 7711 | F70: bc | H70: 23 | I70: 66.48048903 | J70: -0.3804890341
A71: bakers | B71: 7.54 | C71: 4199 | D71: 38.9 | E71: 8213 | F71: bc | H71: 24 | I71: 93.63421901 | J71: -6.434219005
A72: slaughterers.1 | B72: 7.64 | C72: 5134 | D72: 25.2 | E72: 8215 | F72: bc | H72: 25 | I72: 78.91893722 | J72: -12.21893722
A73: slaughterers.2 | B73: 7.64 | C73: 5134 | D73: 34.8 | E73: 8215 | F73: bc | H73: 26 | I73: 77.83170823 | J73: -9.431708228
A74: canners | B74: 7.42 | C74: 1890 | D74: 23.2 | E74: 8221 | F74: bc | H74: 27 | I74: 50.98519754 | J74: 13.71480246
A75: textile.weavers | B75: 6.69 | C75: 4443 | D75: 33.3 | E75: 8267 | F75: bc | H75: 28 | I75: 36.9947337 | J75: -2.094733697
A76: textile.labourers | B76: 6.74 | C76: 3485 | D76: 28.8 | E76: 8278 | F76: bc | H76: 29 | I76: 56.4352703 | J76: 15.6647297
A77: tool.die.makers | B77: 10.09 | C77: 8043 | D77: 42.5 | E77: 8311 | F77: bc | H77: 30 | I77: 70.28243252 | J77: -0.9824325152
A78: machinists | B78: 8.81 | C78: 6686 | D78: 44.2 | E78: 8313 | F78: bc | H78: 31 | I78: 53.12097406 | J78: 14.37902594
A79: sheet.metal.workers | B79: 8.4 | C79: 6565 | D79: 35.9 | E79: 8333 | F79: bc | H79: 32 | I79: 47.47162427 | J79: 9.728375725
A80: welders | B80: 7.92 | C80: 6477 | D80: 41.8 | E80: 8335 | F80: bc | H80: 33 | I80: 56.03227556 | J80: 1.567724437
A81: auto.workers | B81: 8.43 | C81: 5811 | D81: 35.9 | E81: 8513 | F81: bc | H81: 34 | I81: 51.654312 | J81: 2.445687996
A82: aircraft.workers | B82: 8.78 | C82: 6573 | D82: 43.7 | E82: 8515 | F82: bc | H82: 35 | I82: 46.59886706 | J82: -0.5988670621
A83: electronic.workers | B83: 8.76 | C83: 3942 | D83: 50.8 | E83: 8534 | F83: bc | H83: 36 | I83: 44.97640735 | J83: -3.076407348
A84: radio.tv.repairmen | B84: 10.29 | C84: 5449 | D84: 37.2 | E84: 8537 | F84: bc | H84: 37 | I84: 45.90644082 | J84: 3.493559176
A85: sewing.mach.operators | B85: 6.38 | C85: 2847 | D85: 28.2 | E85: 8563 | F85: bc | H85: 38 | I85: 40.50676353 | J85: 1.793236474
A86: auto.repairmen | B86: 8.1 | C86: 5795 | D86: 38.1 | E86: 8581 | F86: bc | H86: 39 | I86: 46.04743761 | J86: 1.652562386
A87: aircraft.repairmen | B87: 10.1 | C87: 7716 | D87: 50.3 | E87: 8582 | F87: bc | H87: 40 | I87: 37.5730969 | J87: -6.673096896
A88: railway.sectionmen | B88: 6.67 | C88: 4696 | D88: 27.3 | E88: 8715 | F88: bc | H88: 41 | I88: 47.27920009 | J88: -14.57920009
A89: electrical.linemen | B89: 9.05 | C89: 8316 | D89: 40.9 | E89: 8731 | F89: bc | H89: 42 | I89: 42.77834941 | J89: -4.07834941
A90: electricians | B90: 9.93 | C90: 7147 | D90: 50.2 | E90: 8733 | F90: bc | H90: 43 | I90: 38.8008435 | J90: -2.700843503
A91: construction.foremen | B91: 8.24 | C91: 8880 | D91: 51.1 | E91: 8780 | F91: bc | H91: 44 | I91: 39.90568534 | J91: -2.705685341
A92: carpenters | B92: 6.92 | C92: 5299 | D92: 38.9 | E92: 8781 | F92: bc | H92: 45 | I92: 40.93940701 | J92: -2.839407008
A93: masons | B93: 6.6 | C93: 5959 | D93: 36.2 | E93: 8782 | F93: bc | H93: 46 | I93: 45.94488568 | J93: -16.54488568
A94: house.painters | B94: 7.81 | C94: 4549 | D94: 29.9 | E94: 8785 | F94: bc | H94: 47 | I94: 46.07858715 | J94: 5.02141285
A95: plumbers | B95: 8.33 | C95: 6928 | D95: 42.9 | E95: 8791 | F95: bc | H95: 48 | I95: 48.96274765 | J95: -13.26274765
A96: construction.labourers | B96: 7.52 | C96: 3910 | D96: 26.5 | E96: 8798 | F96: bc | H96: 49 | I96: 44.21086034 | J96: -8.610860344
A97: pilots | B97: 12.27 | C97: 14032 | D97: 66.1 | E97: 9111 | F97: prof | H97: 50 | I97: 44.04891691 | J97: -2.548916914
A98: train.engineers | B98: 8.49 | C98: 8845 | D98: 48.9 | E98: 9131 | F98: bc | H98: 51 | I98: 51.15301344 | J98: -10.95301344
A99: bus.drivers | B99: 7.58 | C99: 5562 | D99: 35.9 | E99: 9171 | F99: bc | H99: 52 | I99: 38.26440155 | J99: -11.76440155
A100: taxi.drivers | B100: 7.93 | C100: 4224 | D100: 25.1 | E100: 9173 | F100: bc | H100: 53 | I100: 34.2039865 | J100: -19.4039865
A101: longshoremen | B101: 8.37 | C101: 4753 | D101: 26.1 | E101: 9313 | F101: bc | H101: 54 | I101: 37.46300708 | J101: -14.16300708
A102: typesetters | B102: 10 | C102: 6462 | D102: 42.2 | E102: 9511 | F102: bc | H102: 55 | I102: 52.21421567 | J102: -4.914215667
A103: bookbinders | B103: 8.55 | C103: 3617 | D103: 35.2 | E103: 9517 | F103: bc | H103: 56 | I103: 48.55375113 | J103: -1.453751126
H104: 57 | I104: 49.61766834 | J104: 1.482331656
H105: 58 | I105: 44.44138984 | J105: -0.9413898397
H106: 59 | I106: 50.47661398 | J106: 1.123386024
H107: 60 | I107: 29.4174336 | J107: 0.282566398
H108: 61 | I108: 33.66988034 | J108: -13.46988034
H109: 62 | I109: 47.5960225 | J109: 7.303977502
H110: 63 | I110: 33.12411748 | J110: -7.224117485
H111: 64 | I111: 27.56318617 | J111: -6.763186166
H112: 65 | I112: 27.29541868 | J112: -9.995418683
